Workbook

Sheet Instructions
A1: Directions for Using the UHSAA SCORING SPREADSHEET
A2: for Region and State Theatre Meets:
A4: If you have any questions, please email Giselle Gremmert at giselle.gremmert@canyonsdistrict.org
A5: If there is an emergency the day of your meet, feel free to call or text at 801-391-7864
A6: Before you start... | C6: In the Tab Room...
A7: Refresh your memory on the Policies and Guidelines of the Competition. Rules are changing every year. Make sure you have the most updated information! | C7: If a school does not bring a full slate of pieces, you can leave boxes blank or enter a zero. Whichever makes sense for you.
A8: Please make sure you are using the correct spreadsheet for your classification. Region and State Spreadsheets are different! 1A/2A is different from 3A-6A! | C8: As scores come in to the tabulation room, enter their respective rank (1-4 or 1-6) and score (0-75). The spreadsheet should do all of the math for you from there.
A9: DO NOT, UNDER ANY CIRCUMSTANCES: delete a row or column, add a row or column. If you think there is a reason you need to do so, contact Giselle Gremmert first or you will likely ruin your whole spreadsheet. | C9: Once you have all of your scores in and you need to determine which pieces will go to the final medals round, click on the medals round tab at the bottom of the spreadsheet. There is one for each event. All you have to do is click on the "sort first by rank, then by score" button, and the top 5-8 pieces on the table will be eligible for Medals' Round.
A10: Each school should be assigned a letter code (ie. A, B, DD, etc…). You can type in which school belongs to which code on the Sweepstakes page of the score sheet. Do not try to add a school I or school O. The letters are skipped intentionally. | C10: Please note the drop-down menus for time violations. If a piece goes over or under time, you can just select the number of rounds that occurred in and the spreadsheet will do all the math for you. It will also strike out any piece that has a time violation in more than 1 round. This means it is ineligible to move on to State or go to Medals Round.
A11: You can type in student names and piece titles next to their assigned number on each of the event pages. | C11: PLEASE NOTE: If a school has 4 entries in an event, on the State spreadsheet, the lowest score will automatically be dropped. You won’t have to do anything. This feature is not in the Region scoresheet, so make sure you’re using the correct one.
A12: If you would like coaches to give you their entrant information in a convenient format for the spreadsheet, click on the Slate Entry Form URL below. It has everything divided into the correct number of boxes so you can more easily copy and paste into this spreasheet. (File -->Make a copy). | C12: Scores that turn the whole line yellow meet a point threshhold. At Region, that means the piece qualifies for State and receives a Superior Medal. At State, that means the piece receives a Superior Medal.
A13: https://docs.google.com/spreadsheets/d/1KvhAQPQFbuyZ23tB98sun25-0YTyifYxrCT7RtfStYE/edit?usp=sharing | C13: IF A STUDENT MAKES MEDALS ROUND, they qualify for State/receive a Superior Medal EVEN IF their point total does not automatically qualify them. Make sure to check for any outlier students so you don't miss giving them a medal/sending them to State. Their line may not be yellow.

Sheet Humorous Monologues
A1: Humorous Monologues | K1: Rank 1-4 | X1: S | Y1: E | Z1: G | AA1: F | AC1: 1violation | AD1: 2violations | AE1: 3violations
K2: Round 1: | M2: Round 2: | O2: Round 3: | Q2: -2 for each | AB2: Drops lowest from column q
H3: Student Name | J3: Title of Piece | K3: R1 rank | L3: R1 score | M3: R2 rank | N3: R2 score | O3: R3 rank | P3: R3 score | Q3: Time Violations | S3: TOTAL SCORE | U3: TOTAL RANK | X3: TOTAL SCHOOL SWEEPS POINTS | AB3: Drop Lowest
A4: A-101 | H4: J | I4: Wales | J4: Crystal | K4: 4 | L4: 19 | M4: 1 | N4: 23 | O4: 1 | P4: 25 | R4: =IF(Q4="1violation",-7*1,IF(Q4="2violations",-7*2,IF(Q4="3violations",-7*3,IF(Q4="","")))) ->  | S4: =SUM(L4,N4,P4,R4) -> 67 | U4: =SUM(K4,M4,O4) -> 6 | Y4: =SUM(S4,S6,S5,S7,-AB4) -> 215 | AB4: =MIN(S4:S7) -> 67
A5: A-102 | H5: Hunter | I5: Hughes | J5: Little Flying Ace | K5: 2 | L5: 24 | M5: 2 | N5: 25 | O5: 3 | P5: 25 | S5: 74 | U5: 7
A6: A-103 | H6: Brexton | I6: Jensen | J6: Cat in the Hat AA | K6: 2 | L6: 23 | M6: 1 | N6: 24 | O6: 1 | P6: 25 | S6: 72 | U6: 4
A7: A-104 | H7: Dallin | I7: Nielsen | J7: Welcome to Hell | K7: 4 | L7: 21 | M7: 3 | N7: 23 | O7: 2 | P7: 25 | S7: 69 | U7: 9
A9: B-101 | H9: Amy | I9: Lebaron | J9: Star Spangled Girl | K9: 4 | L9: 24 | M9: 4 | N9: 22 | O9: 4 | P9: 20 | R9: =IF(Q9="1violation",-7*1,IF(Q9="2violations",-7*2,IF(Q9="3violations",-7*3,IF(Q9="","")))) ->  | S9: =SUM(L9,N9,P9,R9) -> 66 | U9: =SUM(K9,M9,O9) -> 12 | Y9: =SUM(S9,S11,S10,S12,-AB9) -> 66 | AB9: =MIN(S9:S12) -> 0
A10: B-102 | S10: 0 | U10: 0
A11: B-103 | S11: 0 | U11: 0
A12: B-104 | S12: 0 | U12: 0
A14: C-101 | H14: Jaxson | I14: Pittman | J14: Welcome to Hell | K14: 1 | L14: 25 | M14: 4 | N14: 24 | O14: 1 | P14: 25 | R14: =IF(Q14="1violation",-7*1,IF(Q14="2violations",-7*2,IF(Q14="3violations",-7*3,IF(Q14="","")))) ->  | S14: =SUM(L14,N14,P14,R14) -> 74 | U14: =SUM(K14,M14,O14) -> 6 | Y14: =SUM(S14,S16,S15,S17,-AB14) -> 221 | AB14: =MIN(S14:S17) -> 69
A15: C-102 | H15: Ava | I15: Johnson | J15: I kissed a Boy Once | K15: 1 | L15: 25 | M15: 1 | N15: 25 | O15: 2 | P15: 23 | S15: 73 | U15: 4
A16: C-103 | H16: Asher | I16: Tomlinson | J16: Alligator Allen | K16: 1 | L16: 24 | M16: 1 | N16: 25 | O16: 1 | P16: 25 | S16: 74 | U16: 3
A17: C-104 | H17: Alexy | I17: Mortensen | J17: Gratitude Lists | K17: 4 | L17: 20 | M17: 2 | N17: 25 | O17: 4 | P17: 24 | S17: 69 | U17: 10
A19: D-101 | R19: =IF(Q19="1violation",-7*1,IF(Q19="2violations",-7*2,IF(Q19="3violations",-7*3,IF(Q19="","")))) ->  | S19: =SUM(L19,N19,P19,R19) -> 0 | U19: =SUM(K19,M19,O19) -> 0 | Y19: =SUM(S19,S21,S20,S22,-AB19) -> 0 | AB19: =MIN(S19:S22) -> 0
A20: D-102 | S20: 0 | U20: 0
A21: D-103 | S21: 0 | U21: 0
A22: D-104 | S22: 0 | U22: 0
A24: E-101 | H24: Taylor | I24: Leavitt | J24: Rapocolypse | K24: 2 | L24: 25 | M24: 2 | N24: 21 | O24: 1 | P24: 25 | R24: =IF(Q24="1violation",-7*1,IF(Q24="2violations",-7*2,IF(Q24="3violations",-7*3,IF(Q24="","")))) ->  | S24: =SUM(L24,N24,P24,R24) -> 71 | U24: =SUM(K24,M24,O24) -> 5 | Y24: =SUM(S24,S26,S25,S27,-AB24) -> 217 | AB24: =MIN(S24:S27) -> 66
A25: E-102 | H25: Jayden | I25: Leithead | J25: Road to Ruin | K25: 1 | L25: 25 | M25: 3 | N25: 25 | O25: 2 | P25: 25 | S25: 75 | U25: 6
A26: E-103 | H26: Jasper | I26: Moser | J26: Designated | K26: 4 | L26: 24 | M26: 4 | N26: 23 | O26: 3 | P26: 24 | S26: 71 | U26: 11
A27: E-104 | H27: Malia | I27: Maxfeild | J27: Stakeout | K27: 2 | L27: 22 | M27: 4 | N27: 23 | O27: 3 | P27: 21 | S27: 66 | U27: 9
A29: F-101 | H29: Sulice | I29: Ihli | J29: Coolest Thing | K29: 1 | L29: 25 | M29: 4 | N29: 25 | O29: 4 | P29: 25 | R29: =IF(Q29="1violation",-7*1,IF(Q29="2violations",-7*2,IF(Q29="3violations",-7*3,IF(Q29="","")))) ->  | S29: =SUM(L29,N29,P29,R29) -> 75 | U29: =SUM(K29,M29,O29) -> 9 | Y29: =SUM(S29,S31,S30,S32,-AB29) -> 211 | AB29: =MIN(S29:S32) -> 60
A30: F-102 | H30: Michael | I30: Kayda | J30: How to Silence | K30: 4 | L30: 18 | M30: 4 | N30: 25 | O30: 3 | P30: 25 | S30: 68 | U30: 11
A31: F-103 | H31: Marz | I31: Hamaker | J31: Last Golden | K31: 4 | L31: 22 | M31: 4 | N31: 17 | O31: 4 | P31: 21 | S31: 60 | U31: 12
A32: F-104 | H32: Asa | I32: Edwards | J32: Rudolphs Brother | K32: 3 | L32: 23 | M32: 4 | N32: 21 | O32: 4 | P32: 24 | S32: 68 | U32: 11
AG33: \
A34: G-101 | R34: =IF(Q34="1violation",-7*1,IF(Q34="2violations",-7*2,IF(Q34="3violations",-7*3,IF(Q34="","")))) ->  | S34: =SUM(L34,N34,P34,R34) -> 0 | U34: =SUM(K34,M34,O34) -> 0 | Y34: =SUM(S34,S36,S35,S37,-AB34) -> 0 | AB34: =MIN(S34:S37) -> 0 | AG34: 210
A35: G-102 | S35: 0 | U35: 0
A36: G-103 | S36: 0 | U36: 0
A37: G-104 | S37: 0 | U37: 0
A39: H-101 | H39: Charlotte | I39: Pulica | J39: I love you | K39: 4 | L39: 23 | M39: 2 | N39: 22 | O39: 4 | P39: 24 | R39: =IF(Q39="1violation",-7*1,IF(Q39="2violations",-7*2,IF(Q39="3violations",-7*3,IF(Q39="","")))) ->  | S39: =SUM(L39,N39,P39,R39) -> 69 | U39: =SUM(K39,M39,O39) -> 10 | Y39: =SUM(S39,S41,S40,S42,-AB39) -> 207 | AB39: =MIN(S39:S42) -> 63
A40: H-102 | H40: Mason | I40: Ames | J40: Funeral Parlor | K40: 4 | L40: 17 | M40: 4 | N40: 22 | O40: 4 | P40: 24 | S40: 63 | U40: 12
A41: H-103 | J41: Clue | K41: 3 | L41: 24 | M41: 3 | N41: 20 | O41: 4 | P41: 25 | S41: 69 | U41: 10
A42: H-104 | J42: I hate Hamlet | K42: 4 | L42: 23 | M42: 1 | N42: 25 | O42: 3 | P42: 21 | S42: 69 | U42: 8
A44: J-101 | R44: =IF(Q44="1violation",-7*1,IF(Q44="2violations",-7*2,IF(Q44="3violations",-7*3,IF(Q44="","")))) ->  | S44: =SUM(L44,N44,P44,R44) -> 0 | U44: =SUM(K44,M44,O44) -> 0 | Y44: =SUM(S44,S46,S45,S47,-AB44) -> 0 | AB44: =MIN(S44:S47) -> 0
A45: J-102 | S45: 0 | U45: 0
A46: J-103 | S46: 0 | U46: 0
A47: J-104 | S47: 0 | U47: 0
A49: K-101 | R49: =IF(Q49="1violation",-7*1,IF(Q49="2violations",-7*2,IF(Q49="3violations",-7*3,IF(Q49="","")))) ->  | S49: =SUM(L49,N49,P49,R49) -> 0 | U49: =SUM(K49,M49,O49) -> 0 | Y49: =SUM(S49,S51,S50,S52,-AB49) -> 0 | AB49: =MIN(S49:S52) -> 0
A50: K-102 | S50: 0 | U50: 0
A51: K-103 | S51: 0 | U51: 0
A52: K-104 | S52: 0 | U52: 0
A54: L-101 | H54: Ezra | I54: Amaya | J54: Drunk Englishmen | K54: 4 | L54: 23 | M54: 4 | N54: 23 | O54: 2 | P54: 25 | R54: =IF(Q54="1violation",-7*1,IF(Q54="2violations",-7*2,IF(Q54="3violations",-7*3,IF(Q54="","")))) ->  | S54: =SUM(L54,N54,P54,R54) -> 71 | U54: =SUM(K54,M54,O54) -> 10 | Y54: =SUM(S54,S56,S55,S57,-AB54) -> 213 | AB54: =MIN(S54:S57) -> 64
A55: L-102 | H55: Evelyn | I55: Halk | J55: Auditioners | K55: 4 | L55: 24 | M55: 3 | N55: 20 | O55: 4 | P55: 20 | S55: 64 | U55: 11
A56: L-103 | H56: Emma | I56: Holm | J56: Laundry and Bourbon | K56: 3 | L56: 21 | M56: 3 | N56: 25 | O56: 4 | P56: 25 | S56: 71 | U56: 10
A57: L-104 | H57: Cooper | I57: Innes | J57: Merchant | K57: 4 | L57: 21 | M57: 4 | N57: 25 | O57: 2 | P57: 25 | S57: 71 | U57: 10
A59: M-101 | H59: Payton | I59: Wakefield | J59: Cheerleader | K59: 3 | L59: 22 | M59: 4 | N59: 19 | O59: 1 | P59: 25 | R59: =IF(Q59="1violation",-7*1,IF(Q59="2violations",-7*2,IF(Q59="3violations",-7*3,IF(Q59="","")))) ->  | S59: =SUM(L59,N59,P59,R59) -> 66 | U59: =SUM(K59,M59,O59) -> 8 | Y59: =SUM(S59,S61,S60,S62,-AB59) -> 140 | AB59: =MIN(S59:S62) -> 0
A60: M-102 | H60: Keagan | I60: Bennett | J60: Science Lesson | K60: 3 | L60: 25 | M60: 2 | N60: 25 | O60: 4 | P60: 24 | S60: 74 | U60: 9
A61: M-103 | S61: 0 | U61: 0
A62: M-104 | S62: 0 | U62: 0
A64: N-101 | H64: Aislinn | I64: Bastian | J64: See Me | R64: =IF(Q64="1violation",-7*1,IF(Q64="2violations",-7*2,IF(Q64="3violations",-7*3,IF(Q64="","")))) ->  | S64: =SUM(L64,N64,P64,R64) -> 0 | U64: =SUM(K64,M64,O64) -> 0 | Y64: =SUM(S64,S66,S65,S67,-AB64) -> 0 | AB64: =MIN(S64:S67) -> 0
A65: N-102 | S65: 0 | U65: 0
A66: N-103 | S66: 0 | U66: 0
A67: N-104 | S67: 0 | U67: 0
A69: P-101 | H69: Haven | I69: Caldwell | J69: Photographer | K69: 1 | L69: 24 | M69: 4 | N69: 24 | O69: 2 | P69: 24 | R69: =IF(Q69="1violation",-7*1,IF(Q69="2violations",-7*2,IF(Q69="3violations",-7*3,IF(Q69="","")))) ->  | S69: =SUM(L69,N69,P69,R69) -> 72 | U69: =SUM(K69,M69,O69) -> 7 | Y69: =SUM(S69,S71,S70,S72,-AB69) -> 221 | AB69: =MIN(S69:S72) -> 66
A70: P-102 | H70: Seth | I70: Howarth | J70: Judge | K70: 2 | L70: 25 | M70: 1 | N70: 25 | O70: 1 | P70: 25 | S70: 75 | U70: 4
A71: P-103 | H71: Caden | I71: Smith | J71: Your Honor | K71: 1 | L71: 25 | M71: 2 | N71: 24 | O71: 3 | P71: 25 | S71: 74 | U71: 6
A72: P-104 | H72: Joslynn | I72: Stewart | J72: Kidnapped | K72: 4 | L72: 16 | M72: 1 | N72: 25 | O72: 3 | P72: 25 | S72: 66 | U72: 8
A74: Q-101 | R74: =IF(Q74="1violation",-7*1,IF(Q74="2violations",-7*2,IF(Q74="3violations",-7*3,IF(Q74="","")))) ->  | S74: =SUM(L74,N74,P74,R74) -> 0 | U74: =SUM(K74,M74,O74) -> 0 | Y74: =SUM(S74,S76,S75,S77,-AB74) -> 0 | AB74: =MIN(S74:S77) -> 0
A75: Q-102 | S75: 0 | U75: 0
A76: Q-103 | S76: 0 | U76: 0
A77: Q-104 | S77: 0 | U77: 0
A79: R-101 | H79: Jocelyne | I79: Betts | J79: Hello, Goodbye | K79: 3 | L79: 22 | M79: 2 | N79: 25 | O79: 4 | P79: 25 | R79: =IF(Q79="1violation",-7*1,IF(Q79="2violations",-7*2,IF(Q79="3violations",-7*3,IF(Q79="","")))) ->  | S79: =SUM(L79,N79,P79,R79) -> 72 | U79: =SUM(K79,M79,O79) -> 9 | Y79: =SUM(S79,S81,S80,S82,-AB79) -> 132 | AB79: =MIN(S79:S82) -> 0
A80: R-102 | H80: Mia | I80: Beck | J80: Sleeping Beauty | K80: 4 | L80: 19 | M80: 4 | N80: 18 | O80: 4 | P80: 23 | S80: 60 | U80: 12
A81: R-103 | S81: 0 | U81: 0
A82: R-104 | S82: 0 | U82: 0
A84: S-101 | H84: Taylor | I84: Fowlke | J84: Female Superiority | K84: 3 | L84: 24 | M84: 3 | N84: 23 | O84: 4 | P84: 21 | R84: =IF(Q84="1violation",-7*1,IF(Q84="2violations",-7*2,IF(Q84="3violations",-7*3,IF(Q84="","")))) ->  | S84: =SUM(L84,N84,P84,R84) -> 68 | U84: =SUM(K84,M84,O84) -> 10 | Y84: =SUM(S84,S86,S85,S87,-AB84) -> 208 | AB84: =MIN(S84:S87) -> 0
A85: S-102 | H85: Leah | I85: Walters | J85: Mad Mockery | K85: 2 | L85: 23 | M85: 4 | N85: 19 | O85: 4 | P85: 23 | S85: 65 | U85: 10
A86: S-103 | H86: Aubrey | I86: Ewer | J86: 5 Stages of Love | K86: 2 | L86: 25 | M86: 3 | N86: 25 | O86: 2 | P86: 25 | S86: 75 | U86: 7
A87: S-104 | S87: 0 | U87: 0
A89: T-101 | R89: =IF(Q89="1violation",-7*1,IF(Q89="2violations",-7*2,IF(Q89="3violations",-7*3,IF(Q89="","")))) ->  | S89: =SUM(L89,N89,P89,R89) -> 0 | U89: =SUM(K89,M89,O89) -> 0 | Y89: =SUM(S89,S91,S90,S92,-AB89) -> 0 | AB89: =MIN(S89:S92) -> 0
A90: T-102 | S90: 0 | U90: 0
A91: T-103 | S91: 0 | U91: 0
A92: T-104 | S92: 0 | U92: 0
A94: U-101 | R94: =IF(Q94="1violation",-7*1,IF(Q94="2violations",-7*2,IF(Q94="3violations",-7*3,IF(Q94="","")))) ->  | S94: =SUM(L94,N94,P94,R94) -> 0 | U94: =SUM(K94,M94,O94) -> 0 | Y94: =SUM(S94,S96,S95,S97,-AB94) -> 0 | AB94: =MIN(S94:S97) -> 0
A95: U-102 | S95: 0 | U95: 0
A96: U-103 | S96: 0 | U96: 0
A97: U-104 | S97: 0 | U97: 0
A99: V-101 | R99: =IF(Q99="1violation",-7*1,IF(Q99="2violations",-7*2,IF(Q99="3violations",-7*3,IF(Q99="","")))) ->  | S99: =SUM(L99,N99,P99,R99) -> 0 | U99: =SUM(K99,M99,O99) -> 0 | Y99: =SUM(S99,S101,S100,S102,-AB99) -> 0 | AB99: =MIN(S99:S102) -> 0
A100: V-102 | S100: 0 | U100: 0
A101: V-103 | S101: 0 | U101: 0
A102: V-104 | S102: 0 | U102: 0
A104: W-101 | R104: =IF(Q104="1violation",-7*1,IF(Q104="2violations",-7*2,IF(Q104="3violations",-7*3,IF(Q104="","")))) ->  | S104: =SUM(L104,N104,P104,R104) -> 0 | U104: =SUM(K104,M104,O104) -> 0 | Y104: =SUM(S104,S106,S105,S107,-AB104) -> 0 | AB104: =MIN(S104:S107) -> 0
A105: W-102 | S105: 0 | U105: 0
A106: W-103 | S106: 0 | U106: 0
A107: W-104 | S107: 0 | U107: 0
A109: X-101 | R109: =IF(Q109="1violation",-7*1,IF(Q109="2violations",-7*2,IF(Q109="3violations",-7*3,IF(Q109="","")))) ->  | S109: =SUM(L109,N109,P109,R109) -> 0 | U109: =SUM(K109,M109,O109) -> 0 | Y109: =SUM(S109,S111,S110,S112,-AB109) -> 0 | AB109: =MIN(S109:S112) -> 0
A110: X-102 | S110: 0 | U110: 0
A111: X-103 | S111: 0 | U111: 0
A112: X-104 | S112: 0 | U112: 0
A114: Y-101 | R114: =IF(Q114="1violation",-7*1,IF(Q114="2violations",-7*2,IF(Q114="3violations",-7*3,IF(Q114="","")))) ->  | S114: =SUM(L114,N114,P114,R114) -> 0 | U114: =SUM(K114,M114,O114) -> 0 | Y114: =SUM(S114,S116,S115,S117,-AB114) -> 0 | AB114: =MIN(S114:S117) -> 0
A115: Y-102 | S115: 0 | U115: 0
A116: Y-103 | S116: 0 | U116: 0
A117: Y-104 | S117: 0 | U117: 0
A119: Z-101 | R119: =IF(Q119="1violation",-7*1,IF(Q119="2violations",-7*2,IF(Q119="3violations",-7*3,IF(Q119="","")))) ->  | S119: =SUM(L119,N119,P119,R119) -> 0 | U119: =SUM(K119,M119,O119) -> 0 | Y119: =SUM(S119,S121,S120,S122,-AB119) -> 0 | AB119: =MIN(S119:S122) -> 0
A120: Z-102 | S120: 0 | U120: 0
A121: Z-103 | S121: 0 | U121: 0
A122: Z-104 | S122: 0 | U122: 0
A124: AA-101 | R124: =IF(Q124="1violation",-7*1,IF(Q124="2violations",-7*2,IF(Q124="3violations",-7*3,IF(Q124="","")))) ->  | S124: =SUM(L124,N124,P124,R124) -> 0 | U124: =SUM(K124,M124,O124) -> 0 | Y124: =SUM(S124,S126,S125,S127,-AB124) -> 0 | AB124: =MIN(S124:S127) -> 0
A125: AA-102 | S125: 0 | U125: 0
A126: AA-103 | S126: 0 | U126: 0
A127: AA-104 | S127: 0 | U127: 0
A129: BB-101 | R129: =IF(Q129="1violation",-7*1,IF(Q129="2violations",-7*2,IF(Q129="3violations",-7*3,IF(Q129="","")))) ->  | S129: =SUM(L129,N129,P129,R129) -> 0 | U129: =SUM(K129,M129,O129) -> 0 | Y129: =SUM(S129,S131,S130,S132,-AB129) -> 0 | AB129: =MIN(S129:S132) -> 0
A130: BB-102 | S130: 0 | U130: 0
A131: BB-103 | S131: 0 | U131: 0
A132: BB-104 | S132: 0 | U132: 0
A134: CC-101 | R134: =IF(Q134="1violation",-7*1,IF(Q134="2violations",-7*2,IF(Q134="3violations",-7*3,IF(Q134="","")))) ->  | S134: =SUM(L134,N134,P134,R134) -> 0 | U134: =SUM(K134,M134,O134) -> 0 | Y134: =SUM(S134,S136,S135,S137,-AB134) -> 0 | AB134: =MIN(S134:S137) -> 0
A135: CC-102 | S135: 0 | U135: 0
A136: CC-103 | S136: 0 | U136: 0
A137: CC-104 | S137: 0 | U137: 0
A139: DD-101 | R139: =IF(Q139="1violation",-7*1,IF(Q139="2violations",-7*2,IF(Q139="3violations",-7*3,IF(Q139="","")))) ->  | S139: =SUM(L139,N139,P139,R139) -> 0 | U139: =SUM(K139,M139,O139) -> 0 | Y139: =SUM(S139,S141,S140,S142,-AB139) -> 0 | AB139: =MIN(S139:S142) -> 0
A140: DD-102 | S140: 0 | U140: 0
A141: DD-103 | S141: 0 | U141: 0
A142: DD-104 | S142: 0 | U142: 0
A144: EE-101 | R144: =IF(Q144="1violation",-7*1,IF(Q144="2violations",-7*2,IF(Q144="3violations",-7*3,IF(Q144="","")))) ->  | S144: =SUM(L144,N144,P144,R144) -> 0 | U144: =SUM(K144,M144,O144) -> 0 | Y144: =SUM(S144,S146,S145,S147,-AB144) -> 0 | AB144: =MIN(S144:S147) -> 0
A145: EE-102 | S145: 0 | U145: 0
A146: EE-103 | S146: 0 | U146: 0
A147: EE-104 | S147: 0 | U147: 0
A149: FF-101 | R149: =IF(Q149="1violation",-7*1,IF(Q149="2violations",-7*2,IF(Q149="3violations",-7*3,IF(Q149="","")))) ->  | S149: =SUM(L149,N149,P149,R149) -> 0 | U149: =SUM(K149,M149,O149) -> 0 | Y149: =SUM(S149,S151,S150,S152,-AB149) -> 0 | AB149: =MIN(S149:S152) -> 0
A150: FF-102 | S150: 0 | U150: 0
A151: FF-103 | S151: 0 | U151: 0
A152: FF-104 | S152: 0 | U152: 0

Sheet HumorousMR
A1: Humorous | E1: Finals Medals Round Scores
A2: ID | B2: Rank | C2: Score | D2: LeaveBlank | E2: MR 1 Rank | F2: MR 1 Score | G2: MR2 Rank | H2: MR 2 Score | I2: MR3 Rank | J2: MR 3 Score | K2: Total MR Rank | L2: Total MR Score
A3: ='Humorous Monologues'!A5 -> A-102 | B3: ='Humorous Monologues'!U5 -> 7 | C3: ='Humorous Monologues'!S5 -> 74 | D3: =IF((HumorousMR!$B3+HumorousMR!$C3)>0,1,0) -> 1 | K3: =SUM(E3,G3,I3) -> 0 | L3: 0
A4: ='Humorous Monologues'!A6 -> A-103 | B4: ='Humorous Monologues'!U6 -> 4 | C4: ='Humorous Monologues'!S6 -> 72 | D4: =IF((HumorousMR!$B4+HumorousMR!$C4)>0,1,0) -> 1 | E4: 2 | F4: 25 | G4: 2 | H4: 24 | I4: 5 | J4: 23 | K4: =SUM(E4,G4,I4) -> 9 | L4: 72
A5: ='Humorous Monologues'!A9 -> B-101 | B5: ='Humorous Monologues'!U9 -> 12 | C5: ='Humorous Monologues'!S9 -> 66 | D5: =IF((HumorousMR!$B5+HumorousMR!$C5)>0,1,0) -> 1 | K5: =SUM(E5,G5,I5) -> 0 | L5: 0
A6: ='Humorous Monologues'!A7 -> A-104 | B6: ='Humorous Monologues'!U7 -> 9 | C6: ='Humorous Monologues'!S7 -> 69 | D6: =IF((HumorousMR!$B6+HumorousMR!$C6)>0,1,0) -> 1 | K6: =SUM(E6,G6,I6) -> 0 | L6: 0
A7: ='Humorous Monologues'!A14 -> C-101 | B7: ='Humorous Monologues'!U14 -> 6 | C7: ='Humorous Monologues'!S14 -> 74 | D7: =IF((HumorousMR!$B7+HumorousMR!$C7)>0,1,0) -> 1 | E7: 1 | F7: 25 | G7: 6 | H7: 22 | I7: 6 | J7: 22 | K7: =SUM(E7,G7,I7) -> 13 | L7: 69
A8: ='Humorous Monologues'!A4 -> A-101 | B8: ='Humorous Monologues'!U4 -> 6 | C8: ='Humorous Monologues'!S4 -> 67 | D8: =IF((HumorousMR!$B8+HumorousMR!$C8)>0,1,0) -> 1 | K8: =SUM(E8,G8,I8) -> 0 | L8: 0
A9: ='Humorous Monologues'!A11 -> B-103 | B9: ='Humorous Monologues'!U11 -> 0 | C9: ='Humorous Monologues'!S11 -> 0 | D9: =IF((HumorousMR!$B9+HumorousMR!$C9)>0,1,0) -> 0 | K9: =SUM(E9,G9,I9) -> 0 | L9: 0
A10: ='Humorous Monologues'!A10 -> B-102 | B10: ='Humorous Monologues'!U10 -> 0 | C10: ='Humorous Monologues'!S10 -> 0 | D10: =IF((HumorousMR!$B10+HumorousMR!$C10)>0,1,0) -> 0 | K10: =SUM(E10,G10,I10) -> 0 | L10: 0
A11: ='Humorous Monologues'!A12 -> B-104 | B11: ='Humorous Monologues'!U12 -> 0 | C11: ='Humorous Monologues'!S12 -> 0 | D11: =IF((HumorousMR!$B11+HumorousMR!$C11)>0,1,0) -> 0 | K11: =SUM(E11,G11,I11) -> 0 | L11: 0
A12: ='Humorous Monologues'!A124 -> AA-101 | B12: ='Humorous Monologues'!U124 -> 0 | C12: ='Humorous Monologues'!S124 -> 0 | D12: =IF((HumorousMR!$B12+HumorousMR!$C12)>0,1,0) -> 0 | K12: =SUM(E12,G12,I12) -> 0 | L12: 0
A13: ='Humorous Monologues'!A125 -> AA-102 | B13: ='Humorous Monologues'!U125 -> 0 | C13: ='Humorous Monologues'!S125 -> 0 | D13: =IF((HumorousMR!$B13+HumorousMR!$C13)>0,1,0) -> 0 | K13: =SUM(E13,G13,I13) -> 0 | L13: 0
A14: ='Humorous Monologues'!A126 -> AA-103 | B14: ='Humorous Monologues'!U126 -> 0 | C14: ='Humorous Monologues'!S126 -> 0 | D14: =IF((HumorousMR!$B14+HumorousMR!$C14)>0,1,0) -> 0 | K14: =SUM(E14,G14,I14) -> 0 | L14: 0
A15: ='Humorous Monologues'!A127 -> AA-104 | B15: ='Humorous Monologues'!U127 -> 0 | C15: ='Humorous Monologues'!S127 -> 0 | D15: =IF((HumorousMR!$B15+HumorousMR!$C15)>0,1,0) -> 0 | K15: =SUM(E15,G15,I15) -> 0 | L15: 0
A16: ='Humorous Monologues'!A129 -> BB-101 | B16: ='Humorous Monologues'!U129 -> 0 | C16: ='Humorous Monologues'!S129 -> 0 | D16: =IF((HumorousMR!$B16+HumorousMR!$C16)>0,1,0) -> 0 | K16: =SUM(E16,G16,I16) -> 0 | L16: 0
A17: ='Humorous Monologues'!A130 -> BB-102 | B17: ='Humorous Monologues'!U130 -> 0 | C17: ='Humorous Monologues'!S130 -> 0 | D17: =IF((HumorousMR!$B17+HumorousMR!$C17)>0,1,0) -> 0 | K17: =SUM(E17,G17,I17) -> 0 | L17: 0
A18: ='Humorous Monologues'!A131 -> BB-103 | B18: ='Humorous Monologues'!U131 -> 0 | C18: ='Humorous Monologues'!S131 -> 0 | D18: =IF((HumorousMR!$B18+HumorousMR!$C18)>0,1,0) -> 0 | K18: =SUM(E18,G18,I18) -> 0 | L18: 0
A19: ='Humorous Monologues'!A132 -> BB-104 | B19: ='Humorous Monologues'!U132 -> 0 | C19: ='Humorous Monologues'!S132 -> 0 | D19: =IF((HumorousMR!$B19+HumorousMR!$C19)>0,1,0) -> 0 | K19: =SUM(E19,G19,I19) -> 0 | L19: 0
A20: ='Humorous Monologues'!A15 -> C-102 | B20: ='Humorous Monologues'!U15 -> 4 | C20: ='Humorous Monologues'!S15 -> 73 | D20: =IF((HumorousMR!$B20+HumorousMR!$C20)>0,1,0) -> 1 | E20: 6 | F20: 21 | G20: 6 | H20: 23 | I20: 6 | J20: 22 | K20: =SUM(E20,G20,I20) -> 18 | L20: 66
A21: ='Humorous Monologues'!A16 -> C-103 | B21: ='Humorous Monologues'!U16 -> 3 | C21: ='Humorous Monologues'!S16 -> 74 | D21: =IF((HumorousMR!$B21+HumorousMR!$C21)>0,1,0) -> 1 | E21: 6 | F21: 21 | G21: 1 | H21: 24 | I21: 1 | J21: 24 | K21: =SUM(E21,G21,I21) -> 8 | L21: 69
A22: ='Humorous Monologues'!A17 -> C-104 | B22: ='Humorous Monologues'!U17 -> 10 | C22: ='Humorous Monologues'!S17 -> 69 | D22: =IF((HumorousMR!$B22+HumorousMR!$C22)>0,1,0) -> 1 | K22: =SUM(E22,G22,I22) -> 0 | L22: 0
A23: ='Humorous Monologues'!A134 -> CC-101 | B23: ='Humorous Monologues'!U134 -> 0 | C23: ='Humorous Monologues'!S134 -> 0 | D23: =IF((HumorousMR!$B23+HumorousMR!$C23)>0,1,0) -> 0 | K23: =SUM(E23,G23,I23) -> 0 | L23: 0
A24: ='Humorous Monologues'!A135 -> CC-102 | B24: ='Humorous Monologues'!U135 -> 0 | C24: ='Humorous Monologues'!S135 -> 0 | D24: =IF((HumorousMR!$B24+HumorousMR!$C24)>0,1,0) -> 0 | K24: =SUM(E24,G24,I24) -> 0 | L24: 0
A25: ='Humorous Monologues'!A136 -> CC-103 | B25: ='Humorous Monologues'!U136 -> 0 | C25: ='Humorous Monologues'!S136 -> 0 | D25: =IF((HumorousMR!$B25+HumorousMR!$C25)>0,1,0) -> 0 | K25: =SUM(E25,G25,I25) -> 0 | L25: 0
A26: ='Humorous Monologues'!A137 -> CC-104 | B26: ='Humorous Monologues'!U137 -> 0 | C26: ='Humorous Monologues'!S137 -> 0 | D26: =IF((HumorousMR!$B26+HumorousMR!$C26)>0,1,0) -> 0 | K26: =SUM(E26,G26,I26) -> 0 | L26: 0
A27: ='Humorous Monologues'!A19 -> D-101 | B27: ='Humorous Monologues'!U19 -> 0 | C27: ='Humorous Monologues'!S19 -> 0 | D27: =IF((HumorousMR!$B27+HumorousMR!$C27)>0,1,0) -> 0 | K27: =SUM(E27,G27,I27) -> 0 | L27: 0
A28: ='Humorous Monologues'!A20 -> D-102 | B28: ='Humorous Monologues'!U20 -> 0 | C28: ='Humorous Monologues'!S20 -> 0 | D28: =IF((HumorousMR!$B28+HumorousMR!$C28)>0,1,0) -> 0 | K28: =SUM(E28,G28,I28) -> 0 | L28: 0
A29: ='Humorous Monologues'!A21 -> D-103 | B29: ='Humorous Monologues'!U21 -> 0 | C29: ='Humorous Monologues'!S21 -> 0 | D29: =IF((HumorousMR!$B29+HumorousMR!$C29)>0,1,0) -> 0 | K29: =SUM(E29,G29,I29) -> 0 | L29: 0
A30: ='Humorous Monologues'!A22 -> D-104 | B30: ='Humorous Monologues'!U22 -> 0 | C30: ='Humorous Monologues'!S22 -> 0 | D30: =IF((HumorousMR!$B30+HumorousMR!$C30)>0,1,0) -> 0 | K30: =SUM(E30,G30,I30) -> 0 | L30: 0
A31: ='Humorous Monologues'!A139 -> DD-101 | B31: ='Humorous Monologues'!U139 -> 0 | C31: ='Humorous Monologues'!S139 -> 0 | D31: =IF((HumorousMR!$B31+HumorousMR!$C31)>0,1,0) -> 0 | K31: =SUM(E31,G31,I31) -> 0 | L31: 0
A32: ='Humorous Monologues'!A140 -> DD-102 | B32: ='Humorous Monologues'!U140 -> 0 | C32: ='Humorous Monologues'!S140 -> 0 | D32: =IF((HumorousMR!$B32+HumorousMR!$C32)>0,1,0) -> 0 | K32: =SUM(E32,G32,I32) -> 0 | L32: 0
A33: ='Humorous Monologues'!A141 -> DD-103 | B33: ='Humorous Monologues'!U141 -> 0 | C33: ='Humorous Monologues'!S141 -> 0 | D33: =IF((HumorousMR!$B33+HumorousMR!$C33)>0,1,0) -> 0 | K33: =SUM(E33,G33,I33) -> 0 | L33: 0
A34: ='Humorous Monologues'!A142 -> DD-104 | B34: ='Humorous Monologues'!U142 -> 0 | C34: ='Humorous Monologues'!S142 -> 0 | D34: =IF((HumorousMR!$B34+HumorousMR!$C34)>0,1,0) -> 0 | K34: =SUM(E34,G34,I34) -> 0 | L34: 0
A35: ='Humorous Monologues'!A24 -> E-101 | B35: ='Humorous Monologues'!U24 -> 5 | C35: ='Humorous Monologues'!S24 -> 71 | D35: =IF((HumorousMR!$B35+HumorousMR!$C35)>0,1,0) -> 1 | E35: 5 | F35: 22 | G35: 6 | H35: 21 | I35: 2 | J35: 24 | K35: =SUM(E35,G35,I35) -> 13 | L35: 67
A36: ='Humorous Monologues'!A25 -> E-102 | B36: ='Humorous Monologues'!U25 -> 6 | C36: ='Humorous Monologues'!S25 -> 75 | D36: =IF((HumorousMR!$B36+HumorousMR!$C36)>0,1,0) -> 1 | E36: 3 | F36: 23 | G36: 5 | H36: 23 | I36: 4 | J36: 23 | K36: =SUM(E36,G36,I36) -> 12 | L36: 69
A37: ='Humorous Monologues'!A26 -> E-103 | B37: ='Humorous Monologues'!U26 -> 11 | C37: ='Humorous Monologues'!S26 -> 71 | D37: =IF((HumorousMR!$B37+HumorousMR!$C37)>0,1,0) -> 1 | K37: =SUM(E37,G37,I37) -> 0 | L37: 0
A38: ='Humorous Monologues'!A27 -> E-104 | B38: ='Humorous Monologues'!U27 -> 9 | C38: ='Humorous Monologues'!S27 -> 66 | D38: =IF((HumorousMR!$B38+HumorousMR!$C38)>0,1,0) -> 1 | K38: =SUM(E38,G38,I38) -> 0 | L38: 0
A39: ='Humorous Monologues'!A144 -> EE-101 | B39: ='Humorous Monologues'!U144 -> 0 | C39: ='Humorous Monologues'!S144 -> 0 | D39: =IF((HumorousMR!$B39+HumorousMR!$C39)>0,1,0) -> 0 | K39: =SUM(E39,G39,I39) -> 0 | L39: 0
A40: ='Humorous Monologues'!A145 -> EE-102 | B40: ='Humorous Monologues'!U145 -> 0 | C40: ='Humorous Monologues'!S145 -> 0 | D40: =IF((HumorousMR!$B40+HumorousMR!$C40)>0,1,0) -> 0 | K40: =SUM(E40,G40,I40) -> 0 | L40: 0
A41: ='Humorous Monologues'!A146 -> EE-103 | B41: ='Humorous Monologues'!U146 -> 0 | C41: ='Humorous Monologues'!S146 -> 0 | D41: =IF((HumorousMR!$B41+HumorousMR!$C41)>0,1,0) -> 0 | K41: =SUM(E41,G41,I41) -> 0 | L41: 0
A42: ='Humorous Monologues'!A147 -> EE-104 | B42: ='Humorous Monologues'!U147 -> 0 | C42: ='Humorous Monologues'!S147 -> 0 | D42: =IF((HumorousMR!$B42+HumorousMR!$C42)>0,1,0) -> 0 | K42: =SUM(E42,G42,I42) -> 0 | L42: 0
A43: ='Humorous Monologues'!A29 -> F-101 | B43: ='Humorous Monologues'!U29 -> 9 | C43: ='Humorous Monologues'!S29 -> 75 | D43: =IF((HumorousMR!$B43+HumorousMR!$C43)>0,1,0) -> 1 | K43: =SUM(E43,G43,I43) -> 0 | L43: 0
A44: ='Humorous Monologues'!A30 -> F-102 | B44: ='Humorous Monologues'!U30 -> 11 | C44: ='Humorous Monologues'!S30 -> 68 | D44: =IF((HumorousMR!$B44+HumorousMR!$C44)>0,1,0) -> 1 | K44: =SUM(E44,G44,I44) -> 0 | L44: 0
A45: ='Humorous Monologues'!A31 -> F-103 | B45: ='Humorous Monologues'!U31 -> 12 | C45: ='Humorous Monologues'!S31 -> 60 | D45: =IF((HumorousMR!$B45+HumorousMR!$C45)>0,1,0) -> 1 | K45: =SUM(E45,G45,I45) -> 0 | L45: 0
A46: ='Humorous Monologues'!A32 -> F-104 | B46: ='Humorous Monologues'!U32 -> 11 | C46: ='Humorous Monologues'!S32 -> 68 | D46: =IF((HumorousMR!$B46+HumorousMR!$C46)>0,1,0) -> 1 | K46: =SUM(E46,G46,I46) -> 0 | L46: 0
A47: ='Humorous Monologues'!A149 -> FF-101 | B47: ='Humorous Monologues'!U149 -> 0 | C47: ='Humorous Monologues'!S149 -> 0 | D47: =IF((HumorousMR!$B47+HumorousMR!$C47)>0,1,0) -> 0 | K47: =SUM(E47,G47,I47) -> 0 | L47: 0
A48: ='Humorous Monologues'!A150 -> FF-102 | B48: ='Humorous Monologues'!U150 -> 0 | C48: ='Humorous Monologues'!S150 -> 0 | D48: =IF((HumorousMR!$B48+HumorousMR!$C48)>0,1,0) -> 0 | K48: =SUM(E48,G48,I48) -> 0 | L48: 0
A49: ='Humorous Monologues'!A151 -> FF-103 | B49: ='Humorous Monologues'!U151 -> 0 | C49: ='Humorous Monologues'!S151 -> 0 | D49: =IF((HumorousMR!$B49+HumorousMR!$C49)>0,1,0) -> 0 | K49: =SUM(E49,G49,I49) -> 0 | L49: 0
A50: ='Humorous Monologues'!A152 -> FF-104 | B50: ='Humorous Monologues'!U152 -> 0 | C50: ='Humorous Monologues'!S152 -> 0 | D50: =IF((HumorousMR!$B50+HumorousMR!$C50)>0,1,0) -> 0 | K50: =SUM(E50,G50,I50) -> 0 | L50: 0
A51: ='Humorous Monologues'!A34 -> G-101 | B51: ='Humorous Monologues'!U34 -> 0 | C51: ='Humorous Monologues'!S34 -> 0 | D51: =IF((HumorousMR!$B51+HumorousMR!$C51)>0,1,0) -> 0 | K51: =SUM(E51,G51,I51) -> 0 | L51: 0
A52: ='Humorous Monologues'!A35 -> G-102 | B52: ='Humorous Monologues'!U35 -> 0 | C52: ='Humorous Monologues'!S35 -> 0 | D52: =IF((HumorousMR!$B52+HumorousMR!$C52)>0,1,0) -> 0 | K52: =SUM(E52,G52,I52) -> 0 | L52: 0
A53: ='Humorous Monologues'!A36 -> G-103 | B53: ='Humorous Monologues'!U36 -> 0 | C53: ='Humorous Monologues'!S36 -> 0 | D53: =IF((HumorousMR!$B53+HumorousMR!$C53)>0,1,0) -> 0 | K53: =SUM(E53,G53,I53) -> 0 | L53: 0
A54: ='Humorous Monologues'!A37 -> G-104 | B54: ='Humorous Monologues'!U37 -> 0 | C54: ='Humorous Monologues'!S37 -> 0 | D54: =IF((HumorousMR!$B54+HumorousMR!$C54)>0,1,0) -> 0 | K54: =SUM(E54,G54,I54) -> 0 | L54: 0
A55: ='Humorous Monologues'!A39 -> H-101 | B55: ='Humorous Monologues'!U39 -> 10 | C55: ='Humorous Monologues'!S39 -> 69 | D55: =IF((HumorousMR!$B55+HumorousMR!$C55)>0,1,0) -> 1 | K55: =SUM(E55,G55,I55) -> 0 | L55: 0
A56: ='Humorous Monologues'!A40 -> H-102 | B56: ='Humorous Monologues'!U40 -> 12 | C56: ='Humorous Monologues'!S40 -> 63 | D56: =IF((HumorousMR!$B56+HumorousMR!$C56)>0,1,0) -> 1 | K56: =SUM(E56,G56,I56) -> 0 | L56: 0
A57: ='Humorous Monologues'!A41 -> H-103 | B57: ='Humorous Monologues'!U41 -> 10 | C57: ='Humorous Monologues'!S41 -> 69 | D57: =IF((HumorousMR!$B57+HumorousMR!$C57)>0,1,0) -> 1 | K57: =SUM(E57,G57,I57) -> 0 | L57: 0
A58: ='Humorous Monologues'!A42 -> H-104 | B58: ='Humorous Monologues'!U42 -> 8 | C58: ='Humorous Monologues'!S42 -> 69 | D58: =IF((HumorousMR!$B58+HumorousMR!$C58)>0,1,0) -> 1 | K58: =SUM(E58,G58,I58) -> 0 | L58: 0
A59: ='Humorous Monologues'!A44 -> J-101 | B59: ='Humorous Monologues'!U44 -> 0 | C59: ='Humorous Monologues'!S44 -> 0 | D59: =IF((HumorousMR!$B59+HumorousMR!$C59)>0,1,0) -> 0 | K59: =SUM(E59,G59,I59) -> 0 | L59: 0
A60: ='Humorous Monologues'!A45 -> J-102 | B60: ='Humorous Monologues'!U45 -> 0 | C60: ='Humorous Monologues'!S45 -> 0 | D60: =IF((HumorousMR!$B60+HumorousMR!$C60)>0,1,0) -> 0 | K60: =SUM(E60,G60,I60) -> 0 | L60: 0
A61: ='Humorous Monologues'!A46 -> J-103 | B61: ='Humorous Monologues'!U46 -> 0 | C61: ='Humorous Monologues'!S46 -> 0 | D61: =IF((HumorousMR!$B61+HumorousMR!$C61)>0,1,0) -> 0 | K61: =SUM(E61,G61,I61) -> 0 | L61: 0
A62: ='Humorous Monologues'!A47 -> J-104 | B62: ='Humorous Monologues'!U47 -> 0 | C62: ='Humorous Monologues'!S47 -> 0 | D62: =IF((HumorousMR!$B62+HumorousMR!$C62)>0,1,0) -> 0 | K62: =SUM(E62,G62,I62) -> 0 | L62: 0
A63: ='Humorous Monologues'!A49 -> K-101 | B63: ='Humorous Monologues'!U49 -> 0 | C63: ='Humorous Monologues'!S49 -> 0 | D63: =IF((HumorousMR!$B63+HumorousMR!$C63)>0,1,0) -> 0 | K63: =SUM(E63,G63,I63) -> 0 | L63: 0
A64: ='Humorous Monologues'!A50 -> K-102 | B64: ='Humorous Monologues'!U50 -> 0 | C64: ='Humorous Monologues'!S50 -> 0 | D64: =IF((HumorousMR!$B64+HumorousMR!$C64)>0,1,0) -> 0 | K64: =SUM(E64,G64,I64) -> 0 | L64: 0
A65: ='Humorous Monologues'!A51 -> K-103 | B65: ='Humorous Monologues'!U51 -> 0 | C65: ='Humorous Monologues'!S51 -> 0 | D65: =IF((HumorousMR!$B65+HumorousMR!$C65)>0,1,0) -> 0 | K65: =SUM(E65,G65,I65) -> 0 | L65: 0
A66: ='Humorous Monologues'!A52 -> K-104 | B66: ='Humorous Monologues'!U52 -> 0 | C66: ='Humorous Monologues'!S52 -> 0 | D66: =IF((HumorousMR!$B66+HumorousMR!$C66)>0,1,0) -> 0 | K66: =SUM(E66,G66,I66) -> 0 | L66: 0
A67: ='Humorous Monologues'!A54 -> L-101 | B67: ='Humorous Monologues'!U54 -> 10 | C67: ='Humorous Monologues'!S54 -> 71 | D67: =IF((HumorousMR!$B67+HumorousMR!$C67)>0,1,0) -> 1 | K67: =SUM(E67,G67,I67) -> 0 | L67: 0
A68: ='Humorous Monologues'!A55 -> L-102 | B68: ='Humorous Monologues'!U55 -> 11 | C68: ='Humorous Monologues'!S55 -> 64 | D68: =IF((HumorousMR!$B68+HumorousMR!$C68)>0,1,0) -> 1 | K68: =SUM(E68,G68,I68) -> 0 | L68: 0
A69: ='Humorous Monologues'!A56 -> L-103 | B69: ='Humorous Monologues'!U56 -> 10 | C69: ='Humorous Monologues'!S56 -> 71 | D69: =IF((HumorousMR!$B69+HumorousMR!$C69)>0,1,0) -> 1 | K69: =SUM(E69,G69,I69) -> 0 | L69: 0
A70: ='Humorous Monologues'!A57 -> L-104 | B70: ='Humorous Monologues'!U57 -> 10 | C70: ='Humorous Monologues'!S57 -> 71 | D70: =IF((HumorousMR!$B70+HumorousMR!$C70)>0,1,0) -> 1 | K70: =SUM(E70,G70,I70) -> 0 | L70: 0
A71: ='Humorous Monologues'!A59 -> M-101 | B71: ='Humorous Monologues'!U59 -> 8 | C71: ='Humorous Monologues'!S59 -> 66 | D71: =IF((HumorousMR!$B71+HumorousMR!$C71)>0,1,0) -> 1 | K71: =SUM(E71,G71,I71) -> 0 | L71: 0
A72: ='Humorous Monologues'!A60 -> M-102 | B72: ='Humorous Monologues'!U60 -> 9 | C72: ='Humorous Monologues'!S60 -> 74 | D72: =IF((HumorousMR!$B72+HumorousMR!$C72)>0,1,0) -> 1 | K72: =SUM(E72,G72,I72) -> 0 | L72: 0
A73: ='Humorous Monologues'!A61 -> M-103 | B73: ='Humorous Monologues'!U61 -> 0 | C73: ='Humorous Monologues'!S61 -> 0 | D73: =IF((HumorousMR!$B73+HumorousMR!$C73)>0,1,0) -> 0 | K73: =SUM(E73,G73,I73) -> 0 | L73: 0
A74: ='Humorous Monologues'!A62 -> M-104 | B74: ='Humorous Monologues'!U62 -> 0 | C74: ='Humorous Monologues'!S62 -> 0 | D74: =IF((HumorousMR!$B74+HumorousMR!$C74)>0,1,0) -> 0 | K74: =SUM(E74,G74,I74) -> 0 | L74: 0
A75: ='Humorous Monologues'!A64 -> N-101 | B75: ='Humorous Monologues'!U64 -> 0 | C75: ='Humorous Monologues'!S64 -> 0 | D75: =IF((HumorousMR!$B75+HumorousMR!$C75)>0,1,0) -> 0 | K75: =SUM(E75,G75,I75) -> 0 | L75: 0
A76: ='Humorous Monologues'!A65 -> N-102 | B76: ='Humorous Monologues'!U65 -> 0 | C76: ='Humorous Monologues'!S65 -> 0 | D76: =IF((HumorousMR!$B76+HumorousMR!$C76)>0,1,0) -> 0 | K76: =SUM(E76,G76,I76) -> 0 | L76: 0
A77: ='Humorous Monologues'!A66 -> N-103 | B77: ='Humorous Monologues'!U66 -> 0 | C77: ='Humorous Monologues'!S66 -> 0 | D77: =IF((HumorousMR!$B77+HumorousMR!$C77)>0,1,0) -> 0 | K77: =SUM(E77,G77,I77) -> 0 | L77: 0
A78: ='Humorous Monologues'!A67 -> N-104 | B78: ='Humorous Monologues'!U67 -> 0 | C78: ='Humorous Monologues'!S67 -> 0 | D78: =IF((HumorousMR!$B78+HumorousMR!$C78)>0,1,0) -> 0 | K78: =SUM(E78,G78,I78) -> 0 | L78: 0
A79: ='Humorous Monologues'!A69 -> P-101 | B79: ='Humorous Monologues'!U69 -> 7 | C79: ='Humorous Monologues'!S69 -> 72 | D79: =IF((HumorousMR!$B79+HumorousMR!$C79)>0,1,0) -> 1 | K79: =SUM(E79,G79,I79) -> 0 | L79: 0
A80: ='Humorous Monologues'!A70 -> P-102 | B80: ='Humorous Monologues'!U70 -> 4 | C80: ='Humorous Monologues'!S70 -> 75 | D80: =IF((HumorousMR!$B80+HumorousMR!$C80)>0,1,0) -> 1 | E80: 4 | F80: 22 | G80: 3 | H80: 23 | I80: 3 | J80: 24 | K80: =SUM(E80,G80,I80) -> 10 | L80: 69
A81: ='Humorous Monologues'!A71 -> P-103 | B81: ='Humorous Monologues'!U71 -> 6 | C81: ='Humorous Monologues'!S71 -> 74 | D81: =IF((HumorousMR!$B81+HumorousMR!$C81)>0,1,0) -> 1 | E81: 6 | F81: 20 | G81: 4 | H81: 23 | I81: 6 | J81: 23 | K81: =SUM(E81,G81,I81) -> 16 | L81: 66
A82: ='Humorous Monologues'!A72 -> P-104 | B82: ='Humorous Monologues'!U72 -> 8 | C82: ='Humorous Monologues'!S72 -> 66 | D82: =IF((HumorousMR!$B82+HumorousMR!$C82)>0,1,0) -> 1 | K82: =SUM(E82,G82,I82) -> 0 | L82: 0
A83: ='Humorous Monologues'!A74 -> Q-101 | B83: ='Humorous Monologues'!U74 -> 0 | C83: ='Humorous Monologues'!S74 -> 0 | D83: =IF((HumorousMR!$B83+HumorousMR!$C83)>0,1,0) -> 0 | K83: =SUM(E83,G83,I83) -> 0 | L83: 0
A84: ='Humorous Monologues'!A75 -> Q-102 | B84: ='Humorous Monologues'!U75 -> 0 | C84: ='Humorous Monologues'!S75 -> 0 | D84: =IF((HumorousMR!$B84+HumorousMR!$C84)>0,1,0) -> 0 | K84: =SUM(E84,G84,I84) -> 0 | L84: 0
A85: ='Humorous Monologues'!A76 -> Q-103 | B85: ='Humorous Monologues'!U76 -> 0 | C85: ='Humorous Monologues'!S76 -> 0 | D85: =IF((HumorousMR!$B85+HumorousMR!$C85)>0,1,0) -> 0 | K85: =SUM(E85,G85,I85) -> 0 | L85: 0
A86: ='Humorous Monologues'!A77 -> Q-104 | B86: ='Humorous Monologues'!U77 -> 0 | C86: ='Humorous Monologues'!S77 -> 0 | D86: =IF((HumorousMR!$B86+HumorousMR!$C86)>0,1,0) -> 0 | K86: =SUM(E86,G86,I86) -> 0 | L86: 0
A87: ='Humorous Monologues'!A79 -> R-101 | B87: ='Humorous Monologues'!U79 -> 9 | C87: ='Humorous Monologues'!S79 -> 72 | D87: =IF((HumorousMR!$B87+HumorousMR!$C87)>0,1,0) -> 1 | K87: =SUM(E87,G87,I87) -> 0 | L87: 0
A88: ='Humorous Monologues'!A80 -> R-102 | B88: ='Humorous Monologues'!U80 -> 12 | C88: ='Humorous Monologues'!S80 -> 60 | D88: =IF((HumorousMR!$B88+HumorousMR!$C88)>0,1,0) -> 1 | K88: =SUM(E88,G88,I88) -> 0 | L88: 0
A89: ='Humorous Monologues'!A81 -> R-103 | B89: ='Humorous Monologues'!U81 -> 0 | C89: ='Humorous Monologues'!S81 -> 0 | D89: =IF((HumorousMR!$B89+HumorousMR!$C89)>0,1,0) -> 0 | K89: =SUM(E89,G89,I89) -> 0 | L89: 0
A90: ='Humorous Monologues'!A82 -> R-104 | B90: ='Humorous Monologues'!U82 -> 0 | C90: ='Humorous Monologues'!S82 -> 0 | D90: =IF((HumorousMR!$B90+HumorousMR!$C90)>0,1,0) -> 0 | K90: =SUM(E90,G90,I90) -> 0 | L90: 0
A91: ='Humorous Monologues'!A84 -> S-101 | B91: ='Humorous Monologues'!U84 -> 10 | C91: ='Humorous Monologues'!S84 -> 68 | D91: =IF((HumorousMR!$B91+HumorousMR!$C91)>0,1,0) -> 1 | K91: =SUM(E91,G91,I91) -> 0 | L91: 0
A92: ='Humorous Monologues'!A85 -> S-102 | B92: ='Humorous Monologues'!U85 -> 10 | C92: ='Humorous Monologues'!S85 -> 65 | D92: =IF((HumorousMR!$B92+HumorousMR!$C92)>0,1,0) -> 1 | K92: =SUM(E92,G92,I92) -> 0 | L92: 0
A93: ='Humorous Monologues'!A86 -> S-103 | B93: ='Humorous Monologues'!U86 -> 7 | C93: ='Humorous Monologues'!S86 -> 75 | D93: =IF((HumorousMR!$B93+HumorousMR!$C93)>0,1,0) -> 1 | K93: =SUM(E93,G93,I93) -> 0 | L93: 0
A94: ='Humorous Monologues'!A87 -> S-104 | B94: ='Humorous Monologues'!U87 -> 0 | C94: ='Humorous Monologues'!S87 -> 0 | D94: =IF((HumorousMR!$B94+HumorousMR!$C94)>0,1,0) -> 0 | K94: =SUM(E94,G94,I94) -> 0 | L94: 0
A95: ='Humorous Monologues'!A89 -> T-101 | B95: ='Humorous Monologues'!U89 -> 0 | C95: ='Humorous Monologues'!S89 -> 0 | D95: =IF((HumorousMR!$B95+HumorousMR!$C95)>0,1,0) -> 0 | K95: =SUM(E95,G95,I95) -> 0 | L95: 0
A96: ='Humorous Monologues'!A90 -> T-102 | B96: ='Humorous Monologues'!U90 -> 0 | C96: ='Humorous Monologues'!S90 -> 0 | D96: =IF((HumorousMR!$B96+HumorousMR!$C96)>0,1,0) -> 0 | K96: =SUM(E96,G96,I96) -> 0 | L96: 0
A97: ='Humorous Monologues'!A91 -> T-103 | B97: ='Humorous Monologues'!U91 -> 0 | C97: ='Humorous Monologues'!S91 -> 0 | D97: =IF((HumorousMR!$B97+HumorousMR!$C97)>0,1,0) -> 0 | K97: =SUM(E97,G97,I97) -> 0 | L97: 0
A98: ='Humorous Monologues'!A92 -> T-104 | B98: ='Humorous Monologues'!U92 -> 0 | C98: ='Humorous Monologues'!S92 -> 0 | D98: =IF((HumorousMR!$B98+HumorousMR!$C98)>0,1,0) -> 0 | K98: =SUM(E98,G98,I98) -> 0 | L98: 0
A99: ='Humorous Monologues'!A94 -> U-101 | B99: ='Humorous Monologues'!U94 -> 0 | C99: ='Humorous Monologues'!S94 -> 0 | D99: =IF((HumorousMR!$B99+HumorousMR!$C99)>0,1,0) -> 0 | K99: =SUM(E99,G99,I99) -> 0 | L99: 0
A100: ='Humorous Monologues'!A95 -> U-102 | B100: ='Humorous Monologues'!U95 -> 0 | C100: ='Humorous Monologues'!S95 -> 0 | D100: =IF((HumorousMR!$B100+HumorousMR!$C100)>0,1,0) -> 0 | K100: =SUM(E100,G100,I100) -> 0 | L100: 0
A101: ='Humorous Monologues'!A96 -> U-103 | B101: ='Humorous Monologues'!U96 -> 0 | C101: ='Humorous Monologues'!S96 -> 0 | D101: =IF((HumorousMR!$B101+HumorousMR!$C101)>0,1,0) -> 0 | K101: =SUM(E101,G101,I101) -> 0 | L101: 0
A102: ='Humorous Monologues'!A97 -> U-104 | B102: ='Humorous Monologues'!U97 -> 0 | C102: ='Humorous Monologues'!S97 -> 0 | D102: =IF((HumorousMR!$B102+HumorousMR!$C102)>0,1,0) -> 0 | K102: =SUM(E102,G102,I102) -> 0 | L102: 0
A103: ='Humorous Monologues'!A99 -> V-101 | B103: ='Humorous Monologues'!U99 -> 0 | C103: ='Humorous Monologues'!S99 -> 0 | D103: =IF((HumorousMR!$B103+HumorousMR!$C103)>0,1,0) -> 0 | K103: =SUM(E103,G103,I103) -> 0 | L103: 0
A104: ='Humorous Monologues'!A100 -> V-102 | B104: ='Humorous Monologues'!U100 -> 0 | C104: ='Humorous Monologues'!S100 -> 0 | D104: =IF((HumorousMR!$B104+HumorousMR!$C104)>0,1,0) -> 0 | K104: =SUM(E104,G104,I104) -> 0 | L104: 0
A105: ='Humorous Monologues'!A101 -> V-103 | B105: ='Humorous Monologues'!U101 -> 0 | C105: ='Humorous Monologues'!S101 -> 0 | D105: =IF((HumorousMR!$B105+HumorousMR!$C105)>0,1,0) -> 0 | K105: =SUM(E105,G105,I105) -> 0 | L105: 0
A106: ='Humorous Monologues'!A102 -> V-104 | B106: ='Humorous Monologues'!U102 -> 0 | C106: ='Humorous Monologues'!S102 -> 0 | D106: =IF((HumorousMR!$B106+HumorousMR!$C106)>0,1,0) -> 0 | K106: =SUM(E106,G106,I106) -> 0 | L106: 0
A107: ='Humorous Monologues'!A104 -> W-101 | B107: ='Humorous Monologues'!U104 -> 0 | C107: ='Humorous Monologues'!S104 -> 0 | D107: =IF((HumorousMR!$B107+HumorousMR!$C107)>0,1,0) -> 0 | K107: =SUM(E107,G107,I107) -> 0 | L107: 0
A108: ='Humorous Monologues'!A105 -> W-102 | B108: ='Humorous Monologues'!U105 -> 0 | C108: ='Humorous Monologues'!S105 -> 0 | D108: =IF((HumorousMR!$B108+HumorousMR!$C108)>0,1,0) -> 0 | K108: =SUM(E108,G108,I108) -> 0 | L108: 0
A109: ='Humorous Monologues'!A106 -> W-103 | B109: ='Humorous Monologues'!U106 -> 0 | C109: ='Humorous Monologues'!S106 -> 0 | D109: =IF((HumorousMR!$B109+HumorousMR!$C109)>0,1,0) -> 0 | K109: =SUM(E109,G109,I109) -> 0 | L109: 0
A110: ='Humorous Monologues'!A107 -> W-104 | B110: ='Humorous Monologues'!U107 -> 0 | C110: ='Humorous Monologues'!S107 -> 0 | D110: =IF((HumorousMR!$B110+HumorousMR!$C110)>0,1,0) -> 0 | K110: =SUM(E110,G110,I110) -> 0 | L110: 0
A111: ='Humorous Monologues'!A109 -> X-101 | B111: ='Humorous Monologues'!U109 -> 0 | C111: ='Humorous Monologues'!S109 -> 0 | D111: =IF((HumorousMR!$B111+HumorousMR!$C111)>0,1,0) -> 0 | K111: =SUM(E111,G111,I111) -> 0 | L111: 0
A112: ='Humorous Monologues'!A110 -> X-102 | B112: ='Humorous Monologues'!U110 -> 0 | C112: ='Humorous Monologues'!S110 -> 0 | D112: =IF((HumorousMR!$B112+HumorousMR!$C112)>0,1,0) -> 0 | K112: =SUM(E112,G112,I112) -> 0 | L112: 0
A113: ='Humorous Monologues'!A111 -> X-103 | B113: ='Humorous Monologues'!U111 -> 0 | C113: ='Humorous Monologues'!S111 -> 0 | D113: =IF((HumorousMR!$B113+HumorousMR!$C113)>0,1,0) -> 0 | K113: =SUM(E113,G113,I113) -> 0 | L113: 0
A114: ='Humorous Monologues'!A112 -> X-104 | B114: ='Humorous Monologues'!U112 -> 0 | C114: ='Humorous Monologues'!S112 -> 0 | D114: =IF((HumorousMR!$B114+HumorousMR!$C114)>0,1,0) -> 0 | K114: =SUM(E114,G114,I114) -> 0 | L114: 0
A115: ='Humorous Monologues'!A114 -> Y-101 | B115: ='Humorous Monologues'!U114 -> 0 | C115: ='Humorous Monologues'!S114 -> 0 | D115: =IF((HumorousMR!$B115+HumorousMR!$C115)>0,1,0) -> 0 | K115: =SUM(E115,G115,I115) -> 0 | L115: 0
A116: ='Humorous Monologues'!A115 -> Y-102 | B116: ='Humorous Monologues'!U115 -> 0 | C116: ='Humorous Monologues'!S115 -> 0 | D116: =IF((HumorousMR!$B116+HumorousMR!$C116)>0,1,0) -> 0 | K116: =SUM(E116,G116,I116) -> 0 | L116: 0
A117: ='Humorous Monologues'!A116 -> Y-103 | B117: ='Humorous Monologues'!U116 -> 0 | C117: ='Humorous Monologues'!S116 -> 0 | D117: =IF((HumorousMR!$B117+HumorousMR!$C117)>0,1,0) -> 0 | K117: =SUM(E117,G117,I117) -> 0 | L117: 0
A118: ='Humorous Monologues'!A117 -> Y-104 | B118: ='Humorous Monologues'!U117 -> 0 | C118: ='Humorous Monologues'!S117 -> 0 | D118: =IF((HumorousMR!$B118+HumorousMR!$C118)>0,1,0) -> 0 | K118: =SUM(E118,G118,I118) -> 0 | L118: 0
A119: ='Humorous Monologues'!A119 -> Z-101 | B119: ='Humorous Monologues'!U119 -> 0 | C119: ='Humorous Monologues'!S119 -> 0 | D119: =IF((HumorousMR!$B119+HumorousMR!$C119)>0,1,0) -> 0 | K119: =SUM(E119,G119,I119) -> 0 | L119: 0
A120: ='Humorous Monologues'!A120 -> Z-102 | B120: ='Humorous Monologues'!U120 -> 0 | C120: ='Humorous Monologues'!S120 -> 0 | D120: =IF((HumorousMR!$B120+HumorousMR!$C120)>0,1,0) -> 0 | K120: =SUM(E120,G120,I120) -> 0 | L120: 0
A121: ='Humorous Monologues'!A121 -> Z-103 | B121: ='Humorous Monologues'!U121 -> 0 | C121: ='Humorous Monologues'!S121 -> 0 | D121: =IF((HumorousMR!$B121+HumorousMR!$C121)>0,1,0) -> 0 | K121: =SUM(E121,G121,I121) -> 0 | L121: 0
A122: ='Humorous Monologues'!A122 -> Z-104 | B122: ='Humorous Monologues'!U122 -> 0 | C122: ='Humorous Monologues'!S122 -> 0 | D122: =IF((HumorousMR!$B122+HumorousMR!$C122)>0,1,0) -> 0 | K122: =SUM(E122,G122,I122) -> 0 | L122: 0

Sheet Dramatic
A1: Dramatic Monologues | K1: Rank 1-4 | X1: S | Y1: E | Z1: G | AA1: F | AC1: 1violation | AD1: 2violations | AE1: 3violations
K2: Round 1: | M2: Round 2: | O2: Round 3: | Q2: -2 for each | AB2: Drops lowest from column q
H3: Student Name | J3: Title of Piece | K3: R1 rank | L3: R1 score | M3: R2 rank | N3: R2 score | O3: R3 rank | P3: R3 score | Q3: Time Violations | S3: TOTAL SCORE | U3: TOTAL RANK | X3: TOTAL SCHOOL SWEEPS POINTS | AB3: Drop Lowest
A4: A-201 | H4: Brielle | I4: Bratton | J4: Electric Chair | K4: 2 | L4: 25 | M4: 4 | N4: 23 | O4: 1 | P4: 25 | R4: =IF(Q4="1violation",-7*1,IF(Q4="2violations",-7*2,IF(Q4="3violations",-7*3,IF(Q4="","")))) ->  | S4: =SUM(L4,N4,P4,R4) -> 73 | U4: =SUM(K4,M4,O4) -> 7 | Y4: =SUM(S4,S6,S5,S7,-AB4) -> 214 | AB4: =MIN(S4:S7) -> 68
A5: A-202 | H5: Jesse | I5: Howick | J5: Justice | K5: 1 | L5: 25 | M5: 4 | N5: 24 | O5: 2 | P5: 20 | S5: 69 | U5: 7
A6: A-203 | H6: Rachel | I6: Tanner | J6: Should I stay? | K6: 4 | L6: 22 | M6: 1 | N6: 25 | O6: 3 | P6: 21 | S6: 68 | U6: 8
A7: A-204 | H7: Linda | I7: Andreason | J7: Final Prayer | K7: 2 | L7: 22 | M7: 2 | N7: 25 | O7: 1 | P7: 25 | S7: 72 | U7: 5
A9: B-201 | R9: =IF(Q9="1violation",-7*1,IF(Q9="2violations",-7*2,IF(Q9="3violations",-7*3,IF(Q9="","")))) ->  | S9: =SUM(L9,N9,P9,R9) -> 0 | U9: =SUM(K9,M9,O9) -> 0 | Y9: =SUM(S9,S11,S10,S12,-AB9) -> 0 | AB9: =MIN(S9:S12) -> 0
A10: B-202 | S10: 0 | U10: 0
A11: B-203 | S11: 0 | U11: 0
A12: B-204 | S12: 0 | U12: 0
A14: C-201 | H14: Kailani | I14: Hadlock | J14: True Evil | K14: 1 | L14: 23 | M14: 2 | N14: 25 | O14: 3 | P14: 24 | R14: =IF(Q14="1violation",-7*1,IF(Q14="2violations",-7*2,IF(Q14="3violations",-7*3,IF(Q14="","")))) ->  | S14: =SUM(L14,N14,P14,R14) -> 72 | U14: =SUM(K14,M14,O14) -> 6 | Y14: =SUM(S14,S16,S15,S17,-AB14) -> 217 | AB14: =MIN(S14:S17) -> 67
A15: C-202 | H15: Hannah | I15: Pttman | J15: Like Dreaming | K15: 2 | L15: 23 | M15: 1 | N15: 25 | O15: 3 | P15: 25 | S15: 73 | U15: 6
A16: C-203 | H16: Sophie | I16: Frint | J16: Only Childrn | K16: 3 | L16: 24 | M16: 2 | N16: 25 | O16: 3 | P16: 23 | S16: 72 | U16: 8
A17: C-204 | H17: MCkinley | I17: Rasmussen | J17: Night mother | K17: 1 | L17: 24 | M17: 1 | N17: 25 | O17: 1 | P17: 25 | Q17: 1violation | R17: -7 | S17: 67 | U17: 3
A19: D-201 | R19: =IF(Q19="1violation",-7*1,IF(Q19="2violations",-7*2,IF(Q19="3violations",-7*3,IF(Q19="","")))) ->  | S19: =SUM(L19,N19,P19,R19) -> 0 | U19: =SUM(K19,M19,O19) -> 0 | Y19: =SUM(S19,S21,S20,S22,-AB19) -> 0 | AB19: =MIN(S19:S22) -> 0
A20: D-202 | S20: 0 | U20: 0
A21: D-203 | S21: 0 | U21: 0
A22: D-204 | S22: 0 | U22: 0
A24: E-201 | H24: LJ | I24: Fryer | J24: Cardboard Signs | K24: 4 | L24: 21 | M24: 4 | N24: 24 | O24: 1 | P24: 24 | R24: =IF(Q24="1violation",-7*1,IF(Q24="2violations",-7*2,IF(Q24="3violations",-7*3,IF(Q24="","")))) ->  | S24: =SUM(L24,N24,P24,R24) -> 69 | U24: =SUM(K24,M24,O24) -> 9 | Y24: =SUM(S24,S26,S25,S27,-AB24) -> 139 | AB24: =MIN(S24:S27) -> 0
A25: E-202 | H25: Ashton | I25: Lester | J25: Big C | K25: 3 | L25: 25 | M25: 4 | N25: 22 | O25: 4 | P25: 23 | S25: 70 | U25: 11
A26: E-203 | S26: 0 | U26: 0
A27: E-204 | S27: 0 | U27: 0
A29: F-201 | H29: Elisabeth | I29: Blevins | J29: Rabbit Hole | K29: 4 | L29: 19 | M29: 3 | N29: 25 | O29: 3 | P29: 24 | R29: =IF(Q29="1violation",-7*1,IF(Q29="2violations",-7*2,IF(Q29="3violations",-7*3,IF(Q29="","")))) ->  | S29: =SUM(L29,N29,P29,R29) -> 68 | U29: =SUM(K29,M29,O29) -> 10 | Y29: =SUM(S29,S31,S30,S32,-AB29) -> 205 | AB29: =MIN(S29:S32) -> 53
A30: F-202 | H30: Sean | I30: Treshman | J30: Jekyll/Hyde | K30: 4 | L30: 24 | M30: 4 | N30: 24 | O30: 4 | P30: 21 | S30: 69 | U30: 12
A31: F-203 | H31: Annica | I31: Cuthill | J31: Julius Caesar | K31: 4 | L31: 14 | M31: 3 | N31: 22 | O31: 4 | P31: 17 | S31: 53 | U31: 11
A32: F-204 | H32: Jacob | I32: Workman | J32: Twisted Aladin | K32: 4 | L32: 23 | M32: 4 | N32: 23 | O32: 4 | P32: 22 | S32: 68 | U32: 12
A34: G-201 | H34: Katie | I34: Wakefield | J34: Ellemosynary | K34: 4 | L34: 23 | M34: 4 | N34: 14 | O34: 4 | P34: 21 | R34: =IF(Q34="1violation",-7*1,IF(Q34="2violations",-7*2,IF(Q34="3violations",-7*3,IF(Q34="","")))) ->  | S34: =SUM(L34,N34,P34,R34) -> 58 | U34: =SUM(K34,M34,O34) -> 12 | Y34: =SUM(S34,S36,S35,S37,-AB34) -> 127 | AB34: =MIN(S34:S37) -> 0
A35: G-202 | H35: Magnus | I35: Shannon | J35: Hamlet | K35: 4 | L35: 21 | M35: 4 | N35: 24 | O35: 4 | P35: 24 | S35: 69 | U35: 12
A36: G-203 | S36: 0 | U36: 0
A37: G-204 | S37: 0 | U37: 0
A39: H-201 | H39: Orlando | I39: Sham | J39: Mockingbird | K39: 2 | L39: 23 | M39: 3 | N39: 25 | O39: 2 | P39: 25 | R39: =IF(Q39="1violation",-7*1,IF(Q39="2violations",-7*2,IF(Q39="3violations",-7*3,IF(Q39="","")))) ->  | S39: =SUM(L39,N39,P39,R39) -> 73 | U39: =SUM(K39,M39,O39) -> 7 | Y39: =SUM(S39,S41,S40,S42,-AB39) -> 212 | AB39: =MIN(S39:S42) -> 58
A40: H-202 | H40: Blake | I40: Dunn | J40: Children Lesser God | K40: 1 | L40: 25 | M40: 1 | N40: 24 | O40: 2 | P40: 25 | S40: 74 | U40: 4
A41: H-203 | H41: Emma | I41: Brooks | J41: No one | K41: 4 | L41: 19 | M41: 4 | N41: 24 | O41: 3 | P41: 22 | S41: 65 | U41: 11
A42: H-204 | H42: Kirsti | I42: Meyers | J42: Grow up Humanity | K42: 4 | L42: 19 | M42: 4 | N42: 22 | O42: 4 | P42: 17 | S42: 58 | U42: 12
A44: J-201 | H44: Henry | I44: Everett | J44: I want her to Know | K44: 3 | L44: 23 | M44: 3 | N44: 16 | O44: 1 | P44: 23 | R44: =IF(Q44="1violation",-7*1,IF(Q44="2violations",-7*2,IF(Q44="3violations",-7*3,IF(Q44="","")))) ->  | S44: =SUM(L44,N44,P44,R44) -> 62 | U44: =SUM(K44,M44,O44) -> 7 | Y44: =SUM(S44,S46,S45,S47,-AB44) -> 62 | AB44: =MIN(S44:S47) -> 0
A45: J-202 | S45: 0 | U45: 0
A46: J-203 | S46: 0 | U46: 0
A47: J-204 | S47: 0 | U47: 0
A49: K-201 | H49: Elizabeth | I49: Cruz | J49: Renouncing God | K49: 1 | L49: 25 | M49: 4 | N49: 21 | O49: 4 | P49: 24 | R49: =IF(Q49="1violation",-7*1,IF(Q49="2violations",-7*2,IF(Q49="3violations",-7*3,IF(Q49="","")))) ->  | S49: =SUM(L49,N49,P49,R49) -> 70 | U49: =SUM(K49,M49,O49) -> 9 | Y49: =SUM(S49,S51,S50,S52,-AB49) -> 205 | AB49: =MIN(S49:S52) -> 0
A50: K-202 | H50: Cheryl | I50: Cordell | J50: Gruesome Playground | K50: 4 | L50: 24 | M50: 4 | N50: 15 | O50: 4 | P50: 23 | S50: 62 | U50: 12
A51: K-203 | H51: Avery | I51: Johnston | J51: How to Fight Loneliness | K51: 3 | L51: 24 | M51: 2 | N51: 25 | O51: 2 | P51: 24 | S51: 73 | U51: 7
A52: K-204 | S52: 0 | U52: 0
A54: L-201 | H54: Spencer | I54: Tullis | J54: Prodigal Son | K54: 4 | L54: 14 | M54: 3 | N54: 25 | O54: 4 | P54: 16 | R54: =IF(Q54="1violation",-7*1,IF(Q54="2violations",-7*2,IF(Q54="3violations",-7*3,IF(Q54="","")))) ->  | S54: =SUM(L54,N54,P54,R54) -> 55 | U54: =SUM(K54,M54,O54) -> 11 | Y54: =SUM(S54,S56,S55,S57,-AB54) -> 114 | AB54: =MIN(S54:S57) -> 0
A55: L-202 | H55: Ky | I55: Duncan | J55: No Release | K55: 4 | L55: 21 | M55: 4 | N55: 14 | O55: 4 | P55: 24 | S55: 59 | U55: 12
A56: L-203 | S56: 0 | U56: 0
A57: L-204 | S57: 0 | U57: 0
A59: M-201 | H59: Madilyn | I59: Simmons | J59: Lucky | K59: 4 | L59: 23 | M59: 1 | N59: 25 | O59: 4 | P59: 21 | R59: =IF(Q59="1violation",-7*1,IF(Q59="2violations",-7*2,IF(Q59="3violations",-7*3,IF(Q59="","")))) ->  | S59: =SUM(L59,N59,P59,R59) -> 69 | U59: =SUM(K59,M59,O59) -> 9 | Y59: =SUM(S59,S61,S60,S62,-AB59) -> 139 | AB59: =MIN(S59:S62) -> 0
A60: M-202 | H60: Tyson | I60: Laws | J60: Not My Fault | K60: 4 | L60: 21 | M60: 2 | N60: 25 | O60: 4 | P60: 24 | S60: 70 | U60: 10
A61: M-203 | S61: 0 | U61: 0
A62: M-204 | S62: 0 | U62: 0
A64: N-201 | H64: Kaylie | I64: Raisor | J64: Unrealistic | K64: 3 | L64: 21 | M64: 4 | N64: 22 | O64: 2 | P64: 22 | R64: =IF(Q64="1violation",-7*1,IF(Q64="2violations",-7*2,IF(Q64="3violations",-7*3,IF(Q64="","")))) ->  | S64: =SUM(L64,N64,P64,R64) -> 65 | U64: =SUM(K64,M64,O64) -> 9 | Y64: =SUM(S64,S66,S65,S67,-AB64) -> 199 | AB64: =MIN(S64:S67) -> 0
A65: N-202 | H65: Erica | I65: Delgado | J65: Rose are Red | K65: 4 | L65: 23 | M65: 4 | N65: 23 | O65: 3 | P65: 19 | S65: 65 | U65: 11
A66: N-203 | H66: Chloe | I66: Jones | J66: You | K66: 1 | L66: 23 | M66: 4 | N66: 23 | O66: 4 | P66: 23 | S66: 69 | U66: 9
A67: N-204 | S67: 0 | U67: 0
A69: P-201 | H69: Libby | I69: Booher | J69: Scissors | K69: 2 | L69: 25 | M69: 1 | N69: 22 | O69: 4 | P69: 21 | R69: =IF(Q69="1violation",-7*1,IF(Q69="2violations",-7*2,IF(Q69="3violations",-7*3,IF(Q69="","")))) ->  | S69: =SUM(L69,N69,P69,R69) -> 68 | U69: =SUM(K69,M69,O69) -> 7 | Y69: =SUM(S69,S71,S70,S72,-AB69) -> 211 | AB69: =MIN(S69:S72) -> 68
A70: P-202 | H70: Sadie | I70: Hathaway | J70: August Osage | K70: 2 | L70: 24 | M70: 3 | N70: 24 | O70: 2 | P70: 24 | S70: 72 | U70: 7
A71: P-203 | H71: Kenna | I71: Cook | J71: Mrs. Packard | K71: 3 | L71: 19 | M71: 3 | N71: 25 | O71: 1 | P71: 25 | S71: 69 | U71: 7
A72: P-204 | H72: Thayne | I72: Smith | J72: Henry Vi | K72: 2 | L72: 25 | M72: 2 | N72: 22 | O72: 4 | P72: 23 | S72: 70 | U72: 8
A74: Q-201 | R74: =IF(Q74="1violation",-7*1,IF(Q74="2violations",-7*2,IF(Q74="3violations",-7*3,IF(Q74="","")))) ->  | S74: =SUM(L74,N74,P74,R74) -> 0 | U74: =SUM(K74,M74,O74) -> 0 | Y74: =SUM(S74,S76,S75,S77,-AB74) -> 0 | AB74: =MIN(S74:S77) -> 0
A75: Q-202 | S75: 0 | U75: 0
A76: Q-203 | S76: 0 | U76: 0
A77: Q-204 | S77: 0 | U77: 0
A79: R-201 | H79: Foster | I79: Bedingfield | J79: Macbeth | K79: 3 | L79: 21 | M79: 2 | N79: 21 | O79: 4 | P79: 22 | R79: =IF(Q79="1violation",-7*1,IF(Q79="2violations",-7*2,IF(Q79="3violations",-7*3,IF(Q79="","")))) ->  | S79: =SUM(L79,N79,P79,R79) -> 64 | U79: =SUM(K79,M79,O79) -> 9 | Y79: =SUM(S79,S81,S80,S82,-AB79) -> 135 | AB79: =MIN(S79:S82) -> 0
A80: R-202 | H80: Alex | I80: Whittaker | J80: Death of Salesman | K80: 4 | L80: 24 | M80: 4 | N80: 22 | O80: 2 | P80: 25 | S80: 71 | U80: 10
A81: R-203 | S81: 0 | U81: 0
A82: R-204 | S82: 0 | U82: 0
A84: S-201 | H84: Rylee | I84: Dalton | J84: Steel Magnolias | K84: 1 | L84: 25 | M84: 1 | N84: 25 | O84: 1 | P84: 25 | R84: =IF(Q84="1violation",-7*1,IF(Q84="2violations",-7*2,IF(Q84="3violations",-7*3,IF(Q84="","")))) ->  | S84: =SUM(L84,N84,P84,R84) -> 75 | U84: =SUM(K84,M84,O84) -> 3 | Y84: =SUM(S84,S86,S85,S87,-AB84) -> 142 | AB84: =MIN(S84:S87) -> 0
A85: S-202 | H85: Sabrina | I85: Schoenfeld | J85: It was just a cat | K85: 4 | L85: 24 | M85: 4 | N85: 22 | O85: 4 | P85: 21 | S85: 67 | U85: 12
A86: S-203 | S86: 0 | U86: 0
A87: S-204 | S87: 0 | U87: 0
A89: T-201 | R89: =IF(Q89="1violation",-7*1,IF(Q89="2violations",-7*2,IF(Q89="3violations",-7*3,IF(Q89="","")))) ->  | S89: =SUM(L89,N89,P89,R89) -> 0 | U89: =SUM(K89,M89,O89) -> 0 | Y89: =SUM(S89,S91,S90,S92,-AB89) -> 0 | AB89: =MIN(S89:S92) -> 0
A90: T-202 | S90: 0 | U90: 0
A91: T-203 | S91: 0 | U91: 0
A92: T-204 | S92: 0 | U92: 0
A94: U-201 | R94: =IF(Q94="1violation",-7*1,IF(Q94="2violations",-7*2,IF(Q94="3violations",-7*3,IF(Q94="","")))) ->  | S94: =SUM(L94,N94,P94,R94) -> 0 | U94: =SUM(K94,M94,O94) -> 0 | Y94: =SUM(S94,S96,S95,S97,-AB94) -> 0 | AB94: =MIN(S94:S97) -> 0
A95: U-202 | S95: 0 | U95: 0
A96: U-203 | S96: 0 | U96: 0
A97: U-204 | S97: 0 | U97: 0
A99: V-201 | R99: =IF(Q99="1violation",-7*1,IF(Q99="2violations",-7*2,IF(Q99="3violations",-7*3,IF(Q99="","")))) ->  | S99: =SUM(L99,N99,P99,R99) -> 0 | U99: =SUM(K99,M99,O99) -> 0 | Y99: =SUM(S99,S101,S100,S102,-AB99) -> 0 | AB99: =MIN(S99:S102) -> 0
A100: V-202 | S100: 0 | U100: 0
A101: V-203 | S101: 0 | U101: 0
A102: V-204 | S102: 0 | U102: 0
A104: W-201 | R104: =IF(Q104="1violation",-7*1,IF(Q104="2violations",-7*2,IF(Q104="3violations",-7*3,IF(Q104="","")))) ->  | S104: =SUM(L104,N104,P104,R104) -> 0 | U104: =SUM(K104,M104,O104) -> 0 | Y104: =SUM(S104,S106,S105,S107,-AB104) -> 0 | AB104: =MIN(S104:S107) -> 0
A105: W-202 | S105: 0 | U105: 0
A106: W-203 | S106: 0 | U106: 0
A107: W-204 | S107: 0 | U107: 0
A109: X-201 | R109: =IF(Q109="1violation",-7*1,IF(Q109="2violations",-7*2,IF(Q109="3violations",-7*3,IF(Q109="","")))) ->  | S109: =SUM(L109,N109,P109,R109) -> 0 | U109: =SUM(K109,M109,O109) -> 0 | Y109: =SUM(S109,S111,S110,S112,-AB109) -> 0 | AB109: =MIN(S109:S112) -> 0
A110: X-202 | S110: 0 | U110: 0
A111: X-203 | S111: 0 | U111: 0
A112: X-204 | S112: 0 | U112: 0
A114: Y-201 | R114: =IF(Q114="1violation",-7*1,IF(Q114="2violations",-7*2,IF(Q114="3violations",-7*3,IF(Q114="","")))) ->  | S114: =SUM(L114,N114,P114,R114) -> 0 | U114: =SUM(K114,M114,O114) -> 0 | Y114: =SUM(S114,S116,S115,S117,-AB114) -> 0 | AB114: =MIN(S114:S117) -> 0
A115: Y-202 | S115: 0 | U115: 0
A116: Y-203 | S116: 0 | U116: 0
A117: Y-204 | S117: 0 | U117: 0
A119: Z-201 | R119: =IF(Q119="1violation",-7*1,IF(Q119="2violations",-7*2,IF(Q119="3violations",-7*3,IF(Q119="","")))) ->  | S119: =SUM(L119,N119,P119,R119) -> 0 | U119: =SUM(K119,M119,O119) -> 0 | Y119: =SUM(S119,S121,S120,S122,-AB119) -> 0 | AB119: =MIN(S119:S122) -> 0
A120: Z-202 | S120: 0 | U120: 0
A121: Z-203 | S121: 0 | U121: 0
A122: Z-204 | S122: 0 | U122: 0
A124: AA-201 | R124: =IF(Q124="1violation",-7*1,IF(Q124="2violations",-7*2,IF(Q124="3violations",-7*3,IF(Q124="","")))) ->  | S124: =SUM(L124,N124,P124,R124) -> 0 | U124: =SUM(K124,M124,O124) -> 0 | Y124: =SUM(S124,S126,S125,S127,-AB124) -> 0 | AB124: =MIN(S124:S127) -> 0
A125: AA-202 | S125: 0 | U125: 0
A126: AA-203 | S126: 0 | U126: 0
A127: AA-204 | S127: 0 | U127: 0
A129: BB-201 | R129: =IF(Q129="1violation",-7*1,IF(Q129="2violations",-7*2,IF(Q129="3violations",-7*3,IF(Q129="","")))) ->  | S129: =SUM(L129,N129,P129,R129) -> 0 | U129: =SUM(K129,M129,O129) -> 0 | Y129: =SUM(S129,S131,S130,S132,-AB129) -> 0 | AB129: =MIN(S129:S132) -> 0
A130: BB-202 | S130: 0 | U130: 0
A131: BB-203 | S131: 0 | U131: 0
A132: BB-204 | S132: 0 | U132: 0
A134: CC-201 | R134: =IF(Q134="1violation",-7*1,IF(Q134="2violations",-7*2,IF(Q134="3violations",-7*3,IF(Q134="","")))) ->  | S134: =SUM(L134,N134,P134,R134) -> 0 | U134: =SUM(K134,M134,O134) -> 0 | Y134: =SUM(S134,S136,S135,S137,-AB134) -> 0 | AB134: =MIN(S134:S137) -> 0
A135: CC-202 | S135: 0 | U135: 0
A136: CC-203 | S136: 0 | U136: 0
A137: CC-204 | S137: 0 | U137: 0
A139: DD-201 | R139: =IF(Q139="1violation",-7*1,IF(Q139="2violations",-7*2,IF(Q139="3violations",-7*3,IF(Q139="","")))) ->  | S139: =SUM(L139,N139,P139,R139) -> 0 | U139: =SUM(K139,M139,O139) -> 0 | Y139: =SUM(S139,S141,S140,S142,-AB139) -> 0 | AB139: =MIN(S139:S142) -> 0
A140: DD-202 | S140: 0 | U140: 0
A141: DD-203 | S141: 0 | U141: 0
A142: DD-204 | S142: 0 | U142: 0
A144: EE-201 | R144: =IF(Q144="1violation",-7*1,IF(Q144="2violations",-7*2,IF(Q144="3violations",-7*3,IF(Q144="","")))) ->  | S144: =SUM(L144,N144,P144,R144) -> 0 | U144: =SUM(K144,M144,O144) -> 0 | Y144: =SUM(S144,S146,S145,S147,-AB144) -> 0 | AB144: =MIN(S144:S147) -> 0
A145: EE-202 | S145: 0 | U145: 0
A146: EE-203 | S146: 0 | U146: 0
A147: EE-204 | S147: 0 | U147: 0
A149: FF-201 | R149: =IF(Q149="1violation",-7*1,IF(Q149="2violations",-7*2,IF(Q149="3violations",-7*3,IF(Q149="","")))) ->  | S149: =SUM(L149,N149,P149,R149) -> 0 | U149: =SUM(K149,M149,O149) -> 0 | Y149: =SUM(S149,S151,S150,S152,-AB149) -> 0 | AB149: =MIN(S149:S152) -> 0
A150: FF-202 | S150: 0 | U150: 0
A151: FF-203 | S151: 0 | U151: 0
A152: FF-204 | S152: 0 | U152: 0

Sheet DramaticMR
A1: Dramatic | E1: Finals Medals Round Scores
A2: ID | B2: Rank | C2: Score | D2: LeaveBlank | E2: MR 1 Rank | F2: MR 1 Score | G2: MR2 Rank | H2: MR 2 Score | I2: MR3 Rank | J2: MR 3 Score | K2: Total MR Rank | L2: Total MR Score
A3: =Dramatic!A4 -> A-201 | B3: =Dramatic!U4 -> 7 | C3: =Dramatic!S4 -> 73 | D3: =IF((DramaticMR!$B3+DramaticMR!$C3)>0,1,0) -> 1 | K3: =SUM(E3,G3,I3) -> 0 | L3: 0
A4: =Dramatic!A5 -> A-202 | B4: =Dramatic!U5 -> 7 | C4: =Dramatic!S5 -> 69 | D4: =IF((DramaticMR!$B4+DramaticMR!$C4)>0,1,0) -> 1 | K4: =SUM(E4,G4,I4) -> 0 | L4: 0
A5: =Dramatic!A6 -> A-203 | B5: =Dramatic!U6 -> 8 | C5: =Dramatic!S6 -> 68 | D5: =IF((DramaticMR!$B5+DramaticMR!$C5)>0,1,0) -> 1 | K5: =SUM(E5,G5,I5) -> 0 | L5: 0
A6: =Dramatic!A7 -> A-204 | B6: =Dramatic!U7 -> 5 | C6: =Dramatic!S7 -> 72 | D6: =IF((DramaticMR!$B6+DramaticMR!$C6)>0,1,0) -> 1 | E6: 4 | F6: 24 | G6: 4 | H6: 25 | I6: 3 | J6: 24 | K6: =SUM(E6,G6,I6) -> 11 | L6: 73
A7: =Dramatic!A124 -> AA-201 | B7: =Dramatic!U124 -> 0 | C7: =Dramatic!S124 -> 0 | D7: =IF((DramaticMR!$B7+DramaticMR!$C7)>0,1,0) -> 0 | K7: =SUM(E7,G7,I7) -> 0 | L7: 0
A8: =Dramatic!A125 -> AA-202 | B8: =Dramatic!U125 -> 0 | C8: =Dramatic!S125 -> 0 | D8: =IF((DramaticMR!$B8+DramaticMR!$C8)>0,1,0) -> 0 | K8: =SUM(E8,G8,I8) -> 0 | L8: 0
A9: =Dramatic!A126 -> AA-203 | B9: =Dramatic!U126 -> 0 | C9: =Dramatic!S126 -> 0 | D9: =IF((DramaticMR!$B9+DramaticMR!$C9)>0,1,0) -> 0 | K9: =SUM(E9,G9,I9) -> 0 | L9: 0
A10: =Dramatic!A127 -> AA-204 | B10: =Dramatic!U127 -> 0 | C10: =Dramatic!S127 -> 0 | D10: =IF((DramaticMR!$B10+DramaticMR!$C10)>0,1,0) -> 0 | K10: =SUM(E10,G10,I10) -> 0 | L10: 0
A11: =Dramatic!A9 -> B-201 | B11: =Dramatic!U9 -> 0 | C11: =Dramatic!S9 -> 0 | D11: =IF((DramaticMR!$B11+DramaticMR!$C11)>0,1,0) -> 0 | K11: =SUM(E11,G11,I11) -> 0 | L11: 0
A12: =Dramatic!A10 -> B-202 | B12: =Dramatic!U10 -> 0 | C12: =Dramatic!S10 -> 0 | D12: =IF((DramaticMR!$B12+DramaticMR!$C12)>0,1,0) -> 0 | K12: =SUM(E12,G12,I12) -> 0 | L12: 0
A13: =Dramatic!A11 -> B-203 | B13: =Dramatic!U11 -> 0 | C13: =Dramatic!S11 -> 0 | D13: =IF((DramaticMR!$B13+DramaticMR!$C13)>0,1,0) -> 0 | K13: =SUM(E13,G13,I13) -> 0 | L13: 0
A14: =Dramatic!A12 -> B-204 | B14: =Dramatic!U12 -> 0 | C14: =Dramatic!S12 -> 0 | D14: =IF((DramaticMR!$B14+DramaticMR!$C14)>0,1,0) -> 0 | K14: =SUM(E14,G14,I14) -> 0 | L14: 0
A15: =Dramatic!A129 -> BB-201 | B15: =Dramatic!U129 -> 0 | C15: =Dramatic!S129 -> 0 | D15: =IF((DramaticMR!$B15+DramaticMR!$C15)>0,1,0) -> 0 | K15: =SUM(E15,G15,I15) -> 0 | L15: 0
A16: =Dramatic!A130 -> BB-202 | B16: =Dramatic!U130 -> 0 | C16: =Dramatic!S130 -> 0 | D16: =IF((DramaticMR!$B16+DramaticMR!$C16)>0,1,0) -> 0 | K16: =SUM(E16,G16,I16) -> 0 | L16: 0
A17: =Dramatic!A131 -> BB-203 | B17: =Dramatic!U131 -> 0 | C17: =Dramatic!S131 -> 0 | D17: =IF((DramaticMR!$B17+DramaticMR!$C17)>0,1,0) -> 0 | K17: =SUM(E17,G17,I17) -> 0 | L17: 0
A18: =Dramatic!A132 -> BB-204 | B18: =Dramatic!U132 -> 0 | C18: =Dramatic!S132 -> 0 | D18: =IF((DramaticMR!$B18+DramaticMR!$C18)>0,1,0) -> 0 | K18: =SUM(E18,G18,I18) -> 0 | L18: 0
A19: =Dramatic!A14 -> C-201 | B19: =Dramatic!U14 -> 6 | C19: =Dramatic!S14 -> 72 | D19: =IF((DramaticMR!$B19+DramaticMR!$C19)>0,1,0) -> 1 | E19: 2 | F19: 25 | G19: 1 | H19: 25 | I19: 2 | J19: 25 | K19: =SUM(E19,G19,I19) -> 5 | L19: 75
A20: =Dramatic!A15 -> C-202 | B20: =Dramatic!U15 -> 6 | C20: =Dramatic!S15 -> 73 | D20: =IF((DramaticMR!$B20+DramaticMR!$C20)>0,1,0) -> 1 | E20: 3 | F20: 24 | G20: 5 | H20: 25 | I20: 5 | J20: 21 | K20: =SUM(E20,G20,I20) -> 13 | L20: 70
A21: =Dramatic!A16 -> C-203 | B21: =Dramatic!U16 -> 8 | C21: =Dramatic!S16 -> 72 | D21: =IF((DramaticMR!$B21+DramaticMR!$C21)>0,1,0) -> 1 | K21: =SUM(E21,G21,I21) -> 0 | L21: 0
A22: =Dramatic!A17 -> C-204 | B22: =Dramatic!U17 -> 3 | C22: =Dramatic!S17 -> 67 | D22: =IF((DramaticMR!$B22+DramaticMR!$C22)>0,1,0) -> 1 | E22: 6 | F22: 23 | G22: 3 | H22: 25 | I22: 6 | J22: 20 | K22: =SUM(E22,G22,I22) -> 15 | L22: 68
A23: =Dramatic!A134 -> CC-201 | B23: =Dramatic!U134 -> 0 | C23: =Dramatic!S134 -> 0 | D23: =IF((DramaticMR!$B23+DramaticMR!$C23)>0,1,0) -> 0 | K23: =SUM(E23,G23,I23) -> 0 | L23: 0
A24: =Dramatic!A135 -> CC-202 | B24: =Dramatic!U135 -> 0 | C24: =Dramatic!S135 -> 0 | D24: =IF((DramaticMR!$B24+DramaticMR!$C24)>0,1,0) -> 0 | K24: =SUM(E24,G24,I24) -> 0 | L24: 0
A25: =Dramatic!A136 -> CC-203 | B25: =Dramatic!U136 -> 0 | C25: =Dramatic!S136 -> 0 | D25: =IF((DramaticMR!$B25+DramaticMR!$C25)>0,1,0) -> 0 | K25: =SUM(E25,G25,I25) -> 0 | L25: 0
A26: =Dramatic!A137 -> CC-204 | B26: =Dramatic!U137 -> 0 | C26: =Dramatic!S137 -> 0 | D26: =IF((DramaticMR!$B26+DramaticMR!$C26)>0,1,0) -> 0 | K26: =SUM(E26,G26,I26) -> 0 | L26: 0
A27: =Dramatic!A19 -> D-201 | B27: =Dramatic!U19 -> 0 | C27: =Dramatic!S19 -> 0 | D27: =IF((DramaticMR!$B27+DramaticMR!$C27)>0,1,0) -> 0 | K27: =SUM(E27,G27,I27) -> 0 | L27: 0
A28: =Dramatic!A20 -> D-202 | B28: =Dramatic!U20 -> 0 | C28: =Dramatic!S20 -> 0 | D28: =IF((DramaticMR!$B28+DramaticMR!$C28)>0,1,0) -> 0 | K28: =SUM(E28,G28,I28) -> 0 | L28: 0
A29: =Dramatic!A21 -> D-203 | B29: =Dramatic!U21 -> 0 | C29: =Dramatic!S21 -> 0 | D29: =IF((DramaticMR!$B29+DramaticMR!$C29)>0,1,0) -> 0 | K29: =SUM(E29,G29,I29) -> 0 | L29: 0
A30: =Dramatic!A22 -> D-204 | B30: =Dramatic!U22 -> 0 | C30: =Dramatic!S22 -> 0 | D30: =IF((DramaticMR!$B30+DramaticMR!$C30)>0,1,0) -> 0 | K30: =SUM(E30,G30,I30) -> 0 | L30: 0
A31: =Dramatic!A139 -> DD-201 | B31: =Dramatic!U139 -> 0 | C31: =Dramatic!S139 -> 0 | D31: =IF((DramaticMR!$B31+DramaticMR!$C31)>0,1,0) -> 0 | K31: =SUM(E31,G31,I31) -> 0 | L31: 0
A32: =Dramatic!A140 -> DD-202 | B32: =Dramatic!U140 -> 0 | C32: =Dramatic!S140 -> 0 | D32: =IF((DramaticMR!$B32+DramaticMR!$C32)>0,1,0) -> 0 | K32: =SUM(E32,G32,I32) -> 0 | L32: 0
A33: =Dramatic!A141 -> DD-203 | B33: =Dramatic!U141 -> 0 | C33: =Dramatic!S141 -> 0 | D33: =IF((DramaticMR!$B33+DramaticMR!$C33)>0,1,0) -> 0 | K33: =SUM(E33,G33,I33) -> 0 | L33: 0
A34: =Dramatic!A142 -> DD-204 | B34: =Dramatic!U142 -> 0 | C34: =Dramatic!S142 -> 0 | D34: =IF((DramaticMR!$B34+DramaticMR!$C34)>0,1,0) -> 0 | K34: =SUM(E34,G34,I34) -> 0 | L34: 0
A35: =Dramatic!A24 -> E-201 | B35: =Dramatic!U24 -> 9 | C35: =Dramatic!S24 -> 69 | D35: =IF((DramaticMR!$B35+DramaticMR!$C35)>0,1,0) -> 1 | K35: =SUM(E35,G35,I35) -> 0 | L35: 0
A36: =Dramatic!A25 -> E-202 | B36: =Dramatic!U25 -> 11 | C36: =Dramatic!S25 -> 70 | D36: =IF((DramaticMR!$B36+DramaticMR!$C36)>0,1,0) -> 1 | K36: =SUM(E36,G36,I36) -> 0 | L36: 0
A37: =Dramatic!A26 -> E-203 | B37: =Dramatic!U26 -> 0 | C37: =Dramatic!S26 -> 0 | D37: =IF((DramaticMR!$B37+DramaticMR!$C37)>0,1,0) -> 0 | K37: =SUM(E37,G37,I37) -> 0 | L37: 0
A38: =Dramatic!A27 -> E-204 | B38: =Dramatic!U27 -> 0 | C38: =Dramatic!S27 -> 0 | D38: =IF((DramaticMR!$B38+DramaticMR!$C38)>0,1,0) -> 0 | K38: =SUM(E38,G38,I38) -> 0 | L38: 0
A39: =Dramatic!A144 -> EE-201 | B39: =Dramatic!U144 -> 0 | C39: =Dramatic!S144 -> 0 | D39: =IF((DramaticMR!$B39+DramaticMR!$C39)>0,1,0) -> 0 | K39: =SUM(E39,G39,I39) -> 0 | L39: 0
A40: =Dramatic!A145 -> EE-202 | B40: =Dramatic!U145 -> 0 | C40: =Dramatic!S145 -> 0 | D40: =IF((DramaticMR!$B40+DramaticMR!$C40)>0,1,0) -> 0 | K40: =SUM(E40,G40,I40) -> 0 | L40: 0
A41: =Dramatic!A146 -> EE-203 | B41: =Dramatic!U146 -> 0 | C41: =Dramatic!S146 -> 0 | D41: =IF((DramaticMR!$B41+DramaticMR!$C41)>0,1,0) -> 0 | K41: =SUM(E41,G41,I41) -> 0 | L41: 0
A42: =Dramatic!A147 -> EE-204 | B42: =Dramatic!U147 -> 0 | C42: =Dramatic!S147 -> 0 | D42: =IF((DramaticMR!$B42+DramaticMR!$C42)>0,1,0) -> 0 | K42: =SUM(E42,G42,I42) -> 0 | L42: 0
A43: =Dramatic!A29 -> F-201 | B43: =Dramatic!U29 -> 10 | C43: =Dramatic!S29 -> 68 | D43: =IF((DramaticMR!$B43+DramaticMR!$C43)>0,1,0) -> 1 | K43: =SUM(E43,G43,I43) -> 0 | L43: 0
A44: =Dramatic!A30 -> F-202 | B44: =Dramatic!U30 -> 12 | C44: =Dramatic!S30 -> 69 | D44: =IF((DramaticMR!$B44+DramaticMR!$C44)>0,1,0) -> 1 | K44: =SUM(E44,G44,I44) -> 0 | L44: 0
A45: =Dramatic!A31 -> F-203 | B45: =Dramatic!U31 -> 11 | C45: =Dramatic!S31 -> 53 | D45: =IF((DramaticMR!$B45+DramaticMR!$C45)>0,1,0) -> 1 | K45: =SUM(E45,G45,I45) -> 0 | L45: 0
A46: =Dramatic!A32 -> F-204 | B46: =Dramatic!U32 -> 12 | C46: =Dramatic!S32 -> 68 | D46: =IF((DramaticMR!$B46+DramaticMR!$C46)>0,1,0) -> 1 | K46: =SUM(E46,G46,I46) -> 0 | L46: 0
A47: =Dramatic!A149 -> FF-201 | B47: =Dramatic!U149 -> 0 | C47: =Dramatic!S149 -> 0 | D47: =IF((DramaticMR!$B47+DramaticMR!$C47)>0,1,0) -> 0 | K47: =SUM(E47,G47,I47) -> 0 | L47: 0
A48: =Dramatic!A150 -> FF-202 | B48: =Dramatic!U150 -> 0 | C48: =Dramatic!S150 -> 0 | D48: =IF((DramaticMR!$B48+DramaticMR!$C48)>0,1,0) -> 0 | K48: =SUM(E48,G48,I48) -> 0 | L48: 0
A49: =Dramatic!A151 -> FF-203 | B49: =Dramatic!U151 -> 0 | C49: =Dramatic!S151 -> 0 | D49: =IF((DramaticMR!$B49+DramaticMR!$C49)>0,1,0) -> 0 | K49: =SUM(E49,G49,I49) -> 0 | L49: 0
A50: =Dramatic!A152 -> FF-204 | B50: =Dramatic!U152 -> 0 | C50: =Dramatic!S152 -> 0 | D50: =IF((DramaticMR!$B50+DramaticMR!$C50)>0,1,0) -> 0 | K50: =SUM(E50,G50,I50) -> 0 | L50: 0
A51: =Dramatic!A34 -> G-201 | B51: =Dramatic!U34 -> 12 | C51: =Dramatic!S34 -> 58 | D51: =IF((DramaticMR!$B51+DramaticMR!$C51)>0,1,0) -> 1 | K51: =SUM(E51,G51,I51) -> 0 | L51: 0
A52: =Dramatic!A35 -> G-202 | B52: =Dramatic!U35 -> 12 | C52: =Dramatic!S35 -> 69 | D52: =IF((DramaticMR!$B52+DramaticMR!$C52)>0,1,0) -> 1 | K52: =SUM(E52,G52,I52) -> 0 | L52: 0
A53: =Dramatic!A36 -> G-203 | B53: =Dramatic!U36 -> 0 | C53: =Dramatic!S36 -> 0 | D53: =IF((DramaticMR!$B53+DramaticMR!$C53)>0,1,0) -> 0 | K53: =SUM(E53,G53,I53) -> 0 | L53: 0
A54: =Dramatic!A37 -> G-204 | B54: =Dramatic!U37 -> 0 | C54: =Dramatic!S37 -> 0 | D54: =IF((DramaticMR!$B54+DramaticMR!$C54)>0,1,0) -> 0 | K54: =SUM(E54,G54,I54) -> 0 | L54: 0
A55: =Dramatic!A39 -> H-201 | B55: =Dramatic!U39 -> 7 | C55: =Dramatic!S39 -> 73 | D55: =IF((DramaticMR!$B55+DramaticMR!$C55)>0,1,0) -> 1 | K55: =SUM(E55,G55,I55) -> 0 | L55: 0
A56: =Dramatic!A40 -> H-202 | B56: =Dramatic!U40 -> 4 | C56: =Dramatic!S40 -> 74 | D56: =IF((DramaticMR!$B56+DramaticMR!$C56)>0,1,0) -> 1 | E56: 1 | F56: 25 | G56: 2 | H56: 25 | I56: 1 | J56: 25 | K56: =SUM(E56,G56,I56) -> 4 | L56: 75
A57: =Dramatic!A41 -> H-203 | B57: =Dramatic!U41 -> 11 | C57: =Dramatic!S41 -> 65 | D57: =IF((DramaticMR!$B57+DramaticMR!$C57)>0,1,0) -> 1 | K57: =SUM(E57,G57,I57) -> 0 | L57: 0
A58: =Dramatic!A42 -> H-204 | B58: =Dramatic!U42 -> 12 | C58: =Dramatic!S42 -> 58 | D58: =IF((DramaticMR!$B58+DramaticMR!$C58)>0,1,0) -> 1 | K58: =SUM(E58,G58,I58) -> 0 | L58: 0
A59: =Dramatic!A44 -> J-201 | B59: =Dramatic!U44 -> 7 | C59: =Dramatic!S44 -> 62 | D59: =IF((DramaticMR!$B59+DramaticMR!$C59)>0,1,0) -> 1 | K59: =SUM(E59,G59,I59) -> 0 | L59: 0
A60: =Dramatic!A45 -> J-202 | B60: =Dramatic!U45 -> 0 | C60: =Dramatic!S45 -> 0 | D60: =IF((DramaticMR!$B60+DramaticMR!$C60)>0,1,0) -> 0 | K60: =SUM(E60,G60,I60) -> 0 | L60: 0
A61: =Dramatic!A46 -> J-203 | B61: =Dramatic!U46 -> 0 | C61: =Dramatic!S46 -> 0 | D61: =IF((DramaticMR!$B61+DramaticMR!$C61)>0,1,0) -> 0 | K61: =SUM(E61,G61,I61) -> 0 | L61: 0
A62: =Dramatic!A47 -> J-204 | B62: =Dramatic!U47 -> 0 | C62: =Dramatic!S47 -> 0 | D62: =IF((DramaticMR!$B62+DramaticMR!$C62)>0,1,0) -> 0 | K62: =SUM(E62,G62,I62) -> 0 | L62: 0
A63: =Dramatic!A49 -> K-201 | B63: =Dramatic!U49 -> 9 | C63: =Dramatic!S49 -> 70 | D63: =IF((DramaticMR!$B63+DramaticMR!$C63)>0,1,0) -> 1 | K63: =SUM(E63,G63,I63) -> 0 | L63: 0
A64: =Dramatic!A50 -> K-202 | B64: =Dramatic!U50 -> 12 | C64: =Dramatic!S50 -> 62 | D64: =IF((DramaticMR!$B64+DramaticMR!$C64)>0,1,0) -> 1 | K64: =SUM(E64,G64,I64) -> 0 | L64: 0
A65: =Dramatic!A51 -> K-203 | B65: =Dramatic!U51 -> 7 | C65: =Dramatic!S51 -> 73 | D65: =IF((DramaticMR!$B65+DramaticMR!$C65)>0,1,0) -> 1 | K65: =SUM(E65,G65,I65) -> 0 | L65: 0
A66: =Dramatic!A52 -> K-204 | B66: =Dramatic!U52 -> 0 | C66: =Dramatic!S52 -> 0 | D66: =IF((DramaticMR!$B66+DramaticMR!$C66)>0,1,0) -> 0 | K66: =SUM(E66,G66,I66) -> 0 | L66: 0
A67: =Dramatic!A54 -> L-201 | B67: =Dramatic!U54 -> 11 | C67: =Dramatic!S54 -> 55 | D67: =IF((DramaticMR!$B67+DramaticMR!$C67)>0,1,0) -> 1 | K67: =SUM(E67,G67,I67) -> 0 | L67: 0
A68: =Dramatic!A55 -> L-202 | B68: =Dramatic!U55 -> 12 | C68: =Dramatic!S55 -> 59 | D68: =IF((DramaticMR!$B68+DramaticMR!$C68)>0,1,0) -> 1 | K68: =SUM(E68,G68,I68) -> 0 | L68: 0
A69: =Dramatic!A56 -> L-203 | B69: =Dramatic!U56 -> 0 | C69: =Dramatic!S56 -> 0 | D69: =IF((DramaticMR!$B69+DramaticMR!$C69)>0,1,0) -> 0 | K69: =SUM(E69,G69,I69) -> 0 | L69: 0
A70: =Dramatic!A57 -> L-204 | B70: =Dramatic!U57 -> 0 | C70: =Dramatic!S57 -> 0 | D70: =IF((DramaticMR!$B70+DramaticMR!$C70)>0,1,0) -> 0 | K70: =SUM(E70,G70,I70) -> 0 | L70: 0
A71: =Dramatic!A59 -> M-201 | B71: =Dramatic!U59 -> 9 | C71: =Dramatic!S59 -> 69 | D71: =IF((DramaticMR!$B71+DramaticMR!$C71)>0,1,0) -> 1 | K71: =SUM(E71,G71,I71) -> 0 | L71: 0
A72: =Dramatic!A60 -> M-202 | B72: =Dramatic!U60 -> 10 | C72: =Dramatic!S60 -> 70 | D72: =IF((DramaticMR!$B72+DramaticMR!$C72)>0,1,0) -> 1 | K72: =SUM(E72,G72,I72) -> 0 | L72: 0
A73: =Dramatic!A61 -> M-203 | B73: =Dramatic!U61 -> 0 | C73: =Dramatic!S61 -> 0 | D73: =IF((DramaticMR!$B73+DramaticMR!$C73)>0,1,0) -> 0 | K73: =SUM(E73,G73,I73) -> 0 | L73: 0
A74: =Dramatic!A62 -> M-204 | B74: =Dramatic!U62 -> 0 | C74: =Dramatic!S62 -> 0 | D74: =IF((DramaticMR!$B74+DramaticMR!$C74)>0,1,0) -> 0 | K74: =SUM(E74,G74,I74) -> 0 | L74: 0
A75: =Dramatic!A64 -> N-201 | B75: =Dramatic!U64 -> 9 | C75: =Dramatic!S64 -> 65 | D75: =IF((DramaticMR!$B75+DramaticMR!$C75)>0,1,0) -> 1 | K75: =SUM(E75,G75,I75) -> 0 | L75: 0
A76: =Dramatic!A65 -> N-202 | B76: =Dramatic!U65 -> 11 | C76: =Dramatic!S65 -> 65 | D76: =IF((DramaticMR!$B76+DramaticMR!$C76)>0,1,0) -> 1 | K76: =SUM(E76,G76,I76) -> 0 | L76: 0
A77: =Dramatic!A66 -> N-203 | B77: =Dramatic!U66 -> 9 | C77: =Dramatic!S66 -> 69 | D77: =IF((DramaticMR!$B77+DramaticMR!$C77)>0,1,0) -> 1 | K77: =SUM(E77,G77,I77) -> 0 | L77: 0
A78: =Dramatic!A67 -> N-204 | B78: =Dramatic!U67 -> 0 | C78: =Dramatic!S67 -> 0 | D78: =IF((DramaticMR!$B78+DramaticMR!$C78)>0,1,0) -> 0 | K78: =SUM(E78,G78,I78) -> 0 | L78: 0
A79: =Dramatic!A69 -> P-201 | B79: =Dramatic!U69 -> 7 | C79: =Dramatic!S69 -> 68 | D79: =IF((DramaticMR!$B79+DramaticMR!$C79)>0,1,0) -> 1 | K79: =SUM(E79,G79,I79) -> 0 | L79: 0
A80: =Dramatic!A70 -> P-202 | B80: =Dramatic!U70 -> 7 | C80: =Dramatic!S70 -> 72 | D80: =IF((DramaticMR!$B80+DramaticMR!$C80)>0,1,0) -> 1 | K80: =SUM(E80,G80,I80) -> 0 | L80: 0
A81: =Dramatic!A71 -> P-203 | B81: =Dramatic!U71 -> 7 | C81: =Dramatic!S71 -> 69 | D81: =IF((DramaticMR!$B81+DramaticMR!$C81)>0,1,0) -> 1 | K81: =SUM(E81,G81,I81) -> 0 | L81: 0
A82: =Dramatic!A72 -> P-204 | B82: =Dramatic!U72 -> 8 | C82: =Dramatic!S72 -> 70 | D82: =IF((DramaticMR!$B82+DramaticMR!$C82)>0,1,0) -> 1 | K82: =SUM(E82,G82,I82) -> 0 | L82: 0
A83: =Dramatic!A74 -> Q-201 | B83: =Dramatic!U74 -> 0 | C83: =Dramatic!S74 -> 0 | D83: =IF((DramaticMR!$B83+DramaticMR!$C83)>0,1,0) -> 0 | K83: =SUM(E83,G83,I83) -> 0 | L83: 0
A84: =Dramatic!A75 -> Q-202 | B84: =Dramatic!U75 -> 0 | C84: =Dramatic!S75 -> 0 | D84: =IF((DramaticMR!$B84+DramaticMR!$C84)>0,1,0) -> 0 | K84: =SUM(E84,G84,I84) -> 0 | L84: 0
A85: =Dramatic!A76 -> Q-203 | B85: =Dramatic!U76 -> 0 | C85: =Dramatic!S76 -> 0 | D85: =IF((DramaticMR!$B85+DramaticMR!$C85)>0,1,0) -> 0 | K85: =SUM(E85,G85,I85) -> 0 | L85: 0
A86: =Dramatic!A77 -> Q-204 | B86: =Dramatic!U77 -> 0 | C86: =Dramatic!S77 -> 0 | D86: =IF((DramaticMR!$B86+DramaticMR!$C86)>0,1,0) -> 0 | K86: =SUM(E86,G86,I86) -> 0 | L86: 0
A87: =Dramatic!A79 -> R-201 | B87: =Dramatic!U79 -> 9 | C87: =Dramatic!S79 -> 64 | D87: =IF((DramaticMR!$B87+DramaticMR!$C87)>0,1,0) -> 1 | K87: =SUM(E87,G87,I87) -> 0 | L87: 0
A88: =Dramatic!A80 -> R-202 | B88: =Dramatic!U80 -> 10 | C88: =Dramatic!S80 -> 71 | D88: =IF((DramaticMR!$B88+DramaticMR!$C88)>0,1,0) -> 1 | K88: =SUM(E88,G88,I88) -> 0 | L88: 0
A89: =Dramatic!A81 -> R-203 | B89: =Dramatic!U81 -> 0 | C89: =Dramatic!S81 -> 0 | D89: =IF((DramaticMR!$B89+DramaticMR!$C89)>0,1,0) -> 0 | K89: =SUM(E89,G89,I89) -> 0 | L89: 0
A90: =Dramatic!A82 -> R-204 | B90: =Dramatic!U82 -> 0 | C90: =Dramatic!S82 -> 0 | D90: =IF((DramaticMR!$B90+DramaticMR!$C90)>0,1,0) -> 0 | K90: =SUM(E90,G90,I90) -> 0 | L90: 0
A91: =Dramatic!A84 -> S-201 | B91: =Dramatic!U84 -> 3 | C91: =Dramatic!S84 -> 75 | D91: =IF((DramaticMR!$B91+DramaticMR!$C91)>0,1,0) -> 1 | E91: 5 | F91: 23 | G91: 6 | H91: 25 | I91: 4 | J91: 22 | K91: =SUM(E91,G91,I91) -> 15 | L91: 70
A92: =Dramatic!A85 -> S-202 | B92: =Dramatic!U85 -> 12 | C92: =Dramatic!S85 -> 67 | D92: =IF((DramaticMR!$B92+DramaticMR!$C92)>0,1,0) -> 1 | K92: =SUM(E92,G92,I92) -> 0 | L92: 0
A93: =Dramatic!A86 -> S-203 | B93: =Dramatic!U86 -> 0 | C93: =Dramatic!S86 -> 0 | D93: =IF((DramaticMR!$B93+DramaticMR!$C93)>0,1,0) -> 0 | K93: =SUM(E93,G93,I93) -> 0 | L93: 0
A94: =Dramatic!A87 -> S-204 | B94: =Dramatic!U87 -> 0 | C94: =Dramatic!S87 -> 0 | D94: =IF((DramaticMR!$B94+DramaticMR!$C94)>0,1,0) -> 0 | K94: =SUM(E94,G94,I94) -> 0 | L94: 0
A95: =Dramatic!A89 -> T-201 | B95: =Dramatic!U89 -> 0 | C95: =Dramatic!S89 -> 0 | D95: =IF((DramaticMR!$B95+DramaticMR!$C95)>0,1,0) -> 0 | K95: =SUM(E95,G95,I95) -> 0 | L95: 0
A96: =Dramatic!A90 -> T-202 | B96: =Dramatic!U90 -> 0 | C96: =Dramatic!S90 -> 0 | D96: =IF((DramaticMR!$B96+DramaticMR!$C96)>0,1,0) -> 0 | K96: =SUM(E96,G96,I96) -> 0 | L96: 0
A97: =Dramatic!A91 -> T-203 | B97: =Dramatic!U91 -> 0 | C97: =Dramatic!S91 -> 0 | D97: =IF((DramaticMR!$B97+DramaticMR!$C97)>0,1,0) -> 0 | K97: =SUM(E97,G97,I97) -> 0 | L97: 0
A98: =Dramatic!A92 -> T-204 | B98: =Dramatic!U92 -> 0 | C98: =Dramatic!S92 -> 0 | D98: =IF((DramaticMR!$B98+DramaticMR!$C98)>0,1,0) -> 0 | K98: =SUM(E98,G98,I98) -> 0 | L98: 0
A99: =Dramatic!A94 -> U-201 | B99: =Dramatic!U94 -> 0 | C99: =Dramatic!S94 -> 0 | D99: =IF((DramaticMR!$B99+DramaticMR!$C99)>0,1,0) -> 0 | K99: =SUM(E99,G99,I99) -> 0 | L99: 0
A100: =Dramatic!A95 -> U-202 | B100: =Dramatic!U95 -> 0 | C100: =Dramatic!S95 -> 0 | D100: =IF((DramaticMR!$B100+DramaticMR!$C100)>0,1,0) -> 0 | K100: =SUM(E100,G100,I100) -> 0 | L100: 0
A101: =Dramatic!A96 -> U-203 | B101: =Dramatic!U96 -> 0 | C101: =Dramatic!S96 -> 0 | D101: =IF((DramaticMR!$B101+DramaticMR!$C101)>0,1,0) -> 0 | K101: =SUM(E101,G101,I101) -> 0 | L101: 0
A102: =Dramatic!A97 -> U-204 | B102: =Dramatic!U97 -> 0 | C102: =Dramatic!S97 -> 0 | D102: =IF((DramaticMR!$B102+DramaticMR!$C102)>0,1,0) -> 0 | K102: =SUM(E102,G102,I102) -> 0 | L102: 0
A103: =Dramatic!A99 -> V-201 | B103: =Dramatic!U99 -> 0 | C103: =Dramatic!S99 -> 0 | D103: =IF((DramaticMR!$B103+DramaticMR!$C103)>0,1,0) -> 0 | K103: =SUM(E103,G103,I103) -> 0 | L103: 0
A104: =Dramatic!A100 -> V-202 | B104: =Dramatic!U100 -> 0 | C104: =Dramatic!S100 -> 0 | D104: =IF((DramaticMR!$B104+DramaticMR!$C104)>0,1,0) -> 0 | K104: =SUM(E104,G104,I104) -> 0 | L104: 0
A105: =Dramatic!A101 -> V-203 | B105: =Dramatic!U101 -> 0 | C105: =Dramatic!S101 -> 0 | D105: =IF((DramaticMR!$B105+DramaticMR!$C105)>0,1,0) -> 0 | K105: =SUM(E105,G105,I105) -> 0 | L105: 0
A106: =Dramatic!A102 -> V-204 | B106: =Dramatic!U102 -> 0 | C106: =Dramatic!S102 -> 0 | D106: =IF((DramaticMR!$B106+DramaticMR!$C106)>0,1,0) -> 0 | K106: =SUM(E106,G106,I106) -> 0 | L106: 0
A107: =Dramatic!A104 -> W-201 | B107: =Dramatic!U104 -> 0 | C107: =Dramatic!S104 -> 0 | D107: =IF((DramaticMR!$B107+DramaticMR!$C107)>0,1,0) -> 0 | K107: =SUM(E107,G107,I107) -> 0 | L107: 0
A108: =Dramatic!A105 -> W-202 | B108: =Dramatic!U105 -> 0 | C108: =Dramatic!S105 -> 0 | D108: =IF((DramaticMR!$B108+DramaticMR!$C108)>0,1,0) -> 0 | K108: =SUM(E108,G108,I108) -> 0 | L108: 0
A109: =Dramatic!A106 -> W-203 | B109: =Dramatic!U106 -> 0 | C109: =Dramatic!S106 -> 0 | D109: =IF((DramaticMR!$B109+DramaticMR!$C109)>0,1,0) -> 0 | K109: =SUM(E109,G109,I109) -> 0 | L109: 0
A110: =Dramatic!A107 -> W-204 | B110: =Dramatic!U107 -> 0 | C110: =Dramatic!S107 -> 0 | D110: =IF((DramaticMR!$B110+DramaticMR!$C110)>0,1,0) -> 0 | K110: =SUM(E110,G110,I110) -> 0 | L110: 0
A111: =Dramatic!A109 -> X-201 | B111: =Dramatic!U109 -> 0 | C111: =Dramatic!S109 -> 0 | D111: =IF((DramaticMR!$B111+DramaticMR!$C111)>0,1,0) -> 0 | K111: =SUM(E111,G111,I111) -> 0 | L111: 0
A112: =Dramatic!A110 -> X-202 | B112: =Dramatic!U110 -> 0 | C112: =Dramatic!S110 -> 0 | D112: =IF((DramaticMR!$B112+DramaticMR!$C112)>0,1,0) -> 0 | K112: =SUM(E112,G112,I112) -> 0 | L112: 0
A113: =Dramatic!A111 -> X-203 | B113: =Dramatic!U111 -> 0 | C113: =Dramatic!S111 -> 0 | D113: =IF((DramaticMR!$B113+DramaticMR!$C113)>0,1,0) -> 0 | K113: =SUM(E113,G113,I113) -> 0 | L113: 0
A114: =Dramatic!A112 -> X-204 | B114: =Dramatic!U112 -> 0 | C114: =Dramatic!S112 -> 0 | D114: =IF((DramaticMR!$B114+DramaticMR!$C114)>0,1,0) -> 0 | K114: =SUM(E114,G114,I114) -> 0 | L114: 0
A115: =Dramatic!A114 -> Y-201 | B115: =Dramatic!U114 -> 0 | C115: =Dramatic!S114 -> 0 | D115: =IF((DramaticMR!$B115+DramaticMR!$C115)>0,1,0) -> 0 | K115: =SUM(E115,G115,I115) -> 0 | L115: 0
A116: =Dramatic!A115 -> Y-202 | B116: =Dramatic!U115 -> 0 | C116: =Dramatic!S115 -> 0 | D116: =IF((DramaticMR!$B116+DramaticMR!$C116)>0,1,0) -> 0 | K116: =SUM(E116,G116,I116) -> 0 | L116: 0
A117: =Dramatic!A116 -> Y-203 | B117: =Dramatic!U116 -> 0 | C117: =Dramatic!S116 -> 0 | D117: =IF((DramaticMR!$B117+DramaticMR!$C117)>0,1,0) -> 0 | K117: =SUM(E117,G117,I117) -> 0 | L117: 0
A118: =Dramatic!A117 -> Y-204 | B118: =Dramatic!U117 -> 0 | C118: =Dramatic!S117 -> 0 | D118: =IF((DramaticMR!$B118+DramaticMR!$C118)>0,1,0) -> 0 | K118: =SUM(E118,G118,I118) -> 0 | L118: 0
A119: =Dramatic!A119 -> Z-201 | B119: =Dramatic!U119 -> 0 | C119: =Dramatic!S119 -> 0 | D119: =IF((DramaticMR!$B119+DramaticMR!$C119)>0,1,0) -> 0 | K119: =SUM(E119,G119,I119) -> 0 | L119: 0
A120: =Dramatic!A120 -> Z-202 | B120: =Dramatic!U120 -> 0 | C120: =Dramatic!S120 -> 0 | D120: =IF((DramaticMR!$B120+DramaticMR!$C120)>0,1,0) -> 0 | K120: =SUM(E120,G120,I120) -> 0 | L120: 0
A121: =Dramatic!A121 -> Z-203 | B121: =Dramatic!U121 -> 0 | C121: =Dramatic!S121 -> 0 | D121: =IF((DramaticMR!$B121+DramaticMR!$C121)>0,1,0) -> 0 | K121: =SUM(E121,G121,I121) -> 0 | L121: 0
A122: =Dramatic!A122 -> Z-204 | B122: =Dramatic!U122 -> 0 | C122: =Dramatic!S122 -> 0 | D122: =IF((DramaticMR!$B122+DramaticMR!$C122)>0,1,0) -> 0 | K122: =SUM(E122,G122,I122) -> 0 | L122: 0

Sheet Classical
A1: Classical Scenes | K1: Rank 1-4 | X1: S | Y1: E | Z1: G | AA1: F | AC1: 1violation | AD1: 2violations | AE1: 3violations
K2: Round 1: | M2: Round 2: | O2: Round 3: | Q2: -2 for each | AB2: Drops lowest from column q
D3: Student Name | F3: Student Name | H3: Student Name | J3: Title of Piece | K3: R1 rank | L3: R1 score | M3: R2 rank | N3: R2 score | O3: R3 rank | P3: R3 score | Q3: Time Violations | S3: TOTAL SCORE | U3: TOTAL RANK | X3: TOTAL SCHOOL SWEEPS POINTS | AB3: Drop Lowest
A4: A-301 | D4: Dana | E4: Carlisle | F4: Anjolee | G4: Jones | H4: Lina | I4: Rascon | J4: As you like it | K4: 4 | L4: 25 | M4: 2 | N4: 24 | O4: 3 | P4: 24 | R4: =IF(Q4="1violation",-7*1,IF(Q4="2violations",-7*2,IF(Q4="3violations",-7*3,IF(Q4="","")))) ->  | S4: =SUM(L4,N4,P4,R4) -> 73 | U4: =SUM(K4,M4,O4) -> 9 | Y4: =SUM(S4,S6,S5,S7,-AB4) -> 223 | AB4: =MIN(S4:S7) -> 73
A5: A-302 | D5: Hailey | E5: Howard | F5: Brielle | G5: Knapp | H5: Lindsey | I5: Olsen | J5: Assembly Women | K5: 3 | L5: 25 | M5: 2 | N5: 25 | O5: 4 | P5: 24 | S5: 74 | U5: 9
A6: A-303 | D6: Kailee | E6: Schiffman | F6: Matthew | G6: Lundeberg | J6: Tartuffe | K6: 1 | L6: 25 | M6: 1 | N6: 25 | O6: 4 | P6: 24 | S6: 74 | U6: 6
A7: A-304 | D7: Natalie | E7: Dowding | F7: Brynlee | G7: Pipes | J7: Importance | K7: 1 | L7: 25 | M7: 1 | N7: 25 | O7: 1 | P7: 25 | S7: 75 | U7: 3
A9: B-301 | R9: =IF(Q9="1violation",-7*1,IF(Q9="2violations",-7*2,IF(Q9="3violations",-7*3,IF(Q9="","")))) ->  | S9: =SUM(L9,N9,P9,R9) -> 0 | U9: =SUM(K9,M9,O9) -> 0 | Y9: =SUM(S9,S11,S10,S12,-AB9) -> 0 | AB9: =MIN(S9:S12) -> 0
A10: B-302 | S10: 0 | U10: 0
A11: B-303 | S11: 0 | U11: 0
A12: B-304 | S12: 0 | U12: 0
A14: C-301 | E14: Wells | G14: Wheeler | J14: Twelfth Night | K14: 2 | L14: 21 | M14: 1 | N14: 25 | O14: 4 | P14: 24 | R14: =IF(Q14="1violation",-7*1,IF(Q14="2violations",-7*2,IF(Q14="3violations",-7*3,IF(Q14="","")))) ->  | S14: =SUM(L14,N14,P14,R14) -> 70 | U14: =SUM(K14,M14,O14) -> 7 | Y14: =SUM(S14,S16,S15,S17,-AB14) -> 218 | AB14: =MIN(S14:S17) -> 0
A15: C-302 | E15: Hawkins | G15: Hawley | J15: Importance | K15: 1 | L15: 25 | M15: 3 | N15: 25 | O15: 1 | P15: 25 | S15: 75 | U15: 5
A16: C-303 | E16: Wells | G16: Rowley | J16: Two Gentleman | K16: 2 | L16: 25 | M16: 4 | N16: 24 | O16: 4 | P16: 24 | S16: 73 | U16: 10
A17: C-304 | S17: 0 | U17: 0
A19: D-301 | R19: =IF(Q19="1violation",-7*1,IF(Q19="2violations",-7*2,IF(Q19="3violations",-7*3,IF(Q19="","")))) ->  | S19: =SUM(L19,N19,P19,R19) -> 0 | U19: =SUM(K19,M19,O19) -> 0 | Y19: =SUM(S19,S21,S20,S22,-AB19) -> 0 | AB19: =MIN(S19:S22) -> 0
A20: D-302 | S20: 0 | U20: 0
A21: D-303 | S21: 0 | U21: 0
A22: D-304 | S22: 0 | U22: 0
A24: E-301 | E24: Shidel | G24: Lester | J24: An Ideal Husband | K24: 4 | L24: 20 | M24: 4 | N24: 25 | O24: 4 | P24: 24 | R24: =IF(Q24="1violation",-7*1,IF(Q24="2violations",-7*2,IF(Q24="3violations",-7*3,IF(Q24="","")))) ->  | S24: =SUM(L24,N24,P24,R24) -> 69 | U24: =SUM(K24,M24,O24) -> 12 | Y24: =SUM(S24,S26,S25,S27,-AB24) -> 69 | AB24: =MIN(S24:S27) -> 0
A25: E-302 | S25: 0 | U25: 0
A26: E-303 | S26: 0 | U26: 0
A27: E-304 | S27: 0 | U27: 0
A29: F-301 | E29: Murphy | G29: Nielsen | J29: Macbeth | K29: 2 | L29: 25 | M29: 2 | N29: 24 | O29: 3 | P29: 25 | R29: =IF(Q29="1violation",-7*1,IF(Q29="2violations",-7*2,IF(Q29="3violations",-7*3,IF(Q29="","")))) ->  | S29: =SUM(L29,N29,P29,R29) -> 74 | U29: =SUM(K29,M29,O29) -> 7 | Y29: =SUM(S29,S31,S30,S32,-AB29) -> 219 | AB29: =MIN(S29:S32) -> 71
A30: F-302 | E30: Boren | G30: Pollock | J30: Taming | K30: 2 | L30: 25 | M30: 2 | N30: 24 | O30: 1 | P30: 25 | S30: 74 | U30: 5
A31: F-303 | E31: Johnson | G31: Tanner | I31: Workman | J31: Macbeth | K31: 4 | L31: 23 | M31: 3 | N31: 24 | O31: 3 | P31: 24 | S31: 71 | U31: 10
A32: F-304 | E32: Bradford | G32: Jones | J32: Henry | K32: 3 | L32: 25 | M32: 4 | N32: 21 | O32: 1 | P32: 25 | S32: 71 | U32: 8
A34: G-301 | E34: Patterson | G34: Nichols | J34: Much Ado | K34: 3 | L34: 24 | M34: 2 | N34: 25 | O34: 3 | P34: 25 | R34: =IF(Q34="1violation",-7*1,IF(Q34="2violations",-7*2,IF(Q34="3violations",-7*3,IF(Q34="","")))) ->  | S34: =SUM(L34,N34,P34,R34) -> 74 | U34: =SUM(K34,M34,O34) -> 8 | Y34: =SUM(S34,S36,S35,S37,-AB34) -> 74 | AB34: =MIN(S34:S37) -> 0
A35: G-302 | S35: 0 | U35: 0
A36: G-303 | S36: 0 | U36: 0
A37: G-304 | S37: 0 | U37: 0
A39: H-301 | E39: Call | G39: Colbert | J39: Merchant | K39: 1 | L39: 21 | M39: 1 | N39: 25 | O39: 2 | P39: 25 | R39: =IF(Q39="1violation",-7*1,IF(Q39="2violations",-7*2,IF(Q39="3violations",-7*3,IF(Q39="","")))) ->  | S39: =SUM(L39,N39,P39,R39) -> 71 | U39: =SUM(K39,M39,O39) -> 4 | Y39: =SUM(S39,S41,S40,S42,-AB39) -> 217 | AB39: =MIN(S39:S42) -> 71
A40: H-302 | E40: Howe | G40: Sowards | J40: Richard III | K40: 4 | L40: 24 | M40: 4 | N40: 23 | O40: 2 | P40: 25 | S40: 72 | U40: 10
A41: H-303 | E41: Uchmann | G41: Rushton | I41: Hokansen | J41: Tartuffe | K41: 1 | L41: 25 | M41: 4 | N41: 23 | O41: 2 | P41: 24 | S41: 72 | U41: 7
A42: H-304 | E42: Sowards | G42: Thatcher | I42: Rowley | J42: Richard III | K42: 3 | L42: 25 | M42: 3 | N42: 25 | O42: 4 | P42: 23 | S42: 73 | U42: 10
A44: J-301 | R44: =IF(Q44="1violation",-7*1,IF(Q44="2violations",-7*2,IF(Q44="3violations",-7*3,IF(Q44="","")))) ->  | S44: =SUM(L44,N44,P44,R44) -> 0 | U44: =SUM(K44,M44,O44) -> 0 | Y44: =SUM(S44,S46,S45,S47,-AB44) -> 0 | AB44: =MIN(S44:S47) -> 0
A45: J-302 | S45: 0 | U45: 0
A46: J-303 | S46: 0 | U46: 0
A47: J-304 | S47: 0 | U47: 0
A49: K-301 | E49: Chiazzese | G49: Baker | I49: Swick | J49: Richard III | K49: 4 | L49: 20 | M49: 4 | N49: 21 | O49: 3 | P49: 25 | R49: =IF(Q49="1violation",-7*1,IF(Q49="2violations",-7*2,IF(Q49="3violations",-7*3,IF(Q49="","")))) ->  | S49: =SUM(L49,N49,P49,R49) -> 66 | U49: =SUM(K49,M49,O49) -> 11 | Y49: =SUM(S49,S51,S50,S52,-AB49) -> 66 | AB49: =MIN(S49:S52) -> 0
A50: K-302 | S50: 0 | U50: 0
A51: K-303 | S51: 0 | U51: 0
A52: K-304 | S52: 0 | U52: 0
A54: L-301 | E54: Sanders | G54: Larrabee | J54: Antigone | K54: 4 | L54: 25 | M54: 4 | N54: 21 | O54: 4 | P54: 24 | R54: =IF(Q54="1violation",-7*1,IF(Q54="2violations",-7*2,IF(Q54="3violations",-7*3,IF(Q54="","")))) ->  | S54: =SUM(L54,N54,P54,R54) -> 70 | U54: =SUM(K54,M54,O54) -> 12 | Y54: =SUM(S54,S56,S55,S57,-AB54) -> 70 | AB54: =MIN(S54:S57) -> 0
A55: L-302 | S55: 0 | U55: 0
A56: L-303 | S56: 0 | U56: 0
A57: L-304 | S57: 0 | U57: 0
A59: M-301 | R59: =IF(Q59="1violation",-7*1,IF(Q59="2violations",-7*2,IF(Q59="3violations",-7*3,IF(Q59="","")))) ->  | S59: =SUM(L59,N59,P59,R59) -> 0 | U59: =SUM(K59,M59,O59) -> 0 | Y59: =SUM(S59,S61,S60,S62,-AB59) -> 0 | AB59: =MIN(S59:S62) -> 0
A60: M-302 | S60: 0 | U60: 0
A61: M-303 | S61: 0 | U61: 0
A62: M-304 | S62: 0 | U62: 0
A64: N-301 | E64: Davis | G64: Stott | J64: Importance | R64: =IF(Q64="1violation",-7*1,IF(Q64="2violations",-7*2,IF(Q64="3violations",-7*3,IF(Q64="","")))) ->  | S64: =SUM(L64,N64,P64,R64) -> 0 | U64: =SUM(K64,M64,O64) -> 0 | Y64: =SUM(S64,S66,S65,S67,-AB64) -> 0 | AB64: =MIN(S64:S67) -> 0
A65: N-302 | S65: 0 | U65: 0
A66: N-303 | S66: 0 | U66: 0
A67: N-304 | S67: 0 | U67: 0
A69: P-301 | E69: Anderson | G69: Anderson | J69: Henry VI | K69: 4 | L69: 23 | M69: 4 | N69: 23 | O69: 2 | P69: 25 | R69: =IF(Q69="1violation",-7*1,IF(Q69="2violations",-7*2,IF(Q69="3violations",-7*3,IF(Q69="","")))) ->  | S69: =SUM(L69,N69,P69,R69) -> 71 | U69: =SUM(K69,M69,O69) -> 10 | Y69: =SUM(S69,S71,S70,S72,-AB69) -> 218 | AB69: =MIN(S69:S72) -> 0
A70: P-302 | E70: Barsic | G70: Nesbit | J70: Hamlet | K70: 4 | L70: 25 | M70: 4 | N70: 25 | O70: 2 | P70: 25 | S70: 75 | U70: 10
A71: P-303 | E71: Power | G71: Brinkerhoff | J71: Comedy | K71: 2 | L71: 25 | M71: 3 | N71: 23 | O71: 4 | P71: 24 | S71: 72 | U71: 9
A72: P-304 | S72: 0 | U72: 0
A74: Q-301 | R74: =IF(Q74="1violation",-7*1,IF(Q74="2violations",-7*2,IF(Q74="3violations",-7*3,IF(Q74="","")))) ->  | S74: =SUM(L74,N74,P74,R74) -> 0 | U74: =SUM(K74,M74,O74) -> 0 | Y74: =SUM(S74,S76,S75,S77,-AB74) -> 0 | AB74: =MIN(S74:S77) -> 0
A75: Q-302 | S75: 0 | U75: 0
A76: Q-303 | S76: 0 | U76: 0
A77: Q-304 | S77: 0 | U77: 0
A79: R-301 | E79: Parker | G79: Iombardi | I79: Thornell | J79: Midsummer | K79: 4 | L79: 18 | M79: 1 | N79: 25 | O79: 1 | P79: 25 | R79: =IF(Q79="1violation",-7*1,IF(Q79="2violations",-7*2,IF(Q79="3violations",-7*3,IF(Q79="","")))) ->  | S79: =SUM(L79,N79,P79,R79) -> 68 | U79: =SUM(K79,M79,O79) -> 6 | Y79: =SUM(S79,S81,S80,S82,-AB79) -> 68 | AB79: =MIN(S79:S82) -> 0
A80: R-302 | S80: 0 | U80: 0
A81: R-303 | S81: 0 | U81: 0
A82: R-304 | S82: 0 | U82: 0
A84: S-301 | E84: Luna-Trujillo | G84: Joseph | J84: Much Ado | K84: 3 | L84: 20 | M84: 3 | N84: 24 | O84: 4 | P84: 23 | R84: =IF(Q84="1violation",-7*1,IF(Q84="2violations",-7*2,IF(Q84="3violations",-7*3,IF(Q84="","")))) ->  | S84: =SUM(L84,N84,P84,R84) -> 67 | U84: =SUM(K84,M84,O84) -> 10 | Y84: =SUM(S84,S86,S85,S87,-AB84) -> 67 | AB84: =MIN(S84:S87) -> 0
A85: S-302 | S85: 0 | U85: 0
A86: S-303 | S86: 0 | U86: 0
A87: S-304 | S87: 0 | U87: 0
A89: T-301 | R89: =IF(Q89="1violation",-7*1,IF(Q89="2violations",-7*2,IF(Q89="3violations",-7*3,IF(Q89="","")))) ->  | S89: =SUM(L89,N89,P89,R89) -> 0 | U89: =SUM(K89,M89,O89) -> 0 | Y89: =SUM(S89,S91,S90,S92,-AB89) -> 0 | AB89: =MIN(S89:S92) -> 0
A90: T-302 | S90: 0 | U90: 0
A91: T-303 | S91: 0 | U91: 0
A92: T-304 | S92: 0 | U92: 0
A94: U-301 | R94: =IF(Q94="1violation",-7*1,IF(Q94="2violations",-7*2,IF(Q94="3violations",-7*3,IF(Q94="","")))) ->  | S94: =SUM(L94,N94,P94,R94) -> 0 | U94: =SUM(K94,M94,O94) -> 0 | Y94: =SUM(S94,S96,S95,S97,-AB94) -> 0 | AB94: =MIN(S94:S97) -> 0
A95: U-302 | S95: 0 | U95: 0
A96: U-303 | S96: 0 | U96: 0
A97: U-304 | S97: 0 | U97: 0
A99: V-301 | R99: =IF(Q99="1violation",-7*1,IF(Q99="2violations",-7*2,IF(Q99="3violations",-7*3,IF(Q99="","")))) ->  | S99: =SUM(L99,N99,P99,R99) -> 0 | U99: =SUM(K99,M99,O99) -> 0 | Y99: =SUM(S99,S101,S100,S102,-AB99) -> 0 | AB99: =MIN(S99:S102) -> 0
A100: V-302 | S100: 0 | U100: 0
A101: V-303 | S101: 0 | U101: 0
A102: V-304 | S102: 0 | U102: 0
A104: W-301 | R104: =IF(Q104="1violation",-7*1,IF(Q104="2violations",-7*2,IF(Q104="3violations",-7*3,IF(Q104="","")))) ->  | S104: =SUM(L104,N104,P104,R104) -> 0 | U104: =SUM(K104,M104,O104) -> 0 | Y104: =SUM(S104,S106,S105,S107,-AB104) -> 0 | AB104: =MIN(S104:S107) -> 0
A105: W-302 | S105: 0 | U105: 0
A106: W-303 | S106: 0 | U106: 0
A107: W-304 | S107: 0 | U107: 0
A109: X-301 | R109: =IF(Q109="1violation",-7*1,IF(Q109="2violations",-7*2,IF(Q109="3violations",-7*3,IF(Q109="","")))) ->  | S109: =SUM(L109,N109,P109,R109) -> 0 | U109: =SUM(K109,M109,O109) -> 0 | Y109: =SUM(S109,S111,S110,S112,-AB109) -> 0 | AB109: =MIN(S109:S112) -> 0
A110: X-302 | S110: 0 | U110: 0
A111: X-303 | S111: 0 | U111: 0
A112: X-304 | S112: 0 | U112: 0
A114: Y-301 | R114: =IF(Q114="1violation",-7*1,IF(Q114="2violations",-7*2,IF(Q114="3violations",-7*3,IF(Q114="","")))) ->  | S114: =SUM(L114,N114,P114,R114) -> 0 | U114: =SUM(K114,M114,O114) -> 0 | Y114: =SUM(S114,S116,S115,S117,-AB114) -> 0 | AB114: =MIN(S114:S117) -> 0
A115: Y-302 | S115: 0 | U115: 0
A116: Y-303 | S116: 0 | U116: 0
A117: Y-304 | S117: 0 | U117: 0
A119: Z-301 | R119: =IF(Q119="1violation",-7*1,IF(Q119="2violations",-7*2,IF(Q119="3violations",-7*3,IF(Q119="","")))) ->  | S119: =SUM(L119,N119,P119,R119) -> 0 | U119: =SUM(K119,M119,O119) -> 0 | Y119: =SUM(S119,S121,S120,S122,-AB119) -> 0 | AB119: =MIN(S119:S122) -> 0
A120: Z-302 | S120: 0 | U120: 0
A121: Z-303 | S121: 0 | U121: 0
A122: Z-304 | S122: 0 | U122: 0
A124: AA-301 | R124: =IF(Q124="1violation",-7*1,IF(Q124="2violations",-7*2,IF(Q124="3violations",-7*3,IF(Q124="","")))) ->  | S124: =SUM(L124,N124,P124,R124) -> 0 | U124: =SUM(K124,M124,O124) -> 0 | Y124: =SUM(S124,S126,S125,S127,-AB124) -> 0 | AB124: =MIN(S124:S127) -> 0
A125: AA-302 | S125: 0 | U125: 0
A126: AA-303 | S126: 0 | U126: 0
A127: AA-304 | S127: 0 | U127: 0
A129: BB-301 | R129: =IF(Q129="1violation",-7*1,IF(Q129="2violations",-7*2,IF(Q129="3violations",-7*3,IF(Q129="","")))) ->  | S129: =SUM(L129,N129,P129,R129) -> 0 | U129: =SUM(K129,M129,O129) -> 0 | Y129: =SUM(S129,S131,S130,S132,-AB129) -> 0 | AB129: =MIN(S129:S132) -> 0
A130: BB-302 | S130: 0 | U130: 0
A131: BB-303 | S131: 0 | U131: 0
A132: BB-304 | S132: 0 | U132: 0
A134: CC-301 | R134: =IF(Q134="1violation",-7*1,IF(Q134="2violations",-7*2,IF(Q134="3violations",-7*3,IF(Q134="","")))) ->  | S134: =SUM(L134,N134,P134,R134) -> 0 | U134: =SUM(K134,M134,O134) -> 0 | Y134: =SUM(S134,S136,S135,S137,-AB134) -> 0 | AB134: =MIN(S134:S137) -> 0
A135: CC-302 | S135: 0 | U135: 0
A136: CC-303 | S136: 0 | U136: 0
A137: CC-304 | S137: 0 | U137: 0
A139: DD-301 | R139: =IF(Q139="1violation",-7*1,IF(Q139="2violations",-7*2,IF(Q139="3violations",-7*3,IF(Q139="","")))) ->  | S139: =SUM(L139,N139,P139,R139) -> 0 | U139: =SUM(K139,M139,O139) -> 0 | Y139: =SUM(S139,S141,S140,S142,-AB139) -> 0 | AB139: =MIN(S139:S142) -> 0
A140: DD-302 | S140: 0 | U140: 0
A141: DD-303 | S141: 0 | U141: 0
A142: DD-304 | S142: 0 | U142: 0
A144: EE-301 | R144: =IF(Q144="1violation",-7*1,IF(Q144="2violations",-7*2,IF(Q144="3violations",-7*3,IF(Q144="","")))) ->  | S144: =SUM(L144,N144,P144,R144) -> 0 | U144: =SUM(K144,M144,O144) -> 0 | Y144: =SUM(S144,S146,S145,S147,-AB144) -> 0 | AB144: =MIN(S144:S147) -> 0
A145: EE-302 | S145: 0 | U145: 0
A146: EE-303 | S146: 0 | U146: 0
A147: EE-304 | S147: 0 | U147: 0
A149: FF-301 | R149: =IF(Q149="1violation",-7*1,IF(Q149="2violations",-7*2,IF(Q149="3violations",-7*3,IF(Q149="","")))) ->  | S149: =SUM(L149,N149,P149,R149) -> 0 | U149: =SUM(K149,M149,O149) -> 0 | Y149: =SUM(S149,S151,S150,S152,-AB149) -> 0 | AB149: =MIN(S149:S152) -> 0
A150: FF-302 | S150: 0 | U150: 0
A151: FF-303 | S151: 0 | U151: 0
A152: FF-304 | S152: 0 | U152: 0

Sheet ClassicalMR
A1: Classical | E1: Finals Medals Round Scores
A2: ID | B2: Rank | C2: Score | D2: LeaveBlank | E2: MR 1 Rank | F2: MR 1 Score | G2: MR2 Rank | H2: MR 2 Score | I2: MR3 Rank | J2: MR 3 Score | K2: Total MR Rank | L2: Total MR Score
A3: =Classical!A4 -> A-301 | B3: =Classical!U4 -> 9 | C3: =Classical!S4 -> 73 | D3: =IF((ClassicalMR!$B3+ClassicalMR!$C3)>0,1,0) -> 1 | K3: =SUM(E3,G3,I3) -> 0 | L3: 0
A4: =Classical!A5 -> A-302 | B4: =Classical!U5 -> 9 | C4: =Classical!S5 -> 74 | D4: =IF((ClassicalMR!$B4+ClassicalMR!$C4)>0,1,0) -> 1 | K4: =SUM(E4,G4,I4) -> 0 | L4: 0
A5: =Classical!A6 -> A-303 | B5: =Classical!U6 -> 6 | C5: =Classical!S6 -> 74 | D5: =IF((ClassicalMR!$B5+ClassicalMR!$C5)>0,1,0) -> 1 | E5: 6 | F5: 25 | G5: 6 | H5: 25 | I5: 3 | J5: 25 | K5: =SUM(E5,G5,I5) -> 15 | L5: 75
A6: =Classical!A7 -> A-304 | B6: =Classical!U7 -> 3 | C6: =Classical!S7 -> 75 | D6: =IF((ClassicalMR!$B6+ClassicalMR!$C6)>0,1,0) -> 1 | E6: 5 | F6: 25 | G6: 4 | H6: 25 | I6: 1 | J6: 25 | K6: =SUM(E6,G6,I6) -> 10 | L6: 75
A7: =Classical!A124 -> AA-301 | B7: =Classical!U124 -> 0 | C7: =Classical!S124 -> 0 | D7: =IF((ClassicalMR!$B7+ClassicalMR!$C7)>0,1,0) -> 0 | K7: =SUM(E7,G7,I7) -> 0 | L7: 0
A8: =Classical!A125 -> AA-302 | B8: =Classical!U125 -> 0 | C8: =Classical!S125 -> 0 | D8: =IF((ClassicalMR!$B8+ClassicalMR!$C8)>0,1,0) -> 0 | K8: =SUM(E8,G8,I8) -> 0 | L8: 0
A9: =Classical!A126 -> AA-303 | B9: =Classical!U126 -> 0 | C9: =Classical!S126 -> 0 | D9: =IF((ClassicalMR!$B9+ClassicalMR!$C9)>0,1,0) -> 0 | K9: =SUM(E9,G9,I9) -> 0 | L9: 0
A10: =Classical!A127 -> AA-304 | B10: =Classical!U127 -> 0 | C10: =Classical!S127 -> 0 | D10: =IF((ClassicalMR!$B10+ClassicalMR!$C10)>0,1,0) -> 0 | K10: =SUM(E10,G10,I10) -> 0 | L10: 0
A11: =Classical!A9 -> B-301 | B11: =Classical!U9 -> 0 | C11: =Classical!S9 -> 0 | D11: =IF((ClassicalMR!$B11+ClassicalMR!$C11)>0,1,0) -> 0 | K11: =SUM(E11,G11,I11) -> 0 | L11: 0
A12: =Classical!A10 -> B-302 | B12: =Classical!U10 -> 0 | C12: =Classical!S10 -> 0 | D12: =IF((ClassicalMR!$B12+ClassicalMR!$C12)>0,1,0) -> 0 | K12: =SUM(E12,G12,I12) -> 0 | L12: 0
A13: =Classical!A11 -> B-303 | B13: =Classical!U11 -> 0 | C13: =Classical!S11 -> 0 | D13: =IF((ClassicalMR!$B13+ClassicalMR!$C13)>0,1,0) -> 0 | K13: =SUM(E13,G13,I13) -> 0 | L13: 0
A14: =Classical!A12 -> B-304 | B14: =Classical!U12 -> 0 | C14: =Classical!S12 -> 0 | D14: =IF((ClassicalMR!$B14+ClassicalMR!$C14)>0,1,0) -> 0 | K14: =SUM(E14,G14,I14) -> 0 | L14: 0
A15: =Classical!A129 -> BB-301 | B15: =Classical!U129 -> 0 | C15: =Classical!S129 -> 0 | D15: =IF((ClassicalMR!$B15+ClassicalMR!$C15)>0,1,0) -> 0 | K15: =SUM(E15,G15,I15) -> 0 | L15: 0
A16: =Classical!A130 -> BB-302 | B16: =Classical!U130 -> 0 | C16: =Classical!S130 -> 0 | D16: =IF((ClassicalMR!$B16+ClassicalMR!$C16)>0,1,0) -> 0 | K16: =SUM(E16,G16,I16) -> 0 | L16: 0
A17: =Classical!A131 -> BB-303 | B17: =Classical!U131 -> 0 | C17: =Classical!S131 -> 0 | D17: =IF((ClassicalMR!$B17+ClassicalMR!$C17)>0,1,0) -> 0 | K17: =SUM(E17,G17,I17) -> 0 | L17: 0
A18: =Classical!A132 -> BB-304 | B18: =Classical!U132 -> 0 | C18: =Classical!S132 -> 0 | D18: =IF((ClassicalMR!$B18+ClassicalMR!$C18)>0,1,0) -> 0 | K18: =SUM(E18,G18,I18) -> 0 | L18: 0
A19: =Classical!A14 -> C-301 | B19: =Classical!U14 -> 7 | C19: =Classical!S14 -> 70 | D19: =IF((ClassicalMR!$B19+ClassicalMR!$C19)>0,1,0) -> 1 | K19: =SUM(E19,G19,I19) -> 0 | L19: 0
A20: =Classical!A15 -> C-302 | B20: =Classical!U15 -> 5 | C20: =Classical!S15 -> 75 | D20: =IF((ClassicalMR!$B20+ClassicalMR!$C20)>0,1,0) -> 1 | E20: 3 | F20: 25 | G20: 1 | H20: 25 | I20: 5 | J20: 25 | K20: =SUM(E20,G20,I20) -> 9 | L20: 75
A21: =Classical!A16 -> C-303 | B21: =Classical!U16 -> 10 | C21: =Classical!S16 -> 73 | D21: =IF((ClassicalMR!$B21+ClassicalMR!$C21)>0,1,0) -> 1 | K21: =SUM(E21,G21,I21) -> 0 | L21: 0
A22: =Classical!A17 -> C-304 | B22: =Classical!U17 -> 0 | C22: =Classical!S17 -> 0 | D22: =IF((ClassicalMR!$B22+ClassicalMR!$C22)>0,1,0) -> 0 | K22: =SUM(E22,G22,I22) -> 0 | L22: 0
A23: =Classical!A134 -> CC-301 | B23: =Classical!U134 -> 0 | C23: =Classical!S134 -> 0 | D23: =IF((ClassicalMR!$B23+ClassicalMR!$C23)>0,1,0) -> 0 | K23: =SUM(E23,G23,I23) -> 0 | L23: 0
A24: =Classical!A135 -> CC-302 | B24: =Classical!U135 -> 0 | C24: =Classical!S135 -> 0 | D24: =IF((ClassicalMR!$B24+ClassicalMR!$C24)>0,1,0) -> 0 | K24: =SUM(E24,G24,I24) -> 0 | L24: 0
A25: =Classical!A136 -> CC-303 | B25: =Classical!U136 -> 0 | C25: =Classical!S136 -> 0 | D25: =IF((ClassicalMR!$B25+ClassicalMR!$C25)>0,1,0) -> 0 | K25: =SUM(E25,G25,I25) -> 0 | L25: 0
A26: =Classical!A137 -> CC-304 | B26: =Classical!U137 -> 0 | C26: =Classical!S137 -> 0 | D26: =IF((ClassicalMR!$B26+ClassicalMR!$C26)>0,1,0) -> 0 | K26: =SUM(E26,G26,I26) -> 0 | L26: 0
A27: =Classical!A19 -> D-301 | B27: =Classical!U19 -> 0 | C27: =Classical!S19 -> 0 | D27: =IF((ClassicalMR!$B27+ClassicalMR!$C27)>0,1,0) -> 0 | K27: =SUM(E27,G27,I27) -> 0 | L27: 0
A28: =Classical!A20 -> D-302 | B28: =Classical!U20 -> 0 | C28: =Classical!S20 -> 0 | D28: =IF((ClassicalMR!$B28+ClassicalMR!$C28)>0,1,0) -> 0 | K28: =SUM(E28,G28,I28) -> 0 | L28: 0
A29: =Classical!A21 -> D-303 | B29: =Classical!U21 -> 0 | C29: =Classical!S21 -> 0 | D29: =IF((ClassicalMR!$B29+ClassicalMR!$C29)>0,1,0) -> 0 | K29: =SUM(E29,G29,I29) -> 0 | L29: 0
A30: =Classical!A22 -> D-304 | B30: =Classical!U22 -> 0 | C30: =Classical!S22 -> 0 | D30: =IF((ClassicalMR!$B30+ClassicalMR!$C30)>0,1,0) -> 0 | K30: =SUM(E30,G30,I30) -> 0 | L30: 0
A31: =Classical!A139 -> DD-301 | B31: =Classical!U139 -> 0 | C31: =Classical!S139 -> 0 | D31: =IF((ClassicalMR!$B31+ClassicalMR!$C31)>0,1,0) -> 0 | K31: =SUM(E31,G31,I31) -> 0 | L31: 0
A32: =Classical!A140 -> DD-302 | B32: =Classical!U140 -> 0 | C32: =Classical!S140 -> 0 | D32: =IF((ClassicalMR!$B32+ClassicalMR!$C32)>0,1,0) -> 0 | K32: =SUM(E32,G32,I32) -> 0 | L32: 0
A33: =Classical!A141 -> DD-303 | B33: =Classical!U141 -> 0 | C33: =Classical!S141 -> 0 | D33: =IF((ClassicalMR!$B33+ClassicalMR!$C33)>0,1,0) -> 0 | K33: =SUM(E33,G33,I33) -> 0 | L33: 0
A34: =Classical!A142 -> DD-304 | B34: =Classical!U142 -> 0 | C34: =Classical!S142 -> 0 | D34: =IF((ClassicalMR!$B34+ClassicalMR!$C34)>0,1,0) -> 0 | K34: =SUM(E34,G34,I34) -> 0 | L34: 0
A35: =Classical!A24 -> E-301 | B35: =Classical!U24 -> 12 | C35: =Classical!S24 -> 69 | D35: =IF((ClassicalMR!$B35+ClassicalMR!$C35)>0,1,0) -> 1 | K35: =SUM(E35,G35,I35) -> 0 | L35: 0
A36: =Classical!A25 -> E-302 | B36: =Classical!U25 -> 0 | C36: =Classical!S25 -> 0 | D36: =IF((ClassicalMR!$B36+ClassicalMR!$C36)>0,1,0) -> 0 | K36: =SUM(E36,G36,I36) -> 0 | L36: 0
A37: =Classical!A26 -> E-303 | B37: =Classical!U26 -> 0 | C37: =Classical!S26 -> 0 | D37: =IF((ClassicalMR!$B37+ClassicalMR!$C37)>0,1,0) -> 0 | K37: =SUM(E37,G37,I37) -> 0 | L37: 0
A38: =Classical!A27 -> E-304 | B38: =Classical!U27 -> 0 | C38: =Classical!S27 -> 0 | D38: =IF((ClassicalMR!$B38+ClassicalMR!$C38)>0,1,0) -> 0 | K38: =SUM(E38,G38,I38) -> 0 | L38: 0
A39: =Classical!A144 -> EE-301 | B39: =Classical!U144 -> 0 | C39: =Classical!S144 -> 0 | D39: =IF((ClassicalMR!$B39+ClassicalMR!$C39)>0,1,0) -> 0 | K39: =SUM(E39,G39,I39) -> 0 | L39: 0
A40: =Classical!A145 -> EE-302 | B40: =Classical!U145 -> 0 | C40: =Classical!S145 -> 0 | D40: =IF((ClassicalMR!$B40+ClassicalMR!$C40)>0,1,0) -> 0 | K40: =SUM(E40,G40,I40) -> 0 | L40: 0
A41: =Classical!A146 -> EE-303 | B41: =Classical!U146 -> 0 | C41: =Classical!S146 -> 0 | D41: =IF((ClassicalMR!$B41+ClassicalMR!$C41)>0,1,0) -> 0 | K41: =SUM(E41,G41,I41) -> 0 | L41: 0
A42: =Classical!A147 -> EE-304 | B42: =Classical!U147 -> 0 | C42: =Classical!S147 -> 0 | D42: =IF((ClassicalMR!$B42+ClassicalMR!$C42)>0,1,0) -> 0 | K42: =SUM(E42,G42,I42) -> 0 | L42: 0
A43: =Classical!A29 -> F-301 | B43: =Classical!U29 -> 7 | C43: =Classical!S29 -> 74 | D43: =IF((ClassicalMR!$B43+ClassicalMR!$C43)>0,1,0) -> 1 | K43: =SUM(E43,G43,I43) -> 0 | L43: 0
A44: =Classical!A30 -> F-302 | B44: =Classical!U30 -> 5 | C44: =Classical!S30 -> 74 | D44: =IF((ClassicalMR!$B44+ClassicalMR!$C44)>0,1,0) -> 1 | E44: 4 | F44: 25 | G44: 5 | H44: 25 | I44: 4 | J44: 25 | K44: =SUM(E44,G44,I44) -> 13 | L44: 75
A45: =Classical!A31 -> F-303 | B45: =Classical!U31 -> 10 | C45: =Classical!S31 -> 71 | D45: =IF((ClassicalMR!$B45+ClassicalMR!$C45)>0,1,0) -> 1 | K45: =SUM(E45,G45,I45) -> 0 | L45: 0
A46: =Classical!A32 -> F-304 | B46: =Classical!U32 -> 8 | C46: =Classical!S32 -> 71 | D46: =IF((ClassicalMR!$B46+ClassicalMR!$C46)>0,1,0) -> 1 | K46: =SUM(E46,G46,I46) -> 0 | L46: 0
A47: =Classical!A34 -> G-301 | B47: =Classical!U34 -> 8 | C47: =Classical!S34 -> 74 | D47: =IF((ClassicalMR!$B47+ClassicalMR!$C47)>0,1,0) -> 1 | K47: =SUM(E47,G47,I47) -> 0 | L47: 0
A48: =Classical!A35 -> G-302 | B48: =Classical!U35 -> 0 | C48: =Classical!S35 -> 0 | D48: =IF((ClassicalMR!$B48+ClassicalMR!$C48)>0,1,0) -> 0 | K48: =SUM(E48,G48,I48) -> 0 | L48: 0
A49: =Classical!A36 -> G-303 | B49: =Classical!U36 -> 0 | C49: =Classical!S36 -> 0 | D49: =IF((ClassicalMR!$B49+ClassicalMR!$C49)>0,1,0) -> 0 | K49: =SUM(E49,G49,I49) -> 0 | L49: 0
A50: =Classical!A37 -> G-304 | B50: =Classical!U37 -> 0 | C50: =Classical!S37 -> 0 | D50: =IF((ClassicalMR!$B50+ClassicalMR!$C50)>0,1,0) -> 0 | K50: =SUM(E50,G50,I50) -> 0 | L50: 0
A51: =Classical!A39 -> H-301 | B51: =Classical!U39 -> 4 | C51: =Classical!S39 -> 71 | D51: =IF((ClassicalMR!$B51+ClassicalMR!$C51)>0,1,0) -> 1 | E51: 1 | F51: 25 | G51: 3 | H51: 25 | I51: 2 | J51: 25 | K51: =SUM(E51,G51,I51) -> 6 | L51: 75
A52: =Classical!A40 -> H-302 | B52: =Classical!U40 -> 10 | C52: =Classical!S40 -> 72 | D52: =IF((ClassicalMR!$B52+ClassicalMR!$C52)>0,1,0) -> 1 | K52: =SUM(E52,G52,I52) -> 0 | L52: 0
A53: =Classical!A41 -> H-303 | B53: =Classical!U41 -> 7 | C53: =Classical!S41 -> 72 | D53: =IF((ClassicalMR!$B53+ClassicalMR!$C53)>0,1,0) -> 1 | K53: =SUM(E53,G53,I53) -> 0 | L53: 0
A54: =Classical!A42 -> H-304 | B54: =Classical!U42 -> 10 | C54: =Classical!S42 -> 73 | D54: =IF((ClassicalMR!$B54+ClassicalMR!$C54)>0,1,0) -> 1 | K54: =SUM(E54,G54,I54) -> 0 | L54: 0
A55: =Classical!A44 -> J-301 | B55: =Classical!U44 -> 0 | C55: =Classical!S44 -> 0 | D55: =IF((ClassicalMR!$B55+ClassicalMR!$C55)>0,1,0) -> 0 | K55: =SUM(E55,G55,I55) -> 0 | L55: 0
A56: =Classical!A45 -> J-302 | B56: =Classical!U45 -> 0 | C56: =Classical!S45 -> 0 | D56: =IF((ClassicalMR!$B56+ClassicalMR!$C56)>0,1,0) -> 0 | K56: =SUM(E56,G56,I56) -> 0 | L56: 0
A57: =Classical!A46 -> J-303 | B57: =Classical!U46 -> 0 | C57: =Classical!S46 -> 0 | D57: =IF((ClassicalMR!$B57+ClassicalMR!$C57)>0,1,0) -> 0 | K57: =SUM(E57,G57,I57) -> 0 | L57: 0
A58: =Classical!A47 -> J-304 | B58: =Classical!U47 -> 0 | C58: =Classical!S47 -> 0 | D58: =IF((ClassicalMR!$B58+ClassicalMR!$C58)>0,1,0) -> 0 | K58: =SUM(E58,G58,I58) -> 0 | L58: 0
A59: =Classical!A49 -> K-301 | B59: =Classical!U49 -> 11 | C59: =Classical!S49 -> 66 | D59: =IF((ClassicalMR!$B59+ClassicalMR!$C59)>0,1,0) -> 1 | K59: =SUM(E59,G59,I59) -> 0 | L59: 0
A60: =Classical!A50 -> K-302 | B60: =Classical!U50 -> 0 | C60: =Classical!S50 -> 0 | D60: =IF((ClassicalMR!$B60+ClassicalMR!$C60)>0,1,0) -> 0 | K60: =SUM(E60,G60,I60) -> 0 | L60: 0
A61: =Classical!A51 -> K-303 | B61: =Classical!U51 -> 0 | C61: =Classical!S51 -> 0 | D61: =IF((ClassicalMR!$B61+ClassicalMR!$C61)>0,1,0) -> 0 | K61: =SUM(E61,G61,I61) -> 0 | L61: 0
A62: =Classical!A52 -> K-304 | B62: =Classical!U52 -> 0 | C62: =Classical!S52 -> 0 | D62: =IF((ClassicalMR!$B62+ClassicalMR!$C62)>0,1,0) -> 0 | K62: =SUM(E62,G62,I62) -> 0 | L62: 0
A63: =Classical!A54 -> L-301 | B63: =Classical!U54 -> 12 | C63: =Classical!S54 -> 70 | D63: =IF((ClassicalMR!$B63+ClassicalMR!$C63)>0,1,0) -> 1 | K63: =SUM(E63,G63,I63) -> 0 | L63: 0
A64: =Classical!A55 -> L-302 | B64: =Classical!U55 -> 0 | C64: =Classical!S55 -> 0 | D64: =IF((ClassicalMR!$B64+ClassicalMR!$C64)>0,1,0) -> 0 | K64: =SUM(E64,G64,I64) -> 0 | L64: 0
A65: =Classical!A56 -> L-303 | B65: =Classical!U56 -> 0 | C65: =Classical!S56 -> 0 | D65: =IF((ClassicalMR!$B65+ClassicalMR!$C65)>0,1,0) -> 0 | K65: =SUM(E65,G65,I65) -> 0 | L65: 0
A66: =Classical!A57 -> L-304 | B66: =Classical!U57 -> 0 | C66: =Classical!S57 -> 0 | D66: =IF((ClassicalMR!$B66+ClassicalMR!$C66)>0,1,0) -> 0 | K66: =SUM(E66,G66,I66) -> 0 | L66: 0
A67: =Classical!A59 -> M-301 | B67: =Classical!U59 -> 0 | C67: =Classical!S59 -> 0 | D67: =IF((ClassicalMR!$B67+ClassicalMR!$C67)>0,1,0) -> 0 | K67: =SUM(E67,G67,I67) -> 0 | L67: 0
A68: =Classical!A60 -> M-302 | B68: =Classical!U60 -> 0 | C68: =Classical!S60 -> 0 | D68: =IF((ClassicalMR!$B68+ClassicalMR!$C68)>0,1,0) -> 0 | K68: =SUM(E68,G68,I68) -> 0 | L68: 0
A69: =Classical!A61 -> M-303 | B69: =Classical!U61 -> 0 | C69: =Classical!S61 -> 0 | D69: =IF((ClassicalMR!$B69+ClassicalMR!$C69)>0,1,0) -> 0 | K69: =SUM(E69,G69,I69) -> 0 | L69: 0
A70: =Classical!A62 -> M-304 | B70: =Classical!U62 -> 0 | C70: =Classical!S62 -> 0 | D70: =IF((ClassicalMR!$B70+ClassicalMR!$C70)>0,1,0) -> 0 | K70: =SUM(E70,G70,I70) -> 0 | L70: 0
A71: =Classical!A64 -> N-301 | B71: =Classical!U64 -> 0 | C71: =Classical!S64 -> 0 | D71: =IF((ClassicalMR!$B71+ClassicalMR!$C71)>0,1,0) -> 0 | K71: =SUM(E71,G71,I71) -> 0 | L71: 0
A72: =Classical!A65 -> N-302 | B72: =Classical!U65 -> 0 | C72: =Classical!S65 -> 0 | D72: =IF((ClassicalMR!$B72+ClassicalMR!$C72)>0,1,0) -> 0 | K72: =SUM(E72,G72,I72) -> 0 | L72: 0
A73: =Classical!A66 -> N-303 | B73: =Classical!U66 -> 0 | C73: =Classical!S66 -> 0 | D73: =IF((ClassicalMR!$B73+ClassicalMR!$C73)>0,1,0) -> 0 | K73: =SUM(E73,G73,I73) -> 0 | L73: 0
A74: =Classical!A67 -> N-304 | B74: =Classical!U67 -> 0 | C74: =Classical!S67 -> 0 | D74: =IF((ClassicalMR!$B74+ClassicalMR!$C74)>0,1,0) -> 0 | K74: =SUM(E74,G74,I74) -> 0 | L74: 0
A75: =Classical!A69 -> P-301 | B75: =Classical!U69 -> 10 | C75: =Classical!S69 -> 71 | D75: =IF((ClassicalMR!$B75+ClassicalMR!$C75)>0,1,0) -> 1 | K75: =SUM(E75,G75,I75) -> 0 | L75: 0
A76: =Classical!A70 -> P-302 | B76: =Classical!U70 -> 10 | C76: =Classical!S70 -> 75 | D76: =IF((ClassicalMR!$B76+ClassicalMR!$C76)>0,1,0) -> 1 | K76: =SUM(E76,G76,I76) -> 0 | L76: 0
A77: =Classical!A71 -> P-303 | B77: =Classical!U71 -> 9 | C77: =Classical!S71 -> 72 | D77: =IF((ClassicalMR!$B77+ClassicalMR!$C77)>0,1,0) -> 1 | K77: =SUM(E77,G77,I77) -> 0 | L77: 0
A78: =Classical!A72 -> P-304 | B78: =Classical!U72 -> 0 | C78: =Classical!S72 -> 0 | D78: =IF((ClassicalMR!$B78+ClassicalMR!$C78)>0,1,0) -> 0 | K78: =SUM(E78,G78,I78) -> 0 | L78: 0
A79: =Classical!A74 -> Q-301 | B79: =Classical!U74 -> 0 | C79: =Classical!S74 -> 0 | D79: =IF((ClassicalMR!$B79+ClassicalMR!$C79)>0,1,0) -> 0 | K79: =SUM(E79,G79,I79) -> 0 | L79: 0
A80: =Classical!A75 -> Q-302 | B80: =Classical!U75 -> 0 | C80: =Classical!S75 -> 0 | D80: =IF((ClassicalMR!$B80+ClassicalMR!$C80)>0,1,0) -> 0 | K80: =SUM(E80,G80,I80) -> 0 | L80: 0
A81: =Classical!A76 -> Q-303 | B81: =Classical!U76 -> 0 | C81: =Classical!S76 -> 0 | D81: =IF((ClassicalMR!$B81+ClassicalMR!$C81)>0,1,0) -> 0 | K81: =SUM(E81,G81,I81) -> 0 | L81: 0
A82: =Classical!A77 -> Q-304 | B82: =Classical!U77 -> 0 | C82: =Classical!S77 -> 0 | D82: =IF((ClassicalMR!$B82+ClassicalMR!$C82)>0,1,0) -> 0 | K82: =SUM(E82,G82,I82) -> 0 | L82: 0
A83: =Classical!A79 -> R-301 | B83: =Classical!U79 -> 6 | C83: =Classical!S79 -> 68 | D83: =IF((ClassicalMR!$B83+ClassicalMR!$C83)>0,1,0) -> 1 | E83: 2 | F83: 25 | G83: 2 | H83: 25 | I83: 6 | J83: 24 | K83: =SUM(E83,G83,I83) -> 10 | L83: 74
A84: =Classical!A80 -> R-302 | B84: =Classical!U80 -> 0 | C84: =Classical!S80 -> 0 | D84: =IF((ClassicalMR!$B84+ClassicalMR!$C84)>0,1,0) -> 0 | K84: =SUM(E84,G84,I84) -> 0 | L84: 0
A85: =Classical!A81 -> R-303 | B85: =Classical!U81 -> 0 | C85: =Classical!S81 -> 0 | D85: =IF((ClassicalMR!$B85+ClassicalMR!$C85)>0,1,0) -> 0 | K85: =SUM(E85,G85,I85) -> 0 | L85: 0
A86: =Classical!A82 -> R-304 | B86: =Classical!U82 -> 0 | C86: =Classical!S82 -> 0 | D86: =IF((ClassicalMR!$B86+ClassicalMR!$C86)>0,1,0) -> 0 | K86: =SUM(E86,G86,I86) -> 0 | L86: 0
A87: =Classical!A84 -> S-301 | B87: =Classical!U84 -> 10 | C87: =Classical!S84 -> 67 | D87: =IF((ClassicalMR!$B87+ClassicalMR!$C87)>0,1,0) -> 1 | K87: =SUM(E87,G87,I87) -> 0 | L87: 0
A88: =Classical!A85 -> S-302 | B88: =Classical!U85 -> 0 | C88: =Classical!S85 -> 0 | D88: =IF((ClassicalMR!$B88+ClassicalMR!$C88)>0,1,0) -> 0 | K88: =SUM(E88,G88,I88) -> 0 | L88: 0
A89: =Classical!A86 -> S-303 | B89: =Classical!U86 -> 0 | C89: =Classical!S86 -> 0 | D89: =IF((ClassicalMR!$B89+ClassicalMR!$C89)>0,1,0) -> 0 | K89: =SUM(E89,G89,I89) -> 0 | L89: 0
A90: =Classical!A87 -> S-304 | B90: =Classical!U87 -> 0 | C90: =Classical!S87 -> 0 | D90: =IF((ClassicalMR!$B90+ClassicalMR!$C90)>0,1,0) -> 0 | K90: =SUM(E90,G90,I90) -> 0 | L90: 0
A91: =Classical!A89 -> T-301 | B91: =Classical!U89 -> 0 | C91: =Classical!S89 -> 0 | D91: =IF((ClassicalMR!$B91+ClassicalMR!$C91)>0,1,0) -> 0 | K91: =SUM(E91,G91,I91) -> 0 | L91: 0
A92: =Classical!A90 -> T-302 | B92: =Classical!U90 -> 0 | C92: =Classical!S90 -> 0 | D92: =IF((ClassicalMR!$B92+ClassicalMR!$C92)>0,1,0) -> 0 | K92: =SUM(E92,G92,I92) -> 0 | L92: 0
A93: =Classical!A91 -> T-303 | B93: =Classical!U91 -> 0 | C93: =Classical!S91 -> 0 | D93: =IF((ClassicalMR!$B93+ClassicalMR!$C93)>0,1,0) -> 0 | K93: =SUM(E93,G93,I93) -> 0 | L93: 0
A94: =Classical!A92 -> T-304 | B94: =Classical!U92 -> 0 | C94: =Classical!S92 -> 0 | D94: =IF((ClassicalMR!$B94+ClassicalMR!$C94)>0,1,0) -> 0 | K94: =SUM(E94,G94,I94) -> 0 | L94: 0
A95: =Classical!A94 -> U-301 | B95: =Classical!U94 -> 0 | C95: =Classical!S94 -> 0 | D95: =IF((ClassicalMR!$B95+ClassicalMR!$C95)>0,1,0) -> 0 | K95: =SUM(E95,G95,I95) -> 0 | L95: 0
A96: =Classical!A95 -> U-302 | B96: =Classical!U95 -> 0 | C96: =Classical!S95 -> 0 | D96: =IF((ClassicalMR!$B96+ClassicalMR!$C96)>0,1,0) -> 0 | K96: =SUM(E96,G96,I96) -> 0 | L96: 0
A97: =Classical!A96 -> U-303 | B97: =Classical!U96 -> 0 | C97: =Classical!S96 -> 0 | D97: =IF((ClassicalMR!$B97+ClassicalMR!$C97)>0,1,0) -> 0 | K97: =SUM(E97,G97,I97) -> 0 | L97: 0
A98: =Classical!A97 -> U-304 | B98: =Classical!U97 -> 0 | C98: =Classical!S97 -> 0 | D98: =IF((ClassicalMR!$B98+ClassicalMR!$C98)>0,1,0) -> 0 | K98: =SUM(E98,G98,I98) -> 0 | L98: 0
A99: =Classical!A99 -> V-301 | B99: =Classical!U99 -> 0 | C99: =Classical!S99 -> 0 | D99: =IF((ClassicalMR!$B99+ClassicalMR!$C99)>0,1,0) -> 0 | K99: =SUM(E99,G99,I99) -> 0 | L99: 0
A100: =Classical!A100 -> V-302 | B100: =Classical!U100 -> 0 | C100: =Classical!S100 -> 0 | D100: =IF((ClassicalMR!$B100+ClassicalMR!$C100)>0,1,0) -> 0 | K100: =SUM(E100,G100,I100) -> 0 | L100: 0
A101: =Classical!A101 -> V-303 | B101: =Classical!U101 -> 0 | C101: =Classical!S101 -> 0 | D101: =IF((ClassicalMR!$B101+ClassicalMR!$C101)>0,1,0) -> 0 | K101: =SUM(E101,G101,I101) -> 0 | L101: 0
A102: =Classical!A102 -> V-304 | B102: =Classical!U102 -> 0 | C102: =Classical!S102 -> 0 | D102: =IF((ClassicalMR!$B102+ClassicalMR!$C102)>0,1,0) -> 0 | K102: =SUM(E102,G102,I102) -> 0 | L102: 0
A103: =Classical!A104 -> W-301 | B103: =Classical!U104 -> 0 | C103: =Classical!S104 -> 0 | D103: =IF((ClassicalMR!$B103+ClassicalMR!$C103)>0,1,0) -> 0 | K103: =SUM(E103,G103,I103) -> 0 | L103: 0
A104: =Classical!A105 -> W-302 | B104: =Classical!U105 -> 0 | C104: =Classical!S105 -> 0 | D104: =IF((ClassicalMR!$B104+ClassicalMR!$C104)>0,1,0) -> 0 | K104: =SUM(E104,G104,I104) -> 0 | L104: 0
A105: =Classical!A106 -> W-303 | B105: =Classical!U106 -> 0 | C105: =Classical!S106 -> 0 | D105: =IF((ClassicalMR!$B105+ClassicalMR!$C105)>0,1,0) -> 0 | K105: =SUM(E105,G105,I105) -> 0 | L105: 0
A106: =Classical!A107 -> W-304 | B106: =Classical!U107 -> 0 | C106: =Classical!S107 -> 0 | D106: =IF((ClassicalMR!$B106+ClassicalMR!$C106)>0,1,0) -> 0 | K106: =SUM(E106,G106,I106) -> 0 | L106: 0
A107: =Classical!A109 -> X-301 | B107: =Classical!U109 -> 0 | C107: =Classical!S109 -> 0 | D107: =IF((ClassicalMR!$B107+ClassicalMR!$C107)>0,1,0) -> 0 | K107: =SUM(E107,G107,I107) -> 0 | L107: 0
A108: =Classical!A110 -> X-302 | B108: =Classical!U110 -> 0 | C108: =Classical!S110 -> 0 | D108: =IF((ClassicalMR!$B108+ClassicalMR!$C108)>0,1,0) -> 0 | K108: =SUM(E108,G108,I108) -> 0 | L108: 0
A109: =Classical!A111 -> X-303 | B109: =Classical!U111 -> 0 | C109: =Classical!S111 -> 0 | D109: =IF((ClassicalMR!$B109+ClassicalMR!$C109)>0,1,0) -> 0 | K109: =SUM(E109,G109,I109) -> 0 | L109: 0
A110: =Classical!A112 -> X-304 | B110: =Classical!U112 -> 0 | C110: =Classical!S112 -> 0 | D110: =IF((ClassicalMR!$B110+ClassicalMR!$C110)>0,1,0) -> 0 | K110: =SUM(E110,G110,I110) -> 0 | L110: 0
A111: =Classical!A114 -> Y-301 | B111: =Classical!U114 -> 0 | C111: =Classical!S114 -> 0 | D111: =IF((ClassicalMR!$B111+ClassicalMR!$C111)>0,1,0) -> 0 | K111: =SUM(E111,G111,I111) -> 0 | L111: 0
A112: =Classical!A115 -> Y-302 | B112: =Classical!U115 -> 0 | C112: =Classical!S115 -> 0 | D112: =IF((ClassicalMR!$B112+ClassicalMR!$C112)>0,1,0) -> 0 | K112: =SUM(E112,G112,I112) -> 0 | L112: 0
A113: =Classical!A116 -> Y-303 | B113: =Classical!U116 -> 0 | C113: =Classical!S116 -> 0 | D113: =IF((ClassicalMR!$B113+ClassicalMR!$C113)>0,1,0) -> 0 | K113: =SUM(E113,G113,I113) -> 0 | L113: 0
A114: =Classical!A117 -> Y-304 | B114: =Classical!U117 -> 0 | C114: =Classical!S117 -> 0 | D114: =IF((ClassicalMR!$B114+ClassicalMR!$C114)>0,1,0) -> 0 | K114: =SUM(E114,G114,I114) -> 0 | L114: 0
A115: =Classical!A119 -> Z-301 | B115: =Classical!U119 -> 0 | C115: =Classical!S119 -> 0 | D115: =IF((ClassicalMR!$B115+ClassicalMR!$C115)>0,1,0) -> 0 | K115: =SUM(E115,G115,I115) -> 0 | L115: 0
A116: =Classical!A120 -> Z-302 | B116: =Classical!U120 -> 0 | C116: =Classical!S120 -> 0 | D116: =IF((ClassicalMR!$B116+ClassicalMR!$C116)>0,1,0) -> 0 | K116: =SUM(E116,G116,I116) -> 0 | L116: 0
A117: =Classical!A121 -> Z-303 | B117: =Classical!U121 -> 0 | C117: =Classical!S121 -> 0 | D117: =IF((ClassicalMR!$B117+ClassicalMR!$C117)>0,1,0) -> 0 | K117: =SUM(E117,G117,I117) -> 0 | L117: 0
A118: =Classical!A122 -> Z-304 | B118: =Classical!U122 -> 0 | C118: =Classical!S122 -> 0 | D118: =IF((ClassicalMR!$B118+ClassicalMR!$C118)>0,1,0) -> 0 | K118: =SUM(E118,G118,I118) -> 0 | L118: 0
A119: =Classical!A149 -> FF-301 | B119: =Classical!U149 -> 0 | C119: =Classical!S149 -> 0 | D119: =IF((ClassicalMR!$B119+ClassicalMR!$C119)>0,1,0) -> 0 | K119: =SUM(E119,G119,I119) -> 0 | L119: 0
A120: =Classical!A150 -> FF-302 | B120: =Classical!U150 -> 0 | C120: =Classical!S150 -> 0 | D120: =IF((ClassicalMR!$B120+ClassicalMR!$C120)>0,1,0) -> 0 | K120: =SUM(E120,G120,I120) -> 0 | L120: 0
A121: =Classical!A151 -> FF-303 | B121: =Classical!U151 -> 0 | C121: =Classical!S151 -> 0 | D121: =IF((ClassicalMR!$B121+ClassicalMR!$C121)>0,1,0) -> 0 | K121: =SUM(E121,G121,I121) -> 0 | L121: 0
A122: =Classical!A152 -> FF-304 | B122: =Classical!U152 -> 0 | C122: =Classical!S152 -> 0 | D122: =IF((ClassicalMR!$B122+ClassicalMR!$C122)>0,1,0) -> 0 | K122: =SUM(E122,G122,I122) -> 0 | L122: 0

Sheet Contemporary
A1: Contemporary Scenes | K1: Rank 1-4 | X1: S | Y1: E | Z1: G | AA1: F | AC1: 1violation | AD1: 2violations | AE1: 3violations
K2: Round 1: | M2: Round 2: | O2: Round 3: | Q2: -2 for each | AB2: Drops lowest from column q
D3: Student Name | F3: Student Name | H3: Student Name | J3: Title of Piece | K3: R1 rank | L3: R1 score | M3: R2 rank | N3: R2 score | O3: R3 rank | P3: R3 score | Q3: Time Violations | S3: TOTAL SCORE | U3: TOTAL RANK | X3: TOTAL SCHOOL SWEEPS POINTS | AB3: Drop Lowest
A4: A-401 | D4: Hattie | E4: Stubbs | F4: Quin | G4: Zolinger | J4: You Belong To me | K4: 1 | L4: 25 | M4: 2 | N4: 25 | O4: 3 | P4: 15 | R4: =IF(Q4="1violation",-7*1,IF(Q4="2violations",-7*2,IF(Q4="3violations",-7*3,IF(Q4="","")))) ->  | S4: =SUM(L4,N4,P4,R4) -> 65 | U4: =SUM(K4,M4,O4) -> 6 | Y4: =SUM(S4,S6,S5,S7,-AB4) -> 199 | AB4: =MIN(S4:S7) -> 57
A5: A-402 | D5: Cayden | E5: Hirschi | F5: Kennedy | G5: Lundeberg | J5: Proposals | K5: 4 | L5: 22 | M5: 4 | N5: 15 | O5: 1 | P5: 23 | S5: 60 | U5: 9
A6: A-403 | D6: Matthew | E6: Bishop | F6: Alivia | G6: Shumway | H6: McKay | I6: Steck | J6: Stolen | K6: 4 | L6: 17 | M6: 2 | N6: 21 | O6: 4 | P6: 19 | S6: 57 | U6: 10
A7: A-404 | D7: Janey | E7: Christensen | F7: Lillian | G7: Wasden | J7: Parallel | K7: 3 | L7: 25 | M7: 2 | N7: 25 | O7: 2 | P7: 24 | S7: 74 | U7: 7
A9: B-401 | E9: Gorley | G9: Lovejoy | I9: Rykhus | J9: First Date | K9: 4 | L9: 21 | M9: 4 | N9: 15 | O9: 4 | P9: 23 | R9: =IF(Q9="1violation",-7*1,IF(Q9="2violations",-7*2,IF(Q9="3violations",-7*3,IF(Q9="","")))) ->  | S9: =SUM(L9,N9,P9,R9) -> 59 | U9: =SUM(K9,M9,O9) -> 12 | Y9: =SUM(S9,S11,S10,S12,-AB9) -> 59 | AB9: =MIN(S9:S12) -> 0
A10: B-402 | S10: 0 | U10: 0
A11: B-403 | S11: 0 | U11: 0
A12: B-404 | S12: 0 | U12: 0
A14: C-401 | E14: Sorenson | G14: Frint | I14: Bess | J14: Shakespeare | K14: 2 | L14: 25 | M14: 2 | N14: 24 | O14: 1 | P14: 25 | R14: =IF(Q14="1violation",-7*1,IF(Q14="2violations",-7*2,IF(Q14="3violations",-7*3,IF(Q14="","")))) ->  | S14: =SUM(L14,N14,P14,R14) -> 74 | U14: =SUM(K14,M14,O14) -> 5 | Y14: =SUM(S14,S16,S15,S17,-AB14) -> 219 | AB14: =MIN(S14:S17) -> 71
A15: C-402 | E15: Mathews | G15: Quick | I15: Jorgensen | J15: Den of thieves | K15: 2 | L15: 24 | M15: 1 | N15: 24 | O15: 1 | P15: 25 | S15: 73 | U15: 4
A16: C-403 | E16: Sims | G16: Emblton | J16: Den of thieves | K16: 1 | L16: 23 | M16: 2 | N16: 25 | O16: 1 | P16: 23 | S16: 71 | U16: 4
A17: C-404 | E17: Costello | G17: Wilson | I17: Wheeler | J17: Peter and Starcatcher | K17: 3 | L17: 23 | M17: 4 | N17: 24 | O17: 1 | P17: 25 | S17: 72 | U17: 8
A19: D-401 | R19: =IF(Q19="1violation",-7*1,IF(Q19="2violations",-7*2,IF(Q19="3violations",-7*3,IF(Q19="","")))) ->  | S19: =SUM(L19,N19,P19,R19) -> 0 | U19: =SUM(K19,M19,O19) -> 0 | Y19: =SUM(S19,S21,S20,S22,-AB19) -> 0 | AB19: =MIN(S19:S22) -> 0
A20: D-402 | S20: 0 | U20: 0
A21: D-403 | S21: 0 | U21: 0
A22: D-404 | S22: 0 | U22: 0
A24: E-401 | E24: Sheeran | G24: Leary | J24: Roots | K24: 4 | L24: 21 | M24: 4 | N24: 21 | O24: 4 | P24: 22 | R24: =IF(Q24="1violation",-7*1,IF(Q24="2violations",-7*2,IF(Q24="3violations",-7*3,IF(Q24="","")))) ->  | S24: =SUM(L24,N24,P24,R24) -> 64 | U24: =SUM(K24,M24,O24) -> 12 | Y24: =SUM(S24,S26,S25,S27,-AB24) -> 64 | AB24: =MIN(S24:S27) -> 0
A25: E-402 | S25: 0 | U25: 0
A26: E-403 | S26: 0 | U26: 0
A27: E-404 | S27: 0 | U27: 0
A29: F-401 | E29: Bennett | G29: Bradford | J29: Star Spangled | K29: 1 | L29: 25 | M29: 1 | N29: 23 | O29: 1 | P29: 25 | Q29: 1violation | R29: =IF(Q29="1violation",-7*1,IF(Q29="2violations",-7*2,IF(Q29="3violations",-7*3,IF(Q29="","")))) -> -7 | S29: =SUM(L29,N29,P29,R29) -> 66 | U29: =SUM(K29,M29,O29) -> 3 | Y29: =SUM(S29,S31,S30,S32,-AB29) -> 205 | AB29: =MIN(S29:S32) -> 0
A30: F-402 | E30: Kaiser | G30: Styer | J30: Inherit Wind | K30: 1 | L30: 25 | M30: 1 | N30: 25 | O30: 2 | P30: 25 | S30: 75 | U30: 4
A31: F-403 | E31: Campbell | G31: McKellar | J31: Steel Magnolias | K31: 2 | L31: 25 | M31: 2 | N31: 24 | O31: 4 | P31: 15 | S31: 64 | U31: 8
A32: F-404 | S32: 0 | U32: 0
A34: G-401 | R34: =IF(Q34="1violation",-7*1,IF(Q34="2violations",-7*2,IF(Q34="3violations",-7*3,IF(Q34="","")))) ->  | S34: =SUM(L34,N34,P34,R34) -> 0 | U34: =SUM(K34,M34,O34) -> 0 | Y34: =SUM(S34,S36,S35,S37,-AB34) -> 0 | AB34: =MIN(S34:S37) -> 0
A35: G-402 | S35: 0 | U35: 0
A36: G-403 | S36: 0 | U36: 0
A37: G-404 | S37: 0 | U37: 0
A39: H-401 | E39: Madsen | G39: Call | J39: Rabbit Hole | K39: 2 | L39: 21 | M39: 3 | N39: 20 | O39: 2 | P39: 25 | R39: =IF(Q39="1violation",-7*1,IF(Q39="2violations",-7*2,IF(Q39="3violations",-7*3,IF(Q39="","")))) ->  | S39: =SUM(L39,N39,P39,R39) -> 66 | U39: =SUM(K39,M39,O39) -> 7 | Y39: =SUM(S39,S41,S40,S42,-AB39) -> 204 | AB39: =MIN(S39:S42) -> 0
A40: H-402 | E40: Paul | G40: Dupass | I40: Cooper | J40: Your'e a Good Man | K40: 2 | L40: 24 | M40: 1 | N40: 25 | O40: 4 | P40: 21 | S40: 70 | U40: 7
A41: H-403 | E41: McLelland | G41: Haley | J41: Rabbit Hole | K41: 3 | L41: 19 | M41: 3 | N41: 24 | O41: 1 | P41: 25 | S41: 68 | U41: 7
A42: H-404 | S42: 0 | U42: 0
A44: J-401 | E44: Thorn | G44: Monsen | J44: Parallel Lives | K44: 1 | L44: 25 | M44: 1 | N44: 25 | O44: 3 | P44: 24 | R44: =IF(Q44="1violation",-7*1,IF(Q44="2violations",-7*2,IF(Q44="3violations",-7*3,IF(Q44="","")))) ->  | S44: =SUM(L44,N44,P44,R44) -> 74 | U44: =SUM(K44,M44,O44) -> 5 | Y44: =SUM(S44,S46,S45,S47,-AB44) -> 138 | AB44: =MIN(S44:S47) -> 0
A45: J-402 | E45: Hanks | G45: Carle | J45: Don't Drink the Water | K45: 4 | L45: 20 | M45: 4 | N45: 20 | O45: 3 | P45: 24 | S45: 64 | U45: 11
A46: J-403 | S46: 0 | U46: 0
A47: J-404 | S47: 0 | U47: 0
A49: K-401 | E49: Adetula | G49: Johnston | J49: Eleemosynary | K49: 3 | L49: 22 | M49: 3 | N49: 23 | O49: 4 | P49: 19 | R49: =IF(Q49="1violation",-7*1,IF(Q49="2violations",-7*2,IF(Q49="3violations",-7*3,IF(Q49="","")))) ->  | S49: =SUM(L49,N49,P49,R49) -> 64 | U49: =SUM(K49,M49,O49) -> 10 | Y49: =SUM(S49,S51,S50,S52,-AB49) -> 201 | AB49: =MIN(S49:S52) -> 0
A50: K-402 | E50: chamberlain | G50: Shemwell | J50: Gruesome Playground | K50: 2 | L50: 24 | M50: 3 | N50: 22 | O50: 3 | P50: 22 | S50: 68 | U50: 8
A51: K-403 | E51: Mirabile | G51: Raven | J51: Whole House Full | K51: 2 | L51: 25 | M51: 1 | N51: 22 | O51: 3 | P51: 22 | S51: 69 | U51: 6
A52: K-404 | S52: 0 | U52: 0
A54: L-401 | E54: Criddle | G54: Noyes | I54: Dart | J54: Good Doctor | K54: 1 | L54: 24 | M54: 4 | N54: 20 | O54: 4 | P54: 24 | R54: =IF(Q54="1violation",-7*1,IF(Q54="2violations",-7*2,IF(Q54="3violations",-7*3,IF(Q54="","")))) ->  | S54: =SUM(L54,N54,P54,R54) -> 68 | U54: =SUM(K54,M54,O54) -> 9 | Y54: =SUM(S54,S56,S55,S57,-AB54) -> 200 | AB54: =MIN(S54:S57) -> 60
A55: L-402 | E55: Dalpiaz | G55: Stockdale | I55: McArthur | J55: Blithe Spirit | K55: 4 | L55: 15 | M55: 4 | N55: 23 | O55: 2 | P55: 22 | S55: 60 | U55: 10
A56: L-403 | E56: Davis | G56: Kranendonk | J56: Crucible | K56: 3 | L56: 24 | M56: 4 | N56: 19 | O56: 4 | P56: 21 | S56: 64 | U56: 11
A57: L-404 | E57: Sweeney | G57: Ison | J57: Still as Stone | K57: 4 | L57: 21 | M57: 1 | N57: 25 | O57: 2 | P57: 22 | S57: 68 | U57: 7
A59: M-401 | R59: =IF(Q59="1violation",-7*1,IF(Q59="2violations",-7*2,IF(Q59="3violations",-7*3,IF(Q59="","")))) ->  | S59: =SUM(L59,N59,P59,R59) -> 0 | U59: =SUM(K59,M59,O59) -> 0 | Y59: =SUM(S59,S61,S60,S62,-AB59) -> 0 | AB59: =MIN(S59:S62) -> 0
A60: M-402 | S60: 0 | U60: 0
A61: M-403 | S61: 0 | U61: 0
A62: M-404 | S62: 0 | U62: 0
A64: N-401 | E64: Williams | G64: Keyser | J64: Reflects Action | K64: 4 | L64: 22 | M64: 3 | N64: 24 | O64: 4 | P64: 22 | R64: =IF(Q64="1violation",-7*1,IF(Q64="2violations",-7*2,IF(Q64="3violations",-7*3,IF(Q64="","")))) ->  | S64: =SUM(L64,N64,P64,R64) -> 68 | U64: =SUM(K64,M64,O64) -> 11 | Y64: =SUM(S64,S66,S65,S67,-AB64) -> 130 | AB64: =MIN(S64:S67) -> 0
A65: N-402 | E65: Livingston | G65: Livingston | J65: Somewhere, Nowhere | S65: 0 | U65: 0
A66: N-403 | E66: Jones | G66: Neilson | I66: Newman | J66: Little Shop | K66: 4 | L66: 23 | M66: 2 | N66: 18 | O66: 3 | P66: 21 | S66: 62 | U66: 9
A67: N-404 | S67: 0 | U67: 0
A69: P-401 | E69: Anderson | G69: Lund | J69: Good Doctor | K69: 1 | L69: 25 | M69: 1 | N69: 25 | O69: 2 | P69: 23 | R69: =IF(Q69="1violation",-7*1,IF(Q69="2violations",-7*2,IF(Q69="3violations",-7*3,IF(Q69="","")))) ->  | S69: =SUM(L69,N69,P69,R69) -> 73 | U69: =SUM(K69,M69,O69) -> 4 | Y69: =SUM(S69,S71,S70,S72,-AB69) -> 213 | AB69: =MIN(S69:S72) -> 60
A70: P-402 | E70: Dyches | G70: Jessop | J70: Finale Placement | K70: 1 | L70: 25 | M70: 4 | N70: 24 | O70: 2 | P70: 25 | S70: 74 | U70: 7
A71: P-403 | E71: Wallace | G71: Stavros | J71: Burn a Witch | K71: 4 | L71: 18 | M71: 3 | N71: 17 | O71: 1 | P71: 25 | S71: 60 | U71: 8
A72: P-404 | E72: Howlett | G72: Hathaway | I72: Shepherd | J72: Canker Sores | K72: 3 | L72: 24 | M72: 4 | N72: 21 | O72: 4 | P72: 21 | S72: 66 | U72: 11
A74: Q-401 | R74: =IF(Q74="1violation",-7*1,IF(Q74="2violations",-7*2,IF(Q74="3violations",-7*3,IF(Q74="","")))) ->  | S74: =SUM(L74,N74,P74,R74) -> 0 | U74: =SUM(K74,M74,O74) -> 0 | Y74: =SUM(S74,S76,S75,S77,-AB74) -> 0 | AB74: =MIN(S74:S77) -> 0
A75: Q-402 | S75: 0 | U75: 0
A76: Q-403 | S76: 0 | U76: 0
A77: Q-404 | S77: 0 | U77: 0
A79: R-401 | E79: Madsen | G79: Keddington | J79: Enchanted April | K79: 4 | L79: 21 | M79: 4 | N79: 19 | O79: 3 | P79: 22 | R79: =IF(Q79="1violation",-7*1,IF(Q79="2violations",-7*2,IF(Q79="3violations",-7*3,IF(Q79="","")))) ->  | S79: =SUM(L79,N79,P79,R79) -> 62 | U79: =SUM(K79,M79,O79) -> 11 | Y79: =SUM(S79,S81,S80,S82,-AB79) -> 184 | AB79: =MIN(S79:S82) -> 0
A80: R-402 | E80: WEis | G80: Black | J80: Antigone Now | K80: 2 | L80: 23 | M80: 3 | N80: 21 | O80: 2 | P80: 19 | Q80: 1violation | R80: -7 | S80: 56 | U80: 7
A81: R-403 | E81: Evans | G81: Whitmar | J81: Funeral Parlor | K81: 4 | L81: 24 | M81: 2 | N81: 21 | O81: 4 | P81: 21 | S81: 66 | U81: 10
A82: R-404 | S82: 0 | U82: 0
A84: S-401 | E84: Chambers | G84: Shinney | I84: Smurthwaite | J84: Story of Hope | K84: 3 | L84: 23 | M84: 4 | N84: 22 | O84: 4 | P84: 20 | R84: =IF(Q84="1violation",-7*1,IF(Q84="2violations",-7*2,IF(Q84="3violations",-7*3,IF(Q84="","")))) ->  | S84: =SUM(L84,N84,P84,R84) -> 65 | U84: =SUM(K84,M84,O84) -> 11 | Y84: =SUM(S84,S86,S85,S87,-AB84) -> 134 | AB84: =MIN(S84:S87) -> 0
A85: S-402 | E85: Burton | G85: Thomsen | J85: Little Women | K85: 3 | L85: 21 | M85: 3 | N85: 24 | O85: 3 | P85: 24 | S85: 69 | U85: 9
A86: S-403 | S86: 0 | U86: 0
A87: S-404 | S87: 0 | U87: 0
A89: T-401 | R89: =IF(Q89="1violation",-7*1,IF(Q89="2violations",-7*2,IF(Q89="3violations",-7*3,IF(Q89="","")))) ->  | S89: =SUM(L89,N89,P89,R89) -> 0 | U89: =SUM(K89,M89,O89) -> 0 | Y89: =SUM(S89,S91,S90,S92,-AB89) -> 0 | AB89: =MIN(S89:S92) -> 0
A90: T-402 | S90: 0 | U90: 0
A91: T-403 | S91: 0 | U91: 0
A92: T-404 | S92: 0 | U92: 0
A94: U-401 | R94: =IF(Q94="1violation",-7*1,IF(Q94="2violations",-7*2,IF(Q94="3violations",-7*3,IF(Q94="","")))) ->  | S94: =SUM(L94,N94,P94,R94) -> 0 | U94: =SUM(K94,M94,O94) -> 0 | Y94: =SUM(S94,S96,S95,S97,-AB94) -> 0 | AB94: =MIN(S94:S97) -> 0
A95: U-402 | S95: 0 | U95: 0
A96: U-403 | S96: 0 | U96: 0
A97: U-404 | S97: 0 | U97: 0
A99: V-401 | R99: =IF(Q99="1violation",-7*1,IF(Q99="2violations",-7*2,IF(Q99="3violations",-7*3,IF(Q99="","")))) ->  | S99: =SUM(L99,N99,P99,R99) -> 0 | U99: =SUM(K99,M99,O99) -> 0 | Y99: =SUM(S99,S101,S100,S102,-AB99) -> 0 | AB99: =MIN(S99:S102) -> 0
A100: V-402 | S100: 0 | U100: 0
A101: V-403 | S101: 0 | U101: 0
A102: V-404 | S102: 0 | U102: 0
A104: W-401 | R104: =IF(Q104="1violation",-7*1,IF(Q104="2violations",-7*2,IF(Q104="3violations",-7*3,IF(Q104="","")))) ->  | S104: =SUM(L104,N104,P104,R104) -> 0 | U104: =SUM(K104,M104,O104) -> 0 | Y104: =SUM(S104,S106,S105,S107,-AB104) -> 0 | AB104: =MIN(S104:S107) -> 0
A105: W-402 | S105: 0 | U105: 0
A106: W-403 | S106: 0 | U106: 0
A107: W-404 | S107: 0 | U107: 0
A109: X-401 | R109: =IF(Q109="1violation",-7*1,IF(Q109="2violations",-7*2,IF(Q109="3violations",-7*3,IF(Q109="","")))) ->  | S109: =SUM(L109,N109,P109,R109) -> 0 | U109: =SUM(K109,M109,O109) -> 0 | Y109: =SUM(S109,S111,S110,S112,-AB109) -> 0 | AB109: =MIN(S109:S112) -> 0
A110: X-402 | S110: 0 | U110: 0
A111: X-403 | S111: 0 | U111: 0
A112: X-404 | S112: 0 | U112: 0
A114: Y-401 | R114: =IF(Q114="1violation",-7*1,IF(Q114="2violations",-7*2,IF(Q114="3violations",-7*3,IF(Q114="","")))) ->  | S114: =SUM(L114,N114,P114,R114) -> 0 | U114: =SUM(K114,M114,O114) -> 0 | Y114: =SUM(S114,S116,S115,S117,-AB114) -> 0 | AB114: =MIN(S114:S117) -> 0
A115: Y-402 | S115: 0 | U115: 0
A116: Y-403 | S116: 0 | U116: 0
A117: Y-404 | S117: 0 | U117: 0
A119: Z-401 | R119: =IF(Q119="1violation",-7*1,IF(Q119="2violations",-7*2,IF(Q119="3violations",-7*3,IF(Q119="","")))) ->  | S119: =SUM(L119,N119,P119,R119) -> 0 | U119: =SUM(K119,M119,O119) -> 0 | Y119: =SUM(S119,S121,S120,S122,-AB119) -> 0 | AB119: =MIN(S119:S122) -> 0
A120: Z-402 | S120: 0 | U120: 0
A121: Z-403 | S121: 0 | U121: 0
A122: Z-404 | S122: 0 | U122: 0
A124: AA-401 | R124: =IF(Q124="1violation",-7*1,IF(Q124="2violations",-7*2,IF(Q124="3violations",-7*3,IF(Q124="","")))) ->  | S124: =SUM(L124,N124,P124,R124) -> 0 | U124: =SUM(K124,M124,O124) -> 0 | Y124: =SUM(S124,S126,S125,S127,-AB124) -> 0 | AB124: =MIN(S124:S127) -> 0
A125: AA-402 | S125: 0 | U125: 0
A126: AA-403 | S126: 0 | U126: 0
A127: AA-404 | S127: 0 | U127: 0
A129: BB-401 | R129: =IF(Q129="1violation",-7*1,IF(Q129="2violations",-7*2,IF(Q129="3violations",-7*3,IF(Q129="","")))) ->  | S129: =SUM(L129,N129,P129,R129) -> 0 | U129: =SUM(K129,M129,O129) -> 0 | Y129: =SUM(S129,S131,S130,S132,-AB129) -> 0 | AB129: =MIN(S129:S132) -> 0
A130: BB-402 | S130: 0 | U130: 0
A131: BB-403 | S131: 0 | U131: 0
A132: BB-404 | S132: 0 | U132: 0
A134: CC-401 | R134: =IF(Q134="1violation",-7*1,IF(Q134="2violations",-7*2,IF(Q134="3violations",-7*3,IF(Q134="","")))) ->  | S134: =SUM(L134,N134,P134,R134) -> 0 | U134: =SUM(K134,M134,O134) -> 0 | Y134: =SUM(S134,S136,S135,S137,-AB134) -> 0 | AB134: =MIN(S134:S137) -> 0
A135: CC-402 | S135: 0 | U135: 0
A136: CC-403 | S136: 0 | U136: 0
A137: CC-404 | S137: 0 | U137: 0
A139: DD-401 | R139: =IF(Q139="1violation",-7*1,IF(Q139="2violations",-7*2,IF(Q139="3violations",-7*3,IF(Q139="","")))) ->  | S139: =SUM(L139,N139,P139,R139) -> 0 | U139: =SUM(K139,M139,O139) -> 0 | Y139: =SUM(S139,S141,S140,S142,-AB139) -> 0 | AB139: =MIN(S139:S142) -> 0
A140: DD-402 | S140: 0 | U140: 0
A141: DD-403 | S141: 0 | U141: 0
A142: DD-404 | S142: 0 | U142: 0
A144: EE-401 | R144: =IF(Q144="1violation",-7*1,IF(Q144="2violations",-7*2,IF(Q144="3violations",-7*3,IF(Q144="","")))) ->  | S144: =SUM(L144,N144,P144,R144) -> 0 | U144: =SUM(K144,M144,O144) -> 0 | Y144: =SUM(S144,S146,S145,S147,-AB144) -> 0 | AB144: =MIN(S144:S147) -> 0
A145: EE-402 | S145: 0 | U145: 0
A146: EE-403 | S146: 0 | U146: 0
A147: EE-404 | S147: 0 | U147: 0
A149: FF-401 | R149: =IF(Q149="1violation",-7*1,IF(Q149="2violations",-7*2,IF(Q149="3violations",-7*3,IF(Q149="","")))) ->  | S149: =SUM(L149,N149,P149,R149) -> 0 | U149: =SUM(K149,M149,O149) -> 0 | Y149: =SUM(S149,S151,S150,S152,-AB149) -> 0 | AB149: =MIN(S149:S152) -> 0
A150: FF-402 | S150: 0 | U150: 0
A151: FF-403 | S151: 0 | U151: 0
A152: FF-404 | S152: 0 | U152: 0

Sheet ContemporaryMR
E1: Finals Medals Round Scores
A2: ID | B2: Rank | C2: Score | D2: LeaveBlank | E2: MR 1 Rank | F2: MR 1 Score | G2: MR2 Rank | H2: MR 2 Score | I2: MR3 Rank | J2: MR 3 Score | K2: Total MR Rank | L2: Total MR Score
A3: =Contemporary!A4 -> A-401 | B3: =Contemporary!U4 -> 6 | C3: =Contemporary!S4 -> 65 | D3: =IF((ContemporaryMR!$B3+ContemporaryMR!$C3)>0,1,0) -> 1 | K3: =SUM(E3,G3,I3) -> 0 | L3: 0
A4: =Contemporary!A5 -> A-402 | B4: =Contemporary!U5 -> 9 | C4: =Contemporary!S5 -> 60 | D4: =IF((ContemporaryMR!$B4+ContemporaryMR!$C4)>0,1,0) -> 1 | K4: =SUM(E4,G4,I4) -> 0 | L4: 0
A5: =Contemporary!A6 -> A-403 | B5: =Contemporary!U6 -> 10 | C5: =Contemporary!S6 -> 57 | D5: =IF((ContemporaryMR!$B5+ContemporaryMR!$C5)>0,1,0) -> 1 | K5: =SUM(E5,G5,I5) -> 0 | L5: 0
A6: =Contemporary!A7 -> A-404 | B6: =Contemporary!U7 -> 7 | C6: =Contemporary!S7 -> 74 | D6: =IF((ContemporaryMR!$B6+ContemporaryMR!$C6)>0,1,0) -> 1 | K6: =SUM(E6,G6,I6) -> 0 | L6: 0
A7: =Contemporary!A124 -> AA-401 | B7: =Contemporary!U124 -> 0 | C7: =Contemporary!S124 -> 0 | D7: =IF((ContemporaryMR!$B7+ContemporaryMR!$C7)>0,1,0) -> 0 | K7: =SUM(E7,G7,I7) -> 0 | L7: 0
A8: =Contemporary!A125 -> AA-402 | B8: =Contemporary!U125 -> 0 | C8: =Contemporary!S125 -> 0 | D8: =IF((ContemporaryMR!$B8+ContemporaryMR!$C8)>0,1,0) -> 0 | K8: =SUM(E8,G8,I8) -> 0 | L8: 0
A9: =Contemporary!A126 -> AA-403 | B9: =Contemporary!U126 -> 0 | C9: =Contemporary!S126 -> 0 | D9: =IF((ContemporaryMR!$B9+ContemporaryMR!$C9)>0,1,0) -> 0 | K9: =SUM(E9,G9,I9) -> 0 | L9: 0
A10: =Contemporary!A127 -> AA-404 | B10: =Contemporary!U127 -> 0 | C10: =Contemporary!S127 -> 0 | D10: =IF((ContemporaryMR!$B10+ContemporaryMR!$C10)>0,1,0) -> 0 | K10: =SUM(E10,G10,I10) -> 0 | L10: 0
A11: =Contemporary!A9 -> B-401 | B11: =Contemporary!U9 -> 12 | C11: =Contemporary!S9 -> 59 | D11: =IF((ContemporaryMR!$B11+ContemporaryMR!$C11)>0,1,0) -> 1 | K11: =SUM(E11,G11,I11) -> 0 | L11: 0
A12: =Contemporary!A10 -> B-402 | B12: =Contemporary!U10 -> 0 | C12: =Contemporary!S10 -> 0 | D12: =IF((ContemporaryMR!$B12+ContemporaryMR!$C12)>0,1,0) -> 0 | K12: =SUM(E12,G12,I12) -> 0 | L12: 0
A13: =Contemporary!A11 -> B-403 | B13: =Contemporary!U11 -> 0 | C13: =Contemporary!S11 -> 0 | D13: =IF((ContemporaryMR!$B13+ContemporaryMR!$C13)>0,1,0) -> 0 | K13: =SUM(E13,G13,I13) -> 0 | L13: 0
A14: =Contemporary!A12 -> B-404 | B14: =Contemporary!U12 -> 0 | C14: =Contemporary!S12 -> 0 | D14: =IF((ContemporaryMR!$B14+ContemporaryMR!$C14)>0,1,0) -> 0 | K14: =SUM(E14,G14,I14) -> 0 | L14: 0
A15: =Contemporary!A129 -> BB-401 | B15: =Contemporary!U129 -> 0 | C15: =Contemporary!S129 -> 0 | D15: =IF((ContemporaryMR!$B15+ContemporaryMR!$C15)>0,1,0) -> 0 | K15: =SUM(E15,G15,I15) -> 0 | L15: 0
A16: =Contemporary!A130 -> BB-402 | B16: =Contemporary!U130 -> 0 | C16: =Contemporary!S130 -> 0 | D16: =IF((ContemporaryMR!$B16+ContemporaryMR!$C16)>0,1,0) -> 0 | K16: =SUM(E16,G16,I16) -> 0 | L16: 0
A17: =Contemporary!A131 -> BB-403 | B17: =Contemporary!U131 -> 0 | C17: =Contemporary!S131 -> 0 | D17: =IF((ContemporaryMR!$B17+ContemporaryMR!$C17)>0,1,0) -> 0 | K17: =SUM(E17,G17,I17) -> 0 | L17: 0
A18: =Contemporary!A132 -> BB-404 | B18: =Contemporary!U132 -> 0 | C18: =Contemporary!S132 -> 0 | D18: =IF((ContemporaryMR!$B18+ContemporaryMR!$C18)>0,1,0) -> 0 | K18: =SUM(E18,G18,I18) -> 0 | L18: 0
A19: =Contemporary!A14 -> C-401 | B19: =Contemporary!U14 -> 5 | C19: =Contemporary!S14 -> 74 | D19: =IF((ContemporaryMR!$B19+ContemporaryMR!$C19)>0,1,0) -> 1 | E19: 2 | F19: 24 | G19: 6 | H19: 24 | I19: 6 | J19: 24 | K19: =SUM(E19,G19,I19) -> 14 | L19: 72
A20: =Contemporary!A15 -> C-402 | B20: =Contemporary!U15 -> 4 | C20: =Contemporary!S15 -> 73 | D20: =IF((ContemporaryMR!$B20+ContemporaryMR!$C20)>0,1,0) -> 1 | E20: 4 | F20: 24 | G20: 1 | H20: 25 | I20: 1 | J20: 25 | K20: =SUM(E20,G20,I20) -> 6 | L20: 74
A21: =Contemporary!A16 -> C-403 | B21: =Contemporary!U16 -> 4 | C21: =Contemporary!S16 -> 71 | D21: =IF((ContemporaryMR!$B21+ContemporaryMR!$C21)>0,1,0) -> 1 | E21: 3 | F21: 24 | G21: 3 | H21: 25 | I21: 3 | J21: 25 | K21: =SUM(E21,G21,I21) -> 9 | L21: 74
A22: =Contemporary!A17 -> C-404 | B22: =Contemporary!U17 -> 8 | C22: =Contemporary!S17 -> 72 | D22: =IF((ContemporaryMR!$B22+ContemporaryMR!$C22)>0,1,0) -> 1 | K22: =SUM(E22,G22,I22) -> 0 | L22: 0
A23: =Contemporary!A134 -> CC-401 | B23: =Contemporary!U134 -> 0 | C23: =Contemporary!S134 -> 0 | D23: =IF((ContemporaryMR!$B23+ContemporaryMR!$C23)>0,1,0) -> 0 | K23: =SUM(E23,G23,I23) -> 0 | L23: 0
A24: =Contemporary!A135 -> CC-402 | B24: =Contemporary!U135 -> 0 | C24: =Contemporary!S135 -> 0 | D24: =IF((ContemporaryMR!$B24+ContemporaryMR!$C24)>0,1,0) -> 0 | K24: =SUM(E24,G24,I24) -> 0 | L24: 0
A25: =Contemporary!A136 -> CC-403 | B25: =Contemporary!U136 -> 0 | C25: =Contemporary!S136 -> 0 | D25: =IF((ContemporaryMR!$B25+ContemporaryMR!$C25)>0,1,0) -> 0 | K25: =SUM(E25,G25,I25) -> 0 | L25: 0
A26: =Contemporary!A137 -> CC-404 | B26: =Contemporary!U137 -> 0 | C26: =Contemporary!S137 -> 0 | D26: =IF((ContemporaryMR!$B26+ContemporaryMR!$C26)>0,1,0) -> 0 | K26: =SUM(E26,G26,I26) -> 0 | L26: 0
A27: =Contemporary!A19 -> D-401 | B27: =Contemporary!U19 -> 0 | C27: =Contemporary!S19 -> 0 | D27: =IF((ContemporaryMR!$B27+ContemporaryMR!$C27)>0,1,0) -> 0 | K27: =SUM(E27,G27,I27) -> 0 | L27: 0
A28: =Contemporary!A20 -> D-402 | B28: =Contemporary!U20 -> 0 | C28: =Contemporary!S20 -> 0 | D28: =IF((ContemporaryMR!$B28+ContemporaryMR!$C28)>0,1,0) -> 0 | K28: =SUM(E28,G28,I28) -> 0 | L28: 0
A29: =Contemporary!A21 -> D-403 | B29: =Contemporary!U21 -> 0 | C29: =Contemporary!S21 -> 0 | D29: =IF((ContemporaryMR!$B29+ContemporaryMR!$C29)>0,1,0) -> 0 | K29: =SUM(E29,G29,I29) -> 0 | L29: 0
A30: =Contemporary!A22 -> D-404 | B30: =Contemporary!U22 -> 0 | C30: =Contemporary!S22 -> 0 | D30: =IF((ContemporaryMR!$B30+ContemporaryMR!$C30)>0,1,0) -> 0 | K30: =SUM(E30,G30,I30) -> 0 | L30: 0
A31: =Contemporary!A139 -> DD-401 | B31: =Contemporary!U139 -> 0 | C31: =Contemporary!S139 -> 0 | D31: =IF((ContemporaryMR!$B31+ContemporaryMR!$C31)>0,1,0) -> 0 | K31: =SUM(E31,G31,I31) -> 0 | L31: 0
A32: =Contemporary!A140 -> DD-402 | B32: =Contemporary!U140 -> 0 | C32: =Contemporary!S140 -> 0 | D32: =IF((ContemporaryMR!$B32+ContemporaryMR!$C32)>0,1,0) -> 0 | K32: =SUM(E32,G32,I32) -> 0 | L32: 0
A33: =Contemporary!A141 -> DD-403 | B33: =Contemporary!U141 -> 0 | C33: =Contemporary!S141 -> 0 | D33: =IF((ContemporaryMR!$B33+ContemporaryMR!$C33)>0,1,0) -> 0 | K33: =SUM(E33,G33,I33) -> 0 | L33: 0
A34: =Contemporary!A142 -> DD-404 | B34: =Contemporary!U142 -> 0 | C34: =Contemporary!S142 -> 0 | D34: =IF((ContemporaryMR!$B34+ContemporaryMR!$C34)>0,1,0) -> 0 | K34: =SUM(E34,G34,I34) -> 0 | L34: 0
A35: =Contemporary!A24 -> E-401 | B35: =Contemporary!U24 -> 12 | C35: =Contemporary!S24 -> 64 | D35: =IF((ContemporaryMR!$B35+ContemporaryMR!$C35)>0,1,0) -> 1 | K35: =SUM(E35,G35,I35) -> 0 | L35: 0
A36: =Contemporary!A25 -> E-402 | B36: =Contemporary!U25 -> 0 | C36: =Contemporary!S25 -> 0 | D36: =IF((ContemporaryMR!$B36+ContemporaryMR!$C36)>0,1,0) -> 0 | K36: =SUM(E36,G36,I36) -> 0 | L36: 0
A37: =Contemporary!A26 -> E-403 | B37: =Contemporary!U26 -> 0 | C37: =Contemporary!S26 -> 0 | D37: =IF((ContemporaryMR!$B37+ContemporaryMR!$C37)>0,1,0) -> 0 | K37: =SUM(E37,G37,I37) -> 0 | L37: 0
A38: =Contemporary!A27 -> E-404 | B38: =Contemporary!U27 -> 0 | C38: =Contemporary!S27 -> 0 | D38: =IF((ContemporaryMR!$B38+ContemporaryMR!$C38)>0,1,0) -> 0 | K38: =SUM(E38,G38,I38) -> 0 | L38: 0
A39: =Contemporary!A144 -> EE-401 | B39: =Contemporary!U144 -> 0 | C39: =Contemporary!S144 -> 0 | D39: =IF((ContemporaryMR!$B39+ContemporaryMR!$C39)>0,1,0) -> 0 | K39: =SUM(E39,G39,I39) -> 0 | L39: 0
A40: =Contemporary!A145 -> EE-402 | B40: =Contemporary!U145 -> 0 | C40: =Contemporary!S145 -> 0 | D40: =IF((ContemporaryMR!$B40+ContemporaryMR!$C40)>0,1,0) -> 0 | K40: =SUM(E40,G40,I40) -> 0 | L40: 0
A41: =Contemporary!A146 -> EE-403 | B41: =Contemporary!U146 -> 0 | C41: =Contemporary!S146 -> 0 | D41: =IF((ContemporaryMR!$B41+ContemporaryMR!$C41)>0,1,0) -> 0 | K41: =SUM(E41,G41,I41) -> 0 | L41: 0
A42: =Contemporary!A147 -> EE-404 | B42: =Contemporary!U147 -> 0 | C42: =Contemporary!S147 -> 0 | D42: =IF((ContemporaryMR!$B42+ContemporaryMR!$C42)>0,1,0) -> 0 | K42: =SUM(E42,G42,I42) -> 0 | L42: 0
A43: =Contemporary!A29 -> F-401 | B43: =Contemporary!U29 -> 3 | C43: =Contemporary!S29 -> 66 | D43: =IF((ContemporaryMR!$B43+ContemporaryMR!$C43)>0,1,0) -> 1 | E43: 1 | F43: 25 | G43: 2 | H43: 25 | I43: 2 | J43: 25 | K43: =SUM(E43,G43,I43) -> 5 | L43: 75
A44: =Contemporary!A30 -> F-402 | B44: =Contemporary!U30 -> 4 | C44: =Contemporary!S30 -> 75 | D44: =IF((ContemporaryMR!$B44+ContemporaryMR!$C44)>0,1,0) -> 1 | E44: 6 | F44: 23 | G44: 4 | H44: 25 | I44: 5 | J44: 25 | K44: =SUM(E44,G44,I44) -> 15 | L44: 73
A45: =Contemporary!A31 -> F-403 | B45: =Contemporary!U31 -> 8 | C45: =Contemporary!S31 -> 64 | D45: =IF((ContemporaryMR!$B45+ContemporaryMR!$C45)>0,1,0) -> 1 | K45: =SUM(E45,G45,I45) -> 0 | L45: 0
A46: =Contemporary!A32 -> F-404 | B46: =Contemporary!U32 -> 0 | C46: =Contemporary!S32 -> 0 | D46: =IF((ContemporaryMR!$B46+ContemporaryMR!$C46)>0,1,0) -> 0 | K46: =SUM(E46,G46,I46) -> 0 | L46: 0
A47: =Contemporary!A34 -> G-401 | B47: =Contemporary!U34 -> 0 | C47: =Contemporary!S34 -> 0 | D47: =IF((ContemporaryMR!$B47+ContemporaryMR!$C47)>0,1,0) -> 0 | K47: =SUM(E47,G47,I47) -> 0 | L47: 0
A48: =Contemporary!A35 -> G-402 | B48: =Contemporary!U35 -> 0 | C48: =Contemporary!S35 -> 0 | D48: =IF((ContemporaryMR!$B48+ContemporaryMR!$C48)>0,1,0) -> 0 | K48: =SUM(E48,G48,I48) -> 0 | L48: 0
A49: =Contemporary!A36 -> G-403 | B49: =Contemporary!U36 -> 0 | C49: =Contemporary!S36 -> 0 | D49: =IF((ContemporaryMR!$B49+ContemporaryMR!$C49)>0,1,0) -> 0 | K49: =SUM(E49,G49,I49) -> 0 | L49: 0
A50: =Contemporary!A37 -> G-404 | B50: =Contemporary!U37 -> 0 | C50: =Contemporary!S37 -> 0 | D50: =IF((ContemporaryMR!$B50+ContemporaryMR!$C50)>0,1,0) -> 0 | K50: =SUM(E50,G50,I50) -> 0 | L50: 0
A51: =Contemporary!A39 -> H-401 | B51: =Contemporary!U39 -> 7 | C51: =Contemporary!S39 -> 66 | D51: =IF((ContemporaryMR!$B51+ContemporaryMR!$C51)>0,1,0) -> 1 | K51: =SUM(E51,G51,I51) -> 0 | L51: 0
A52: =Contemporary!A40 -> H-402 | B52: =Contemporary!U40 -> 7 | C52: =Contemporary!S40 -> 70 | D52: =IF((ContemporaryMR!$B52+ContemporaryMR!$C52)>0,1,0) -> 1 | K52: =SUM(E52,G52,I52) -> 0 | L52: 0
A53: =Contemporary!A41 -> H-403 | B53: =Contemporary!U41 -> 7 | C53: =Contemporary!S41 -> 68 | D53: =IF((ContemporaryMR!$B53+ContemporaryMR!$C53)>0,1,0) -> 1 | K53: =SUM(E53,G53,I53) -> 0 | L53: 0
A54: =Contemporary!A42 -> H-404 | B54: =Contemporary!U42 -> 0 | C54: =Contemporary!S42 -> 0 | D54: =IF((ContemporaryMR!$B54+ContemporaryMR!$C54)>0,1,0) -> 0 | K54: =SUM(E54,G54,I54) -> 0 | L54: 0
A55: =Contemporary!A44 -> J-401 | B55: =Contemporary!U44 -> 5 | C55: =Contemporary!S44 -> 74 | D55: =IF((ContemporaryMR!$B55+ContemporaryMR!$C55)>0,1,0) -> 1 | E55: 5 | F55: 24 | G55: 6 | H55: 25 | I55: 4 | J55: 25 | K55: =SUM(E55,G55,I55) -> 15 | L55: 74
A56: =Contemporary!A45 -> J-402 | B56: =Contemporary!U45 -> 11 | C56: =Contemporary!S45 -> 64 | D56: =IF((ContemporaryMR!$B56+ContemporaryMR!$C56)>0,1,0) -> 1 | K56: =SUM(E56,G56,I56) -> 0 | L56: 0
A57: =Contemporary!A46 -> J-403 | B57: =Contemporary!U46 -> 0 | C57: =Contemporary!S46 -> 0 | D57: =IF((ContemporaryMR!$B57+ContemporaryMR!$C57)>0,1,0) -> 0 | K57: =SUM(E57,G57,I57) -> 0 | L57: 0
A58: =Contemporary!A47 -> J-404 | B58: =Contemporary!U47 -> 0 | C58: =Contemporary!S47 -> 0 | D58: =IF((ContemporaryMR!$B58+ContemporaryMR!$C58)>0,1,0) -> 0 | K58: =SUM(E58,G58,I58) -> 0 | L58: 0
A59: =Contemporary!A49 -> K-401 | B59: =Contemporary!U49 -> 10 | C59: =Contemporary!S49 -> 64 | D59: =IF((ContemporaryMR!$B59+ContemporaryMR!$C59)>0,1,0) -> 1 | K59: =SUM(E59,G59,I59) -> 0 | L59: 0
A60: =Contemporary!A50 -> K-402 | B60: =Contemporary!U50 -> 8 | C60: =Contemporary!S50 -> 68 | D60: =IF((ContemporaryMR!$B60+ContemporaryMR!$C60)>0,1,0) -> 1 | K60: =SUM(E60,G60,I60) -> 0 | L60: 0
A61: =Contemporary!A51 -> K-403 | B61: =Contemporary!U51 -> 6 | C61: =Contemporary!S51 -> 69 | D61: =IF((ContemporaryMR!$B61+ContemporaryMR!$C61)>0,1,0) -> 1 | K61: =SUM(E61,G61,I61) -> 0 | L61: 0
A62: =Contemporary!A52 -> K-404 | B62: =Contemporary!U52 -> 0 | C62: =Contemporary!S52 -> 0 | D62: =IF((ContemporaryMR!$B62+ContemporaryMR!$C62)>0,1,0) -> 0 | K62: =SUM(E62,G62,I62) -> 0 | L62: 0
A63: =Contemporary!A54 -> L-401 | B63: =Contemporary!U54 -> 9 | C63: =Contemporary!S54 -> 68 | D63: =IF((ContemporaryMR!$B63+ContemporaryMR!$C63)>0,1,0) -> 1 | K63: =SUM(E63,G63,I63) -> 0 | L63: 0
A64: =Contemporary!A55 -> L-402 | B64: =Contemporary!U55 -> 10 | C64: =Contemporary!S55 -> 60 | D64: =IF((ContemporaryMR!$B64+ContemporaryMR!$C64)>0,1,0) -> 1 | K64: =SUM(E64,G64,I64) -> 0 | L64: 0
A65: =Contemporary!A56 -> L-403 | B65: =Contemporary!U56 -> 11 | C65: =Contemporary!S56 -> 64 | D65: =IF((ContemporaryMR!$B65+ContemporaryMR!$C65)>0,1,0) -> 1 | K65: =SUM(E65,G65,I65) -> 0 | L65: 0
A66: =Contemporary!A57 -> L-404 | B66: =Contemporary!U57 -> 7 | C66: =Contemporary!S57 -> 68 | D66: =IF((ContemporaryMR!$B66+ContemporaryMR!$C66)>0,1,0) -> 1 | K66: =SUM(E66,G66,I66) -> 0 | L66: 0
A67: =Contemporary!A59 -> M-401 | B67: =Contemporary!U59 -> 0 | C67: =Contemporary!S59 -> 0 | D67: =IF((ContemporaryMR!$B67+ContemporaryMR!$C67)>0,1,0) -> 0 | K67: =SUM(E67,G67,I67) -> 0 | L67: 0
A68: =Contemporary!A60 -> M-402 | B68: =Contemporary!U60 -> 0 | C68: =Contemporary!S60 -> 0 | D68: =IF((ContemporaryMR!$B68+ContemporaryMR!$C68)>0,1,0) -> 0 | K68: =SUM(E68,G68,I68) -> 0 | L68: 0
A69: =Contemporary!A61 -> M-403 | B69: =Contemporary!U61 -> 0 | C69: =Contemporary!S61 -> 0 | D69: =IF((ContemporaryMR!$B69+ContemporaryMR!$C69)>0,1,0) -> 0 | K69: =SUM(E69,G69,I69) -> 0 | L69: 0
A70: =Contemporary!A62 -> M-404 | B70: =Contemporary!U62 -> 0 | C70: =Contemporary!S62 -> 0 | D70: =IF((ContemporaryMR!$B70+ContemporaryMR!$C70)>0,1,0) -> 0 | K70: =SUM(E70,G70,I70) -> 0 | L70: 0
A71: =Contemporary!A64 -> N-401 | B71: =Contemporary!U64 -> 11 | C71: =Contemporary!S64 -> 68 | D71: =IF((ContemporaryMR!$B71+ContemporaryMR!$C71)>0,1,0) -> 1 | K71: =SUM(E71,G71,I71) -> 0 | L71: 0
A72: =Contemporary!A65 -> N-402 | B72: =Contemporary!U65 -> 0 | C72: =Contemporary!S65 -> 0 | D72: =IF((ContemporaryMR!$B72+ContemporaryMR!$C72)>0,1,0) -> 0 | K72: =SUM(E72,G72,I72) -> 0 | L72: 0
A73: =Contemporary!A66 -> N-403 | B73: =Contemporary!U66 -> 9 | C73: =Contemporary!S66 -> 62 | D73: =IF((ContemporaryMR!$B73+ContemporaryMR!$C73)>0,1,0) -> 1 | K73: =SUM(E73,G73,I73) -> 0 | L73: 0
A74: =Contemporary!A67 -> N-404 | B74: =Contemporary!U67 -> 0 | C74: =Contemporary!S67 -> 0 | D74: =IF((ContemporaryMR!$B74+ContemporaryMR!$C74)>0,1,0) -> 0 | K74: =SUM(E74,G74,I74) -> 0 | L74: 0
A75: =Contemporary!A69 -> P-401 | B75: =Contemporary!U69 -> 4 | C75: =Contemporary!S69 -> 73 | D75: =IF((ContemporaryMR!$B75+ContemporaryMR!$C75)>0,1,0) -> 1 | E75: 6 | F75: 22 | G75: 5 | H75: 25 | I75: 6 | J75: 24 | K75: =SUM(E75,G75,I75) -> 17 | L75: 71
A76: =Contemporary!A70 -> P-402 | B76: =Contemporary!U70 -> 7 | C76: =Contemporary!S70 -> 74 | D76: =IF((ContemporaryMR!$B76+ContemporaryMR!$C76)>0,1,0) -> 1 | K76: =SUM(E76,G76,I76) -> 0 | L76: 0
A77: =Contemporary!A71 -> P-403 | B77: =Contemporary!U71 -> 8 | C77: =Contemporary!S71 -> 60 | D77: =IF((ContemporaryMR!$B77+ContemporaryMR!$C77)>0,1,0) -> 1 | K77: =SUM(E77,G77,I77) -> 0 | L77: 0
A78: =Contemporary!A72 -> P-404 | B78: =Contemporary!U72 -> 11 | C78: =Contemporary!S72 -> 66 | D78: =IF((ContemporaryMR!$B78+ContemporaryMR!$C78)>0,1,0) -> 1 | K78: =SUM(E78,G78,I78) -> 0 | L78: 0
A79: =Contemporary!A74 -> Q-401 | B79: =Contemporary!U74 -> 0 | C79: =Contemporary!S74 -> 0 | D79: =IF((ContemporaryMR!$B79+ContemporaryMR!$C79)>0,1,0) -> 0 | K79: =SUM(E79,G79,I79) -> 0 | L79: 0
A80: =Contemporary!A75 -> Q-402 | B80: =Contemporary!U75 -> 0 | C80: =Contemporary!S75 -> 0 | D80: =IF((ContemporaryMR!$B80+ContemporaryMR!$C80)>0,1,0) -> 0 | K80: =SUM(E80,G80,I80) -> 0 | L80: 0
A81: =Contemporary!A76 -> Q-403 | B81: =Contemporary!U76 -> 0 | C81: =Contemporary!S76 -> 0 | D81: =IF((ContemporaryMR!$B81+ContemporaryMR!$C81)>0,1,0) -> 0 | K81: =SUM(E81,G81,I81) -> 0 | L81: 0
A82: =Contemporary!A77 -> Q-404 | B82: =Contemporary!U77 -> 0 | C82: =Contemporary!S77 -> 0 | D82: =IF((ContemporaryMR!$B82+ContemporaryMR!$C82)>0,1,0) -> 0 | K82: =SUM(E82,G82,I82) -> 0 | L82: 0
A83: =Contemporary!A79 -> R-401 | B83: =Contemporary!U79 -> 11 | C83: =Contemporary!S79 -> 62 | D83: =IF((ContemporaryMR!$B83+ContemporaryMR!$C83)>0,1,0) -> 1 | K83: =SUM(E83,G83,I83) -> 0 | L83: 0
A84: =Contemporary!A80 -> R-402 | B84: =Contemporary!U80 -> 7 | C84: =Contemporary!S80 -> 56 | D84: =IF((ContemporaryMR!$B84+ContemporaryMR!$C84)>0,1,0) -> 1 | K84: =SUM(E84,G84,I84) -> 0 | L84: 0
A85: =Contemporary!A81 -> R-403 | B85: =Contemporary!U81 -> 10 | C85: =Contemporary!S81 -> 66 | D85: =IF((ContemporaryMR!$B85+ContemporaryMR!$C85)>0,1,0) -> 1 | K85: =SUM(E85,G85,I85) -> 0 | L85: 0
A86: =Contemporary!A82 -> R-404 | B86: =Contemporary!U82 -> 0 | C86: =Contemporary!S82 -> 0 | D86: =IF((ContemporaryMR!$B86+ContemporaryMR!$C86)>0,1,0) -> 0 | K86: =SUM(E86,G86,I86) -> 0 | L86: 0
A87: =Contemporary!A84 -> S-401 | B87: =Contemporary!U84 -> 11 | C87: =Contemporary!S84 -> 65 | D87: =IF((ContemporaryMR!$B87+ContemporaryMR!$C87)>0,1,0) -> 1 | K87: =SUM(E87,G87,I87) -> 0 | L87: 0
A88: =Contemporary!A85 -> S-402 | B88: =Contemporary!U85 -> 9 | C88: =Contemporary!S85 -> 69 | D88: =IF((ContemporaryMR!$B88+ContemporaryMR!$C88)>0,1,0) -> 1 | K88: =SUM(E88,G88,I88) -> 0 | L88: 0
A89: =Contemporary!A86 -> S-403 | B89: =Contemporary!U86 -> 0 | C89: =Contemporary!S86 -> 0 | D89: =IF((ContemporaryMR!$B89+ContemporaryMR!$C89)>0,1,0) -> 0 | K89: =SUM(E89,G89,I89) -> 0 | L89: 0
A90: =Contemporary!A87 -> S-404 | B90: =Contemporary!U87 -> 0 | C90: =Contemporary!S87 -> 0 | D90: =IF((ContemporaryMR!$B90+ContemporaryMR!$C90)>0,1,0) -> 0 | K90: =SUM(E90,G90,I90) -> 0 | L90: 0
A91: =Contemporary!A89 -> T-401 | B91: =Contemporary!U89 -> 0 | C91: =Contemporary!S89 -> 0 | D91: =IF((ContemporaryMR!$B91+ContemporaryMR!$C91)>0,1,0) -> 0 | K91: =SUM(E91,G91,I91) -> 0 | L91: 0
A92: =Contemporary!A90 -> T-402 | B92: =Contemporary!U90 -> 0 | C92: =Contemporary!S90 -> 0 | D92: =IF((ContemporaryMR!$B92+ContemporaryMR!$C92)>0,1,0) -> 0 | K92: =SUM(E92,G92,I92) -> 0 | L92: 0
A93: =Contemporary!A91 -> T-403 | B93: =Contemporary!U91 -> 0 | C93: =Contemporary!S91 -> 0 | D93: =IF((ContemporaryMR!$B93+ContemporaryMR!$C93)>0,1,0) -> 0 | K93: =SUM(E93,G93,I93) -> 0 | L93: 0
A94: =Contemporary!A92 -> T-404 | B94: =Contemporary!U92 -> 0 | C94: =Contemporary!S92 -> 0 | D94: =IF((ContemporaryMR!$B94+ContemporaryMR!$C94)>0,1,0) -> 0 | K94: =SUM(E94,G94,I94) -> 0 | L94: 0
A95: =Contemporary!A94 -> U-401 | B95: =Contemporary!U94 -> 0 | C95: =Contemporary!S94 -> 0 | D95: =IF((ContemporaryMR!$B95+ContemporaryMR!$C95)>0,1,0) -> 0 | K95: =SUM(E95,G95,I95) -> 0 | L95: 0
A96: =Contemporary!A95 -> U-402 | B96: =Contemporary!U95 -> 0 | C96: =Contemporary!S95 -> 0 | D96: =IF((ContemporaryMR!$B96+ContemporaryMR!$C96)>0,1,0) -> 0 | K96: =SUM(E96,G96,I96) -> 0 | L96: 0
A97: =Contemporary!A96 -> U-403 | B97: =Contemporary!U96 -> 0 | C97: =Contemporary!S96 -> 0 | D97: =IF((ContemporaryMR!$B97+ContemporaryMR!$C97)>0,1,0) -> 0 | K97: =SUM(E97,G97,I97) -> 0 | L97: 0
A98: =Contemporary!A97 -> U-404 | B98: =Contemporary!U97 -> 0 | C98: =Contemporary!S97 -> 0 | D98: =IF((ContemporaryMR!$B98+ContemporaryMR!$C98)>0,1,0) -> 0 | K98: =SUM(E98,G98,I98) -> 0 | L98: 0
A99: =Contemporary!A99 -> V-401 | B99: =Contemporary!U99 -> 0 | C99: =Contemporary!S99 -> 0 | D99: =IF((ContemporaryMR!$B99+ContemporaryMR!$C99)>0,1,0) -> 0 | K99: =SUM(E99,G99,I99) -> 0 | L99: 0
A100: =Contemporary!A100 -> V-402 | B100: =Contemporary!U100 -> 0 | C100: =Contemporary!S100 -> 0 | D100: =IF((ContemporaryMR!$B100+ContemporaryMR!$C100)>0,1,0) -> 0 | K100: =SUM(E100,G100,I100) -> 0 | L100: 0
A101: =Contemporary!A101 -> V-403 | B101: =Contemporary!U101 -> 0 | C101: =Contemporary!S101 -> 0 | D101: =IF((ContemporaryMR!$B101+ContemporaryMR!$C101)>0,1,0) -> 0 | K101: =SUM(E101,G101,I101) -> 0 | L101: 0
A102: =Contemporary!A102 -> V-404 | B102: =Contemporary!U102 -> 0 | C102: =Contemporary!S102 -> 0 | D102: =IF((ContemporaryMR!$B102+ContemporaryMR!$C102)>0,1,0) -> 0 | K102: =SUM(E102,G102,I102) -> 0 | L102: 0
A103: =Contemporary!A104 -> W-401 | B103: =Contemporary!U104 -> 0 | C103: =Contemporary!S104 -> 0 | D103: =IF((ContemporaryMR!$B103+ContemporaryMR!$C103)>0,1,0) -> 0 | K103: =SUM(E103,G103,I103) -> 0 | L103: 0
A104: =Contemporary!A105 -> W-402 | B104: =Contemporary!U105 -> 0 | C104: =Contemporary!S105 -> 0 | D104: =IF((ContemporaryMR!$B104+ContemporaryMR!$C104)>0,1,0) -> 0 | K104: =SUM(E104,G104,I104) -> 0 | L104: 0
A105: =Contemporary!A106 -> W-403 | B105: =Contemporary!U106 -> 0 | C105: =Contemporary!S106 -> 0 | D105: =IF((ContemporaryMR!$B105+ContemporaryMR!$C105)>0,1,0) -> 0 | K105: =SUM(E105,G105,I105) -> 0 | L105: 0
A106: =Contemporary!A107 -> W-404 | B106: =Contemporary!U107 -> 0 | C106: =Contemporary!S107 -> 0 | D106: =IF((ContemporaryMR!$B106+ContemporaryMR!$C106)>0,1,0) -> 0 | K106: =SUM(E106,G106,I106) -> 0 | L106: 0
A107: =Contemporary!A109 -> X-401 | B107: =Contemporary!U109 -> 0 | C107: =Contemporary!S109 -> 0 | D107: =IF((ContemporaryMR!$B107+ContemporaryMR!$C107)>0,1,0) -> 0 | K107: =SUM(E107,G107,I107) -> 0 | L107: 0
A108: =Contemporary!A110 -> X-402 | B108: =Contemporary!U110 -> 0 | C108: =Contemporary!S110 -> 0 | D108: =IF((ContemporaryMR!$B108+ContemporaryMR!$C108)>0,1,0) -> 0 | K108: =SUM(E108,G108,I108) -> 0 | L108: 0
A109: =Contemporary!A111 -> X-403 | B109: =Contemporary!U111 -> 0 | C109: =Contemporary!S111 -> 0 | D109: =IF((ContemporaryMR!$B109+ContemporaryMR!$C109)>0,1,0) -> 0 | K109: =SUM(E109,G109,I109) -> 0 | L109: 0
A110: =Contemporary!A112 -> X-404 | B110: =Contemporary!U112 -> 0 | C110: =Contemporary!S112 -> 0 | D110: =IF((ContemporaryMR!$B110+ContemporaryMR!$C110)>0,1,0) -> 0 | K110: =SUM(E110,G110,I110) -> 0 | L110: 0
A111: =Contemporary!A114 -> Y-401 | B111: =Contemporary!U114 -> 0 | C111: =Contemporary!S114 -> 0 | D111: =IF((ContemporaryMR!$B111+ContemporaryMR!$C111)>0,1,0) -> 0 | K111: =SUM(E111,G111,I111) -> 0 | L111: 0
A112: =Contemporary!A115 -> Y-402 | B112: =Contemporary!U115 -> 0 | C112: =Contemporary!S115 -> 0 | D112: =IF((ContemporaryMR!$B112+ContemporaryMR!$C112)>0,1,0) -> 0 | K112: =SUM(E112,G112,I112) -> 0 | L112: 0
A113: =Contemporary!A116 -> Y-403 | B113: =Contemporary!U116 -> 0 | C113: =Contemporary!S116 -> 0 | D113: =IF((ContemporaryMR!$B113+ContemporaryMR!$C113)>0,1,0) -> 0 | K113: =SUM(E113,G113,I113) -> 0 | L113: 0
A114: =Contemporary!A117 -> Y-404 | B114: =Contemporary!U117 -> 0 | C114: =Contemporary!S117 -> 0 | D114: =IF((ContemporaryMR!$B114+ContemporaryMR!$C114)>0,1,0) -> 0 | K114: =SUM(E114,G114,I114) -> 0 | L114: 0
A115: =Contemporary!A119 -> Z-401 | B115: =Contemporary!U119 -> 0 | C115: =Contemporary!S119 -> 0 | D115: =IF((ContemporaryMR!$B115+ContemporaryMR!$C115)>0,1,0) -> 0 | K115: =SUM(E115,G115,I115) -> 0 | L115: 0
A116: =Contemporary!A120 -> Z-402 | B116: =Contemporary!U120 -> 0 | C116: =Contemporary!S120 -> 0 | D116: =IF((ContemporaryMR!$B116+ContemporaryMR!$C116)>0,1,0) -> 0 | K116: =SUM(E116,G116,I116) -> 0 | L116: 0
A117: =Contemporary!A121 -> Z-403 | B117: =Contemporary!U121 -> 0 | C117: =Contemporary!S121 -> 0 | D117: =IF((ContemporaryMR!$B117+ContemporaryMR!$C117)>0,1,0) -> 0 | K117: =SUM(E117,G117,I117) -> 0 | L117: 0
A118: =Contemporary!A122 -> Z-404 | B118: =Contemporary!U122 -> 0 | C118: =Contemporary!S122 -> 0 | D118: =IF((ContemporaryMR!$B118+ContemporaryMR!$C118)>0,1,0) -> 0 | K118: =SUM(E118,G118,I118) -> 0 | L118: 0
A119: =Contemporary!A149 -> FF-401 | B119: =Contemporary!U149 -> 0 | C119: =Contemporary!S149 -> 0 | D119: =IF((ContemporaryMR!$B119+ContemporaryMR!$C119)>0,1,0) -> 0 | K119: =SUM(E119,G119,I119) -> 0 | L119: 0
A120: =Contemporary!A150 -> FF-402 | B120: =Contemporary!U150 -> 0 | C120: =Contemporary!S150 -> 0 | D120: =IF((ContemporaryMR!$B120+ContemporaryMR!$C120)>0,1,0) -> 0 | K120: =SUM(E120,G120,I120) -> 0 | L120: 0
A121: =Contemporary!A151 -> FF-403 | B121: =Contemporary!U151 -> 0 | C121: =Contemporary!S151 -> 0 | D121: =IF((ContemporaryMR!$B121+ContemporaryMR!$C121)>0,1,0) -> 0 | K121: =SUM(E121,G121,I121) -> 0 | L121: 0
A122: =Contemporary!A152 -> FF-404 | B122: =Contemporary!U152 -> 0 | C122: =Contemporary!S152 -> 0 | D122: =IF((ContemporaryMR!$B122+ContemporaryMR!$C122)>0,1,0) -> 0 | K122: =SUM(E122,G122,I122) -> 0 | L122: 0

Sheet Pantomime
A1: Pantomimes | K1: Rank 1-4 | X1: S | Y1: E | Z1: G | AA1: F | AC1: 1violation | AD1: 2violations | AE1: 3violations
K2: Round 1: | M2: Round 2: | O2: Round 3: | Q2: -2 for each | AB2: Drops lowest from column q
F3: Student Name | H3: Student Name | J3: Title of Piece | K3: R1 rank | L3: R1 score | M3: R2 rank | N3: R2 score | O3: R3 rank | P3: R3 score | Q3: Time Violations | S3: TOTAL SCORE | U3: TOTAL RANK | X3: TOTAL SCHOOL SWEEPS POINTS | AB3: Drop Lowest
A4: A-501 | G4: Adamson | I4: Everitt | J4: Cinderella's Revenge | K4: 3 | L4: 25 | M4: 1 | N4: 25 | O4: 1 | P4: 24 | R4: =IF(Q4="1violation",-7*1,IF(Q4="2violations",-7*2,IF(Q4="3violations",-7*3,IF(Q4="","")))) ->  | S4: =SUM(L4,N4,P4,R4) -> 74 | U4: =SUM(K4,M4,O4) -> 5 | Y4: =SUM(S4,S6,S5,S7,-AB4) -> 222 | AB4: =MIN(S4:S7) -> 72
A5: A-502 | G5: Dettinger | I5: Everitt | J5: Real vs Dream | K5: 1 | L5: 25 | M5: 1 | N5: 24 | O5: 1 | P5: 24 | S5: 73 | U5: 3
A6: A-503 | G6: Egg | I6: Hansen | J6: Elevator Birth | K6: 2 | L6: 24 | M6: 4 | N6: 23 | O6: 1 | P6: 25 | S6: 72 | U6: 7
A7: A-504 | G7: Olsen | I7: Steinfeldt | J7: Nazi and the Jew | K7: 1 | L7: 25 | M7: 2 | N7: 25 | O7: 1 | P7: 25 | S7: 75 | U7: 4
A9: B-501 | R9: =IF(Q9="1violation",-7*1,IF(Q9="2violations",-7*2,IF(Q9="3violations",-7*3,IF(Q9="","")))) ->  | S9: =SUM(L9,N9,P9,R9) -> 0 | U9: =SUM(K9,M9,O9) -> 0 | Y9: =SUM(S9,S11,S10,S12,-AB9) -> 0 | AB9: =MIN(S9:S12) -> 0
A10: B-502 | S10: 0 | U10: 0
A11: B-503 | S11: 0 | U11: 0
A12: B-504 | S12: 0 | U12: 0
A14: C-501 | G14: Mieure | I14: Rasmussen | J14: Home not alone | K14: 2 | L14: 22 | M14: 4 | N14: 21 | O14: 3 | P14: 22 | R14: =IF(Q14="1violation",-7*1,IF(Q14="2violations",-7*2,IF(Q14="3violations",-7*3,IF(Q14="","")))) ->  | S14: =SUM(L14,N14,P14,R14) -> 65 | U14: =SUM(K14,M14,O14) -> 9 | Y14: =SUM(S14,S16,S15,S17,-AB14) -> 219 | AB14: =MIN(S14:S17) -> 65
A15: C-502 | G15: Womack | I15: Schmitt | J15: Portal Jumpers | K15: 2 | L15: 23 | M15: 1 | N15: 25 | O15: 1 | P15: 24 | S15: 72 | U15: 4
A16: C-503 | G16: Hawkins | I16: Hawkins | J16: A second Chance | K16: 1 | L16: 24 | M16: 1 | N16: 25 | O16: 3 | P16: 24 | S16: 73 | U16: 5
A17: C-504 | G17: Matthews | I17: Tomlinson | J17: Curse you Red Baron | K17: 1 | L17: 25 | M17: 1 | N17: 25 | O17: 3 | P17: 24 | S17: 74 | U17: 5
A19: D-501 | R19: =IF(Q19="1violation",-7*1,IF(Q19="2violations",-7*2,IF(Q19="3violations",-7*3,IF(Q19="","")))) ->  | S19: =SUM(L19,N19,P19,R19) -> 0 | U19: =SUM(K19,M19,O19) -> 0 | Y19: =SUM(S19,S21,S20,S22,-AB19) -> 0 | AB19: =MIN(S19:S22) -> 0
A20: D-502 | S20: 0 | U20: 0
A21: D-503 | S21: 0 | U21: 0
A22: D-504 | S22: 0 | U22: 0
A24: E-501 | G24: Fryer | I24: Shidel | J24: Bimbos at the beach | K24: 3 | L24: 20 | M24: 3 | N24: 21 | O24: 2 | P24: 24 | R24: =IF(Q24="1violation",-7*1,IF(Q24="2violations",-7*2,IF(Q24="3violations",-7*3,IF(Q24="","")))) ->  | S24: =SUM(L24,N24,P24,R24) -> 65 | U24: =SUM(K24,M24,O24) -> 8 | Y24: =SUM(S24,S26,S25,S27,-AB24) -> 200 | AB24: =MIN(S24:S27) -> 54
A25: E-502 | G25: Ferez | I25: Lester | J25: Fishing Bros | K25: 4 | L25: 22 | M25: 4 | N25: 22 | O25: 3 | P25: 22 | S25: 66 | U25: 11
A26: E-503 | G26: Leary | I26: Sheeran | J26: Jump rope | K26: 4 | L26: 24 | M26: 4 | N26: 16 | O26: 4 | P26: 14 | S26: 54 | U26: 12
A27: E-504 | G27: Monzalvo | I27: Lester | J27: Prank Gone Wrong | K27: 2 | L27: 25 | M27: 3 | N27: 22 | O27: 4 | P27: 22 | S27: 69 | U27: 9
A29: F-501 | F29: Katelyn | G29: Murray | J29: Painted Circus | K29: 1 | L29: 23 | M29: 2 | N29: 20 | O29: 1 | P29: 25 | R29: =IF(Q29="1violation",-7*1,IF(Q29="2violations",-7*2,IF(Q29="3violations",-7*3,IF(Q29="","")))) ->  | S29: =SUM(L29,N29,P29,R29) -> 68 | U29: =SUM(K29,M29,O29) -> 4 | Y29: =SUM(S29,S31,S30,S32,-AB29) -> 197 | AB29: =MIN(S29:S32) -> 59
A30: F-502 | G30: Carter | I30: Murphy | J30: Petals | K30: 1 | L30: 23 | M30: 4 | N30: 22 | O30: 4 | P30: 21 | S30: 66 | U30: 9
A31: F-503 | G31: Coombs | I31: VanHorn | J31: Reflection Defection | K31: 4 | L31: 17 | M31: 3 | N31: 24 | O31: 3 | P31: 18 | S31: 59 | U31: 10
A32: F-504 | G32: VanHorn | I32: Zufelt | J32: Drum vs Guitar | K32: 4 | L32: 22 | M32: 4 | N32: 20 | O32: 4 | P32: 21 | S32: 63 | U32: 12
A34: G-501 | R34: =IF(Q34="1violation",-7*1,IF(Q34="2violations",-7*2,IF(Q34="3violations",-7*3,IF(Q34="","")))) ->  | S34: =SUM(L34,N34,P34,R34) -> 0 | U34: =SUM(K34,M34,O34) -> 0 | Y34: =SUM(S34,S36,S35,S37,-AB34) -> 0 | AB34: =MIN(S34:S37) -> 0
A35: G-502 | S35: 0 | U35: 0
A36: G-503 | S36: 0 | U36: 0
A37: G-504 | S37: 0 | U37: 0
A39: H-501 | G39: Grimshaw | I39: Haley | J39: Bank Robbery | K39: 4 | L39: 24 | M39: 3 | N39: 23 | O39: 2 | P39: 24 | R39: =IF(Q39="1violation",-7*1,IF(Q39="2violations",-7*2,IF(Q39="3violations",-7*3,IF(Q39="","")))) ->  | S39: =SUM(L39,N39,P39,R39) -> 71 | U39: =SUM(K39,M39,O39) -> 9 | Y39: =SUM(S39,S41,S40,S42,-AB39) -> 203 | AB39: =MIN(S39:S42) -> 0
A40: H-502 | G40: Cooper | I40: Hollis | J40: Dangerous Luggage | K40: 4 | L40: 25 | M40: 3 | N40: 18 | O40: 2 | P40: 24 | S40: 67 | U40: 9
A41: H-503 | G41: Porter | I41: Whittaker | J41: Sneacking to Christmas | K41: 3 | L41: 22 | M41: 3 | N41: 21 | O41: 4 | P41: 22 | S41: 65 | U41: 10
A42: H-504 | S42: 0 | U42: 0
A44: J-501 | R44: =IF(Q44="1violation",-7*1,IF(Q44="2violations",-7*2,IF(Q44="3violations",-7*3,IF(Q44="","")))) ->  | S44: =SUM(L44,N44,P44,R44) -> 0 | U44: =SUM(K44,M44,O44) -> 0 | Y44: =SUM(S44,S46,S45,S47,-AB44) -> 0 | AB44: =MIN(S44:S47) -> 0
A45: J-502 | S45: 0 | U45: 0
A46: J-503 | S46: 0 | U46: 0
A47: J-504 | S47: 0 | U47: 0
A49: K-501 | F49: Wu | G49: Xuanyu | J49: The Rose | K49: 4 | L49: 24 | M49: 4 | N49: 20 | O49: 4 | P49: 21 | R49: =IF(Q49="1violation",-7*1,IF(Q49="2violations",-7*2,IF(Q49="3violations",-7*3,IF(Q49="","")))) ->  | S49: =SUM(L49,N49,P49,R49) -> 65 | U49: =SUM(K49,M49,O49) -> 12 | Y49: =SUM(S49,S51,S50,S52,-AB49) -> 65 | AB49: =MIN(S49:S52) -> 0
A50: K-502 | S50: 0 | U50: 0
A51: K-503 | S51: 0 | U51: 0
A52: K-504 | S52: 0 | U52: 0
A54: L-501 | G54: Alvarado | I54: Twedell | J54: Dancing Trough Garden | K54: 4 | L54: 23 | M54: 4 | N54: 17 | O54: 4 | P54: 24 | R54: =IF(Q54="1violation",-7*1,IF(Q54="2violations",-7*2,IF(Q54="3violations",-7*3,IF(Q54="","")))) ->  | S54: =SUM(L54,N54,P54,R54) -> 64 | U54: =SUM(K54,M54,O54) -> 12 | Y54: =SUM(S54,S56,S55,S57,-AB54) -> 130 | AB54: =MIN(S54:S57) -> 0
A55: L-502 | G55: Criddle | I55: Criddle | J55: Haunted | S55: 0 | U55: 0
A56: L-503 | F56: Taylorann | G56: Dalpiaz | J56: Moments in Time | K56: 2 | L56: 21 | M56: 1 | N56: 25 | O56: 4 | P56: 20 | S56: 66 | U56: 7
A57: L-504 | S57: 0 | U57: 0
A59: M-501 | F59: Elizabeth | G59: Carroll | J59: Flatline | K59: 3 | L59: 20 | M59: 2 | N59: 25 | O59: 2 | P59: 24 | R59: =IF(Q59="1violation",-7*1,IF(Q59="2violations",-7*2,IF(Q59="3violations",-7*3,IF(Q59="","")))) ->  | S59: =SUM(L59,N59,P59,R59) -> 69 | U59: =SUM(K59,M59,O59) -> 7 | Y59: =SUM(S59,S61,S60,S62,-AB59) -> 138 | AB59: =MIN(S59:S62) -> 0
A60: M-502 | G60: Simmons | I60: West | J60: Car crash | K60: 2 | L60: 25 | M60: 2 | N60: 22 | O60: 3 | P60: 22 | S60: 69 | U60: 7
A61: M-503 | S61: 0 | U61: 0
A62: M-504 | S62: 0 | U62: 0
A64: N-501 | F64: Sam | G64: McRenoylds | J64: LUmberjack vs Bird | K64: 3 | L64: 24 | M64: 4 | N64: 18 | O64: 4 | P64: 19 | R64: =IF(Q64="1violation",-7*1,IF(Q64="2violations",-7*2,IF(Q64="3violations",-7*3,IF(Q64="","")))) ->  | S64: =SUM(L64,N64,P64,R64) -> 61 | U64: =SUM(K64,M64,O64) -> 11 | Y64: =SUM(S64,S66,S65,S67,-AB64) -> 61 | AB64: =MIN(S64:S67) -> 0
A65: N-502 | S65: 0 | U65: 0
A66: N-503 | S66: 0 | U66: 0
A67: N-504 | S67: 0 | U67: 0
A69: P-501 | F69: Janessa | G69: Dyches | J69: Dear Mother | K69: 3 | L69: 25 | M69: 2 | N69: 25 | O69: 2 | P69: 25 | R69: =IF(Q69="1violation",-7*1,IF(Q69="2violations",-7*2,IF(Q69="3violations",-7*3,IF(Q69="","")))) ->  | S69: =SUM(L69,N69,P69,R69) -> 75 | U69: =SUM(K69,M69,O69) -> 7 | Y69: =SUM(S69,S71,S70,S72,-AB69) -> 222 | AB69: =MIN(S69:S72) -> 0
A70: P-502 | F70: Caylee | G70: Nesbit | J70: Shaken | K70: 1 | L70: 25 | M70: 2 | N70: 24 | O70: 1 | P70: 25 | S70: 74 | U70: 4
A71: P-503 | G71: Anderson | I71: Hathaway | J71: Going up | K71: 3 | L71: 25 | M71: 1 | N71: 25 | O71: 2 | P71: 23 | S71: 73 | U71: 6
A72: P-504 | S72: 0 | U72: 0
A74: Q-501 | R74: =IF(Q74="1violation",-7*1,IF(Q74="2violations",-7*2,IF(Q74="3violations",-7*3,IF(Q74="","")))) ->  | S74: =SUM(L74,N74,P74,R74) -> 0 | U74: =SUM(K74,M74,O74) -> 0 | Y74: =SUM(S74,S76,S75,S77,-AB74) -> 0 | AB74: =MIN(S74:S77) -> 0
A75: Q-502 | S75: 0 | U75: 0
A76: Q-502 | S76: 0 | U76: 0
A77: Q-504 | S77: 0 | U77: 0
A79: R-501 | R79: =IF(Q79="1violation",-7*1,IF(Q79="2violations",-7*2,IF(Q79="3violations",-7*3,IF(Q79="","")))) ->  | S79: =SUM(L79,N79,P79,R79) -> 0 | U79: =SUM(K79,M79,O79) -> 0 | Y79: =SUM(S79,S81,S80,S82,-AB79) -> 0 | AB79: =MIN(S79:S82) -> 0
A80: R-502 | S80: 0 | U80: 0
A81: R-503 | S81: 0 | U81: 0
A82: R-504 | S82: 0 | U82: 0
A84: S-501 | F84: Kaelyn | G84: Howell | J84: The Haunting | K84: 4 | L84: 22 | M84: 4 | N84: 22 | O84: 3 | P84: 23 | R84: =IF(Q84="1violation",-7*1,IF(Q84="2violations",-7*2,IF(Q84="3violations",-7*3,IF(Q84="","")))) ->  | S84: =SUM(L84,N84,P84,R84) -> 67 | U84: =SUM(K84,M84,O84) -> 11 | Y84: =SUM(S84,S86,S85,S87,-AB84) -> 197 | AB84: =MIN(S84:S87) -> 0
A85: S-502 | F85: Tanner | G85: Perkins | J85: Golf Gone Wrong | K85: 4 | L85: 18 | M85: 2 | N85: 23 | O85: 4 | P85: 18 | S85: 59 | U85: 10
A86: S-503 | F86: Sabrina | G86: Schoenfeld | J86: First Day at Gym | K86: 2 | L86: 25 | M86: 3 | N86: 24 | O86: 2 | P86: 22 | S86: 71 | U86: 7
A87: S-504 | S87: 0 | U87: 0
A89: T-501 | R89: =IF(Q89="1violation",-7*1,IF(Q89="2violations",-7*2,IF(Q89="3violations",-7*3,IF(Q89="","")))) ->  | S89: =SUM(L89,N89,P89,R89) -> 0 | U89: =SUM(K89,M89,O89) -> 0 | Y89: =SUM(S89,S91,S90,S92,-AB89) -> 0 | AB89: =MIN(S89:S92) -> 0
A90: T-502 | S90: 0 | U90: 0
A91: T-503 | S91: 0 | U91: 0
A92: T-504 | S92: 0 | U92: 0
A94: U-501 | R94: =IF(Q94="1violation",-7*1,IF(Q94="2violations",-7*2,IF(Q94="3violations",-7*3,IF(Q94="","")))) ->  | S94: =SUM(L94,N94,P94,R94) -> 0 | U94: =SUM(K94,M94,O94) -> 0 | Y94: =SUM(S94,S96,S95,S97,-AB94) -> 0 | AB94: =MIN(S94:S97) -> 0
A95: U-502 | S95: 0 | U95: 0
A96: U-503 | S96: 0 | U96: 0
A97: U-504 | S97: 0 | U97: 0
A99: V-501 | R99: =IF(Q99="1violation",-7*1,IF(Q99="2violations",-7*2,IF(Q99="3violations",-7*3,IF(Q99="","")))) ->  | S99: =SUM(L99,N99,P99,R99) -> 0 | U99: =SUM(K99,M99,O99) -> 0 | Y99: =SUM(S99,S101,S100,S102,-AB99) -> 0 | AB99: =MIN(S99:S102) -> 0
A100: V-502 | S100: 0 | U100: 0
A101: V-503 | S101: 0 | U101: 0
A102: V-504 | S102: 0 | U102: 0
A104: W-501 | R104: =IF(Q104="1violation",-7*1,IF(Q104="2violations",-7*2,IF(Q104="3violations",-7*3,IF(Q104="","")))) ->  | S104: =SUM(L104,N104,P104,R104) -> 0 | U104: =SUM(K104,M104,O104) -> 0 | Y104: =SUM(S104,S106,S105,S107,-AB104) -> 0 | AB104: =MIN(S104:S107) -> 0
A105: W-502 | S105: 0 | U105: 0
A106: W-503 | S106: 0 | U106: 0
A107: W-504 | S107: 0 | U107: 0
A109: X-501 | R109: =IF(Q109="1violation",-7*1,IF(Q109="2violations",-7*2,IF(Q109="3violations",-7*3,IF(Q109="","")))) ->  | S109: =SUM(L109,N109,P109,R109) -> 0 | U109: =SUM(K109,M109,O109) -> 0 | Y109: =SUM(S109,S111,S110,S112,-AB109) -> 0 | AB109: =MIN(S109:S112) -> 0
A110: X-502 | S110: 0 | U110: 0
A111: X-503 | S111: 0 | U111: 0
A112: X-504 | S112: 0 | U112: 0
A114: Y-501 | R114: =IF(Q114="1violation",-7*1,IF(Q114="2violations",-7*2,IF(Q114="3violations",-7*3,IF(Q114="","")))) ->  | S114: =SUM(L114,N114,P114,R114) -> 0 | U114: =SUM(K114,M114,O114) -> 0 | Y114: =SUM(S114,S116,S115,S117,-AB114) -> 0 | AB114: =MIN(S114:S117) -> 0
A115: Y-502 | S115: 0 | U115: 0
A116: Y-503 | S116: 0 | U116: 0
A117: Y-504 | S117: 0 | U117: 0
A119: Z-501 | R119: =IF(Q119="1violation",-7*1,IF(Q119="2violations",-7*2,IF(Q119="3violations",-7*3,IF(Q119="","")))) ->  | S119: =SUM(L119,N119,P119,R119) -> 0 | U119: =SUM(K119,M119,O119) -> 0 | Y119: =SUM(S119,S121,S120,S122,-AB119) -> 0 | AB119: =MIN(S119:S122) -> 0
A120: Z-502 | S120: 0 | U120: 0
A121: Z-503 | S121: 0 | U121: 0
A122: Z-504 | S122: 0 | U122: 0
A124: AA-501 | R124: =IF(Q124="1violation",-7*1,IF(Q124="2violations",-7*2,IF(Q124="3violations",-7*3,IF(Q124="","")))) ->  | S124: =SUM(L124,N124,P124,R124) -> 0 | U124: =SUM(K124,M124,O124) -> 0 | Y124: =SUM(S124,S126,S125,S127,-AB124) -> 0 | AB124: =MIN(S124:S127) -> 0
A125: AA-502 | S125: 0 | U125: 0
A126: AA-503 | S126: 0 | U126: 0
A127: AA-504 | S127: 0 | U127: 0
A129: BB-501 | R129: =IF(Q129="1violation",-7*1,IF(Q129="2violations",-7*2,IF(Q129="3violations",-7*3,IF(Q129="","")))) ->  | S129: =SUM(L129,N129,P129,R129) -> 0 | U129: =SUM(K129,M129,O129) -> 0 | Y129: =SUM(S129,S131,S130,S132,-AB129) -> 0 | AB129: =MIN(S129:S132) -> 0
A130: BB-502 | S130: 0 | U130: 0
A131: BB-503 | S131: 0 | U131: 0
A132: BB-504 | S132: 0 | U132: 0
A134: CC-501 | R134: =IF(Q134="1violation",-7*1,IF(Q134="2violations",-7*2,IF(Q134="3violations",-7*3,IF(Q134="","")))) ->  | S134: =SUM(L134,N134,P134,R134) -> 0 | U134: =SUM(K134,M134,O134) -> 0 | Y134: =SUM(S134,S136,S135,S137,-AB134) -> 0 | AB134: =MIN(S134:S137) -> 0
A135: CC-502 | S135: 0 | U135: 0
A136: CC-503 | S136: 0 | U136: 0
A137: CC-504 | S137: 0 | U137: 0
A139: DD-501 | R139: =IF(Q139="1violation",-7*1,IF(Q139="2violations",-7*2,IF(Q139="3violations",-7*3,IF(Q139="","")))) ->  | S139: =SUM(L139,N139,P139,R139) -> 0 | U139: =SUM(K139,M139,O139) -> 0 | Y139: =SUM(S139,S141,S140,S142,-AB139) -> 0 | AB139: =MIN(S139:S142) -> 0
A140: DD-502 | S140: 0 | U140: 0
A141: DD-503 | S141: 0 | U141: 0
A142: DD-504 | S142: 0 | U142: 0
A144: EE-501 | R144: =IF(Q144="1violation",-7*1,IF(Q144="2violations",-7*2,IF(Q144="3violations",-7*3,IF(Q144="","")))) ->  | S144: =SUM(L144,N144,P144,R144) -> 0 | U144: =SUM(K144,M144,O144) -> 0 | Y144: =SUM(S144,S146,S145,S147,-AB144) -> 0 | AB144: =MIN(S144:S147) -> 0
A145: EE-502 | S145: 0 | U145: 0
A146: EE-503 | S146: 0 | U146: 0
A147: EE-504 | S147: 0 | U147: 0
A149: FF-501 | R149: =IF(Q149="1violation",-7*1,IF(Q149="2violations",-7*2,IF(Q149="3violations",-7*3,IF(Q149="","")))) ->  | S149: =SUM(L149,N149,P149,R149) -> 0 | U149: =SUM(K149,M149,O149) -> 0 | Y149: =SUM(S149,S151,S150,S152,-AB149) -> 0 | AB149: =MIN(S149:S152) -> 0
A150: FF-502 | S150: 0 | U150: 0
A151: FF-503 | S151: 0 | U151: 0
A152: FF-504 | S152: 0 | U152: 0

Sheet PantomimeMR
A1: Pantomime | E1: Finals Medals Round Scores
A2: ID | B2: Rank | C2: Score | D2: LeaveBlank | E2: MR 1 Rank | F2: MR 1 Score | G2: MR2 Rank | H2: MR 2 Score | I2: MR3 Rank | J2: MR 3 Score | K2: Total MR Rank | L2: Total MR Score
A3: =Pantomime!A4 -> A-501 | B3: =Pantomime!U4 -> 5 | C3: =Pantomime!S4 -> 74 | D3: =IF((PantomimeMR!$B3+PantomimeMR!$C3)>0,1,0) -> 1 | E3: 2 | F3: 25 | G3: 6 | H3: 23 | I3: 6 | J3: 24 | K3: =SUM(E3,G3,I3) -> 14 | L3: 72
A4: =Pantomime!A5 -> A-502 | B4: =Pantomime!U5 -> 3 | C4: =Pantomime!S5 -> 73 | D4: =IF((PantomimeMR!$B4+PantomimeMR!$C4)>0,1,0) -> 1 | E4: 6 | F4: 24 | G4: 5 | H4: 25 | I4: 6 | J4: 22 | K4: =SUM(E4,G4,I4) -> 17 | L4: 71
A5: =Pantomime!A6 -> A-503 | B5: =Pantomime!U6 -> 7 | C5: =Pantomime!S6 -> 72 | D5: =IF((PantomimeMR!$B5+PantomimeMR!$C5)>0,1,0) -> 1 | K5: =SUM(E5,G5,I5) -> 0 | L5: 0
A6: =Pantomime!A7 -> A-504 | B6: =Pantomime!U7 -> 4 | C6: =Pantomime!S7 -> 75 | D6: =IF((PantomimeMR!$B6+PantomimeMR!$C6)>0,1,0) -> 1 | E6: 4 | F6: 24 | G6: 6 | H6: 25 | I6: 3 | J6: 25 | K6: =SUM(E6,G6,I6) -> 13 | L6: 74
A7: =Pantomime!A124 -> AA-501 | B7: =Pantomime!U124 -> 0 | C7: =Pantomime!S124 -> 0 | D7: =IF((PantomimeMR!$B7+PantomimeMR!$C7)>0,1,0) -> 0 | K7: =SUM(E7,G7,I7) -> 0 | L7: 0
A8: =Pantomime!A125 -> AA-502 | B8: =Pantomime!U125 -> 0 | C8: =Pantomime!S125 -> 0 | D8: =IF((PantomimeMR!$B8+PantomimeMR!$C8)>0,1,0) -> 0 | K8: =SUM(E8,G8,I8) -> 0 | L8: 0
A9: =Pantomime!A126 -> AA-503 | B9: =Pantomime!U126 -> 0 | C9: =Pantomime!S126 -> 0 | D9: =IF((PantomimeMR!$B9+PantomimeMR!$C9)>0,1,0) -> 0 | K9: =SUM(E9,G9,I9) -> 0 | L9: 0
A10: =Pantomime!A127 -> AA-504 | B10: =Pantomime!U127 -> 0 | C10: =Pantomime!S127 -> 0 | D10: =IF((PantomimeMR!$B10+PantomimeMR!$C10)>0,1,0) -> 0 | K10: =SUM(E10,G10,I10) -> 0 | L10: 0
A11: =Pantomime!A9 -> B-501 | B11: =Pantomime!U9 -> 0 | C11: =Pantomime!S9 -> 0 | D11: =IF((PantomimeMR!$B11+PantomimeMR!$C11)>0,1,0) -> 0 | K11: =SUM(E11,G11,I11) -> 0 | L11: 0
A12: =Pantomime!A10 -> B-502 | B12: =Pantomime!U10 -> 0 | C12: =Pantomime!S10 -> 0 | D12: =IF((PantomimeMR!$B12+PantomimeMR!$C12)>0,1,0) -> 0 | K12: =SUM(E12,G12,I12) -> 0 | L12: 0
A13: =Pantomime!A11 -> B-503 | B13: =Pantomime!U11 -> 0 | C13: =Pantomime!S11 -> 0 | D13: =IF((PantomimeMR!$B13+PantomimeMR!$C13)>0,1,0) -> 0 | K13: =SUM(E13,G13,I13) -> 0 | L13: 0
A14: =Pantomime!A12 -> B-504 | B14: =Pantomime!U12 -> 0 | C14: =Pantomime!S12 -> 0 | D14: =IF((PantomimeMR!$B14+PantomimeMR!$C14)>0,1,0) -> 0 | K14: =SUM(E14,G14,I14) -> 0 | L14: 0
A15: =Pantomime!A129 -> BB-501 | B15: =Pantomime!U129 -> 0 | C15: =Pantomime!S129 -> 0 | D15: =IF((PantomimeMR!$B15+PantomimeMR!$C15)>0,1,0) -> 0 | K15: =SUM(E15,G15,I15) -> 0 | L15: 0
A16: =Pantomime!A130 -> BB-502 | B16: =Pantomime!U130 -> 0 | C16: =Pantomime!S130 -> 0 | D16: =IF((PantomimeMR!$B16+PantomimeMR!$C16)>0,1,0) -> 0 | K16: =SUM(E16,G16,I16) -> 0 | L16: 0
A17: =Pantomime!A131 -> BB-503 | B17: =Pantomime!U131 -> 0 | C17: =Pantomime!S131 -> 0 | D17: =IF((PantomimeMR!$B17+PantomimeMR!$C17)>0,1,0) -> 0 | K17: =SUM(E17,G17,I17) -> 0 | L17: 0
A18: =Pantomime!A132 -> BB-504 | B18: =Pantomime!U132 -> 0 | C18: =Pantomime!S132 -> 0 | D18: =IF((PantomimeMR!$B18+PantomimeMR!$C18)>0,1,0) -> 0 | K18: =SUM(E18,G18,I18) -> 0 | L18: 0
A19: =Pantomime!A14 -> C-501 | B19: =Pantomime!U14 -> 9 | C19: =Pantomime!S14 -> 65 | D19: =IF((PantomimeMR!$B19+PantomimeMR!$C19)>0,1,0) -> 1 | K19: =SUM(E19,G19,I19) -> 0 | L19: 0
A20: =Pantomime!A15 -> C-502 | B20: =Pantomime!U15 -> 4 | C20: =Pantomime!S15 -> 72 | D20: =IF((PantomimeMR!$B20+PantomimeMR!$C20)>0,1,0) -> 1 | E20: 6 | F20: 23 | G20: 3 | H20: 25 | I20: 5 | J20: 24 | K20: =SUM(E20,G20,I20) -> 14 | L20: 72
A21: =Pantomime!A16 -> C-503 | B21: =Pantomime!U16 -> 5 | C21: =Pantomime!S16 -> 73 | D21: =IF((PantomimeMR!$B21+PantomimeMR!$C21)>0,1,0) -> 1 | E21: 5 | F21: 24 | G21: 4 | H21: 25 | I21: 2 | J21: 25 | K21: =SUM(E21,G21,I21) -> 11 | L21: 74
A22: =Pantomime!A17 -> C-504 | B22: =Pantomime!U17 -> 5 | C22: =Pantomime!S17 -> 74 | D22: =IF((PantomimeMR!$B22+PantomimeMR!$C22)>0,1,0) -> 1 | E22: 1 | F22: 25 | G22: 1 | H22: 25 | I22: 1 | J22: 25 | K22: =SUM(E22,G22,I22) -> 3 | L22: 75
A23: =Pantomime!A134 -> CC-501 | B23: =Pantomime!U134 -> 0 | C23: =Pantomime!S134 -> 0 | D23: =IF((PantomimeMR!$B23+PantomimeMR!$C23)>0,1,0) -> 0 | K23: =SUM(E23,G23,I23) -> 0 | L23: 0
A24: =Pantomime!A135 -> CC-502 | B24: =Pantomime!U135 -> 0 | C24: =Pantomime!S135 -> 0 | D24: =IF((PantomimeMR!$B24+PantomimeMR!$C24)>0,1,0) -> 0 | K24: =SUM(E24,G24,I24) -> 0 | L24: 0
A25: =Pantomime!A136 -> CC-503 | B25: =Pantomime!U136 -> 0 | C25: =Pantomime!S136 -> 0 | D25: =IF((PantomimeMR!$B25+PantomimeMR!$C25)>0,1,0) -> 0 | K25: =SUM(E25,G25,I25) -> 0 | L25: 0
A26: =Pantomime!A137 -> CC-504 | B26: =Pantomime!U137 -> 0 | C26: =Pantomime!S137 -> 0 | D26: =IF((PantomimeMR!$B26+PantomimeMR!$C26)>0,1,0) -> 0 | K26: =SUM(E26,G26,I26) -> 0 | L26: 0
A27: =Pantomime!A19 -> D-501 | B27: =Pantomime!U19 -> 0 | C27: =Pantomime!S19 -> 0 | D27: =IF((PantomimeMR!$B27+PantomimeMR!$C27)>0,1,0) -> 0 | K27: =SUM(E27,G27,I27) -> 0 | L27: 0
A28: =Pantomime!A20 -> D-502 | B28: =Pantomime!U20 -> 0 | C28: =Pantomime!S20 -> 0 | D28: =IF((PantomimeMR!$B28+PantomimeMR!$C28)>0,1,0) -> 0 | K28: =SUM(E28,G28,I28) -> 0 | L28: 0
A29: =Pantomime!A21 -> D-503 | B29: =Pantomime!U21 -> 0 | C29: =Pantomime!S21 -> 0 | D29: =IF((PantomimeMR!$B29+PantomimeMR!$C29)>0,1,0) -> 0 | K29: =SUM(E29,G29,I29) -> 0 | L29: 0
A30: =Pantomime!A22 -> D-504 | B30: =Pantomime!U22 -> 0 | C30: =Pantomime!S22 -> 0 | D30: =IF((PantomimeMR!$B30+PantomimeMR!$C30)>0,1,0) -> 0 | K30: =SUM(E30,G30,I30) -> 0 | L30: 0
A31: =Pantomime!A139 -> DD-501 | B31: =Pantomime!U139 -> 0 | C31: =Pantomime!S139 -> 0 | D31: =IF((PantomimeMR!$B31+PantomimeMR!$C31)>0,1,0) -> 0 | K31: =SUM(E31,G31,I31) -> 0 | L31: 0
A32: =Pantomime!A140 -> DD-502 | B32: =Pantomime!U140 -> 0 | C32: =Pantomime!S140 -> 0 | D32: =IF((PantomimeMR!$B32+PantomimeMR!$C32)>0,1,0) -> 0 | K32: =SUM(E32,G32,I32) -> 0 | L32: 0
A33: =Pantomime!A141 -> DD-503 | B33: =Pantomime!U141 -> 0 | C33: =Pantomime!S141 -> 0 | D33: =IF((PantomimeMR!$B33+PantomimeMR!$C33)>0,1,0) -> 0 | K33: =SUM(E33,G33,I33) -> 0 | L33: 0
A34: =Pantomime!A142 -> DD-504 | B34: =Pantomime!U142 -> 0 | C34: =Pantomime!S142 -> 0 | D34: =IF((PantomimeMR!$B34+PantomimeMR!$C34)>0,1,0) -> 0 | K34: =SUM(E34,G34,I34) -> 0 | L34: 0
A35: =Pantomime!A24 -> E-501 | B35: =Pantomime!U24 -> 8 | C35: =Pantomime!S24 -> 65 | D35: =IF((PantomimeMR!$B35+PantomimeMR!$C35)>0,1,0) -> 1 | K35: =SUM(E35,G35,I35) -> 0 | L35: 0
A36: =Pantomime!A25 -> E-502 | B36: =Pantomime!U25 -> 11 | C36: =Pantomime!S25 -> 66 | D36: =IF((PantomimeMR!$B36+PantomimeMR!$C36)>0,1,0) -> 1 | K36: =SUM(E36,G36,I36) -> 0 | L36: 0
A37: =Pantomime!A26 -> E-503 | B37: =Pantomime!U26 -> 12 | C37: =Pantomime!S26 -> 54 | D37: =IF((PantomimeMR!$B37+PantomimeMR!$C37)>0,1,0) -> 1 | K37: =SUM(E37,G37,I37) -> 0 | L37: 0
A38: =Pantomime!A27 -> E-504 | B38: =Pantomime!U27 -> 9 | C38: =Pantomime!S27 -> 69 | D38: =IF((PantomimeMR!$B38+PantomimeMR!$C38)>0,1,0) -> 1 | K38: =SUM(E38,G38,I38) -> 0 | L38: 0
A39: =Pantomime!A144 -> EE-501 | B39: =Pantomime!U144 -> 0 | C39: =Pantomime!S144 -> 0 | D39: =IF((PantomimeMR!$B39+PantomimeMR!$C39)>0,1,0) -> 0 | K39: =SUM(E39,G39,I39) -> 0 | L39: 0
A40: =Pantomime!A145 -> EE-502 | B40: =Pantomime!U145 -> 0 | C40: =Pantomime!S145 -> 0 | D40: =IF((PantomimeMR!$B40+PantomimeMR!$C40)>0,1,0) -> 0 | K40: =SUM(E40,G40,I40) -> 0 | L40: 0
A41: =Pantomime!A146 -> EE-503 | B41: =Pantomime!U146 -> 0 | C41: =Pantomime!S146 -> 0 | D41: =IF((PantomimeMR!$B41+PantomimeMR!$C41)>0,1,0) -> 0 | K41: =SUM(E41,G41,I41) -> 0 | L41: 0
A42: =Pantomime!A147 -> EE-504 | B42: =Pantomime!U147 -> 0 | C42: =Pantomime!S147 -> 0 | D42: =IF((PantomimeMR!$B42+PantomimeMR!$C42)>0,1,0) -> 0 | K42: =SUM(E42,G42,I42) -> 0 | L42: 0
A43: =Pantomime!A29 -> F-501 | B43: =Pantomime!U29 -> 4 | C43: =Pantomime!S29 -> 68 | D43: =IF((PantomimeMR!$B43+PantomimeMR!$C43)>0,1,0) -> 1 | E43: 6 | F43: 23 | G43: 2 | H43: 25 | I43: 4 | J43: 25 | K43: =SUM(E43,G43,I43) -> 12 | L43: 73
A44: =Pantomime!A30 -> F-502 | B44: =Pantomime!U30 -> 9 | C44: =Pantomime!S30 -> 66 | D44: =IF((PantomimeMR!$B44+PantomimeMR!$C44)>0,1,0) -> 1 | K44: =SUM(E44,G44,I44) -> 0 | L44: 0
A45: =Pantomime!A31 -> F-503 | B45: =Pantomime!U31 -> 10 | C45: =Pantomime!S31 -> 59 | D45: =IF((PantomimeMR!$B45+PantomimeMR!$C45)>0,1,0) -> 1 | K45: =SUM(E45,G45,I45) -> 0 | L45: 0
A46: =Pantomime!A32 -> F-504 | B46: =Pantomime!U32 -> 12 | C46: =Pantomime!S32 -> 63 | D46: =IF((PantomimeMR!$B46+PantomimeMR!$C46)>0,1,0) -> 1 | K46: =SUM(E46,G46,I46) -> 0 | L46: 0
A47: =Pantomime!A149 -> FF-501 | B47: =Pantomime!U149 -> 0 | C47: =Pantomime!S149 -> 0 | D47: =IF((PantomimeMR!$B47+PantomimeMR!$C47)>0,1,0) -> 0 | K47: =SUM(E47,G47,I47) -> 0 | L47: 0
A48: =Pantomime!A150 -> FF-502 | B48: =Pantomime!U150 -> 0 | C48: =Pantomime!S150 -> 0 | D48: =IF((PantomimeMR!$B48+PantomimeMR!$C48)>0,1,0) -> 0 | K48: =SUM(E48,G48,I48) -> 0 | L48: 0
A49: =Pantomime!A151 -> FF-503 | B49: =Pantomime!U151 -> 0 | C49: =Pantomime!S151 -> 0 | D49: =IF((PantomimeMR!$B49+PantomimeMR!$C49)>0,1,0) -> 0 | K49: =SUM(E49,G49,I49) -> 0 | L49: 0
A50: =Pantomime!A152 -> FF-504 | B50: =Pantomime!U152 -> 0 | C50: =Pantomime!S152 -> 0 | D50: =IF((PantomimeMR!$B50+PantomimeMR!$C50)>0,1,0) -> 0 | K50: =SUM(E50,G50,I50) -> 0 | L50: 0
A51: =Pantomime!A34 -> G-501 | B51: =Pantomime!U34 -> 0 | C51: =Pantomime!S34 -> 0 | D51: =IF((PantomimeMR!$B51+PantomimeMR!$C51)>0,1,0) -> 0 | K51: =SUM(E51,G51,I51) -> 0 | L51: 0
A52: =Pantomime!A35 -> G-502 | B52: =Pantomime!U35 -> 0 | C52: =Pantomime!S35 -> 0 | D52: =IF((PantomimeMR!$B52+PantomimeMR!$C52)>0,1,0) -> 0 | K52: =SUM(E52,G52,I52) -> 0 | L52: 0
A53: =Pantomime!A36 -> G-503 | B53: =Pantomime!U36 -> 0 | C53: =Pantomime!S36 -> 0 | D53: =IF((PantomimeMR!$B53+PantomimeMR!$C53)>0,1,0) -> 0 | K53: =SUM(E53,G53,I53) -> 0 | L53: 0
A54: =Pantomime!A37 -> G-504 | B54: =Pantomime!U37 -> 0 | C54: =Pantomime!S37 -> 0 | D54: =IF((PantomimeMR!$B54+PantomimeMR!$C54)>0,1,0) -> 0 | K54: =SUM(E54,G54,I54) -> 0 | L54: 0
A55: =Pantomime!A39 -> H-501 | B55: =Pantomime!U39 -> 9 | C55: =Pantomime!S39 -> 71 | D55: =IF((PantomimeMR!$B55+PantomimeMR!$C55)>0,1,0) -> 1 | K55: =SUM(E55,G55,I55) -> 0 | L55: 0
A56: =Pantomime!A40 -> H-502 | B56: =Pantomime!U40 -> 9 | C56: =Pantomime!S40 -> 67 | D56: =IF((PantomimeMR!$B56+PantomimeMR!$C56)>0,1,0) -> 1 | K56: =SUM(E56,G56,I56) -> 0 | L56: 0
A57: =Pantomime!A41 -> H-503 | B57: =Pantomime!U41 -> 10 | C57: =Pantomime!S41 -> 65 | D57: =IF((PantomimeMR!$B57+PantomimeMR!$C57)>0,1,0) -> 1 | K57: =SUM(E57,G57,I57) -> 0 | L57: 0
A58: =Pantomime!A42 -> H-504 | B58: =Pantomime!U42 -> 0 | C58: =Pantomime!S42 -> 0 | D58: =IF((PantomimeMR!$B58+PantomimeMR!$C58)>0,1,0) -> 0 | K58: =SUM(E58,G58,I58) -> 0 | L58: 0
A59: =Pantomime!A44 -> J-501 | B59: =Pantomime!U44 -> 0 | C59: =Pantomime!S44 -> 0 | D59: =IF((PantomimeMR!$B59+PantomimeMR!$C59)>0,1,0) -> 0 | K59: =SUM(E59,G59,I59) -> 0 | L59: 0
A60: =Pantomime!A45 -> J-502 | B60: =Pantomime!U45 -> 0 | C60: =Pantomime!S45 -> 0 | D60: =IF((PantomimeMR!$B60+PantomimeMR!$C60)>0,1,0) -> 0 | K60: =SUM(E60,G60,I60) -> 0 | L60: 0
A61: =Pantomime!A46 -> J-503 | B61: =Pantomime!U46 -> 0 | C61: =Pantomime!S46 -> 0 | D61: =IF((PantomimeMR!$B61+PantomimeMR!$C61)>0,1,0) -> 0 | K61: =SUM(E61,G61,I61) -> 0 | L61: 0
A62: =Pantomime!A47 -> J-504 | B62: =Pantomime!U47 -> 0 | C62: =Pantomime!S47 -> 0 | D62: =IF((PantomimeMR!$B62+PantomimeMR!$C62)>0,1,0) -> 0 | K62: =SUM(E62,G62,I62) -> 0 | L62: 0
A63: =Pantomime!A49 -> K-501 | B63: =Pantomime!U49 -> 12 | C63: =Pantomime!S49 -> 65 | D63: =IF((PantomimeMR!$B63+PantomimeMR!$C63)>0,1,0) -> 1 | K63: =SUM(E63,G63,I63) -> 0 | L63: 0
A64: =Pantomime!A50 -> K-502 | B64: =Pantomime!U50 -> 0 | C64: =Pantomime!S50 -> 0 | D64: =IF((PantomimeMR!$B64+PantomimeMR!$C64)>0,1,0) -> 0 | K64: =SUM(E64,G64,I64) -> 0 | L64: 0
A65: =Pantomime!A51 -> K-503 | B65: =Pantomime!U51 -> 0 | C65: =Pantomime!S51 -> 0 | D65: =IF((PantomimeMR!$B65+PantomimeMR!$C65)>0,1,0) -> 0 | K65: =SUM(E65,G65,I65) -> 0 | L65: 0
A66: =Pantomime!A52 -> K-504 | B66: =Pantomime!U52 -> 0 | C66: =Pantomime!S52 -> 0 | D66: =IF((PantomimeMR!$B66+PantomimeMR!$C66)>0,1,0) -> 0 | K66: =SUM(E66,G66,I66) -> 0 | L66: 0
A67: =Pantomime!A54 -> L-501 | B67: =Pantomime!U54 -> 12 | C67: =Pantomime!S54 -> 64 | D67: =IF((PantomimeMR!$B67+PantomimeMR!$C67)>0,1,0) -> 1 | K67: =SUM(E67,G67,I67) -> 0 | L67: 0
A68: =Pantomime!A55 -> L-502 | B68: =Pantomime!U55 -> 0 | C68: =Pantomime!S55 -> 0 | D68: =IF((PantomimeMR!$B68+PantomimeMR!$C68)>0,1,0) -> 0 | K68: =SUM(E68,G68,I68) -> 0 | L68: 0
A69: =Pantomime!A56 -> L-503 | B69: =Pantomime!U56 -> 7 | C69: =Pantomime!S56 -> 66 | D69: =IF((PantomimeMR!$B69+PantomimeMR!$C69)>0,1,0) -> 1 | K69: =SUM(E69,G69,I69) -> 0 | L69: 0
A70: =Pantomime!A57 -> L-504 | B70: =Pantomime!U57 -> 0 | C70: =Pantomime!S57 -> 0 | D70: =IF((PantomimeMR!$B70+PantomimeMR!$C70)>0,1,0) -> 0 | K70: =SUM(E70,G70,I70) -> 0 | L70: 0
A71: =Pantomime!A59 -> M-501 | B71: =Pantomime!U59 -> 7 | C71: =Pantomime!S59 -> 69 | D71: =IF((PantomimeMR!$B71+PantomimeMR!$C71)>0,1,0) -> 1 | K71: =SUM(E71,G71,I71) -> 0 | L71: 0
A72: =Pantomime!A60 -> M-502 | B72: =Pantomime!U60 -> 7 | C72: =Pantomime!S60 -> 69 | D72: =IF((PantomimeMR!$B72+PantomimeMR!$C72)>0,1,0) -> 1 | K72: =SUM(E72,G72,I72) -> 0 | L72: 0
A73: =Pantomime!A61 -> M-503 | B73: =Pantomime!U61 -> 0 | C73: =Pantomime!S61 -> 0 | D73: =IF((PantomimeMR!$B73+PantomimeMR!$C73)>0,1,0) -> 0 | K73: =SUM(E73,G73,I73) -> 0 | L73: 0
A74: =Pantomime!A62 -> M-504 | B74: =Pantomime!U62 -> 0 | C74: =Pantomime!S62 -> 0 | D74: =IF((PantomimeMR!$B74+PantomimeMR!$C74)>0,1,0) -> 0 | K74: =SUM(E74,G74,I74) -> 0 | L74: 0
A75: =Pantomime!A64 -> N-501 | B75: =Pantomime!U64 -> 11 | C75: =Pantomime!S64 -> 61 | D75: =IF((PantomimeMR!$B75+PantomimeMR!$C75)>0,1,0) -> 1 | K75: =SUM(E75,G75,I75) -> 0 | L75: 0
A76: =Pantomime!A65 -> N-502 | B76: =Pantomime!U65 -> 0 | C76: =Pantomime!S65 -> 0 | D76: =IF((PantomimeMR!$B76+PantomimeMR!$C76)>0,1,0) -> 0 | K76: =SUM(E76,G76,I76) -> 0 | L76: 0
A77: =Pantomime!A66 -> N-503 | B77: =Pantomime!U66 -> 0 | C77: =Pantomime!S66 -> 0 | D77: =IF((PantomimeMR!$B77+PantomimeMR!$C77)>0,1,0) -> 0 | K77: =SUM(E77,G77,I77) -> 0 | L77: 0
A78: =Pantomime!A67 -> N-504 | B78: =Pantomime!U67 -> 0 | C78: =Pantomime!S67 -> 0 | D78: =IF((PantomimeMR!$B78+PantomimeMR!$C78)>0,1,0) -> 0 | K78: =SUM(E78,G78,I78) -> 0 | L78: 0
A79: =Pantomime!A69 -> P-501 | B79: =Pantomime!U69 -> 7 | C79: =Pantomime!S69 -> 75 | D79: =IF((PantomimeMR!$B79+PantomimeMR!$C79)>0,1,0) -> 1 | K79: =SUM(E79,G79,I79) -> 0 | L79: 0
A80: =Pantomime!A70 -> P-502 | B80: =Pantomime!U70 -> 4 | C80: =Pantomime!S70 -> 74 | D80: =IF((PantomimeMR!$B80+PantomimeMR!$C80)>0,1,0) -> 1 | E80: 3 | F80: 24 | G80: 6 | H80: 25 | I80: 6 | J80: 21 | K80: =SUM(E80,G80,I80) -> 15 | L80: 70
A81: =Pantomime!A71 -> P-503 | B81: =Pantomime!U71 -> 6 | C81: =Pantomime!S71 -> 73 | D81: =IF((PantomimeMR!$B81+PantomimeMR!$C81)>0,1,0) -> 1 | K81: =SUM(E81,G81,I81) -> 0 | L81: 0
A82: =Pantomime!A72 -> P-504 | B82: =Pantomime!U72 -> 0 | C82: =Pantomime!S72 -> 0 | D82: =IF((PantomimeMR!$B82+PantomimeMR!$C82)>0,1,0) -> 0 | K82: =SUM(E82,G82,I82) -> 0 | L82: 0
A83: =Pantomime!A74 -> Q-501 | B83: =Pantomime!U74 -> 0 | C83: =Pantomime!S74 -> 0 | D83: =IF((PantomimeMR!$B83+PantomimeMR!$C83)>0,1,0) -> 0 | K83: =SUM(E83,G83,I83) -> 0 | L83: 0
A84: =Pantomime!A75 -> Q-502 | B84: =Pantomime!U75 -> 0 | C84: =Pantomime!S75 -> 0 | D84: =IF((PantomimeMR!$B84+PantomimeMR!$C84)>0,1,0) -> 0 | K84: =SUM(E84,G84,I84) -> 0 | L84: 0
A85: =Pantomime!A76 -> Q-502 | B85: =Pantomime!U76 -> 0 | C85: =Pantomime!S76 -> 0 | D85: =IF((PantomimeMR!$B85+PantomimeMR!$C85)>0,1,0) -> 0 | K85: =SUM(E85,G85,I85) -> 0 | L85: 0
A86: =Pantomime!A77 -> Q-504 | B86: =Pantomime!U77 -> 0 | C86: =Pantomime!S77 -> 0 | D86: =IF((PantomimeMR!$B86+PantomimeMR!$C86)>0,1,0) -> 0 | K86: =SUM(E86,G86,I86) -> 0 | L86: 0
A87: =Pantomime!A79 -> R-501 | B87: =Pantomime!U79 -> 0 | C87: =Pantomime!S79 -> 0 | D87: =IF((PantomimeMR!$B87+PantomimeMR!$C87)>0,1,0) -> 0 | K87: =SUM(E87,G87,I87) -> 0 | L87: 0
A88: =Pantomime!A80 -> R-502 | B88: =Pantomime!U80 -> 0 | C88: =Pantomime!S80 -> 0 | D88: =IF((PantomimeMR!$B88+PantomimeMR!$C88)>0,1,0) -> 0 | K88: =SUM(E88,G88,I88) -> 0 | L88: 0
A89: =Pantomime!A81 -> R-503 | B89: =Pantomime!U81 -> 0 | C89: =Pantomime!S81 -> 0 | D89: =IF((PantomimeMR!$B89+PantomimeMR!$C89)>0,1,0) -> 0 | K89: =SUM(E89,G89,I89) -> 0 | L89: 0
A90: =Pantomime!A82 -> R-504 | B90: =Pantomime!U82 -> 0 | C90: =Pantomime!S82 -> 0 | D90: =IF((PantomimeMR!$B90+PantomimeMR!$C90)>0,1,0) -> 0 | K90: =SUM(E90,G90,I90) -> 0 | L90: 0
A91: =Pantomime!A84 -> S-501 | B91: =Pantomime!U84 -> 11 | C91: =Pantomime!S84 -> 67 | D91: =IF((PantomimeMR!$B91+PantomimeMR!$C91)>0,1,0) -> 1 | K91: =SUM(E91,G91,I91) -> 0 | L91: 0
A92: =Pantomime!A85 -> S-502 | B92: =Pantomime!U85 -> 10 | C92: =Pantomime!S85 -> 59 | D92: =IF((PantomimeMR!$B92+PantomimeMR!$C92)>0,1,0) -> 1 | K92: =SUM(E92,G92,I92) -> 0 | L92: 0
A93: =Pantomime!A86 -> S-503 | B93: =Pantomime!U86 -> 7 | C93: =Pantomime!S86 -> 71 | D93: =IF((PantomimeMR!$B93+PantomimeMR!$C93)>0,1,0) -> 1 | K93: =SUM(E93,G93,I93) -> 0 | L93: 0
A94: =Pantomime!A87 -> S-504 | B94: =Pantomime!U87 -> 0 | C94: =Pantomime!S87 -> 0 | D94: =IF((PantomimeMR!$B94+PantomimeMR!$C94)>0,1,0) -> 0 | K94: =SUM(E94,G94,I94) -> 0 | L94: 0
A95: =Pantomime!A89 -> T-501 | B95: =Pantomime!U89 -> 0 | C95: =Pantomime!S89 -> 0 | D95: =IF((PantomimeMR!$B95+PantomimeMR!$C95)>0,1,0) -> 0 | K95: =SUM(E95,G95,I95) -> 0 | L95: 0
A96: =Pantomime!A90 -> T-502 | B96: =Pantomime!U90 -> 0 | C96: =Pantomime!S90 -> 0 | D96: =IF((PantomimeMR!$B96+PantomimeMR!$C96)>0,1,0) -> 0 | K96: =SUM(E96,G96,I96) -> 0 | L96: 0
A97: =Pantomime!A91 -> T-503 | B97: =Pantomime!U91 -> 0 | C97: =Pantomime!S91 -> 0 | D97: =IF((PantomimeMR!$B97+PantomimeMR!$C97)>0,1,0) -> 0 | K97: =SUM(E97,G97,I97) -> 0 | L97: 0
A98: =Pantomime!A92 -> T-504 | B98: =Pantomime!U92 -> 0 | C98: =Pantomime!S92 -> 0 | D98: =IF((PantomimeMR!$B98+PantomimeMR!$C98)>0,1,0) -> 0 | K98: =SUM(E98,G98,I98) -> 0 | L98: 0
A99: =Pantomime!A94 -> U-501 | B99: =Pantomime!U94 -> 0 | C99: =Pantomime!S94 -> 0 | D99: =IF((PantomimeMR!$B99+PantomimeMR!$C99)>0,1,0) -> 0 | K99: =SUM(E99,G99,I99) -> 0 | L99: 0
A100: =Pantomime!A95 -> U-502 | B100: =Pantomime!U95 -> 0 | C100: =Pantomime!S95 -> 0 | D100: =IF((PantomimeMR!$B100+PantomimeMR!$C100)>0,1,0) -> 0 | K100: =SUM(E100,G100,I100) -> 0 | L100: 0
A101: =Pantomime!A96 -> U-503 | B101: =Pantomime!U96 -> 0 | C101: =Pantomime!S96 -> 0 | D101: =IF((PantomimeMR!$B101+PantomimeMR!$C101)>0,1,0) -> 0 | K101: =SUM(E101,G101,I101) -> 0 | L101: 0
A102: =Pantomime!A97 -> U-504 | B102: =Pantomime!U97 -> 0 | C102: =Pantomime!S97 -> 0 | D102: =IF((PantomimeMR!$B102+PantomimeMR!$C102)>0,1,0) -> 0 | K102: =SUM(E102,G102,I102) -> 0 | L102: 0
A103: =Pantomime!A99 -> V-501 | B103: =Pantomime!U99 -> 0 | C103: =Pantomime!S99 -> 0 | D103: =IF((PantomimeMR!$B103+PantomimeMR!$C103)>0,1,0) -> 0 | K103: =SUM(E103,G103,I103) -> 0 | L103: 0
A104: =Pantomime!A100 -> V-502 | B104: =Pantomime!U100 -> 0 | C104: =Pantomime!S100 -> 0 | D104: =IF((PantomimeMR!$B104+PantomimeMR!$C104)>0,1,0) -> 0 | K104: =SUM(E104,G104,I104) -> 0 | L104: 0
A105: =Pantomime!A101 -> V-503 | B105: =Pantomime!U101 -> 0 | C105: =Pantomime!S101 -> 0 | D105: =IF((PantomimeMR!$B105+PantomimeMR!$C105)>0,1,0) -> 0 | K105: =SUM(E105,G105,I105) -> 0 | L105: 0
A106: =Pantomime!A102 -> V-504 | B106: =Pantomime!U102 -> 0 | C106: =Pantomime!S102 -> 0 | D106: =IF((PantomimeMR!$B106+PantomimeMR!$C106)>0,1,0) -> 0 | K106: =SUM(E106,G106,I106) -> 0 | L106: 0
A107: =Pantomime!A104 -> W-501 | B107: =Pantomime!U104 -> 0 | C107: =Pantomime!S104 -> 0 | D107: =IF((PantomimeMR!$B107+PantomimeMR!$C107)>0,1,0) -> 0 | K107: =SUM(E107,G107,I107) -> 0 | L107: 0
A108: =Pantomime!A105 -> W-502 | B108: =Pantomime!U105 -> 0 | C108: =Pantomime!S105 -> 0 | D108: =IF((PantomimeMR!$B108+PantomimeMR!$C108)>0,1,0) -> 0 | K108: =SUM(E108,G108,I108) -> 0 | L108: 0
A109: =Pantomime!A106 -> W-503 | B109: =Pantomime!U106 -> 0 | C109: =Pantomime!S106 -> 0 | D109: =IF((PantomimeMR!$B109+PantomimeMR!$C109)>0,1,0) -> 0 | K109: =SUM(E109,G109,I109) -> 0 | L109: 0
A110: =Pantomime!A107 -> W-504 | B110: =Pantomime!U107 -> 0 | C110: =Pantomime!S107 -> 0 | D110: =IF((PantomimeMR!$B110+PantomimeMR!$C110)>0,1,0) -> 0 | K110: =SUM(E110,G110,I110) -> 0 | L110: 0
A111: =Pantomime!A109 -> X-501 | B111: =Pantomime!U109 -> 0 | C111: =Pantomime!S109 -> 0 | D111: =IF((PantomimeMR!$B111+PantomimeMR!$C111)>0,1,0) -> 0 | K111: =SUM(E111,G111,I111) -> 0 | L111: 0
A112: =Pantomime!A110 -> X-502 | B112: =Pantomime!U110 -> 0 | C112: =Pantomime!S110 -> 0 | D112: =IF((PantomimeMR!$B112+PantomimeMR!$C112)>0,1,0) -> 0 | K112: =SUM(E112,G112,I112) -> 0 | L112: 0
A113: =Pantomime!A111 -> X-503 | B113: =Pantomime!U111 -> 0 | C113: =Pantomime!S111 -> 0 | D113: =IF((PantomimeMR!$B113+PantomimeMR!$C113)>0,1,0) -> 0 | K113: =SUM(E113,G113,I113) -> 0 | L113: 0
A114: =Pantomime!A112 -> X-504 | B114: =Pantomime!U112 -> 0 | C114: =Pantomime!S112 -> 0 | D114: =IF((PantomimeMR!$B114+PantomimeMR!$C114)>0,1,0) -> 0 | K114: =SUM(E114,G114,I114) -> 0 | L114: 0
A115: =Pantomime!A114 -> Y-501 | B115: =Pantomime!U114 -> 0 | C115: =Pantomime!S114 -> 0 | D115: =IF((PantomimeMR!$B115+PantomimeMR!$C115)>0,1,0) -> 0 | K115: =SUM(E115,G115,I115) -> 0 | L115: 0
A116: =Pantomime!A115 -> Y-502 | B116: =Pantomime!U115 -> 0 | C116: =Pantomime!S115 -> 0 | D116: =IF((PantomimeMR!$B116+PantomimeMR!$C116)>0,1,0) -> 0 | K116: =SUM(E116,G116,I116) -> 0 | L116: 0
A117: =Pantomime!A116 -> Y-503 | B117: =Pantomime!U116 -> 0 | C117: =Pantomime!S116 -> 0 | D117: =IF((PantomimeMR!$B117+PantomimeMR!$C117)>0,1,0) -> 0 | K117: =SUM(E117,G117,I117) -> 0 | L117: 0
A118: =Pantomime!A117 -> Y-504 | B118: =Pantomime!U117 -> 0 | C118: =Pantomime!S117 -> 0 | D118: =IF((PantomimeMR!$B118+PantomimeMR!$C118)>0,1,0) -> 0 | K118: =SUM(E118,G118,I118) -> 0 | L118: 0
A119: =Pantomime!A119 -> Z-501 | B119: =Pantomime!U119 -> 0 | C119: =Pantomime!S119 -> 0 | D119: =IF((PantomimeMR!$B119+PantomimeMR!$C119)>0,1,0) -> 0 | K119: =SUM(E119,G119,I119) -> 0 | L119: 0
A120: =Pantomime!A120 -> Z-502 | B120: =Pantomime!U120 -> 0 | C120: =Pantomime!S120 -> 0 | D120: =IF((PantomimeMR!$B120+PantomimeMR!$C120)>0,1,0) -> 0 | K120: =SUM(E120,G120,I120) -> 0 | L120: 0
A121: =Pantomime!A121 -> Z-503 | B121: =Pantomime!U121 -> 0 | C121: =Pantomime!S121 -> 0 | D121: =IF((PantomimeMR!$B121+PantomimeMR!$C121)>0,1,0) -> 0 | K121: =SUM(E121,G121,I121) -> 0 | L121: 0
A122: =Pantomime!A122 -> Z-504 | B122: =Pantomime!U122 -> 0 | C122: =Pantomime!S122 -> 0 | D122: =IF((PantomimeMR!$B122+PantomimeMR!$C122)>0,1,0) -> 0 | K122: =SUM(E122,G122,I122) -> 0 | L122: 0

Sheet MusicalTheatre
A1: Musical Theatre | L1: Rank 1-4 | Y1: S | Z1: E | AA1: G | AB1: F | AD1: 1violation | AE1: 2violations | AF1: 3violations
J2: *only need one of these | L2: Round 1: | N2: Round 2: | P2: Round 3: | R2: -2 for each | AC2: Drops lowest from column q
B3: Student Name | D3: Student Name | F3: Student Name | H3: Student Name | J3: Title of Piece | K3: Title of Musical | L3: R1 rank | M3: R1 score | N3: R2 rank | O3: R2 score | P3: R3 rank | Q3: R3 score | R3: Time Violations | T3: TOTAL SCORE | V3: TOTAL RANK | Y3: TOTAL SCHOOL SWEEPS POINTS | AC3: Drop Lowest
A4: A-601 | B4: Kate | C4: Stevens | J4: Fancy Meeting | K4: Lucky Stiff | L4: 1 | M4: 25 | N4: 1 | O4: 25 | P4: 1 | Q4: 25 | S4: =IF(R4="1violation",-7*1,IF(R4="2violations",-7*2,IF(R4="3violations",-7*3,IF(R4="","")))) ->  | T4: =SUM(M4,O4,Q4,S4) -> 75 | V4: =SUM(L4,N4,P4) -> 3 | Z4: =SUM(T4,T6,T5,T7,-AC4) -> 219 | AC4: =MIN(T4:T7) -> 62
A5: A-602 | C5: Lundeberg | E5: Schiffman | J5: Crazier than you | K5: Addams Family | L5: 2 | M5: 25 | N5: 4 | O5: 24 | P5: 1 | Q5: 25 | T5: 74 | V5: 7
A6: A-603 | C6: Nordfelt | E6: Nipko | J6: Agony | K6: Into the Woods | L6: 3 | M6: 22 | N6: 4 | O6: 16 | P6: 2 | Q6: 24 | T6: 62 | V6: 9
A7: A-604 | C7: Adams | E7: Worthington | G7: Mitsvotai | I7: Andreason | J7: Beethoven Day | K7: Charlie Brown | L7: 2 | M7: 22 | N7: 2 | O7: 25 | P7: 4 | Q7: 23 | T7: 70 | V7: 8
A9: B-601 | B9: Kennedy | C9: Christensen | J9: Don't Rain | L9: 4 | M9: 20 | N9: 1 | O9: 24 | P9: 4 | Q9: 24 | S9: =IF(R9="1violation",-7*1,IF(R9="2violations",-7*2,IF(R9="3violations",-7*3,IF(R9="","")))) ->  | T9: =SUM(M9,O9,Q9,S9) -> 68 | V9: =SUM(L9,N9,P9) -> 9 | Z9: =SUM(T9,T11,T10,T12,-AC9) -> 141 | AC9: =MIN(T9:T12) -> 0
A10: B-602 | B10: Brynnleigh | C10: Goodwin | J10: Dyin ait so bad | L10: 1 | M10: 24 | N10: 2 | O10: 24 | P10: 2 | Q10: 25 | T10: 73 | V10: 5
A11: B-603 | T11: 0 | V11: 0
A12: B-604 | T12: 0 | V12: 0
A14: C-601 | C14: Rasmussen | E14: Hadlock | G14: Bess | I14: Frint | J14: Gone, Gone | K14: Tootsie | L14: 1 | M14: 23 | N14: 1 | O14: 24 | P14: 1 | Q14: 25 | S14: =IF(R14="1violation",-7*1,IF(R14="2violations",-7*2,IF(R14="3violations",-7*3,IF(R14="","")))) ->  | T14: =SUM(M14,O14,Q14,S14) -> 72 | V14: =SUM(L14,N14,P14) -> 3 | Z14: =SUM(T14,T16,T15,T17,-AC14) -> 219 | AC14: =MIN(T14:T17) -> 69
A15: C-602 | C15: Sorenson | E15: Costello | G15: Woodland | I15: Quick | J15: Welcome to Ren | K15: Something Rotten | L15: 3 | M15: 22 | N15: 1 | O15: 24 | P15: 4 | Q15: 23 | T15: 69 | V15: 8
A16: C-603 | C16: Sims | E16: Jorgensen | G16: Frint | J16: High Adventure | K16: Alladin | L16: 1 | M16: 25 | N16: 2 | O16: 25 | P16: 2 | Q16: 25 | T16: 75 | V16: 5
A17: C-604 | C17: Wells | E17: Hawley | J17: One Look at you | K17: Band Geeks | L17: 2 | M17: 24 | N17: 2 | O17: 25 | P17: 3 | Q17: 23 | T17: 72 | V17: 7
A19: D-601 | S19: =IF(R19="1violation",-7*1,IF(R19="2violations",-7*2,IF(R19="3violations",-7*3,IF(R19="","")))) ->  | T19: =SUM(M19,O19,Q19,S19) -> 0 | V19: =SUM(L19,N19,P19) -> 0 | Z19: =SUM(T19,T21,T20,T22,-AC19) -> 0 | AC19: =MIN(T19:T22) -> 0
A20: D-602 | T20: 0 | V20: 0
A21: D-603 | T21: 0 | V21: 0
A22: D-604 | T22: 0 | V22: 0
A24: E-601 | B24: Jayden | C24: Leithead | J24: Proud of your Boy | K24: Alladin | S24: =IF(R24="1violation",-7*1,IF(R24="2violations",-7*2,IF(R24="3violations",-7*3,IF(R24="","")))) ->  | T24: =SUM(M24,O24,Q24,S24) -> 0 | V24: =SUM(L24,N24,P24) -> 0 | Z24: =SUM(T24,T26,T25,T27,-AC24) -> 131 | AC24: =MIN(T24:T27) -> 0
A25: E-602 | B25: Charly | C25: Petersen | J25: I'd Rather be Me | K25: Mean Girls | L25: 3 | M25: 21 | N25: 3 | O25: 25 | P25: 1 | Q25: 24 | T25: 70 | V25: 7
A26: E-603 | B26: Taylor | C26: Leavitt | J26: Just the Man | K26: Epic | L26: 3 | M26: 22 | N26: 3 | O26: 20 | P26: 4 | Q26: 19 | T26: 61 | V26: 10
A27: E-604 | T27: 0 | V27: 0
A29: F-601 | B29: Sarah | C29: Bennett | J29: Lost in Brass | K29: Band Geeks | L29: 1 | M29: 25 | N29: 1 | O29: 25 | P29: 1 | Q29: 25 | S29: =IF(R29="1violation",-7*1,IF(R29="2violations",-7*2,IF(R29="3violations",-7*3,IF(R29="","")))) ->  | T29: =SUM(M29,O29,Q29,S29) -> 75 | V29: =SUM(L29,N29,P29) -> 3 | Z29: =SUM(T29,T31,T30,T32,-AC29) -> 212 | AC29: =MIN(T29:T32) -> 67
A30: F-602 | C30: Back | E30: Ellis | G30: Murphy | J30: Heart full of Love | K30: Les Mis | L30: 1 | M30: 23 | N30: 4 | O30: 22 | P30: 2 | Q30: 24 | T30: 69 | V30: 7
A31: F-603 | B31: Evan | C31: Ellis | J31: Being Alive | K31: Company | L31: 1 | M31: 25 | N31: 1 | O31: 24 | P31: 4 | Q31: 19 | T31: 68 | V31: 6
A32: F-604 | C32: Fuentes | E32: Pollock | J32: Ready Set | K32: Beetlejuice | L32: 4 | M32: 21 | N32: 2 | O32: 22 | P32: 3 | Q32: 24 | T32: 67 | V32: 9
A34: G-601 | B34: Aislyn | C34: Whitney | J34: Out Tonight | K34: Rent | L34: 4 | M34: 18 | N34: 4 | O34: 22 | P34: 4 | Q34: 19 | S34: =IF(R34="1violation",-7*1,IF(R34="2violations",-7*2,IF(R34="3violations",-7*3,IF(R34="","")))) ->  | T34: =SUM(M34,O34,Q34,S34) -> 59 | V34: =SUM(L34,N34,P34) -> 12 | Z34: =SUM(T34,T36,T35,T37,-AC34) -> 127 | AC34: =MIN(T34:T37) -> 0
A35: G-602 | B35: Katie | C35: Wakefield | J35: Shy | K35: Once Mattress | L35: 2 | M35: 23 | N35: 4 | O35: 23 | P35: 4 | Q35: 22 | T35: 68 | V35: 10
A36: G-603 | T36: 0 | V36: 0
A37: G-604 | T37: 0 | V37: 0
A39: H-601 | B39: Ivy | C39: Colbert | J39: Astonishing | K39: Little Women | L39: 1 | M39: 25 | N39: 1 | O39: 25 | P39: 1 | Q39: 25 | S39: =IF(R39="1violation",-7*1,IF(R39="2violations",-7*2,IF(R39="3violations",-7*3,IF(R39="","")))) ->  | T39: =SUM(M39,O39,Q39,S39) -> 75 | V39: =SUM(L39,N39,P39) -> 3 | Z39: =SUM(T39,T41,T40,T42,-AC39) -> 219 | AC39: =MIN(T39:T42) -> 71
A40: H-602 | C40: Pangan | E40: Thatcher | G40: Paul | J40: I've Decided to Marry | K40: Gentleman's Guide | L40: 2 | M40: 22 | N40: 2 | O40: 24 | P40: 3 | Q40: 25 | T40: 71 | V40: 7
A41: H-603 | C41: Barrick | E41: Fawson | G41: Rushton | I41: Sowards | J41: Suddenly Seymore | K41: Little Shop | L41: 2 | M41: 24 | N41: 4 | O41: 24 | P41: 1 | Q41: 25 | T41: 73 | V41: 7
A42: H-604 | C42: Sowards | E42: Rowley | G42: Dunn | I42: Haley | J42: Snuff that Girl | K42: Urinetown | L42: 3 | M42: 21 | N42: 1 | O42: 25 | P42: 3 | Q42: 25 | T42: 71 | V42: 7
A44: J-601 | B44: Rebekah | C44: Thorn | J44: Spark | K44: Children of Eden | L44: 2 | M44: 23 | N44: 1 | O44: 25 | P44: 2 | Q44: 25 | S44: =IF(R44="1violation",-7*1,IF(R44="2violations",-7*2,IF(R44="3violations",-7*3,IF(R44="","")))) ->  | T44: =SUM(M44,O44,Q44,S44) -> 73 | V44: =SUM(L44,N44,P44) -> 5 | Z44: =SUM(T44,T46,T45,T47,-AC44) -> 142 | AC44: =MIN(T44:T47) -> 0
A45: J-602 | B45: Madison | C45: Carle | J45: Gotta Get out | L45: 3 | M45: 23 | N45: 4 | O45: 23 | P45: 3 | Q45: 23 | T45: 69 | V45: 10
A46: J-603 | B46: Vashti | C46: Coray | J46: Beauty is | T46: 0 | V46: 0
A47: J-604 | T47: 0 | V47: 0
A49: K-601 | B49: Cheryll | C49: Cordell | J49: Could I leave you | L49: 4 | M49: 20 | N49: 4 | O49: 20 | P49: 4 | Q49: 22 | S49: =IF(R49="1violation",-7*1,IF(R49="2violations",-7*2,IF(R49="3violations",-7*3,IF(R49="","")))) ->  | T49: =SUM(M49,O49,Q49,S49) -> 62 | V49: =SUM(L49,N49,P49) -> 12 | Z49: =SUM(T49,T51,T50,T52,-AC49) -> 132 | AC49: =MIN(T49:T52) -> 0
A50: K-602 | C50: Shemwell | E50: Baker | G50: Johnston | I50: Swick | J50: Smell of Rebellion | L50: 3 | M50: 23 | N50: 3 | O50: 24 | P50: 2 | Q50: 23 | T50: 70 | V50: 8
A51: K-603 | T51: 0 | V51: 0
A52: K-604 | T52: 0 | V52: 0
A54: L-601 | C54: Dart | E54: Holm | J54: And Eve Was weak | K54: Carrie | L54: 4 | M54: 20 | N54: 3 | O54: 22 | P54: 4 | Q54: 25 | S54: =IF(R54="1violation",-7*1,IF(R54="2violations",-7*2,IF(R54="3violations",-7*3,IF(R54="","")))) ->  | T54: =SUM(M54,O54,Q54,S54) -> 67 | V54: =SUM(L54,N54,P54) -> 11 | Z54: =SUM(T54,T56,T55,T57,-AC54) -> 206 | AC54: =MIN(T54:T57) -> 66
A55: L-602 | B55: Andrus | C55: Daniel | J55: Gotta Die | K55: Falsettos | L55: 3 | M55: 21 | N55: 2 | O55: 24 | P55: 2 | Q55: 25 | T55: 70 | V55: 7
A56: L-603 | B56: TKiah | C56: McArthur | J56: Perfect Relationship | L56: 2 | M56: 23 | N56: 4 | O56: 20 | P56: 4 | Q56: 23 | T56: 66 | V56: 10
A57: L-604 | B57: Alexzaia | C57: Arno | J57: Diva's Lament | K57: Spamalot | L57: 2 | M57: 24 | N57: 4 | O57: 23 | P57: 3 | Q57: 22 | T57: 69 | V57: 9
A59: M-601 | B59: Danika | C59: Farley | J59: He was my Boyfriend | K59: Mel Brooks | L59: 3 | M59: 23 | N59: 2 | O59: 25 | P59: 1 | Q59: 24 | S59: =IF(R59="1violation",-7*1,IF(R59="2violations",-7*2,IF(R59="3violations",-7*3,IF(R59="","")))) ->  | T59: =SUM(M59,O59,Q59,S59) -> 72 | V59: =SUM(L59,N59,P59) -> 6 | Z59: =SUM(T59,T61,T60,T62,-AC59) -> 208 | AC59: =MIN(T59:T62) -> 0
A60: M-602 | C60: Sorensen | E60: Laws | J60: A little Fall | K60: Les mis | L60: 4 | M60: 21 | N60: 4 | O60: 24 | P60: 4 | Q60: 24 | T60: 69 | V60: 12
A61: M-603 | B61: Charity | C61: Jewkes | J61: Don't Rain | K61: Funny Girl | L61: 4 | M61: 21 | N61: 4 | O61: 22 | P61: 1 | Q61: 24 | T61: 67 | V61: 9
A62: M-604 | T62: 0 | V62: 0
A64: N-601 | C64: Jones | E64: Porras | G64: Adams | I64: Livingston | J64: Say My Name | K64: Beetlejuice | L64: 1 | M64: 24 | N64: 4 | O64: 22 | P64: 4 | Q64: 19 | S64: =IF(R64="1violation",-7*1,IF(R64="2violations",-7*2,IF(R64="3violations",-7*3,IF(R64="","")))) ->  | T64: =SUM(M64,O64,Q64,S64) -> 65 | V64: =SUM(L64,N64,P64) -> 9 | Z64: =SUM(T64,T66,T65,T67,-AC64) -> 193 | AC64: =MIN(T64:T67) -> 0
A65: N-602 | B65: Brooklyn | C65: Stubbs | J65: I could've Danced | K65: My Fair Lady | L65: 4 | M65: 20 | N65: 4 | O65: 19 | P65: 3 | Q65: 24 | T65: 63 | V65: 11
A66: N-603 | B66: Madalyn | C66: Stott | J66: Stupid with Love | K66: Mean Girls | L66: 4 | M66: 22 | N66: 3 | O66: 24 | P66: 4 | Q66: 19 | T66: 65 | V66: 11
A67: N-604 | T67: 0 | V67: 0
A69: P-601 | B69: Kenna | C69: Cook | J69: With You | L69: 4 | M69: 18 | N69: 3 | O69: 24 | P69: 2 | Q69: 22 | S69: =IF(R69="1violation",-7*1,IF(R69="2violations",-7*2,IF(R69="3violations",-7*3,IF(R69="","")))) ->  | T69: =SUM(M69,O69,Q69,S69) -> 64 | V69: =SUM(L69,N69,P69) -> 9 | Z69: =SUM(T69,T71,T70,T72,-AC69) -> 218 | AC69: =MIN(T69:T72) -> 64
A70: P-602 | C70: Stavros | E70: Smith | J70: Babbling Brooke | L70: 4 | M70: 23 | N70: 3 | O70: 25 | P70: 3 | Q70: 24 | T70: 72 | V70: 10
A71: P-603 | B71: Haven | C71: Caldwell | J71: Adelaides Lament | K71: Guys and Dolls | L71: 2 | M71: 25 | N71: 3 | O71: 25 | P71: 2 | Q71: 25 | T71: 75 | V71: 7
A72: P-604 | B72: Michael | C72: Larsen | J72: Don't Let Me go | K72: Shrek | L72: 4 | M72: 22 | N72: 4 | O72: 24 | P72: 2 | Q72: 25 | T72: 71 | V72: 10
A74: Q-601 | S74: =IF(R74="1violation",-7*1,IF(R74="2violations",-7*2,IF(R74="3violations",-7*3,IF(R74="","")))) ->  | T74: =SUM(M74,O74,Q74,S74) -> 0 | V74: =SUM(L74,N74,P74) -> 0 | Z74: =SUM(T74,T76,T75,T77,-AC74) -> 0 | AC74: =MIN(T74:T77) -> 0
A75: Q-602 | T75: 0 | V75: 0
A76: Q-603 | T76: 0 | V76: 0
A77: Q-604 | T77: 0 | V77: 0
A79: R-601 | C79: Bedingfield | E79: Weis | J79: Sunday in Park | K79: Sondheim | L79: 4 | M79: 23 | N79: 2 | O79: 25 | P79: 1 | Q79: 25 | S79: =IF(R79="1violation",-7*1,IF(R79="2violations",-7*2,IF(R79="3violations",-7*3,IF(R79="","")))) ->  | T79: =SUM(M79,O79,Q79,S79) -> 73 | V79: =SUM(L79,N79,P79) -> 7 | Z79: =SUM(T79,T81,T80,T82,-AC79) -> 192 | AC79: =MIN(T79:T82) -> 0
A80: R-602 | C80: Keddington | E80: Thornell | J80: All I ask | K80: Phantom | L80: 4 | M80: 15 | N80: 1 | O80: 21 | P80: 4 | Q80: 22 | T80: 58 | V80: 9
A81: R-603 | B81: Gabriel | C81: Whitmer | J81: How it ends | K81: Big Fish | L81: 4 | M81: 18 | N81: 4 | O81: 23 | P81: 3 | Q81: 20 | T81: 61 | V81: 11
A82: R-604 | T82: 0 | V82: 0
A84: S-601 | C84: Burton | E84: Dalton | G84: Thomsen | J84: I've Decided to Marry you | L84: 1 | M84: 25 | N84: 2 | O84: 23 | P84: 4 | Q84: 22 | S84: =IF(R84="1violation",-7*1,IF(R84="2violations",-7*2,IF(R84="3violations",-7*3,IF(R84="","")))) ->  | T84: =SUM(M84,O84,Q84,S84) -> 70 | V84: =SUM(L84,N84,P84) -> 7 | Z84: =SUM(T84,T86,T85,T87,-AC84) -> 203 | AC84: =MIN(T84:T87) -> 0
A85: S-602 | B85: Courtney | C85: Chambers | J85: One Perfect moment | L85: 3 | M85: 24 | N85: 2 | O85: 20 | P85: 4 | Q85: 24 | T85: 68 | V85: 9
A86: S-603 | B86: Aubrey | C86: Ewer | J86: Shopping Around | L86: 4 | M86: 22 | N86: 3 | O86: 21 | P86: 3 | Q86: 22 | T86: 65 | V86: 10
A87: S-604 | T87: 0 | V87: 0
A89: T-601 | S89: =IF(R89="1violation",-7*1,IF(R89="2violations",-7*2,IF(R89="3violations",-7*3,IF(R89="","")))) ->  | T89: =SUM(M89,O89,Q89,S89) -> 0 | V89: =SUM(L89,N89,P89) -> 0 | Z89: =SUM(T89,T91,T90,T92,-AC89) -> 0 | AC89: =MIN(T89:T92) -> 0
A90: T-602 | T90: 0 | V90: 0
A91: T-603 | T91: 0 | V91: 0
A92: T-604 | T92: 0 | V92: 0
A94: U-601 | S94: =IF(R94="1violation",-7*1,IF(R94="2violations",-7*2,IF(R94="3violations",-7*3,IF(R94="","")))) ->  | T94: =SUM(M94,O94,Q94,S94) -> 0 | V94: =SUM(L94,N94,P94) -> 0 | Z94: =SUM(T94,T96,T95,T97,-AC94) -> 0 | AC94: =MIN(T94:T97) -> 0
A95: U-602 | T95: 0 | V95: 0
A96: U-603 | T96: 0 | V96: 0
A97: U-604 | T97: 0 | V97: 0
A99: V-601 | S99: =IF(R99="1violation",-7*1,IF(R99="2violations",-7*2,IF(R99="3violations",-7*3,IF(R99="","")))) ->  | T99: =SUM(M99,O99,Q99,S99) -> 0 | V99: =SUM(L99,N99,P99) -> 0 | Z99: =SUM(T99,T101,T100,T102,-AC99) -> 0 | AC99: =MIN(T99:T102) -> 0
A100: V-602 | T100: 0 | V100: 0
A101: V-603 | T101: 0 | V101: 0
A102: V-604 | T102: 0 | V102: 0
A104: W-601 | S104: =IF(R104="1violation",-7*1,IF(R104="2violations",-7*2,IF(R104="3violations",-7*3,IF(R104="","")))) ->  | T104: =SUM(M104,O104,Q104,S104) -> 0 | V104: =SUM(L104,N104,P104) -> 0 | Z104: =SUM(T104,T106,T105,T107,-AC104) -> 0 | AC104: =MIN(T104:T107) -> 0
A105: W-602 | T105: 0 | V105: 0
A106: W-603 | T106: 0 | V106: 0
A107: W-604 | T107: 0 | V107: 0
A109: X-601 | S109: =IF(R109="1violation",-7*1,IF(R109="2violations",-7*2,IF(R109="3violations",-7*3,IF(R109="","")))) ->  | T109: =SUM(M109,O109,Q109,S109) -> 0 | V109: =SUM(L109,N109,P109) -> 0 | Z109: =SUM(T109,T111,T110,T112,-AC109) -> 0 | AC109: =MIN(T109:T112) -> 0
A110: X-602 | T110: 0 | V110: 0
A111: X-603 | T111: 0 | V111: 0
A112: X-604 | T112: 0 | V112: 0
A114: Y-601 | S114: =IF(R114="1violation",-7*1,IF(R114="2violations",-7*2,IF(R114="3violations",-7*3,IF(R114="","")))) ->  | T114: =SUM(M114,O114,Q114,S114) -> 0 | V114: =SUM(L114,N114,P114) -> 0 | Z114: =SUM(T114,T116,T115,T117,-AC114) -> 0 | AC114: =MIN(T114:T117) -> 0
A115: Y-602 | T115: 0 | V115: 0
A116: Y-603 | T116: 0 | V116: 0
A117: Y-604 | T117: 0 | V117: 0
A119: Z-601 | S119: =IF(R119="1violation",-7*1,IF(R119="2violations",-7*2,IF(R119="3violations",-7*3,IF(R119="","")))) ->  | T119: =SUM(M119,O119,Q119,S119) -> 0 | V119: =SUM(L119,N119,P119) -> 0 | Z119: =SUM(T119,T121,T120,T122,-AC119) -> 0 | AC119: =MIN(T119:T122) -> 0
A120: Z-602 | T120: 0 | V120: 0
A121: Z-603 | T121: 0 | V121: 0
A122: Z-604 | T122: 0 | V122: 0
A124: AA-601 | S124: =IF(R124="1violation",-7*1,IF(R124="2violations",-7*2,IF(R124="3violations",-7*3,IF(R124="","")))) ->  | T124: =SUM(M124,O124,Q124,S124) -> 0 | V124: =SUM(L124,N124,P124) -> 0 | Z124: =SUM(T124,T126,T125,T127,-AC124) -> 0 | AC124: =MIN(T124:T127) -> 0
A125: AA-602 | T125: 0 | V125: 0
A126: AA-603 | T126: 0 | V126: 0
A127: AA-604 | T127: 0 | V127: 0
A129: BB-601 | S129: =IF(R129="1violation",-7*1,IF(R129="2violations",-7*2,IF(R129="3violations",-7*3,IF(R129="","")))) ->  | T129: =SUM(M129,O129,Q129,S129) -> 0 | V129: =SUM(L129,N129,P129) -> 0 | Z129: =SUM(T129,T131,T130,T132,-AC129) -> 0 | AC129: =MIN(T129:T132) -> 0
A130: BB-602 | T130: 0 | V130: 0
A131: BB-603 | T131: 0 | V131: 0
A132: BB-604 | T132: 0 | V132: 0
A134: CC-601 | S134: =IF(R134="1violation",-7*1,IF(R134="2violations",-7*2,IF(R134="3violations",-7*3,IF(R134="","")))) ->  | T134: =SUM(M134,O134,Q134,S134) -> 0 | V134: =SUM(L134,N134,P134) -> 0 | Z134: =SUM(T134,T136,T135,T137,-AC134) -> 0 | AC134: =MIN(T134:T137) -> 0
A135: CC-602 | T135: 0 | V135: 0
A136: CC-603 | T136: 0 | V136: 0
A137: CC-604 | T137: 0 | V137: 0
A139: DD-601 | S139: =IF(R139="1violation",-7*1,IF(R139="2violations",-7*2,IF(R139="3violations",-7*3,IF(R139="","")))) ->  | T139: =SUM(M139,O139,Q139,S139) -> 0 | V139: =SUM(L139,N139,P139) -> 0 | Z139: =SUM(T139,T141,T140,T142,-AC139) -> 0 | AC139: =MIN(T139:T142) -> 0
A140: DD-602 | T140: 0 | V140: 0
A141: DD-603 | T141: 0 | V141: 0
A142: DD-604 | T142: 0 | V142: 0
A144: EE-601 | S144: =IF(R144="1violation",-7*1,IF(R144="2violations",-7*2,IF(R144="3violations",-7*3,IF(R144="","")))) ->  | T144: =SUM(M144,O144,Q144,S144) -> 0 | V144: =SUM(L144,N144,P144) -> 0 | Z144: =SUM(T144,T146,T145,T147,-AC144) -> 0 | AC144: =MIN(T144:T147) -> 0
A145: EE-602 | T145: 0 | V145: 0
A146: EE-603 | T146: 0 | V146: 0
A147: EE-604 | T147: 0 | V147: 0
A149: FF-601 | S149: =IF(R149="1violation",-7*1,IF(R149="2violations",-7*2,IF(R149="3violations",-7*3,IF(R149="","")))) ->  | T149: =SUM(M149,O149,Q149,S149) -> 0 | V149: =SUM(L149,N149,P149) -> 0 | Z149: =SUM(T149,T151,T150,T152,-AC149) -> 0 | AC149: =MIN(T149:T152) -> 0
A150: FF-602 | T150: 0 | V150: 0
A151: FF-603 | T151: 0 | V151: 0
A152: FF-604 | T152: 0 | V152: 0

Sheet MusicalTheatreMR
A1: Musical Theatre | E1: Finals Medals Round Scores
A2: ID | B2: Rank | C2: Score | D2: LeaveBlank | E2: MR 1 Rank | F2: MR 1 Score | G2: MR2 Rank | H2: MR 2 Score | I2: MR3 Rank | J2: MR 3 Score | K2: Total MR Rank | L2: Total MR Score
A3: =MusicalTheatre!A4 -> A-601 | B3: =MusicalTheatre!V4 -> 3 | C3: =MusicalTheatre!T4 -> 75 | D3: =IF((MusicalTheatreMR!$B3+MusicalTheatreMR!$C3)>0,1,0) -> 1 | E3: 1 | F3: 25 | G3: 1 | H3: 25 | I3: 3 | J3: 25 | K3: =SUM(E3,G3,I3) -> 5 | L3: 75
A4: =MusicalTheatre!A5 -> A-602 | B4: =MusicalTheatre!V5 -> 7 | C4: =MusicalTheatre!T5 -> 74 | D4: =IF((MusicalTheatreMR!$B4+MusicalTheatreMR!$C4)>0,1,0) -> 1 | K4: =SUM(E4,G4,I4) -> 0 | L4: 0
A5: =MusicalTheatre!A6 -> A-603 | B5: =MusicalTheatre!V6 -> 9 | C5: =MusicalTheatre!T6 -> 62 | D5: =IF((MusicalTheatreMR!$B5+MusicalTheatreMR!$C5)>0,1,0) -> 1 | K5: =SUM(E5,G5,I5) -> 0 | L5: 0
A6: =MusicalTheatre!A7 -> A-604 | B6: =MusicalTheatre!V7 -> 8 | C6: =MusicalTheatre!T7 -> 70 | D6: =IF((MusicalTheatreMR!$B6+MusicalTheatreMR!$C6)>0,1,0) -> 1 | K6: =SUM(E6,G6,I6) -> 0 | L6: 0
A7: =MusicalTheatre!A124 -> AA-601 | B7: =MusicalTheatre!V124 -> 0 | C7: =MusicalTheatre!T124 -> 0 | D7: =IF((MusicalTheatreMR!$B7+MusicalTheatreMR!$C7)>0,1,0) -> 0 | K7: =SUM(E7,G7,I7) -> 0 | L7: 0
A8: =MusicalTheatre!A125 -> AA-602 | B8: =MusicalTheatre!V125 -> 0 | C8: =MusicalTheatre!T125 -> 0 | D8: =IF((MusicalTheatreMR!$B8+MusicalTheatreMR!$C8)>0,1,0) -> 0 | K8: =SUM(E8,G8,I8) -> 0 | L8: 0
A9: =MusicalTheatre!A126 -> AA-603 | B9: =MusicalTheatre!V126 -> 0 | C9: =MusicalTheatre!T126 -> 0 | D9: =IF((MusicalTheatreMR!$B9+MusicalTheatreMR!$C9)>0,1,0) -> 0 | K9: =SUM(E9,G9,I9) -> 0 | L9: 0
A10: =MusicalTheatre!A127 -> AA-604 | B10: =MusicalTheatre!V127 -> 0 | C10: =MusicalTheatre!T127 -> 0 | D10: =IF((MusicalTheatreMR!$B10+MusicalTheatreMR!$C10)>0,1,0) -> 0 | K10: =SUM(E10,G10,I10) -> 0 | L10: 0
A11: =MusicalTheatre!A9 -> B-601 | B11: =MusicalTheatre!V9 -> 9 | C11: =MusicalTheatre!T9 -> 68 | D11: =IF((MusicalTheatreMR!$B11+MusicalTheatreMR!$C11)>0,1,0) -> 1 | K11: =SUM(E11,G11,I11) -> 0 | L11: 0
A12: =MusicalTheatre!A10 -> B-602 | B12: =MusicalTheatre!V10 -> 5 | C12: =MusicalTheatre!T10 -> 73 | D12: =IF((MusicalTheatreMR!$B12+MusicalTheatreMR!$C12)>0,1,0) -> 1 | K12: =SUM(E12,G12,I12) -> 0 | L12: 0
A13: =MusicalTheatre!A11 -> B-603 | B13: =MusicalTheatre!V11 -> 0 | C13: =MusicalTheatre!T11 -> 0 | D13: =IF((MusicalTheatreMR!$B13+MusicalTheatreMR!$C13)>0,1,0) -> 0 | K13: =SUM(E13,G13,I13) -> 0 | L13: 0
A14: =MusicalTheatre!A12 -> B-604 | B14: =MusicalTheatre!V12 -> 0 | C14: =MusicalTheatre!T12 -> 0 | D14: =IF((MusicalTheatreMR!$B14+MusicalTheatreMR!$C14)>0,1,0) -> 0 | K14: =SUM(E14,G14,I14) -> 0 | L14: 0
A15: =MusicalTheatre!A129 -> BB-601 | B15: =MusicalTheatre!V129 -> 0 | C15: =MusicalTheatre!T129 -> 0 | D15: =IF((MusicalTheatreMR!$B15+MusicalTheatreMR!$C15)>0,1,0) -> 0 | K15: =SUM(E15,G15,I15) -> 0 | L15: 0
A16: =MusicalTheatre!A130 -> BB-602 | B16: =MusicalTheatre!V130 -> 0 | C16: =MusicalTheatre!T130 -> 0 | D16: =IF((MusicalTheatreMR!$B16+MusicalTheatreMR!$C16)>0,1,0) -> 0 | K16: =SUM(E16,G16,I16) -> 0 | L16: 0
A17: =MusicalTheatre!A131 -> BB-603 | B17: =MusicalTheatre!V131 -> 0 | C17: =MusicalTheatre!T131 -> 0 | D17: =IF((MusicalTheatreMR!$B17+MusicalTheatreMR!$C17)>0,1,0) -> 0 | K17: =SUM(E17,G17,I17) -> 0 | L17: 0
A18: =MusicalTheatre!A132 -> BB-604 | B18: =MusicalTheatre!V132 -> 0 | C18: =MusicalTheatre!T132 -> 0 | D18: =IF((MusicalTheatreMR!$B18+MusicalTheatreMR!$C18)>0,1,0) -> 0 | K18: =SUM(E18,G18,I18) -> 0 | L18: 0
A19: =MusicalTheatre!A14 -> C-601 | B19: =MusicalTheatre!V14 -> 3 | C19: =MusicalTheatre!T14 -> 72 | D19: =IF((MusicalTheatreMR!$B19+MusicalTheatreMR!$C19)>0,1,0) -> 1 | E19: 2 | F19: 25 | G19: 6 | H19: 21 | I19: 4 | J19: 25 | K19: =SUM(E19,G19,I19) -> 12 | L19: 71
A20: =MusicalTheatre!A15 -> C-602 | B20: =MusicalTheatre!V15 -> 8 | C20: =MusicalTheatre!T15 -> 69 | D20: =IF((MusicalTheatreMR!$B20+MusicalTheatreMR!$C20)>0,1,0) -> 1 | K20: =SUM(E20,G20,I20) -> 0 | L20: 0
A21: =MusicalTheatre!A16 -> C-603 | B21: =MusicalTheatre!V16 -> 5 | C21: =MusicalTheatre!T16 -> 75 | D21: =IF((MusicalTheatreMR!$B21+MusicalTheatreMR!$C21)>0,1,0) -> 1 | E21: 6 | F21: 24 | G21: 4 | H21: 24 | I21: 6 | J21: 24 | K21: =SUM(E21,G21,I21) -> 16 | L21: 72
A22: =MusicalTheatre!A17 -> C-604 | B22: =MusicalTheatre!V17 -> 7 | C22: =MusicalTheatre!T17 -> 72 | D22: =IF((MusicalTheatreMR!$B22+MusicalTheatreMR!$C22)>0,1,0) -> 1 | K22: =SUM(E22,G22,I22) -> 0 | L22: 0
A23: =MusicalTheatre!A134 -> CC-601 | B23: =MusicalTheatre!V134 -> 0 | C23: =MusicalTheatre!T134 -> 0 | D23: =IF((MusicalTheatreMR!$B23+MusicalTheatreMR!$C23)>0,1,0) -> 0 | K23: =SUM(E23,G23,I23) -> 0 | L23: 0
A24: =MusicalTheatre!A135 -> CC-602 | B24: =MusicalTheatre!V135 -> 0 | C24: =MusicalTheatre!T135 -> 0 | D24: =IF((MusicalTheatreMR!$B24+MusicalTheatreMR!$C24)>0,1,0) -> 0 | K24: =SUM(E24,G24,I24) -> 0 | L24: 0
A25: =MusicalTheatre!A136 -> CC-603 | B25: =MusicalTheatre!V136 -> 0 | C25: =MusicalTheatre!T136 -> 0 | D25: =IF((MusicalTheatreMR!$B25+MusicalTheatreMR!$C25)>0,1,0) -> 0 | K25: =SUM(E25,G25,I25) -> 0 | L25: 0
A26: =MusicalTheatre!A137 -> CC-604 | B26: =MusicalTheatre!V137 -> 0 | C26: =MusicalTheatre!T137 -> 0 | D26: =IF((MusicalTheatreMR!$B26+MusicalTheatreMR!$C26)>0,1,0) -> 0 | K26: =SUM(E26,G26,I26) -> 0 | L26: 0
A27: =MusicalTheatre!A19 -> D-601 | B27: =MusicalTheatre!V19 -> 0 | C27: =MusicalTheatre!T19 -> 0 | D27: =IF((MusicalTheatreMR!$B27+MusicalTheatreMR!$C27)>0,1,0) -> 0 | K27: =SUM(E27,G27,I27) -> 0 | L27: 0
A28: =MusicalTheatre!A20 -> D-602 | B28: =MusicalTheatre!V20 -> 0 | C28: =MusicalTheatre!T20 -> 0 | D28: =IF((MusicalTheatreMR!$B28+MusicalTheatreMR!$C28)>0,1,0) -> 0 | K28: =SUM(E28,G28,I28) -> 0 | L28: 0
A29: =MusicalTheatre!A21 -> D-603 | B29: =MusicalTheatre!V21 -> 0 | C29: =MusicalTheatre!T21 -> 0 | D29: =IF((MusicalTheatreMR!$B29+MusicalTheatreMR!$C29)>0,1,0) -> 0 | K29: =SUM(E29,G29,I29) -> 0 | L29: 0
A30: =MusicalTheatre!A22 -> D-604 | B30: =MusicalTheatre!V22 -> 0 | C30: =MusicalTheatre!T22 -> 0 | D30: =IF((MusicalTheatreMR!$B30+MusicalTheatreMR!$C30)>0,1,0) -> 0 | K30: =SUM(E30,G30,I30) -> 0 | L30: 0
A31: =MusicalTheatre!A139 -> DD-601 | B31: =MusicalTheatre!V139 -> 0 | C31: =MusicalTheatre!T139 -> 0 | D31: =IF((MusicalTheatreMR!$B31+MusicalTheatreMR!$C31)>0,1,0) -> 0 | K31: =SUM(E31,G31,I31) -> 0 | L31: 0
A32: =MusicalTheatre!A140 -> DD-602 | B32: =MusicalTheatre!V140 -> 0 | C32: =MusicalTheatre!T140 -> 0 | D32: =IF((MusicalTheatreMR!$B32+MusicalTheatreMR!$C32)>0,1,0) -> 0 | K32: =SUM(E32,G32,I32) -> 0 | L32: 0
A33: =MusicalTheatre!A141 -> DD-603 | B33: =MusicalTheatre!V141 -> 0 | C33: =MusicalTheatre!T141 -> 0 | D33: =IF((MusicalTheatreMR!$B33+MusicalTheatreMR!$C33)>0,1,0) -> 0 | K33: =SUM(E33,G33,I33) -> 0 | L33: 0
A34: =MusicalTheatre!A142 -> DD-604 | B34: =MusicalTheatre!V142 -> 0 | C34: =MusicalTheatre!T142 -> 0 | D34: =IF((MusicalTheatreMR!$B34+MusicalTheatreMR!$C34)>0,1,0) -> 0 | K34: =SUM(E34,G34,I34) -> 0 | L34: 0
A35: =MusicalTheatre!A24 -> E-601 | B35: =MusicalTheatre!V24 -> 0 | C35: =MusicalTheatre!T24 -> 0 | D35: =IF((MusicalTheatreMR!$B35+MusicalTheatreMR!$C35)>0,1,0) -> 0 | K35: =SUM(E35,G35,I35) -> 0 | L35: 0
A36: =MusicalTheatre!A25 -> E-602 | B36: =MusicalTheatre!V25 -> 7 | C36: =MusicalTheatre!T25 -> 70 | D36: =IF((MusicalTheatreMR!$B36+MusicalTheatreMR!$C36)>0,1,0) -> 1 | K36: =SUM(E36,G36,I36) -> 0 | L36: 0
A37: =MusicalTheatre!A26 -> E-603 | B37: =MusicalTheatre!V26 -> 10 | C37: =MusicalTheatre!T26 -> 61 | D37: =IF((MusicalTheatreMR!$B37+MusicalTheatreMR!$C37)>0,1,0) -> 1 | K37: =SUM(E37,G37,I37) -> 0 | L37: 0
A38: =MusicalTheatre!A27 -> E-604 | B38: =MusicalTheatre!V27 -> 0 | C38: =MusicalTheatre!T27 -> 0 | D38: =IF((MusicalTheatreMR!$B38+MusicalTheatreMR!$C38)>0,1,0) -> 0 | K38: =SUM(E38,G38,I38) -> 0 | L38: 0
A39: =MusicalTheatre!A144 -> EE-601 | B39: =MusicalTheatre!V144 -> 0 | C39: =MusicalTheatre!T144 -> 0 | D39: =IF((MusicalTheatreMR!$B39+MusicalTheatreMR!$C39)>0,1,0) -> 0 | K39: =SUM(E39,G39,I39) -> 0 | L39: 0
A40: =MusicalTheatre!A145 -> EE-602 | B40: =MusicalTheatre!V145 -> 0 | C40: =MusicalTheatre!T145 -> 0 | D40: =IF((MusicalTheatreMR!$B40+MusicalTheatreMR!$C40)>0,1,0) -> 0 | K40: =SUM(E40,G40,I40) -> 0 | L40: 0
A41: =MusicalTheatre!A146 -> EE-603 | B41: =MusicalTheatre!V146 -> 0 | C41: =MusicalTheatre!T146 -> 0 | D41: =IF((MusicalTheatreMR!$B41+MusicalTheatreMR!$C41)>0,1,0) -> 0 | K41: =SUM(E41,G41,I41) -> 0 | L41: 0
A42: =MusicalTheatre!A147 -> EE-604 | B42: =MusicalTheatre!V147 -> 0 | C42: =MusicalTheatre!T147 -> 0 | D42: =IF((MusicalTheatreMR!$B42+MusicalTheatreMR!$C42)>0,1,0) -> 0 | K42: =SUM(E42,G42,I42) -> 0 | L42: 0
A43: =MusicalTheatre!A29 -> F-601 | B43: =MusicalTheatre!V29 -> 3 | C43: =MusicalTheatre!T29 -> 75 | D43: =IF((MusicalTheatreMR!$B43+MusicalTheatreMR!$C43)>0,1,0) -> 1 | E43: 3 | F43: 25 | G43: 2 | H43: 25 | I43: 2 | J43: 25 | K43: =SUM(E43,G43,I43) -> 7 | L43: 75
A44: =MusicalTheatre!A30 -> F-602 | B44: =MusicalTheatre!V30 -> 7 | C44: =MusicalTheatre!T30 -> 69 | D44: =IF((MusicalTheatreMR!$B44+MusicalTheatreMR!$C44)>0,1,0) -> 1 | K44: =SUM(E44,G44,I44) -> 0 | L44: 0
A45: =MusicalTheatre!A31 -> F-603 | B45: =MusicalTheatre!V31 -> 6 | C45: =MusicalTheatre!T31 -> 68 | D45: =IF((MusicalTheatreMR!$B45+MusicalTheatreMR!$C45)>0,1,0) -> 1 | K45: =SUM(E45,G45,I45) -> 0 | L45: 0
A46: =MusicalTheatre!A32 -> F-604 | B46: =MusicalTheatre!V32 -> 9 | C46: =MusicalTheatre!T32 -> 67 | D46: =IF((MusicalTheatreMR!$B46+MusicalTheatreMR!$C46)>0,1,0) -> 1 | K46: =SUM(E46,G46,I46) -> 0 | L46: 0
A47: =MusicalTheatre!A149 -> FF-601 | B47: =MusicalTheatre!V149 -> 0 | C47: =MusicalTheatre!T149 -> 0 | D47: =IF((MusicalTheatreMR!$B47+MusicalTheatreMR!$C47)>0,1,0) -> 0 | K47: =SUM(E47,G47,I47) -> 0 | L47: 0
A48: =MusicalTheatre!A150 -> FF-602 | B48: =MusicalTheatre!V150 -> 0 | C48: =MusicalTheatre!T150 -> 0 | D48: =IF((MusicalTheatreMR!$B48+MusicalTheatreMR!$C48)>0,1,0) -> 0 | K48: =SUM(E48,G48,I48) -> 0 | L48: 0
A49: =MusicalTheatre!A151 -> FF-603 | B49: =MusicalTheatre!V151 -> 0 | C49: =MusicalTheatre!T151 -> 0 | D49: =IF((MusicalTheatreMR!$B49+MusicalTheatreMR!$C49)>0,1,0) -> 0 | K49: =SUM(E49,G49,I49) -> 0 | L49: 0
A50: =MusicalTheatre!A152 -> FF-604 | B50: =MusicalTheatre!V152 -> 0 | C50: =MusicalTheatre!T152 -> 0 | D50: =IF((MusicalTheatreMR!$B50+MusicalTheatreMR!$C50)>0,1,0) -> 0 | K50: =SUM(E50,G50,I50) -> 0 | L50: 0
A51: =MusicalTheatre!A34 -> G-601 | B51: =MusicalTheatre!V34 -> 12 | C51: =MusicalTheatre!T34 -> 59 | D51: =IF((MusicalTheatreMR!$B51+MusicalTheatreMR!$C51)>0,1,0) -> 1 | K51: =SUM(E51,G51,I51) -> 0 | L51: 0
A52: =MusicalTheatre!A35 -> G-602 | B52: =MusicalTheatre!V35 -> 10 | C52: =MusicalTheatre!T35 -> 68 | D52: =IF((MusicalTheatreMR!$B52+MusicalTheatreMR!$C52)>0,1,0) -> 1 | K52: =SUM(E52,G52,I52) -> 0 | L52: 0
A53: =MusicalTheatre!A36 -> G-603 | B53: =MusicalTheatre!V36 -> 0 | C53: =MusicalTheatre!T36 -> 0 | D53: =IF((MusicalTheatreMR!$B53+MusicalTheatreMR!$C53)>0,1,0) -> 0 | K53: =SUM(E53,G53,I53) -> 0 | L53: 0
A54: =MusicalTheatre!A37 -> G-604 | B54: =MusicalTheatre!V37 -> 0 | C54: =MusicalTheatre!T37 -> 0 | D54: =IF((MusicalTheatreMR!$B54+MusicalTheatreMR!$C54)>0,1,0) -> 0 | K54: =SUM(E54,G54,I54) -> 0 | L54: 0
A55: =MusicalTheatre!A39 -> H-601 | B55: =MusicalTheatre!V39 -> 3 | C55: =MusicalTheatre!T39 -> 75 | D55: =IF((MusicalTheatreMR!$B55+MusicalTheatreMR!$C55)>0,1,0) -> 1 | E55: 4 | F55: 25 | G55: 5 | H55: 23 | I55: 1 | J55: 25 | K55: =SUM(E55,G55,I55) -> 10 | L55: 73
A56: =MusicalTheatre!A40 -> H-602 | B56: =MusicalTheatre!V40 -> 7 | C56: =MusicalTheatre!T40 -> 71 | D56: =IF((MusicalTheatreMR!$B56+MusicalTheatreMR!$C56)>0,1,0) -> 1 | K56: =SUM(E56,G56,I56) -> 0 | L56: 0
A57: =MusicalTheatre!A41 -> H-603 | B57: =MusicalTheatre!V41 -> 7 | C57: =MusicalTheatre!T41 -> 73 | D57: =IF((MusicalTheatreMR!$B57+MusicalTheatreMR!$C57)>0,1,0) -> 1 | K57: =SUM(E57,G57,I57) -> 0 | L57: 0
A58: =MusicalTheatre!A42 -> H-604 | B58: =MusicalTheatre!V42 -> 7 | C58: =MusicalTheatre!T42 -> 71 | D58: =IF((MusicalTheatreMR!$B58+MusicalTheatreMR!$C58)>0,1,0) -> 1 | K58: =SUM(E58,G58,I58) -> 0 | L58: 0
A59: =MusicalTheatre!A44 -> J-601 | B59: =MusicalTheatre!V44 -> 5 | C59: =MusicalTheatre!T44 -> 73 | D59: =IF((MusicalTheatreMR!$B59+MusicalTheatreMR!$C59)>0,1,0) -> 1 | E59: 5 | F59: 24 | G59: 3 | H59: 25 | I59: 5 | J59: 25 | K59: =SUM(E59,G59,I59) -> 13 | L59: 74
A60: =MusicalTheatre!A45 -> J-602 | B60: =MusicalTheatre!V45 -> 10 | C60: =MusicalTheatre!T45 -> 69 | D60: =IF((MusicalTheatreMR!$B60+MusicalTheatreMR!$C60)>0,1,0) -> 1 | K60: =SUM(E60,G60,I60) -> 0 | L60: 0
A61: =MusicalTheatre!A46 -> J-603 | B61: =MusicalTheatre!V46 -> 0 | C61: =MusicalTheatre!T46 -> 0 | D61: =IF((MusicalTheatreMR!$B61+MusicalTheatreMR!$C61)>0,1,0) -> 0 | K61: =SUM(E61,G61,I61) -> 0 | L61: 0
A62: =MusicalTheatre!A47 -> J-604 | B62: =MusicalTheatre!V47 -> 0 | C62: =MusicalTheatre!T47 -> 0 | D62: =IF((MusicalTheatreMR!$B62+MusicalTheatreMR!$C62)>0,1,0) -> 0 | K62: =SUM(E62,G62,I62) -> 0 | L62: 0
A63: =MusicalTheatre!A49 -> K-601 | B63: =MusicalTheatre!V49 -> 12 | C63: =MusicalTheatre!T49 -> 62 | D63: =IF((MusicalTheatreMR!$B63+MusicalTheatreMR!$C63)>0,1,0) -> 1 | K63: =SUM(E63,G63,I63) -> 0 | L63: 0
A64: =MusicalTheatre!A50 -> K-602 | B64: =MusicalTheatre!V50 -> 8 | C64: =MusicalTheatre!T50 -> 70 | D64: =IF((MusicalTheatreMR!$B64+MusicalTheatreMR!$C64)>0,1,0) -> 1 | K64: =SUM(E64,G64,I64) -> 0 | L64: 0
A65: =MusicalTheatre!A51 -> K-603 | B65: =MusicalTheatre!V51 -> 0 | C65: =MusicalTheatre!T51 -> 0 | D65: =IF((MusicalTheatreMR!$B65+MusicalTheatreMR!$C65)>0,1,0) -> 0 | K65: =SUM(E65,G65,I65) -> 0 | L65: 0
A66: =MusicalTheatre!A52 -> K-604 | B66: =MusicalTheatre!V52 -> 0 | C66: =MusicalTheatre!T52 -> 0 | D66: =IF((MusicalTheatreMR!$B66+MusicalTheatreMR!$C66)>0,1,0) -> 0 | K66: =SUM(E66,G66,I66) -> 0 | L66: 0
A67: =MusicalTheatre!A54 -> L-601 | B67: =MusicalTheatre!V54 -> 11 | C67: =MusicalTheatre!T54 -> 67 | D67: =IF((MusicalTheatreMR!$B67+MusicalTheatreMR!$C67)>0,1,0) -> 1 | K67: =SUM(E67,G67,I67) -> 0 | L67: 0
A68: =MusicalTheatre!A55 -> L-602 | B68: =MusicalTheatre!V55 -> 7 | C68: =MusicalTheatre!T55 -> 70 | D68: =IF((MusicalTheatreMR!$B68+MusicalTheatreMR!$C68)>0,1,0) -> 1 | K68: =SUM(E68,G68,I68) -> 0 | L68: 0
A69: =MusicalTheatre!A56 -> L-603 | B69: =MusicalTheatre!V56 -> 10 | C69: =MusicalTheatre!T56 -> 66 | D69: =IF((MusicalTheatreMR!$B69+MusicalTheatreMR!$C69)>0,1,0) -> 1 | K69: =SUM(E69,G69,I69) -> 0 | L69: 0
A70: =MusicalTheatre!A57 -> L-604 | B70: =MusicalTheatre!V57 -> 9 | C70: =MusicalTheatre!T57 -> 69 | D70: =IF((MusicalTheatreMR!$B70+MusicalTheatreMR!$C70)>0,1,0) -> 1 | K70: =SUM(E70,G70,I70) -> 0 | L70: 0
A71: =MusicalTheatre!A59 -> M-601 | B71: =MusicalTheatre!V59 -> 6 | C71: =MusicalTheatre!T59 -> 72 | D71: =IF((MusicalTheatreMR!$B71+MusicalTheatreMR!$C71)>0,1,0) -> 1 | K71: =SUM(E71,G71,I71) -> 0 | L71: 0
A72: =MusicalTheatre!A60 -> M-602 | B72: =MusicalTheatre!V60 -> 12 | C72: =MusicalTheatre!T60 -> 69 | D72: =IF((MusicalTheatreMR!$B72+MusicalTheatreMR!$C72)>0,1,0) -> 1 | K72: =SUM(E72,G72,I72) -> 0 | L72: 0
A73: =MusicalTheatre!A61 -> M-603 | B73: =MusicalTheatre!V61 -> 9 | C73: =MusicalTheatre!T61 -> 67 | D73: =IF((MusicalTheatreMR!$B73+MusicalTheatreMR!$C73)>0,1,0) -> 1 | K73: =SUM(E73,G73,I73) -> 0 | L73: 0
A74: =MusicalTheatre!A62 -> M-604 | B74: =MusicalTheatre!V62 -> 0 | C74: =MusicalTheatre!T62 -> 0 | D74: =IF((MusicalTheatreMR!$B74+MusicalTheatreMR!$C74)>0,1,0) -> 0 | K74: =SUM(E74,G74,I74) -> 0 | L74: 0
A75: =MusicalTheatre!A64 -> N-601 | B75: =MusicalTheatre!V64 -> 9 | C75: =MusicalTheatre!T64 -> 65 | D75: =IF((MusicalTheatreMR!$B75+MusicalTheatreMR!$C75)>0,1,0) -> 1 | K75: =SUM(E75,G75,I75) -> 0 | L75: 0
A76: =MusicalTheatre!A65 -> N-602 | B76: =MusicalTheatre!V65 -> 11 | C76: =MusicalTheatre!T65 -> 63 | D76: =IF((MusicalTheatreMR!$B76+MusicalTheatreMR!$C76)>0,1,0) -> 1 | K76: =SUM(E76,G76,I76) -> 0 | L76: 0
A77: =MusicalTheatre!A66 -> N-603 | B77: =MusicalTheatre!V66 -> 11 | C77: =MusicalTheatre!T66 -> 65 | D77: =IF((MusicalTheatreMR!$B77+MusicalTheatreMR!$C77)>0,1,0) -> 1 | K77: =SUM(E77,G77,I77) -> 0 | L77: 0
A78: =MusicalTheatre!A67 -> N-604 | B78: =MusicalTheatre!V67 -> 0 | C78: =MusicalTheatre!T67 -> 0 | D78: =IF((MusicalTheatreMR!$B78+MusicalTheatreMR!$C78)>0,1,0) -> 0 | K78: =SUM(E78,G78,I78) -> 0 | L78: 0
A79: =MusicalTheatre!A69 -> P-601 | B79: =MusicalTheatre!V69 -> 9 | C79: =MusicalTheatre!T69 -> 64 | D79: =IF((MusicalTheatreMR!$B79+MusicalTheatreMR!$C79)>0,1,0) -> 1 | K79: =SUM(E79,G79,I79) -> 0 | L79: 0
A80: =MusicalTheatre!A70 -> P-602 | B80: =MusicalTheatre!V70 -> 10 | C80: =MusicalTheatre!T70 -> 72 | D80: =IF((MusicalTheatreMR!$B80+MusicalTheatreMR!$C80)>0,1,0) -> 1 | K80: =SUM(E80,G80,I80) -> 0 | L80: 0
A81: =MusicalTheatre!A71 -> P-603 | B81: =MusicalTheatre!V71 -> 7 | C81: =MusicalTheatre!T71 -> 75 | D81: =IF((MusicalTheatreMR!$B81+MusicalTheatreMR!$C81)>0,1,0) -> 1 | K81: =SUM(E81,G81,I81) -> 0 | L81: 0
A82: =MusicalTheatre!A72 -> P-604 | B82: =MusicalTheatre!V72 -> 10 | C82: =MusicalTheatre!T72 -> 71 | D82: =IF((MusicalTheatreMR!$B82+MusicalTheatreMR!$C82)>0,1,0) -> 1 | K82: =SUM(E82,G82,I82) -> 0 | L82: 0
A83: =MusicalTheatre!A74 -> Q-601 | B83: =MusicalTheatre!V74 -> 0 | C83: =MusicalTheatre!T74 -> 0 | D83: =IF((MusicalTheatreMR!$B83+MusicalTheatreMR!$C83)>0,1,0) -> 0 | K83: =SUM(E83,G83,I83) -> 0 | L83: 0
A84: =MusicalTheatre!A75 -> Q-602 | B84: =MusicalTheatre!V75 -> 0 | C84: =MusicalTheatre!T75 -> 0 | D84: =IF((MusicalTheatreMR!$B84+MusicalTheatreMR!$C84)>0,1,0) -> 0 | K84: =SUM(E84,G84,I84) -> 0 | L84: 0
A85: =MusicalTheatre!A76 -> Q-603 | B85: =MusicalTheatre!V76 -> 0 | C85: =MusicalTheatre!T76 -> 0 | D85: =IF((MusicalTheatreMR!$B85+MusicalTheatreMR!$C85)>0,1,0) -> 0 | K85: =SUM(E85,G85,I85) -> 0 | L85: 0
A86: =MusicalTheatre!A77 -> Q-604 | B86: =MusicalTheatre!V77 -> 0 | C86: =MusicalTheatre!T77 -> 0 | D86: =IF((MusicalTheatreMR!$B86+MusicalTheatreMR!$C86)>0,1,0) -> 0 | K86: =SUM(E86,G86,I86) -> 0 | L86: 0
A87: =MusicalTheatre!A79 -> R-601 | B87: =MusicalTheatre!V79 -> 7 | C87: =MusicalTheatre!T79 -> 73 | D87: =IF((MusicalTheatreMR!$B87+MusicalTheatreMR!$C87)>0,1,0) -> 1 | K87: =SUM(E87,G87,I87) -> 0 | L87: 0
A88: =MusicalTheatre!A80 -> R-602 | B88: =MusicalTheatre!V80 -> 9 | C88: =MusicalTheatre!T80 -> 58 | D88: =IF((MusicalTheatreMR!$B88+MusicalTheatreMR!$C88)>0,1,0) -> 1 | K88: =SUM(E88,G88,I88) -> 0 | L88: 0
A89: =MusicalTheatre!A81 -> R-603 | B89: =MusicalTheatre!V81 -> 11 | C89: =MusicalTheatre!T81 -> 61 | D89: =IF((MusicalTheatreMR!$B89+MusicalTheatreMR!$C89)>0,1,0) -> 1 | K89: =SUM(E89,G89,I89) -> 0 | L89: 0
A90: =MusicalTheatre!A82 -> R-604 | B90: =MusicalTheatre!V82 -> 0 | C90: =MusicalTheatre!T82 -> 0 | D90: =IF((MusicalTheatreMR!$B90+MusicalTheatreMR!$C90)>0,1,0) -> 0 | K90: =SUM(E90,G90,I90) -> 0 | L90: 0
A91: =MusicalTheatre!A84 -> S-601 | B91: =MusicalTheatre!V84 -> 7 | C91: =MusicalTheatre!T84 -> 70 | D91: =IF((MusicalTheatreMR!$B91+MusicalTheatreMR!$C91)>0,1,0) -> 1 | K91: =SUM(E91,G91,I91) -> 0 | L91: 0
A92: =MusicalTheatre!A85 -> S-602 | B92: =MusicalTheatre!V85 -> 9 | C92: =MusicalTheatre!T85 -> 68 | D92: =IF((MusicalTheatreMR!$B92+MusicalTheatreMR!$C92)>0,1,0) -> 1 | K92: =SUM(E92,G92,I92) -> 0 | L92: 0
A93: =MusicalTheatre!A86 -> S-603 | B93: =MusicalTheatre!V86 -> 10 | C93: =MusicalTheatre!T86 -> 65 | D93: =IF((MusicalTheatreMR!$B93+MusicalTheatreMR!$C93)>0,1,0) -> 1 | K93: =SUM(E93,G93,I93) -> 0 | L93: 0
A94: =MusicalTheatre!A87 -> S-604 | B94: =MusicalTheatre!V87 -> 0 | C94: =MusicalTheatre!T87 -> 0 | D94: =IF((MusicalTheatreMR!$B94+MusicalTheatreMR!$C94)>0,1,0) -> 0 | K94: =SUM(E94,G94,I94) -> 0 | L94: 0
A95: =MusicalTheatre!A89 -> T-601 | B95: =MusicalTheatre!V89 -> 0 | C95: =MusicalTheatre!T89 -> 0 | D95: =IF((MusicalTheatreMR!$B95+MusicalTheatreMR!$C95)>0,1,0) -> 0 | K95: =SUM(E95,G95,I95) -> 0 | L95: 0
A96: =MusicalTheatre!A90 -> T-602 | B96: =MusicalTheatre!V90 -> 0 | C96: =MusicalTheatre!T90 -> 0 | D96: =IF((MusicalTheatreMR!$B96+MusicalTheatreMR!$C96)>0,1,0) -> 0 | K96: =SUM(E96,G96,I96) -> 0 | L96: 0
A97: =MusicalTheatre!A91 -> T-603 | B97: =MusicalTheatre!V91 -> 0 | C97: =MusicalTheatre!T91 -> 0 | D97: =IF((MusicalTheatreMR!$B97+MusicalTheatreMR!$C97)>0,1,0) -> 0 | K97: =SUM(E97,G97,I97) -> 0 | L97: 0
A98: =MusicalTheatre!A92 -> T-604 | B98: =MusicalTheatre!V92 -> 0 | C98: =MusicalTheatre!T92 -> 0 | D98: =IF((MusicalTheatreMR!$B98+MusicalTheatreMR!$C98)>0,1,0) -> 0 | K98: =SUM(E98,G98,I98) -> 0 | L98: 0
A99: =MusicalTheatre!A94 -> U-601 | B99: =MusicalTheatre!V94 -> 0 | C99: =MusicalTheatre!T94 -> 0 | D99: =IF((MusicalTheatreMR!$B99+MusicalTheatreMR!$C99)>0,1,0) -> 0 | K99: =SUM(E99,G99,I99) -> 0 | L99: 0
A100: =MusicalTheatre!A95 -> U-602 | B100: =MusicalTheatre!V95 -> 0 | C100: =MusicalTheatre!T95 -> 0 | D100: =IF((MusicalTheatreMR!$B100+MusicalTheatreMR!$C100)>0,1,0) -> 0 | K100: =SUM(E100,G100,I100) -> 0 | L100: 0
A101: =MusicalTheatre!A96 -> U-603 | B101: =MusicalTheatre!V96 -> 0 | C101: =MusicalTheatre!T96 -> 0 | D101: =IF((MusicalTheatreMR!$B101+MusicalTheatreMR!$C101)>0,1,0) -> 0 | K101: =SUM(E101,G101,I101) -> 0 | L101: 0
A102: =MusicalTheatre!A97 -> U-604 | B102: =MusicalTheatre!V97 -> 0 | C102: =MusicalTheatre!T97 -> 0 | D102: =IF((MusicalTheatreMR!$B102+MusicalTheatreMR!$C102)>0,1,0) -> 0 | K102: =SUM(E102,G102,I102) -> 0 | L102: 0
A103: =MusicalTheatre!A99 -> V-601 | B103: =MusicalTheatre!V99 -> 0 | C103: =MusicalTheatre!T99 -> 0 | D103: =IF((MusicalTheatreMR!$B103+MusicalTheatreMR!$C103)>0,1,0) -> 0 | K103: =SUM(E103,G103,I103) -> 0 | L103: 0
A104: =MusicalTheatre!A100 -> V-602 | B104: =MusicalTheatre!V100 -> 0 | C104: =MusicalTheatre!T100 -> 0 | D104: =IF((MusicalTheatreMR!$B104+MusicalTheatreMR!$C104)>0,1,0) -> 0 | K104: =SUM(E104,G104,I104) -> 0 | L104: 0
A105: =MusicalTheatre!A101 -> V-603 | B105: =MusicalTheatre!V101 -> 0 | C105: =MusicalTheatre!T101 -> 0 | D105: =IF((MusicalTheatreMR!$B105+MusicalTheatreMR!$C105)>0,1,0) -> 0 | K105: =SUM(E105,G105,I105) -> 0 | L105: 0
A106: =MusicalTheatre!A102 -> V-604 | B106: =MusicalTheatre!V102 -> 0 | C106: =MusicalTheatre!T102 -> 0 | D106: =IF((MusicalTheatreMR!$B106+MusicalTheatreMR!$C106)>0,1,0) -> 0 | K106: =SUM(E106,G106,I106) -> 0 | L106: 0
A107: =MusicalTheatre!A104 -> W-601 | B107: =MusicalTheatre!V104 -> 0 | C107: =MusicalTheatre!T104 -> 0 | D107: =IF((MusicalTheatreMR!$B107+MusicalTheatreMR!$C107)>0,1,0) -> 0 | K107: =SUM(E107,G107,I107) -> 0 | L107: 0
A108: =MusicalTheatre!A105 -> W-602 | B108: =MusicalTheatre!V105 -> 0 | C108: =MusicalTheatre!T105 -> 0 | D108: =IF((MusicalTheatreMR!$B108+MusicalTheatreMR!$C108)>0,1,0) -> 0 | K108: =SUM(E108,G108,I108) -> 0 | L108: 0
A109: =MusicalTheatre!A106 -> W-603 | B109: =MusicalTheatre!V106 -> 0 | C109: =MusicalTheatre!T106 -> 0 | D109: =IF((MusicalTheatreMR!$B109+MusicalTheatreMR!$C109)>0,1,0) -> 0 | K109: =SUM(E109,G109,I109) -> 0 | L109: 0
A110: =MusicalTheatre!A107 -> W-604 | B110: =MusicalTheatre!V107 -> 0 | C110: =MusicalTheatre!T107 -> 0 | D110: =IF((MusicalTheatreMR!$B110+MusicalTheatreMR!$C110)>0,1,0) -> 0 | K110: =SUM(E110,G110,I110) -> 0 | L110: 0
A111: =MusicalTheatre!A109 -> X-601 | B111: =MusicalTheatre!V109 -> 0 | C111: =MusicalTheatre!T109 -> 0 | D111: =IF((MusicalTheatreMR!$B111+MusicalTheatreMR!$C111)>0,1,0) -> 0 | K111: =SUM(E111,G111,I111) -> 0 | L111: 0
A112: =MusicalTheatre!A110 -> X-602 | B112: =MusicalTheatre!V110 -> 0 | C112: =MusicalTheatre!T110 -> 0 | D112: =IF((MusicalTheatreMR!$B112+MusicalTheatreMR!$C112)>0,1,0) -> 0 | K112: =SUM(E112,G112,I112) -> 0 | L112: 0
A113: =MusicalTheatre!A111 -> X-603 | B113: =MusicalTheatre!V111 -> 0 | C113: =MusicalTheatre!T111 -> 0 | D113: =IF((MusicalTheatreMR!$B113+MusicalTheatreMR!$C113)>0,1,0) -> 0 | K113: =SUM(E113,G113,I113) -> 0 | L113: 0
A114: =MusicalTheatre!A112 -> X-604 | B114: =MusicalTheatre!V112 -> 0 | C114: =MusicalTheatre!T112 -> 0 | D114: =IF((MusicalTheatreMR!$B114+MusicalTheatreMR!$C114)>0,1,0) -> 0 | K114: =SUM(E114,G114,I114) -> 0 | L114: 0
A115: =MusicalTheatre!A114 -> Y-601 | B115: =MusicalTheatre!V114 -> 0 | C115: =MusicalTheatre!T114 -> 0 | D115: =IF((MusicalTheatreMR!$B115+MusicalTheatreMR!$C115)>0,1,0) -> 0 | K115: =SUM(E115,G115,I115) -> 0 | L115: 0
A116: =MusicalTheatre!A115 -> Y-602 | B116: =MusicalTheatre!V115 -> 0 | C116: =MusicalTheatre!T115 -> 0 | D116: =IF((MusicalTheatreMR!$B116+MusicalTheatreMR!$C116)>0,1,0) -> 0 | K116: =SUM(E116,G116,I116) -> 0 | L116: 0
A117: =MusicalTheatre!A116 -> Y-603 | B117: =MusicalTheatre!V116 -> 0 | C117: =MusicalTheatre!T116 -> 0 | D117: =IF((MusicalTheatreMR!$B117+MusicalTheatreMR!$C117)>0,1,0) -> 0 | K117: =SUM(E117,G117,I117) -> 0 | L117: 0
A118: =MusicalTheatre!A117 -> Y-604 | B118: =MusicalTheatre!V117 -> 0 | C118: =MusicalTheatre!T117 -> 0 | D118: =IF((MusicalTheatreMR!$B118+MusicalTheatreMR!$C118)>0,1,0) -> 0 | K118: =SUM(E118,G118,I118) -> 0 | L118: 0
A119: =MusicalTheatre!A119 -> Z-601 | B119: =MusicalTheatre!V119 -> 0 | C119: =MusicalTheatre!T119 -> 0 | D119: =IF((MusicalTheatreMR!$B119+MusicalTheatreMR!$C119)>0,1,0) -> 0 | K119: =SUM(E119,G119,I119) -> 0 | L119: 0
A120: =MusicalTheatre!A120 -> Z-602 | B120: =MusicalTheatre!V120 -> 0 | C120: =MusicalTheatre!T120 -> 0 | D120: =IF((MusicalTheatreMR!$B120+MusicalTheatreMR!$C120)>0,1,0) -> 0 | K120: =SUM(E120,G120,I120) -> 0 | L120: 0
A121: =MusicalTheatre!A121 -> Z-603 | B121: =MusicalTheatre!V121 -> 0 | C121: =MusicalTheatre!T121 -> 0 | D121: =IF((MusicalTheatreMR!$B121+MusicalTheatreMR!$C121)>0,1,0) -> 0 | K121: =SUM(E121,G121,I121) -> 0 | L121: 0
A122: =MusicalTheatre!A122 -> Z-604 | B122: =MusicalTheatre!V122 -> 0 | C122: =MusicalTheatre!T122 -> 0 | D122: =IF((MusicalTheatreMR!$B122+MusicalTheatreMR!$C122)>0,1,0) -> 0 | K122: =SUM(E122,G122,I122) -> 0 | L122: 0

Sheet One-Acts
A1: ONE-ACTS | K1: Rank 1-6 | AD1: S | AE1: E | AF1: G | AG1: F | AI1: 1violation
K2: Judge 1 | M2: Judge 2 | O2: Judge 3
B3: Title of Piece | K3: J1 rank | L3: J1 score | M3: J2 rank | N3: J2 score | O3: J3 rank | P3: J3 score | S3: TOTAL RANK | U3: TOTAL SCORE | W3: TOTAL SCHOOL SWEEPS POINTS | Z3: Time Violations
A4: A-701 | B4: 12 Angry Jurors | K4: 1 | L4: 50 | M4: 1 | N4: 48 | O4: 3 | P4: 46 | S4: =SUM(K4,M4,O4) -> 5 | U4: =SUM(L4,N4,P4) -> 144 | W4: =SUM(U4,AA4) -> 144 | AA4: =IF(Z4="1violation",-35*1,IF(Z4="2violations",-35*2,IF(Z4="3violations",-35*3,IF(Z4="","")))) -> 
A5: B-701 | S5: 0 | U5: 0 | W5: 0 | AA5: =IF(Z5="1violation",-10*1,IF(Z5="2violations",-10*2,IF(Z5="3violations",-10*3,IF(Z5="","")))) -> 
A6: C-701 | B6: Almost Maine | K6: 3 | L6: 50 | M6: 2 | N6: 48 | O6: 1 | P6: 47 | S6: 6 | U6: 145 | W6: 145
A7: D-701 | S7: 0 | U7: 0 | W7: 0
A8: E-701 | B8: 04:00:00 | K8: 6 | L8: 40 | M8: 6 | N8: 39 | O8: 6 | P8: 30 | S8: 18 | U8: 109 | W8: 109
A9: F-701 | B9: Macduff | K9: 4 | L9: 50 | M9: 3 | N9: 46 | O9: 2 | P9: 46 | S9: 9 | U9: 142 | W9: 142
A10: G-701 | B10: Little Women | K10: 6 | L10: 45 | M10: 6 | N10: 40 | O10: 5 | P10: 41 | S10: 17 | U10: 126 | W10: 126
A11: H-701 | B11: Macbeth | K11: 2 | L11: 50 | M11: 6 | N11: 38 | O11: 6 | P11: 40 | S11: 14 | U11: 128 | W11: 128
A12: J-701 | B12: I never saw another Butterfly | K12: 6 | L12: 46 | M12: 5 | N12: 42 | O12: 6 | P12: 42 | S12: 17 | U12: 130 | W12: 130
A13: K-701 | B13: Squirrel Goes to College | K13: 5 | L13: 50 | M13: 6 | N13: 42 | O13: 4 | P13: 45 | S13: 15 | U13: 137 | W13: 137
A14: L-701 | B14: This is a Test | K14: 6 | L14: 40 | M14: 6 | N14: 35 | O14: 6 | P14: 40 | S14: 18 | U14: 115 | W14: 115
A15: M-701 | S15: 0 | U15: 0 | W15: 0
A16: N-701 | S16: 0 | U16: 0 | W16: 0
A17: P-701 | B17: An Adaptation of Tell Tale Heart | K17: 6 | L17: 48 | M17: 6 | N17: 42 | O17: 6 | P17: 40 | S17: 18 | U17: 130 | W17: 130
A18: Q-701 | S18: 0 | U18: 0 | W18: 0
A19: R-701 | K19: 6 | L19: 41 | M19: 6 | N19: 35 | O19: 6 | P19: 35 | S19: 18 | U19: 111 | W19: 111
A20: S-701 | B20: The other room | K20: 6 | L20: 45 | M20: 4 | N20: 42 | O20: 6 | P20: 41 | S20: 16 | U20: 128 | W20: 128
A21: T-701 | S21: 0 | U21: 0 | W21: 0
A22: U-701 | S22: 0 | U22: 0 | W22: 0
A23: V-701 | S23: 0 | U23: 0 | W23: 0
A24: W-701 | S24: 0 | U24: 0 | W24: 0
A25: X-701 | S25: 0 | U25: 0 | W25: 0
A26: Y-701 | S26: 0 | U26: 0 | W26: 0
A27: Z-701 | S27: 0 | U27: 0 | W27: 0
A28: AA-701 | S28: 0 | U28: 0 | W28: 0
A29: BB-701 | S29: 0 | U29: 0 | W29: 0
A30: CC-701 | S30: 0 | U30: 0 | W30: 0
A31: DD-701 | S31: 0 | U31: 0 | W31: 0
A32: EE-701 | S32: 0 | U32: 0 | W32: 0
A33: FF-701 | S33: 0 | U33: 0 | W33: 0

Sheet CostumeDesign
A1: Costume Design | K1: Rank 1-6 | AC1: 1violation | AD1: 2violations | AE1: 3violations
K2: Round 1: | M2: Round 2: | O2: Round 3:
H3: Student Name | K3: R1 rank | L3: R1 score | M3: R2 rank | N3: R2 score | O3: R3 rank | P3: R3 score | S3: TOTAL SCORE | U3: TOTAL RANK
A4: A-801 | S4: =SUM(L4,N4,P4) -> 0 | U4: =SUM(K4,M4,O4) -> 0
A5: A-802 | S5: 0 | U5: 0
A6: A-803 | S6: 0 | U6: 0
A7: A-804 | S7: 0 | U7: 0
A9: B-801 | S9: =SUM(L9,N9,P9) -> 0 | U9: =SUM(K9,M9,O9) -> 0
A10: B-802 | S10: 0 | U10: 0
A11: B-803 | S11: 0 | U11: 0
A12: B-804 | S12: 0 | U12: 0
A14: C-801 | H14: Eva | I14: Spunaugle | K14: 5 | L14: 22 | M14: 4 | N14: 22 | O14: 6 | P14: 20 | S14: =SUM(L14,N14,P14) -> 64 | U14: =SUM(K14,M14,O14) -> 15
A15: C-802 | S15: 0 | U15: 0
A16: C-803 | S16: 0 | U16: 0
A17: C-804 | S17: 0 | U17: 0
A19: D-801 | S19: =SUM(L19,N19,P19) -> 0 | U19: =SUM(K19,M19,O19) -> 0
A20: D-802 | S20: 0 | U20: 0
A21: D-803 | S21: 0 | U21: 0
A22: D-804 | S22: 0 | U22: 0
A24: E-801 | S24: =SUM(L24,N24,P24) -> 0 | U24: =SUM(K24,M24,O24) -> 0
A25: E-802 | S25: 0 | U25: 0
A26: E-803 | S26: 0 | U26: 0
A27: E-804 | S27: 0 | U27: 0
A29: F-801 | S29: =SUM(L29,N29,P29) -> 0 | U29: =SUM(K29,M29,O29) -> 0
A30: F-802 | S30: 0 | U30: 0
A31: F-803 | S31: 0 | U31: 0
A32: F-804 | S32: 0 | U32: 0
A34: G-801 | H34: Ingrid | I34: Payne | K34: 2 | L34: 24 | M34: 1 | N34: 25 | O34: 1 | P34: 25 | S34: =SUM(L34,N34,P34) -> 74 | U34: =SUM(K34,M34,O34) -> 4
A35: G-802 | S35: 0 | U35: 0
A36: G-803 | S36: 0 | U36: 0
A37: G-804 | S37: 0 | U37: 0
A39: H-801 | H39: Megan | I39: Rice | K39: 6 | L39: 15 | O39: 6 | P39: 9 | S39: =SUM(L39,N39,P39) -> 24 | U39: =SUM(K39,M39,O39) -> 12
A40: H-802 | H40: Nick | I40: Evans | K40: 3 | L40: 24 | M40: 3 | N40: 23 | O40: 2 | P40: 25 | S40: 72 | U40: 8
A41: H-803 | H41: Lola | I41: Perez | K41: 6 | L41: 22 | M41: 6 | N41: 21 | O41: 5 | P41: 23 | S41: 66 | U41: 17
A42: H-804 | S42: 0 | U42: 0
A44: J-801 | S44: =SUM(L44,N44,P44) -> 0 | U44: =SUM(K44,M44,O44) -> 0
A45: J-802 | S45: 0 | U45: 0
A46: J-803 | S46: 0 | U46: 0
A47: J-804 | S47: 0 | U47: 0
A49: K-801 | S49: =SUM(L49,N49,P49) -> 0 | U49: =SUM(K49,M49,O49) -> 0
A50: K-802 | S50: 0 | U50: 0
A51: K-803 | S51: 0 | U51: 0
A52: K-804 | S52: 0 | U52: 0
A54: L-801 | H54: Brooklyn | I54: Twedell | K54: 4 | L54: 24 | M54: 5 | N54: 22 | O54: 4 | P54: 24 | S54: =SUM(L54,N54,P54) -> 70 | U54: =SUM(K54,M54,O54) -> 13
A55: L-802 | H55: Reeanna | I55: Morrey | K55: 1 | L55: 24 | M55: 2 | N55: 24 | O55: 2 | P55: 24 | S55: 72 | U55: 5
A56: L-803 | S56: 0 | U56: 0
A57: L-804 | S57: 0 | U57: 0
A59: M-801 | S59: =SUM(L59,N59,P59) -> 0 | U59: =SUM(K59,M59,O59) -> 0
A60: M-802 | S60: 0 | U60: 0
A61: M-803 | S61: 0 | U61: 0
A62: M-804 | S62: 0 | U62: 0
A64: N-801 | H64: Camila | I64: Torgersen | S64: =SUM(L64,N64,P64) -> 0 | U64: =SUM(K64,M64,O64) -> 0
A65: N-802 | S65: 0 | U65: 0
A66: N-803 | S66: 0 | U66: 0
A67: N-804 | S67: 0 | U67: 0
A69: P-801 | S69: =SUM(L69,N69,P69) -> 0 | U69: =SUM(K69,M69,O69) -> 0
A70: P-802 | S70: 0 | U70: 0
A71: P-803 | S71: 0 | U71: 0
A72: P-804 | S72: 0 | U72: 0
A74: Q-801 | S74: =SUM(L74,N74,P74) -> 0 | U74: =SUM(K74,M74,O74) -> 0
A75: Q-802 | S75: 0 | U75: 0
A76: Q-803 | S76: 0 | U76: 0
A77: Q-804 | S77: 0 | U77: 0
A79: R-801 | S79: =SUM(L79,N79,P79) -> 0 | U79: =SUM(K79,M79,O79) -> 0
A80: R-802 | S80: 0 | U80: 0
A81: R-803 | S81: 0 | U81: 0
A82: R-804 | S82: 0 | U82: 0
A84: S-801 | S84: =SUM(L84,N84,P84) -> 0 | U84: =SUM(K84,M84,O84) -> 0
A85: S-802 | S85: 0 | U85: 0
A86: S-803 | S86: 0 | U86: 0
A87: S-804 | S87: 0 | U87: 0
A89: T-801 | S89: =SUM(L89,N89,P89) -> 0 | U89: =SUM(K89,M89,O89) -> 0
A90: T-802 | S90: 0 | U90: 0
A91: T-803 | S91: 0 | U91: 0
A92: T-804 | S92: 0 | U92: 0
A94: U-801 | S94: =SUM(L94,N94,P94) -> 0 | U94: =SUM(K94,M94,O94) -> 0
A95: U-802 | S95: 0 | U95: 0
A96: U-803 | S96: 0 | U96: 0
A97: U-804 | S97: 0 | U97: 0
A99: V-801 | S99: =SUM(L99,N99,P99) -> 0 | U99: =SUM(K99,M99,O99) -> 0
A100: V-802 | S100: 0 | U100: 0
A101: V-803 | S101: 0 | U101: 0
A102: V-804 | S102: 0 | U102: 0
A104: W-801 | S104: =SUM(L104,N104,P104) -> 0 | U104: =SUM(K104,M104,O104) -> 0
A105: W-802 | S105: 0 | U105: 0
A106: W-803 | S106: 0 | U106: 0
A107: W-804 | S107: 0 | U107: 0
A109: X-801 | S109: =SUM(L109,N109,P109) -> 0 | U109: =SUM(K109,M109,O109) -> 0
A110: X-802 | S110: 0 | U110: 0
A111: X-803 | S111: 0 | U111: 0
A112: X-804 | S112: 0 | U112: 0
A114: Y-801 | S114: =SUM(L114,N114,P114) -> 0 | U114: =SUM(K114,M114,O114) -> 0
A115: Y-802 | S115: 0 | U115: 0
A116: Y-803 | S116: 0 | U116: 0
A117: Y-804 | S117: 0 | U117: 0
A119: Z-801 | S119: =SUM(L119,N119,P119) -> 0 | U119: =SUM(K119,M119,O119) -> 0
A120: Z-802 | S120: 0 | U120: 0
A121: Z-803 | S121: 0 | U121: 0
A122: Z-804 | S122: 0 | U122: 0
A124: AA-801 | S124: =SUM(L124,N124,P124) -> 0 | U124: =SUM(K124,M124,O124) -> 0
A125: AA-802 | S125: 0 | U125: 0
A126: AA-803 | S126: 0 | U126: 0
A127: AA-804 | S127: 0 | U127: 0
A129: BB-801 | S129: =SUM(L129,N129,P129) -> 0 | U129: =SUM(K129,M129,O129) -> 0
A130: BB-802 | S130: 0 | U130: 0
A131: BB-803 | S131: 0 | U131: 0
A132: BB-804 | S132: 0 | U132: 0
A134: CC-801 | S134: =SUM(L134,N134,P134) -> 0 | U134: =SUM(K134,M134,O134) -> 0
A135: CC-802 | S135: 0 | U135: 0
A136: CC-803 | S136: 0 | U136: 0
A137: CC-804 | S137: 0 | U137: 0
A139: DD-801 | S139: =SUM(L139,N139,P139) -> 0 | U139: =SUM(K139,M139,O139) -> 0
A140: DD-802 | S140: 0 | U140: 0
A141: DD-803 | S141: 0 | U141: 0
A142: DD-804 | S142: 0 | U142: 0
A144: EE-801 | S144: =SUM(L144,N144,P144) -> 0 | U144: =SUM(K144,M144,O144) -> 0
A145: EE-802 | S145: 0 | U145: 0
A146: EE-803 | S146: 0 | U146: 0
A147: EE-804 | S147: 0 | U147: 0
A149: FF-801 | S149: =SUM(L149,N149,P149) -> 0 | U149: =SUM(K149,M149,O149) -> 0
A150: FF-802 | S150: 0 | U150: 0
A151: FF-803 | S151: 0 | U151: 0
A152: FF-804 | S152: 0 | U152: 0

Sheet ScenicDesign
A1: Scenic Design | K1: Rank 1-6 | AC1: 1violation | AD1: 2violations | AE1: 3violations
K2: Round 1: | M2: Round 2: | O2: Round 3:
H3: Student Name | K3: R1 rank | L3: R1 score | M3: R2 rank | N3: R2 score | O3: R3 rank | P3: R3 score | S3: TOTAL SCORE | U3: TOTAL RANK
A4: A-901 | H4: Alison | I4: Olson | K4: 3 | L4: 22 | M4: 3 | N4: 25 | O4: 1 | P4: 25 | S4: =SUM(L4,N4,P4) -> 72 | U4: =SUM(K4,M4,O4) -> 7
A5: A-902 | S5: 0 | U5: 0
A6: A-903 | S6: 0 | U6: 0
A7: A-904 | S7: 0 | U7: 0
A9: B-901 | S9: =SUM(L9,N9,P9) -> 0 | U9: =SUM(K9,M9,O9) -> 0
A10: B-902 | S10: 0 | U10: 0
A11: B-903 | S11: 0 | U11: 0
A12: B-904 | S12: 0 | U12: 0
A14: C-901 | S14: =SUM(L14,N14,P14) -> 0 | U14: =SUM(K14,M14,O14) -> 0
A15: C-902 | S15: 0 | U15: 0
A16: C-903 | S16: 0 | U16: 0
A17: C-904 | S17: 0 | U17: 0
A19: D-901 | S19: =SUM(L19,N19,P19) -> 0 | U19: =SUM(K19,M19,O19) -> 0
A20: D-902 | S20: 0 | U20: 0
A21: D-903 | S21: 0 | U21: 0
A22: D-904 | S22: 0 | U22: 0
A24: E-901 | S24: =SUM(L24,N24,P24) -> 0 | U24: =SUM(K24,M24,O24) -> 0
A25: E-902 | S25: 0 | U25: 0
A26: E-903 | S26: 0 | U26: 0
A27: E-904 | S27: 0 | U27: 0
A29: F-901 | S29: =SUM(L29,N29,P29) -> 0 | U29: =SUM(K29,M29,O29) -> 0
A30: F-902 | S30: 0 | U30: 0
A31: F-903 | S31: 0 | U31: 0
A32: F-904 | S32: 0 | U32: 0
A34: G-901 | S34: =SUM(L34,N34,P34) -> 0 | U34: =SUM(K34,M34,O34) -> 0
A35: G-902 | S35: 0 | U35: 0
A36: G-903 | S36: 0 | U36: 0
A37: G-904 | S37: 0 | U37: 0
A39: H-901 | S39: =SUM(L39,N39,P39) -> 0 | U39: =SUM(K39,M39,O39) -> 0
A40: H-902 | S40: 0 | U40: 0
A41: H-903 | S41: 0 | U41: 0
A42: H-904 | S42: 0 | U42: 0
A44: J-901 | S44: =SUM(L44,N44,P44) -> 0 | U44: =SUM(K44,M44,O44) -> 0
A45: J-902 | S45: 0 | U45: 0
A46: J-903 | S46: 0 | U46: 0
A47: J-904 | S47: 0 | U47: 0
A49: K-901 | S49: =SUM(L49,N49,P49) -> 0 | U49: =SUM(K49,M49,O49) -> 0
A50: K-902 | S50: 0 | U50: 0
A51: K-903 | S51: 0 | U51: 0
A52: K-904 | S52: 0 | U52: 0
A54: L-901 | S54: =SUM(L54,N54,P54) -> 0 | U54: =SUM(K54,M54,O54) -> 0
A55: L-902 | S55: 0 | U55: 0
A56: L-903 | S56: 0 | U56: 0
A57: L-904 | S57: 0 | U57: 0
A59: M-901 | S59: =SUM(L59,N59,P59) -> 0 | U59: =SUM(K59,M59,O59) -> 0
A60: M-902 | S60: 0 | U60: 0
A61: M-903 | S61: 0 | U61: 0
A62: M-904 | S62: 0 | U62: 0
A64: N-901 | H64: Isabel | I64: Nielsen | K64: 4 | L64: 22 | M64: 2 | N64: 25 | O64: 3 | P64: 25 | S64: =SUM(L64,N64,P64) -> 72 | U64: =SUM(K64,M64,O64) -> 9
A65: N-902 | H65: Bella | I65: Aguilar | K65: 1 | L65: 24 | M65: 1 | N65: 25 | O65: 4 | P65: 23 | S65: 72 | U65: 6
A66: N-903 | H66: Madison | I66: Garlick | K66: 2 | L66: 23 | M66: 4 | N66: 25 | O66: 2 | P66: 25 | S66: 73 | U66: 8
A67: N-904 | S67: 0 | U67: 0
A69: P-901 | S69: =SUM(L69,N69,P69) -> 0 | U69: =SUM(K69,M69,O69) -> 0
A70: P-902 | S70: 0 | U70: 0
A71: P-903 | S71: 0 | U71: 0
A72: P-904 | S72: 0 | U72: 0
A74: Q-901 | S74: =SUM(L74,N74,P74) -> 0 | U74: =SUM(K74,M74,O74) -> 0
A75: Q-902 | S75: 0 | U75: 0
A76: Q-903 | S76: 0 | U76: 0
A77: Q-904 | S77: 0 | U77: 0
A79: R-901 | S79: =SUM(L79,N79,P79) -> 0 | U79: =SUM(K79,M79,O79) -> 0
A80: R-902 | S80: 0 | U80: 0
A81: R-903 | S81: 0 | U81: 0
A82: R-904 | S82: 0 | U82: 0
A84: S-901 | H84: Tanner | I84: Perkins | K84: 5 | L84: 21 | M84: 5 | N84: 23 | O84: 5 | P84: 22 | S84: =SUM(L84,N84,P84) -> 66 | U84: =SUM(K84,M84,O84) -> 15
A85: S-902 | S85: 0 | U85: 0
A86: S-903 | S86: 0 | U86: 0
A87: S-904 | S87: 0 | U87: 0
A89: T-901 | S89: =SUM(L89,N89,P89) -> 0 | U89: =SUM(K89,M89,O89) -> 0
A90: T-902 | S90: 0 | U90: 0
A91: T-903 | S91: 0 | U91: 0
A92: T-904 | S92: 0 | U92: 0
A94: U-901 | S94: =SUM(L94,N94,P94) -> 0 | U94: =SUM(K94,M94,O94) -> 0
A95: U-902 | S95: 0 | U95: 0
A96: U-903 | S96: 0 | U96: 0
A97: U-904 | S97: 0 | U97: 0
A99: V-901 | S99: =SUM(L99,N99,P99) -> 0 | U99: =SUM(K99,M99,O99) -> 0
A100: V-902 | S100: 0 | U100: 0
A101: V-903 | S101: 0 | U101: 0
A102: V-904 | S102: 0 | U102: 0
A104: W-901 | S104: =SUM(L104,N104,P104) -> 0 | U104: =SUM(K104,M104,O104) -> 0
A105: W-902 | S105: 0 | U105: 0
A106: W-903 | S106: 0 | U106: 0
A107: W-904 | S107: 0 | U107: 0
A109: X-901 | S109: =SUM(L109,N109,P109) -> 0 | U109: =SUM(K109,M109,O109) -> 0
A110: X-902 | S110: 0 | U110: 0
A111: X-903 | S111: 0 | U111: 0
A112: X-904 | S112: 0 | U112: 0
A114: Y-901 | S114: =SUM(L114,N114,P114) -> 0 | U114: =SUM(K114,M114,O114) -> 0
A115: Y-902 | S115: 0 | U115: 0
A116: Y-903 | S116: 0 | U116: 0
A117: Y-904 | S117: 0 | U117: 0
A119: Z-901 | S119: =SUM(L119,N119,P119) -> 0 | U119: =SUM(K119,M119,O119) -> 0
A120: Z-902 | S120: 0 | U120: 0
A121: Z-903 | S121: 0 | U121: 0
A122: Z-904 | S122: 0 | U122: 0
A124: AA-901 | S124: =SUM(L124,N124,P124) -> 0 | U124: =SUM(K124,M124,O124) -> 0
A125: AA-902 | S125: 0 | U125: 0
A126: AA-903 | S126: 0 | U126: 0
A127: AA-904 | S127: 0 | U127: 0
A129: BB-901 | S129: =SUM(L129,N129,P129) -> 0 | U129: =SUM(K129,M129,O129) -> 0
A130: BB-902 | S130: 0 | U130: 0
A131: BB-903 | S131: 0 | U131: 0
A132: BB-904 | S132: 0 | U132: 0
A134: CC-901 | S134: =SUM(L134,N134,P134) -> 0 | U134: =SUM(K134,M134,O134) -> 0
A135: CC-902 | S135: 0 | U135: 0
A136: CC-903 | S136: 0 | U136: 0
A137: CC-904 | S137: 0 | U137: 0
A139: DD-901 | S139: =SUM(L139,N139,P139) -> 0 | U139: =SUM(K139,M139,O139) -> 0
A140: DD-902 | S140: 0 | U140: 0
A141: DD-903 | S141: 0 | U141: 0
A142: DD-904 | S142: 0 | U142: 0
A144: EE-901 | S144: =SUM(L144,N144,P144) -> 0 | U144: =SUM(K144,M144,O144) -> 0
A145: EE-902 | S145: 0 | U145: 0
A146: EE-903 | S146: 0 | U146: 0
A147: EE-904 | S147: 0 | U147: 0
A149: FF-901 | S149: =SUM(L149,N149,P149) -> 0 | U149: =SUM(K149,M149,O149) -> 0
A150: FF-902 | S150: 0 | U150: 0
A151: FF-903 | S151: 0 | U151: 0
A152: FF-904 | S152: 0 | U152: 0

Sheet Sweepstakes
A1: FINAL SWEEPSTAKES SCORES
B3: School Name | D3: HUMOROUS MONOLOGUES | G3: DRAMATIC MONOLOGUES | J3: CLASSICAL SCENES | M3: CONTEMPORARY SCENES | P3: PANTOMIMES | R3: MUSICAL THEATRE | U3: ONE-ACT | W3: TOTAL
A4: A | B4: Manti | E4: =SUM('Humorous Monologues'!Y4) -> 215 | H4: =SUM(Dramatic!Y4) -> 214 | K4: =SUM(Classical!Y4) -> 223 | N4: =SUM(Contemporary!Y4) -> 199 | P4: =SUM(Pantomime!Y4) -> 222 | R4: =SUM(MusicalTheatre!Z4) -> 219 | U4: ='One-Acts'!W4 -> 144 | W4: =SUM(E4:U4) -> 1436
A5: B | B5: Delta | E5: =SUM('Humorous Monologues'!Y9) -> 66 | H5: =SUM(Dramatic!Y9) -> 0 | K5: =SUM(Classical!Y9) -> 0 | N5: =SUM(Contemporary!Y9) -> 59 | P5: =SUM(Pantomime!Y9) -> 0 | R5: =SUM(MusicalTheatre!Z9) -> 141 | U5: ='One-Acts'!W5 -> 0 | W5: 266
A6: C | B6: Union | E6: =SUM('Humorous Monologues'!Y14) -> 221 | H6: =SUM(Dramatic!Y14) -> 217 | K6: =SUM(Classical!Y14) -> 218 | N6: =SUM(Contemporary!Y14) -> 219 | P6: =SUM(Pantomime!Y14) -> 219 | R6: =SUM(MusicalTheatre!Z14) -> 219 | U6: ='One-Acts'!W6 -> 145 | W6: 1458
A7: D | E7: =SUM('Humorous Monologues'!Y19) -> 0 | H7: =SUM(Dramatic!Y19) -> 0 | K7: =SUM(Classical!Y19) -> 0 | N7: =SUM(Contemporary!Y19) -> 0 | P7: =SUM(Pantomime!Y19) -> 0 | R7: =SUM(MusicalTheatre!Z19) -> 0 | U7: ='One-Acts'!W7 -> 0 | W7: 0
A8: E | B8: South Summit | E8: =SUM('Humorous Monologues'!Y24) -> 217 | H8: =SUM(Dramatic!Y24) -> 139 | K8: =SUM(Classical!Y24) -> 69 | N8: =SUM(Contemporary!Y24) -> 64 | P8: =SUM(Pantomime!Y24) -> 200 | R8: =SUM(MusicalTheatre!Z24) -> 131 | U8: ='One-Acts'!W8 -> 109 | W8: 929
A9: F | B9: ALA | E9: =SUM('Humorous Monologues'!Y29) -> 211 | H9: =SUM(Dramatic!Y29) -> 205 | K9: =SUM(Classical!Y29) -> 219 | N9: =SUM(Contemporary!Y29) -> 205 | P9: =SUM(Pantomime!Y29) -> 197 | R9: =SUM(MusicalTheatre!Z29) -> 212 | U9: ='One-Acts'!W9 -> 142 | W9: 1391
A10: G | B10: Grand County | E10: =SUM('Humorous Monologues'!Y34) -> 0 | H10: =SUM(Dramatic!Y34) -> 127 | K10: =SUM(Classical!Y34) -> 74 | N10: =SUM(Contemporary!Y34) -> 0 | P10: =SUM(Pantomime!Y34) -> 0 | R10: =SUM(MusicalTheatre!Z34) -> 127 | U10: ='One-Acts'!W10 -> 126 | W10: 454
A11: H | B11: Canyon View | E11: =SUM('Humorous Monologues'!Y39) -> 207 | H11: =SUM(Dramatic!Y39) -> 212 | K11: =SUM(Classical!Y39) -> 217 | N11: =SUM(Contemporary!Y39) -> 204 | P11: =SUM(Pantomime!Y39) -> 203 | R11: =SUM(MusicalTheatre!Z39) -> 219 | U11: ='One-Acts'!W11 -> 128 | W11: 1390
A12: J | B12: Juab | E12: =SUM('Humorous Monologues'!Y44) -> 0 | H12: =SUM(Dramatic!Y44) -> 62 | K12: =SUM(Classical!Y44) -> 0 | N12: =SUM(Contemporary!Y44) -> 138 | P12: =SUM(Pantomime!Y44) -> 0 | R12: =SUM(MusicalTheatre!Z44) -> 142 | U12: ='One-Acts'!W12 -> 130 | W12: 472
A13: K | B13: Juan Diego | E13: =SUM('Humorous Monologues'!Y49) -> 0 | H13: =SUM(Dramatic!Y49) -> 205 | K13: =SUM(Classical!Y49) -> 66 | N13: =SUM(Contemporary!Y49) -> 201 | P13: =SUM(Pantomime!Y49) -> 65 | R13: =SUM(MusicalTheatre!Z49) -> 132 | U13: ='One-Acts'!W13 -> 137 | W13: 806
A14: L | B14: Carbon | E14: =SUM('Humorous Monologues'!Y54) -> 213 | H14: =SUM(Dramatic!Y54) -> 114 | K14: =SUM(Classical!Y54) -> 70 | N14: =SUM(Contemporary!Y54) -> 200 | P14: =SUM(Pantomime!Y54) -> 130 | R14: =SUM(MusicalTheatre!Z54) -> 206 | U14: ='One-Acts'!W14 -> 115 | W14: 1048
A15: M | B15: Emery | E15: =SUM('Humorous Monologues'!Y59) -> 140 | H15: =SUM(Dramatic!Y59) -> 139 | K15: =SUM(Classical!Y59) -> 0 | N15: =SUM(Contemporary!Y59) -> 0 | P15: =SUM(Pantomime!Y59) -> 138 | R15: =SUM(MusicalTheatre!Z59) -> 208 | U15: ='One-Acts'!W15 -> 0 | W15: 625
A16: N | B16: Richfield | E16: =SUM('Humorous Monologues'!Y64) -> 0 | H16: =SUM(Dramatic!Y64) -> 199 | K16: =SUM(Classical!Y64) -> 0 | N16: =SUM(Contemporary!Y64) -> 130 | P16: =SUM(Pantomime!Y64) -> 61 | R16: =SUM(MusicalTheatre!Z64) -> 193 | U16: ='One-Acts'!W16 -> 0 | W16: 583
A17: P | B17: NSHS | E17: =SUM('Humorous Monologues'!Y69) -> 221 | H17: =SUM(Dramatic!Y69) -> 211 | K17: =SUM(Classical!Y69) -> 218 | N17: =SUM(Contemporary!Y69) -> 213 | P17: =SUM(Pantomime!Y69) -> 222 | R17: =SUM(MusicalTheatre!Z69) -> 218 | U17: ='One-Acts'!W17 -> 130 | W17: 1433
A18: Q | E18: =SUM('Humorous Monologues'!Y74) -> 0 | H18: =SUM(Dramatic!Y74) -> 0 | K18: =SUM(Classical!Y74) -> 0 | N18: =SUM(Contemporary!Y74) -> 0 | P18: =SUM(Pantomime!Y74) -> 0 | R18: =SUM(MusicalTheatre!Z74) -> 0 | U18: ='One-Acts'!W18 -> 0 | W18: 0
A19: R | B19: Providence | E19: =SUM('Humorous Monologues'!Y79) -> 132 | H19: =SUM(Dramatic!Y79) -> 135 | K19: =SUM(Classical!Y79) -> 68 | N19: =SUM(Contemporary!Y79) -> 184 | P19: =SUM(Pantomime!Y79) -> 0 | R19: =SUM(MusicalTheatre!Z79) -> 192 | U19: ='One-Acts'!W19 -> 111 | W19: 822
A20: S | B20: Grantsville | E20: =SUM('Humorous Monologues'!Y84) -> 208 | H20: =SUM(Dramatic!Y84) -> 142 | K20: =SUM(Classical!Y84) -> 67 | N20: =SUM(Contemporary!Y84) -> 134 | P20: =SUM(Pantomime!Y84) -> 197 | R20: =SUM(MusicalTheatre!Z84) -> 203 | U20: ='One-Acts'!W20 -> 128 | W20: 1079
A21: T | E21: =SUM('Humorous Monologues'!Y89) -> 0 | H21: =SUM(Dramatic!Y89) -> 0 | K21: =SUM(Classical!Y89) -> 0 | N21: =SUM(Contemporary!Y89) -> 0 | P21: =SUM(Pantomime!Y89) -> 0 | R21: =SUM(MusicalTheatre!Z89) -> 0 | U21: ='One-Acts'!W21 -> 0 | W21: 0
A22: U | E22: =SUM('Humorous Monologues'!Y94) -> 0 | H22: =SUM(Dramatic!Y94) -> 0 | K22: =SUM(Classical!Y94) -> 0 | N22: =SUM(Contemporary!Y94) -> 0 | P22: =SUM(Pantomime!Y94) -> 0 | R22: =SUM(MusicalTheatre!Z94) -> 0 | U22: ='One-Acts'!W22 -> 0 | W22: 0
A23: V | E23: =SUM('Humorous Monologues'!Y99) -> 0 | H23: =SUM(Dramatic!Y99) -> 0 | K23: =SUM(Classical!Y99) -> 0 | N23: =SUM(Contemporary!Y99) -> 0 | P23: =SUM(Pantomime!Y99) -> 0 | R23: =SUM(MusicalTheatre!Z99) -> 0 | U23: ='One-Acts'!W23 -> 0 | W23: 0
A24: W | E24: =SUM('Humorous Monologues'!Y104) -> 0 | H24: =SUM(Dramatic!Y104) -> 0 | K24: =SUM(Classical!Y104) -> 0 | N24: =SUM(Contemporary!Y104) -> 0 | P24: =SUM(Pantomime!Y104) -> 0 | R24: =SUM(MusicalTheatre!Z104) -> 0 | U24: ='One-Acts'!W24 -> 0 | W24: 0
A25: X | E25: =SUM('Humorous Monologues'!Y109) -> 0 | H25: =SUM(Dramatic!Y109) -> 0 | K25: =SUM(Classical!Y109) -> 0 | N25: =SUM(Contemporary!Y109) -> 0 | P25: =SUM(Pantomime!Y109) -> 0 | R25: =SUM(MusicalTheatre!Z109) -> 0 | U25: ='One-Acts'!W25 -> 0 | W25: 0
A26: Y | E26: =SUM('Humorous Monologues'!Y114) -> 0 | H26: =SUM(Dramatic!Y114) -> 0 | K26: =SUM(Classical!Y114) -> 0 | N26: =SUM(Contemporary!Y114) -> 0 | P26: =SUM(Pantomime!Y114) -> 0 | R26: =SUM(MusicalTheatre!Z114) -> 0 | U26: ='One-Acts'!W26 -> 0 | W26: 0
A27: Z | E27: =SUM('Humorous Monologues'!Y119) -> 0 | H27: =SUM(Dramatic!Y119) -> 0 | K27: =SUM(Classical!Y119) -> 0 | N27: =SUM(Contemporary!Y119) -> 0 | P27: =SUM(Pantomime!Y119) -> 0 | R27: =SUM(MusicalTheatre!Z119) -> 0 | U27: ='One-Acts'!W27 -> 0 | W27: 0
A28: AA | E28: =SUM('Humorous Monologues'!Y124) -> 0 | H28: =SUM(Dramatic!Y124) -> 0 | K28: =SUM(Classical!Y124) -> 0 | N28: =SUM(Contemporary!Y124) -> 0 | P28: =SUM(Pantomime!Y124) -> 0 | R28: =SUM(MusicalTheatre!Z124) -> 0 | U28: ='One-Acts'!W28 -> 0 | W28: 0
A29: BB | E29: =SUM('Humorous Monologues'!Y129) -> 0 | H29: =SUM(Dramatic!Y129) -> 0 | K29: =SUM(Classical!Y129) -> 0 | N29: =SUM(Contemporary!Y129) -> 0 | P29: =SUM(Pantomime!Y129) -> 0 | R29: =SUM(MusicalTheatre!Z129) -> 0 | U29: ='One-Acts'!W29 -> 0 | W29: 0
A30: CC | E30: =SUM('Humorous Monologues'!Y134) -> 0 | H30: =SUM(Dramatic!Y134) -> 0 | K30: =SUM(Classical!Y134) -> 0 | N30: =SUM(Contemporary!Y134) -> 0 | P30: =SUM(Pantomime!Y134) -> 0 | R30: =SUM(MusicalTheatre!Z134) -> 0 | U30: ='One-Acts'!W30 -> 0 | W30: 0
A31: DD | E31: =SUM('Humorous Monologues'!Y139) -> 0 | H31: =SUM(Dramatic!Y139) -> 0 | K31: =SUM(Classical!Y139) -> 0 | N31: =SUM(Contemporary!Y139) -> 0 | P31: =SUM(Pantomime!Y139) -> 0 | R31: =SUM(MusicalTheatre!Z139) -> 0 | U31: ='One-Acts'!W31 -> 0 | W31: 0
A32: EE | E32: =SUM('Humorous Monologues'!Y144) -> 0 | H32: =SUM(Dramatic!Y144) -> 0 | K32: =SUM(Classical!Y144) -> 0 | N32: =SUM(Contemporary!Y144) -> 0 | P32: =SUM(Pantomime!Y144) -> 0 | R32: =SUM(MusicalTheatre!Z144) -> 0 | U32: ='One-Acts'!W32 -> 0 | W32: 0
A33: FF | E33: =SUM('Humorous Monologues'!Y149) -> 0 | H33: =SUM(Dramatic!Y149) -> 0 | K33: =SUM(Classical!Y149) -> 0 | N33: =SUM(Contemporary!Y149) -> 0 | P33: =SUM(Pantomime!Y149) -> 0 | R33: =SUM(MusicalTheatre!Z149) -> 0 | U33: ='One-Acts'!W33 -> 0 | W33: 0

Sheet ScenicResults
A1: Scenic Design
A2: ID | B2: Rank | C2: Score | D2: LeaveBlank
A3: =ScenicDesign!A4 -> A-901 | B3: =ScenicDesign!U4 -> 7 | C3: =ScenicDesign!S4 -> 72 | D3: =IF((ScenicResults!$B3+ScenicResults!$C3)>0,1,0) -> 1
A4: =ScenicDesign!A5 -> A-902 | B4: =ScenicDesign!U5 -> 0 | C4: =ScenicDesign!S5 -> 0 | D4: =IF((ScenicResults!$B4+ScenicResults!$C4)>0,1,0) -> 0
A5: =ScenicDesign!A6 -> A-903 | B5: =ScenicDesign!U6 -> 0 | C5: =ScenicDesign!S6 -> 0 | D5: =IF((ScenicResults!$B5+ScenicResults!$C5)>0,1,0) -> 0
A6: =ScenicDesign!A7 -> A-904 | B6: =ScenicDesign!U7 -> 0 | C6: =ScenicDesign!S7 -> 0 | D6: =IF((ScenicResults!$B6+ScenicResults!$C6)>0,1,0) -> 0
A7: =ScenicDesign!A9 -> B-901 | B7: =ScenicDesign!U9 -> 0 | C7: =ScenicDesign!S9 -> 0 | D7: =IF((ScenicResults!$B7+ScenicResults!$C7)>0,1,0) -> 0
A8: =ScenicDesign!A10 -> B-902 | B8: =ScenicDesign!U10 -> 0 | C8: =ScenicDesign!S10 -> 0 | D8: =IF((ScenicResults!$B8+ScenicResults!$C8)>0,1,0) -> 0
A9: =ScenicDesign!A11 -> B-903 | B9: =ScenicDesign!U11 -> 0 | C9: =ScenicDesign!S11 -> 0 | D9: =IF((ScenicResults!$B9+ScenicResults!$C9)>0,1,0) -> 0
A10: =ScenicDesign!A12 -> B-904 | B10: =ScenicDesign!U12 -> 0 | C10: =ScenicDesign!S12 -> 0 | D10: =IF((ScenicResults!$B10+ScenicResults!$C10)>0,1,0) -> 0
A11: =ScenicDesign!A14 -> C-901 | B11: =ScenicDesign!U14 -> 0 | C11: =ScenicDesign!S14 -> 0 | D11: =IF((ScenicResults!$B11+ScenicResults!$C11)>0,1,0) -> 0
A12: =ScenicDesign!A15 -> C-902 | B12: =ScenicDesign!U15 -> 0 | C12: =ScenicDesign!S15 -> 0 | D12: =IF((ScenicResults!$B12+ScenicResults!$C12)>0,1,0) -> 0
A13: =ScenicDesign!A16 -> C-903 | B13: =ScenicDesign!U16 -> 0 | C13: =ScenicDesign!S16 -> 0 | D13: =IF((ScenicResults!$B13+ScenicResults!$C13)>0,1,0) -> 0
A14: =ScenicDesign!A17 -> C-904 | B14: =ScenicDesign!U17 -> 0 | C14: =ScenicDesign!S17 -> 0 | D14: =IF((ScenicResults!$B14+ScenicResults!$C14)>0,1,0) -> 0
A15: =ScenicDesign!A19 -> D-901 | B15: =ScenicDesign!U19 -> 0 | C15: =ScenicDesign!S19 -> 0 | D15: =IF((ScenicResults!$B15+ScenicResults!$C15)>0,1,0) -> 0
A16: =ScenicDesign!A20 -> D-902 | B16: =ScenicDesign!U20 -> 0 | C16: =ScenicDesign!S20 -> 0 | D16: =IF((ScenicResults!$B16+ScenicResults!$C16)>0,1,0) -> 0
A17: =ScenicDesign!A21 -> D-903 | B17: =ScenicDesign!U21 -> 0 | C17: =ScenicDesign!S21 -> 0 | D17: =IF((ScenicResults!$B17+ScenicResults!$C17)>0,1,0) -> 0
A18: =ScenicDesign!A22 -> D-904 | B18: =ScenicDesign!U22 -> 0 | C18: =ScenicDesign!S22 -> 0 | D18: =IF((ScenicResults!$B18+ScenicResults!$C18)>0,1,0) -> 0
A19: =ScenicDesign!A24 -> E-901 | B19: =ScenicDesign!U24 -> 0 | C19: =ScenicDesign!S24 -> 0 | D19: =IF((ScenicResults!$B19+ScenicResults!$C19)>0,1,0) -> 0
A20: =ScenicDesign!A25 -> E-902 | B20: =ScenicDesign!U25 -> 0 | C20: =ScenicDesign!S25 -> 0 | D20: =IF((ScenicResults!$B20+ScenicResults!$C20)>0,1,0) -> 0
A21: =ScenicDesign!A26 -> E-903 | B21: =ScenicDesign!U26 -> 0 | C21: =ScenicDesign!S26 -> 0 | D21: =IF((ScenicResults!$B21+ScenicResults!$C21)>0,1,0) -> 0
A22: =ScenicDesign!A27 -> E-904 | B22: =ScenicDesign!U27 -> 0 | C22: =ScenicDesign!S27 -> 0 | D22: =IF((ScenicResults!$B22+ScenicResults!$C22)>0,1,0) -> 0
A23: =ScenicDesign!A29 -> F-901 | B23: =ScenicDesign!U29 -> 0 | C23: =ScenicDesign!S29 -> 0 | D23: =IF((ScenicResults!$B23+ScenicResults!$C23)>0,1,0) -> 0
A24: =ScenicDesign!A30 -> F-902 | B24: =ScenicDesign!U30 -> 0 | C24: =ScenicDesign!S30 -> 0 | D24: =IF((ScenicResults!$B24+ScenicResults!$C24)>0,1,0) -> 0
A25: =ScenicDesign!A31 -> F-903 | B25: =ScenicDesign!U31 -> 0 | C25: =ScenicDesign!S31 -> 0 | D25: =IF((ScenicResults!$B25+ScenicResults!$C25)>0,1,0) -> 0
A26: =ScenicDesign!A32 -> F-904 | B26: =ScenicDesign!U32 -> 0 | C26: =ScenicDesign!S32 -> 0 | D26: =IF((ScenicResults!$B26+ScenicResults!$C26)>0,1,0) -> 0
A27: =ScenicDesign!A34 -> G-901 | B27: =ScenicDesign!U34 -> 0 | C27: =ScenicDesign!S34 -> 0 | D27: =IF((ScenicResults!$B27+ScenicResults!$C27)>0,1,0) -> 0
A28: =ScenicDesign!A35 -> G-902 | B28: =ScenicDesign!U35 -> 0 | C28: =ScenicDesign!S35 -> 0 | D28: =IF((ScenicResults!$B28+ScenicResults!$C28)>0,1,0) -> 0
A29: =ScenicDesign!A36 -> G-903 | B29: =ScenicDesign!U36 -> 0 | C29: =ScenicDesign!S36 -> 0 | D29: =IF((ScenicResults!$B29+ScenicResults!$C29)>0,1,0) -> 0
A30: =ScenicDesign!A37 -> G-904 | B30: =ScenicDesign!U37 -> 0 | C30: =ScenicDesign!S37 -> 0 | D30: =IF((ScenicResults!$B30+ScenicResults!$C30)>0,1,0) -> 0
A31: =ScenicDesign!A39 -> H-901 | B31: =ScenicDesign!U39 -> 0 | C31: =ScenicDesign!S39 -> 0 | D31: =IF((ScenicResults!$B31+ScenicResults!$C31)>0,1,0) -> 0
A32: =ScenicDesign!A40 -> H-902 | B32: =ScenicDesign!U40 -> 0 | C32: =ScenicDesign!S40 -> 0 | D32: =IF((ScenicResults!$B32+ScenicResults!$C32)>0,1,0) -> 0
A33: =ScenicDesign!A41 -> H-903 | B33: =ScenicDesign!U41 -> 0 | C33: =ScenicDesign!S41 -> 0 | D33: =IF((ScenicResults!$B33+ScenicResults!$C33)>0,1,0) -> 0
A34: =ScenicDesign!A42 -> H-904 | B34: =ScenicDesign!U42 -> 0 | C34: =ScenicDesign!S42 -> 0 | D34: =IF((ScenicResults!$B34+ScenicResults!$C34)>0,1,0) -> 0
A35: =ScenicDesign!A44 -> J-901 | B35: =ScenicDesign!U44 -> 0 | C35: =ScenicDesign!S44 -> 0 | D35: =IF((ScenicResults!$B35+ScenicResults!$C35)>0,1,0) -> 0
A36: =ScenicDesign!A45 -> J-902 | B36: =ScenicDesign!U45 -> 0 | C36: =ScenicDesign!S45 -> 0 | D36: =IF((ScenicResults!$B36+ScenicResults!$C36)>0,1,0) -> 0
A37: =ScenicDesign!A46 -> J-903 | B37: =ScenicDesign!U46 -> 0 | C37: =ScenicDesign!S46 -> 0 | D37: =IF((ScenicResults!$B37+ScenicResults!$C37)>0,1,0) -> 0
A38: =ScenicDesign!A47 -> J-904 | B38: =ScenicDesign!U47 -> 0 | C38: =ScenicDesign!S47 -> 0 | D38: =IF((ScenicResults!$B38+ScenicResults!$C38)>0,1,0) -> 0
A39: =ScenicDesign!A49 -> K-901 | B39: =ScenicDesign!U49 -> 0 | C39: =ScenicDesign!S49 -> 0 | D39: =IF((ScenicResults!$B39+ScenicResults!$C39)>0,1,0) -> 0
A40: =ScenicDesign!A50 -> K-902 | B40: =ScenicDesign!U50 -> 0 | C40: =ScenicDesign!S50 -> 0 | D40: =IF((ScenicResults!$B40+ScenicResults!$C40)>0,1,0) -> 0
A41: =ScenicDesign!A51 -> K-903 | B41: =ScenicDesign!U51 -> 0 | C41: =ScenicDesign!S51 -> 0 | D41: =IF((ScenicResults!$B41+ScenicResults!$C41)>0,1,0) -> 0
A42: =ScenicDesign!A52 -> K-904 | B42: =ScenicDesign!U52 -> 0 | C42: =ScenicDesign!S52 -> 0 | D42: =IF((ScenicResults!$B42+ScenicResults!$C42)>0,1,0) -> 0
A43: =ScenicDesign!A54 -> L-901 | B43: =ScenicDesign!U54 -> 0 | C43: =ScenicDesign!S54 -> 0 | D43: =IF((ScenicResults!$B43+ScenicResults!$C43)>0,1,0) -> 0
A44: =ScenicDesign!A55 -> L-902 | B44: =ScenicDesign!U55 -> 0 | C44: =ScenicDesign!S55 -> 0 | D44: =IF((ScenicResults!$B44+ScenicResults!$C44)>0,1,0) -> 0
A45: =ScenicDesign!A56 -> L-903 | B45: =ScenicDesign!U56 -> 0 | C45: =ScenicDesign!S56 -> 0 | D45: =IF((ScenicResults!$B45+ScenicResults!$C45)>0,1,0) -> 0
A46: =ScenicDesign!A57 -> L-904 | B46: =ScenicDesign!U57 -> 0 | C46: =ScenicDesign!S57 -> 0 | D46: =IF((ScenicResults!$B46+ScenicResults!$C46)>0,1,0) -> 0
A47: =ScenicDesign!A59 -> M-901 | B47: =ScenicDesign!U59 -> 0 | C47: =ScenicDesign!S59 -> 0 | D47: =IF((ScenicResults!$B47+ScenicResults!$C47)>0,1,0) -> 0
A48: =ScenicDesign!A60 -> M-902 | B48: =ScenicDesign!U60 -> 0 | C48: =ScenicDesign!S60 -> 0 | D48: =IF((ScenicResults!$B48+ScenicResults!$C48)>0,1,0) -> 0
A49: =ScenicDesign!A61 -> M-903 | B49: =ScenicDesign!U61 -> 0 | C49: =ScenicDesign!S61 -> 0 | D49: =IF((ScenicResults!$B49+ScenicResults!$C49)>0,1,0) -> 0
A50: =ScenicDesign!A62 -> M-904 | B50: =ScenicDesign!U62 -> 0 | C50: =ScenicDesign!S62 -> 0 | D50: =IF((ScenicResults!$B50+ScenicResults!$C50)>0,1,0) -> 0
A51: =ScenicDesign!A64 -> N-901 | B51: =ScenicDesign!U64 -> 9 | C51: =ScenicDesign!S64 -> 72 | D51: =IF((ScenicResults!$B51+ScenicResults!$C51)>0,1,0) -> 1
A52: =ScenicDesign!A65 -> N-902 | B52: =ScenicDesign!U65 -> 6 | C52: =ScenicDesign!S65 -> 72 | D52: =IF((ScenicResults!$B52+ScenicResults!$C52)>0,1,0) -> 1
A53: =ScenicDesign!A66 -> N-903 | B53: =ScenicDesign!U66 -> 8 | C53: =ScenicDesign!S66 -> 73 | D53: =IF((ScenicResults!$B53+ScenicResults!$C53)>0,1,0) -> 1
A54: =ScenicDesign!A67 -> N-904 | B54: =ScenicDesign!U67 -> 0 | C54: =ScenicDesign!S67 -> 0 | D54: =IF((ScenicResults!$B54+ScenicResults!$C54)>0,1,0) -> 0
A55: =ScenicDesign!A69 -> P-901 | B55: =ScenicDesign!U69 -> 0 | C55: =ScenicDesign!S69 -> 0 | D55: =IF((ScenicResults!$B55+ScenicResults!$C55)>0,1,0) -> 0
A56: =ScenicDesign!A70 -> P-902 | B56: =ScenicDesign!U70 -> 0 | C56: =ScenicDesign!S70 -> 0 | D56: =IF((ScenicResults!$B56+ScenicResults!$C56)>0,1,0) -> 0
A57: =ScenicDesign!A71 -> P-903 | B57: =ScenicDesign!U71 -> 0 | C57: =ScenicDesign!S71 -> 0 | D57: =IF((ScenicResults!$B57+ScenicResults!$C57)>0,1,0) -> 0
A58: =ScenicDesign!A72 -> P-904 | B58: =ScenicDesign!U72 -> 0 | C58: =ScenicDesign!S72 -> 0 | D58: =IF((ScenicResults!$B58+ScenicResults!$C58)>0,1,0) -> 0
A59: =ScenicDesign!A74 -> Q-901 | B59: =ScenicDesign!U74 -> 0 | C59: =ScenicDesign!S74 -> 0 | D59: =IF((ScenicResults!$B59+ScenicResults!$C59)>0,1,0) -> 0
A60: =ScenicDesign!A75 -> Q-902 | B60: =ScenicDesign!U75 -> 0 | C60: =ScenicDesign!S75 -> 0 | D60: =IF((ScenicResults!$B60+ScenicResults!$C60)>0,1,0) -> 0
A61: =ScenicDesign!A76 -> Q-903 | B61: =ScenicDesign!U76 -> 0 | C61: =ScenicDesign!S76 -> 0 | D61: =IF((ScenicResults!$B61+ScenicResults!$C61)>0,1,0) -> 0
A62: =ScenicDesign!A77 -> Q-904 | B62: =ScenicDesign!U77 -> 0 | C62: =ScenicDesign!S77 -> 0 | D62: =IF((ScenicResults!$B62+ScenicResults!$C62)>0,1,0) -> 0
A63: =ScenicDesign!A79 -> R-901 | B63: =ScenicDesign!U79 -> 0 | C63: =ScenicDesign!S79 -> 0 | D63: =IF((ScenicResults!$B63+ScenicResults!$C63)>0,1,0) -> 0
A64: =ScenicDesign!A80 -> R-902 | B64: =ScenicDesign!U80 -> 0 | C64: =ScenicDesign!S80 -> 0 | D64: =IF((ScenicResults!$B64+ScenicResults!$C64)>0,1,0) -> 0
A65: =ScenicDesign!A81 -> R-903 | B65: =ScenicDesign!U81 -> 0 | C65: =ScenicDesign!S81 -> 0 | D65: =IF((ScenicResults!$B65+ScenicResults!$C65)>0,1,0) -> 0
A66: =ScenicDesign!A82 -> R-904 | B66: =ScenicDesign!U82 -> 0 | C66: =ScenicDesign!S82 -> 0 | D66: =IF((ScenicResults!$B66+ScenicResults!$C66)>0,1,0) -> 0
A67: =ScenicDesign!A84 -> S-901 | B67: =ScenicDesign!U84 -> 15 | C67: =ScenicDesign!S84 -> 66 | D67: =IF((ScenicResults!$B67+ScenicResults!$C67)>0,1,0) -> 1
A68: =ScenicDesign!A85 -> S-902 | B68: =ScenicDesign!U85 -> 0 | C68: =ScenicDesign!S85 -> 0 | D68: =IF((ScenicResults!$B68+ScenicResults!$C68)>0,1,0) -> 0
A69: =ScenicDesign!A86 -> S-903 | B69: =ScenicDesign!U86 -> 0 | C69: =ScenicDesign!S86 -> 0 | D69: =IF((ScenicResults!$B69+ScenicResults!$C69)>0,1,0) -> 0
A70: =ScenicDesign!A87 -> S-904 | B70: =ScenicDesign!U87 -> 0 | C70: =ScenicDesign!S87 -> 0 | D70: =IF((ScenicResults!$B70+ScenicResults!$C70)>0,1,0) -> 0
A71: =ScenicDesign!A89 -> T-901 | B71: =ScenicDesign!U89 -> 0 | C71: =ScenicDesign!S89 -> 0 | D71: =IF((ScenicResults!$B71+ScenicResults!$C71)>0,1,0) -> 0
A72: =ScenicDesign!A90 -> T-902 | B72: =ScenicDesign!U90 -> 0 | C72: =ScenicDesign!S90 -> 0 | D72: =IF((ScenicResults!$B72+ScenicResults!$C72)>0,1,0) -> 0
A73: =ScenicDesign!A91 -> T-903 | B73: =ScenicDesign!U91 -> 0 | C73: =ScenicDesign!S91 -> 0 | D73: =IF((ScenicResults!$B73+ScenicResults!$C73)>0,1,0) -> 0
A74: =ScenicDesign!A92 -> T-904 | B74: =ScenicDesign!U92 -> 0 | C74: =ScenicDesign!S92 -> 0 | D74: =IF((ScenicResults!$B74+ScenicResults!$C74)>0,1,0) -> 0
A75: =ScenicDesign!A94 -> U-901 | B75: =ScenicDesign!U94 -> 0 | C75: =ScenicDesign!S94 -> 0 | D75: =IF((ScenicResults!$B75+ScenicResults!$C75)>0,1,0) -> 0
A76: =ScenicDesign!A95 -> U-902 | B76: =ScenicDesign!U95 -> 0 | C76: =ScenicDesign!S95 -> 0 | D76: =IF((ScenicResults!$B76+ScenicResults!$C76)>0,1,0) -> 0
A77: =ScenicDesign!A96 -> U-903 | B77: =ScenicDesign!U96 -> 0 | C77: =ScenicDesign!S96 -> 0 | D77: =IF((ScenicResults!$B77+ScenicResults!$C77)>0,1,0) -> 0
A78: =ScenicDesign!A97 -> U-904 | B78: =ScenicDesign!U97 -> 0 | C78: =ScenicDesign!S97 -> 0 | D78: =IF((ScenicResults!$B78+ScenicResults!$C78)>0,1,0) -> 0
A79: =ScenicDesign!A99 -> V-901 | B79: =ScenicDesign!U99 -> 0 | C79: =ScenicDesign!S99 -> 0 | D79: =IF((ScenicResults!$B79+ScenicResults!$C79)>0,1,0) -> 0
A80: =ScenicDesign!A100 -> V-902 | B80: =ScenicDesign!U100 -> 0 | C80: =ScenicDesign!S100 -> 0 | D80: =IF((ScenicResults!$B80+ScenicResults!$C80)>0,1,0) -> 0
A81: =ScenicDesign!A101 -> V-903 | B81: =ScenicDesign!U101 -> 0 | C81: =ScenicDesign!S101 -> 0 | D81: =IF((ScenicResults!$B81+ScenicResults!$C81)>0,1,0) -> 0
A82: =ScenicDesign!A102 -> V-904 | B82: =ScenicDesign!U102 -> 0 | C82: =ScenicDesign!S102 -> 0 | D82: =IF((ScenicResults!$B82+ScenicResults!$C82)>0,1,0) -> 0
A83: =ScenicDesign!A104 -> W-901 | B83: =ScenicDesign!U104 -> 0 | C83: =ScenicDesign!S104 -> 0 | D83: =IF((ScenicResults!$B83+ScenicResults!$C83)>0,1,0) -> 0
A84: =ScenicDesign!A105 -> W-902 | B84: =ScenicDesign!U105 -> 0 | C84: =ScenicDesign!S105 -> 0 | D84: =IF((ScenicResults!$B84+ScenicResults!$C84)>0,1,0) -> 0
A85: =ScenicDesign!A106 -> W-903 | B85: =ScenicDesign!U106 -> 0 | C85: =ScenicDesign!S106 -> 0 | D85: =IF((ScenicResults!$B85+ScenicResults!$C85)>0,1,0) -> 0
A86: =ScenicDesign!A107 -> W-904 | B86: =ScenicDesign!U107 -> 0 | C86: =ScenicDesign!S107 -> 0 | D86: =IF((ScenicResults!$B86+ScenicResults!$C86)>0,1,0) -> 0
A87: =ScenicDesign!A109 -> X-901 | B87: =ScenicDesign!U109 -> 0 | C87: =ScenicDesign!S109 -> 0 | D87: =IF((ScenicResults!$B87+ScenicResults!$C87)>0,1,0) -> 0
A88: =ScenicDesign!A110 -> X-902 | B88: =ScenicDesign!U110 -> 0 | C88: =ScenicDesign!S110 -> 0 | D88: =IF((ScenicResults!$B88+ScenicResults!$C88)>0,1,0) -> 0
A89: =ScenicDesign!A111 -> X-903 | B89: =ScenicDesign!U111 -> 0 | C89: =ScenicDesign!S111 -> 0 | D89: =IF((ScenicResults!$B89+ScenicResults!$C89)>0,1,0) -> 0
A90: =ScenicDesign!A112 -> X-904 | B90: =ScenicDesign!U112 -> 0 | C90: =ScenicDesign!S112 -> 0 | D90: =IF((ScenicResults!$B90+ScenicResults!$C90)>0,1,0) -> 0
A91: =ScenicDesign!A114 -> Y-901 | B91: =ScenicDesign!U114 -> 0 | C91: =ScenicDesign!S114 -> 0 | D91: =IF((ScenicResults!$B91+ScenicResults!$C91)>0,1,0) -> 0
A92: =ScenicDesign!A115 -> Y-902 | B92: =ScenicDesign!U115 -> 0 | C92: =ScenicDesign!S115 -> 0 | D92: =IF((ScenicResults!$B92+ScenicResults!$C92)>0,1,0) -> 0
A93: =ScenicDesign!A116 -> Y-903 | B93: =ScenicDesign!U116 -> 0 | C93: =ScenicDesign!S116 -> 0 | D93: =IF((ScenicResults!$B93+ScenicResults!$C93)>0,1,0) -> 0
A94: =ScenicDesign!A117 -> Y-904 | B94: =ScenicDesign!U117 -> 0 | C94: =ScenicDesign!S117 -> 0 | D94: =IF((ScenicResults!$B94+ScenicResults!$C94)>0,1,0) -> 0
A95: =ScenicDesign!A119 -> Z-901 | B95: =ScenicDesign!U119 -> 0 | C95: =ScenicDesign!S119 -> 0 | D95: =IF((ScenicResults!$B95+ScenicResults!$C95)>0,1,0) -> 0
A96: =ScenicDesign!A120 -> Z-902 | B96: =ScenicDesign!U120 -> 0 | C96: =ScenicDesign!S120 -> 0 | D96: =IF((ScenicResults!$B96+ScenicResults!$C96)>0,1,0) -> 0
A97: =ScenicDesign!A121 -> Z-903 | B97: =ScenicDesign!U121 -> 0 | C97: =ScenicDesign!S121 -> 0 | D97: =IF((ScenicResults!$B97+ScenicResults!$C97)>0,1,0) -> 0
A98: =ScenicDesign!A122 -> Z-904 | B98: =ScenicDesign!U122 -> 0 | C98: =ScenicDesign!S122 -> 0 | D98: =IF((ScenicResults!$B98+ScenicResults!$C98)>0,1,0) -> 0
A99: =ScenicDesign!A124 -> AA-901 | B99: =ScenicDesign!U124 -> 0 | C99: =ScenicDesign!S124 -> 0 | D99: =IF((ScenicResults!$B99+ScenicResults!$C99)>0,1,0) -> 0
A100: =ScenicDesign!A125 -> AA-902 | B100: =ScenicDesign!U125 -> 0 | C100: =ScenicDesign!S125 -> 0 | D100: =IF((ScenicResults!$B100+ScenicResults!$C100)>0,1,0) -> 0
A101: =ScenicDesign!A126 -> AA-903 | B101: =ScenicDesign!U126 -> 0 | C101: =ScenicDesign!S126 -> 0 | D101: =IF((ScenicResults!$B101+ScenicResults!$C101)>0,1,0) -> 0
A102: =ScenicDesign!A127 -> AA-904 | B102: =ScenicDesign!U127 -> 0 | C102: =ScenicDesign!S127 -> 0 | D102: =IF((ScenicResults!$B102+ScenicResults!$C102)>0,1,0) -> 0
A103: =ScenicDesign!A129 -> BB-901 | B103: =ScenicDesign!U129 -> 0 | C103: =ScenicDesign!S129 -> 0 | D103: =IF((ScenicResults!$B103+ScenicResults!$C103)>0,1,0) -> 0
A104: =ScenicDesign!A130 -> BB-902 | B104: =ScenicDesign!U130 -> 0 | C104: =ScenicDesign!S130 -> 0 | D104: =IF((ScenicResults!$B104+ScenicResults!$C104)>0,1,0) -> 0
A105: =ScenicDesign!A131 -> BB-903 | B105: =ScenicDesign!U131 -> 0 | C105: =ScenicDesign!S131 -> 0 | D105: =IF((ScenicResults!$B105+ScenicResults!$C105)>0,1,0) -> 0
A106: =ScenicDesign!A132 -> BB-904 | B106: =ScenicDesign!U132 -> 0 | C106: =ScenicDesign!S132 -> 0 | D106: =IF((ScenicResults!$B106+ScenicResults!$C106)>0,1,0) -> 0
A107: =ScenicDesign!A134 -> CC-901 | B107: =ScenicDesign!U134 -> 0 | C107: =ScenicDesign!S134 -> 0 | D107: =IF((ScenicResults!$B107+ScenicResults!$C107)>0,1,0) -> 0
A108: =ScenicDesign!A135 -> CC-902 | B108: =ScenicDesign!U135 -> 0 | C108: =ScenicDesign!S135 -> 0 | D108: =IF((ScenicResults!$B108+ScenicResults!$C108)>0,1,0) -> 0
A109: =ScenicDesign!A136 -> CC-903 | B109: =ScenicDesign!U136 -> 0 | C109: =ScenicDesign!S136 -> 0 | D109: =IF((ScenicResults!$B109+ScenicResults!$C109)>0,1,0) -> 0
A110: =ScenicDesign!A137 -> CC-904 | B110: =ScenicDesign!U137 -> 0 | C110: =ScenicDesign!S137 -> 0 | D110: =IF((ScenicResults!$B110+ScenicResults!$C110)>0,1,0) -> 0
A111: =ScenicDesign!A139 -> DD-901 | B111: =ScenicDesign!U139 -> 0 | C111: =ScenicDesign!S139 -> 0 | D111: =IF((ScenicResults!$B111+ScenicResults!$C111)>0,1,0) -> 0
A112: =ScenicDesign!A140 -> DD-902 | B112: =ScenicDesign!U140 -> 0 | C112: =ScenicDesign!S140 -> 0 | D112: =IF((ScenicResults!$B112+ScenicResults!$C112)>0,1,0) -> 0
A113: =ScenicDesign!A141 -> DD-903 | B113: =ScenicDesign!U141 -> 0 | C113: =ScenicDesign!S141 -> 0 | D113: =IF((ScenicResults!$B113+ScenicResults!$C113)>0,1,0) -> 0
A114: =ScenicDesign!A142 -> DD-904 | B114: =ScenicDesign!U142 -> 0 | C114: =ScenicDesign!S142 -> 0 | D114: =IF((ScenicResults!$B114+ScenicResults!$C114)>0,1,0) -> 0
A115: =ScenicDesign!A144 -> EE-901 | B115: =ScenicDesign!U144 -> 0 | C115: =ScenicDesign!S144 -> 0 | D115: =IF((ScenicResults!$B115+ScenicResults!$C115)>0,1,0) -> 0
A116: =ScenicDesign!A145 -> EE-902 | B116: =ScenicDesign!U145 -> 0 | C116: =ScenicDesign!S145 -> 0 | D116: =IF((ScenicResults!$B116+ScenicResults!$C116)>0,1,0) -> 0
A117: =ScenicDesign!A146 -> EE-903 | B117: =ScenicDesign!U146 -> 0 | C117: =ScenicDesign!S146 -> 0 | D117: =IF((ScenicResults!$B117+ScenicResults!$C117)>0,1,0) -> 0
A118: =ScenicDesign!A147 -> EE-904 | B118: =ScenicDesign!U147 -> 0 | C118: =ScenicDesign!S147 -> 0 | D118: =IF((ScenicResults!$B118+ScenicResults!$C118)>0,1,0) -> 0
A119: =ScenicDesign!A149 -> FF-901 | B119: =ScenicDesign!U149 -> 0 | C119: =ScenicDesign!S149 -> 0 | D119: =IF((ScenicResults!$B119+ScenicResults!$C119)>0,1,0) -> 0
A120: =ScenicDesign!A150 -> FF-902 | B120: =ScenicDesign!U150 -> 0 | C120: =ScenicDesign!S150 -> 0 | D120: =IF((ScenicResults!$B120+ScenicResults!$C120)>0,1,0) -> 0
A121: =ScenicDesign!A151 -> FF-903 | B121: =ScenicDesign!U151 -> 0 | C121: =ScenicDesign!S151 -> 0 | D121: =IF((ScenicResults!$B121+ScenicResults!$C121)>0,1,0) -> 0
A122: =ScenicDesign!A152 -> FF-904 | B122: =ScenicDesign!U152 -> 0 | C122: =ScenicDesign!S152 -> 0 | D122: =IF((ScenicResults!$B122+ScenicResults!$C122)>0,1,0) -> 0

Sheet CostumeResults
A1: Costume Design
A2: ID | B2: Rank | C2: Score | D2: LeaveBlank
A3: =CostumeDesign!A4 -> A-801 | B3: =CostumeDesign!U4 -> 0 | C3: =CostumeDesign!S4 -> 0 | D3: =IF((CostumeResults!$B3+CostumeResults!$C3)>0,1,0) -> 0
A4: =CostumeDesign!A5 -> A-802 | B4: =CostumeDesign!U5 -> 0 | C4: =CostumeDesign!S5 -> 0 | D4: =IF((CostumeResults!$B4+CostumeResults!$C4)>0,1,0) -> 0
A5: =CostumeDesign!A6 -> A-803 | B5: =CostumeDesign!U6 -> 0 | C5: =CostumeDesign!S6 -> 0 | D5: =IF((CostumeResults!$B5+CostumeResults!$C5)>0,1,0) -> 0
A6: =CostumeDesign!A7 -> A-804 | B6: =CostumeDesign!U7 -> 0 | C6: =CostumeDesign!S7 -> 0 | D6: =IF((CostumeResults!$B6+CostumeResults!$C6)>0,1,0) -> 0
A7: =CostumeDesign!A9 -> B-801 | B7: =CostumeDesign!U9 -> 0 | C7: =CostumeDesign!S9 -> 0 | D7: =IF((CostumeResults!$B7+CostumeResults!$C7)>0,1,0) -> 0
A8: =CostumeDesign!A10 -> B-802 | B8: =CostumeDesign!U10 -> 0 | C8: =CostumeDesign!S10 -> 0 | D8: =IF((CostumeResults!$B8+CostumeResults!$C8)>0,1,0) -> 0
A9: =CostumeDesign!A11 -> B-803 | B9: =CostumeDesign!U11 -> 0 | C9: =CostumeDesign!S11 -> 0 | D9: =IF((CostumeResults!$B9+CostumeResults!$C9)>0,1,0) -> 0
A10: =CostumeDesign!A12 -> B-804 | B10: =CostumeDesign!U12 -> 0 | C10: =CostumeDesign!S12 -> 0 | D10: =IF((CostumeResults!$B10+CostumeResults!$C10)>0,1,0) -> 0
A11: =CostumeDesign!A14 -> C-801 | B11: =CostumeDesign!U14 -> 15 | C11: =CostumeDesign!S14 -> 64 | D11: =IF((CostumeResults!$B11+CostumeResults!$C11)>0,1,0) -> 1
A12: =CostumeDesign!A15 -> C-802 | B12: =CostumeDesign!U15 -> 0 | C12: =CostumeDesign!S15 -> 0 | D12: =IF((CostumeResults!$B12+CostumeResults!$C12)>0,1,0) -> 0
A13: =CostumeDesign!A16 -> C-803 | B13: =CostumeDesign!U16 -> 0 | C13: =CostumeDesign!S16 -> 0 | D13: =IF((CostumeResults!$B13+CostumeResults!$C13)>0,1,0) -> 0
A14: =CostumeDesign!A17 -> C-804 | B14: =CostumeDesign!U17 -> 0 | C14: =CostumeDesign!S17 -> 0 | D14: =IF((CostumeResults!$B14+CostumeResults!$C14)>0,1,0) -> 0
A15: =CostumeDesign!A19 -> D-801 | B15: =CostumeDesign!U19 -> 0 | C15: =CostumeDesign!S19 -> 0 | D15: =IF((CostumeResults!$B15+CostumeResults!$C15)>0,1,0) -> 0
A16: =CostumeDesign!A20 -> D-802 | B16: =CostumeDesign!U20 -> 0 | C16: =CostumeDesign!S20 -> 0 | D16: =IF((CostumeResults!$B16+CostumeResults!$C16)>0,1,0) -> 0
A17: =CostumeDesign!A21 -> D-803 | B17: =CostumeDesign!U21 -> 0 | C17: =CostumeDesign!S21 -> 0 | D17: =IF((CostumeResults!$B17+CostumeResults!$C17)>0,1,0) -> 0
A18: =CostumeDesign!A22 -> D-804 | B18: =CostumeDesign!U22 -> 0 | C18: =CostumeDesign!S22 -> 0 | D18: =IF((CostumeResults!$B18+CostumeResults!$C18)>0,1,0) -> 0
A19: =CostumeDesign!A24 -> E-801 | B19: =CostumeDesign!U24 -> 0 | C19: =CostumeDesign!S24 -> 0 | D19: =IF((CostumeResults!$B19+CostumeResults!$C19)>0,1,0) -> 0
A20: =CostumeDesign!A25 -> E-802 | B20: =CostumeDesign!U25 -> 0 | C20: =CostumeDesign!S25 -> 0 | D20: =IF((CostumeResults!$B20+CostumeResults!$C20)>0,1,0) -> 0
A21: =CostumeDesign!A26 -> E-803 | B21: =CostumeDesign!U26 -> 0 | C21: =CostumeDesign!S26 -> 0 | D21: =IF((CostumeResults!$B21+CostumeResults!$C21)>0,1,0) -> 0
A22: =CostumeDesign!A27 -> E-804 | B22: =CostumeDesign!U27 -> 0 | C22: =CostumeDesign!S27 -> 0 | D22: =IF((CostumeResults!$B22+CostumeResults!$C22)>0,1,0) -> 0
A23: =CostumeDesign!A29 -> F-801 | B23: =CostumeDesign!U29 -> 0 | C23: =CostumeDesign!S29 -> 0 | D23: =IF((CostumeResults!$B23+CostumeResults!$C23)>0,1,0) -> 0
A24: =CostumeDesign!A30 -> F-802 | B24: =CostumeDesign!U30 -> 0 | C24: =CostumeDesign!S30 -> 0 | D24: =IF((CostumeResults!$B24+CostumeResults!$C24)>0,1,0) -> 0
A25: =CostumeDesign!A31 -> F-803 | B25: =CostumeDesign!U31 -> 0 | C25: =CostumeDesign!S31 -> 0 | D25: =IF((CostumeResults!$B25+CostumeResults!$C25)>0,1,0) -> 0
A26: =CostumeDesign!A32 -> F-804 | B26: =CostumeDesign!U32 -> 0 | C26: =CostumeDesign!S32 -> 0 | D26: =IF((CostumeResults!$B26+CostumeResults!$C26)>0,1,0) -> 0
A27: =CostumeDesign!A34 -> G-801 | B27: =CostumeDesign!U34 -> 4 | C27: =CostumeDesign!S34 -> 74 | D27: =IF((CostumeResults!$B27+CostumeResults!$C27)>0,1,0) -> 1
A28: =CostumeDesign!A35 -> G-802 | B28: =CostumeDesign!U35 -> 0 | C28: =CostumeDesign!S35 -> 0 | D28: =IF((CostumeResults!$B28+CostumeResults!$C28)>0,1,0) -> 0
A29: =CostumeDesign!A36 -> G-803 | B29: =CostumeDesign!U36 -> 0 | C29: =CostumeDesign!S36 -> 0 | D29: =IF((CostumeResults!$B29+CostumeResults!$C29)>0,1,0) -> 0
A30: =CostumeDesign!A37 -> G-804 | B30: =CostumeDesign!U37 -> 0 | C30: =CostumeDesign!S37 -> 0 | D30: =IF((CostumeResults!$B30+CostumeResults!$C30)>0,1,0) -> 0
A31: =CostumeDesign!A39 -> H-801 | B31: =CostumeDesign!U39 -> 12 | C31: =CostumeDesign!S39 -> 24 | D31: =IF((CostumeResults!$B31+CostumeResults!$C31)>0,1,0) -> 1
A32: =CostumeDesign!A40 -> H-802 | B32: =CostumeDesign!U40 -> 8 | C32: =CostumeDesign!S40 -> 72 | D32: =IF((CostumeResults!$B32+CostumeResults!$C32)>0,1,0) -> 1
A33: =CostumeDesign!A41 -> H-803 | B33: =CostumeDesign!U41 -> 17 | C33: =CostumeDesign!S41 -> 66 | D33: =IF((CostumeResults!$B33+CostumeResults!$C33)>0,1,0) -> 1
A34: =CostumeDesign!A42 -> H-804 | B34: =CostumeDesign!U42 -> 0 | C34: =CostumeDesign!S42 -> 0 | D34: =IF((CostumeResults!$B34+CostumeResults!$C34)>0,1,0) -> 0
A35: =CostumeDesign!A44 -> J-801 | B35: =CostumeDesign!U44 -> 0 | C35: =CostumeDesign!S44 -> 0 | D35: =IF((CostumeResults!$B35+CostumeResults!$C35)>0,1,0) -> 0
A36: =CostumeDesign!A45 -> J-802 | B36: =CostumeDesign!U45 -> 0 | C36: =CostumeDesign!S45 -> 0 | D36: =IF((CostumeResults!$B36+CostumeResults!$C36)>0,1,0) -> 0
A37: =CostumeDesign!A46 -> J-803 | B37: =CostumeDesign!U46 -> 0 | C37: =CostumeDesign!S46 -> 0 | D37: =IF((CostumeResults!$B37+CostumeResults!$C37)>0,1,0) -> 0
A38: =CostumeDesign!A47 -> J-804 | B38: =CostumeDesign!U47 -> 0 | C38: =CostumeDesign!S47 -> 0 | D38: =IF((CostumeResults!$B38+CostumeResults!$C38)>0,1,0) -> 0
A39: =CostumeDesign!A49 -> K-801 | B39: =CostumeDesign!U49 -> 0 | C39: =CostumeDesign!S49 -> 0 | D39: =IF((CostumeResults!$B39+CostumeResults!$C39)>0,1,0) -> 0
A40: =CostumeDesign!A50 -> K-802 | B40: =CostumeDesign!U50 -> 0 | C40: =CostumeDesign!S50 -> 0 | D40: =IF((CostumeResults!$B40+CostumeResults!$C40)>0,1,0) -> 0
A41: =CostumeDesign!A51 -> K-803 | B41: =CostumeDesign!U51 -> 0 | C41: =CostumeDesign!S51 -> 0 | D41: =IF((CostumeResults!$B41+CostumeResults!$C41)>0,1,0) -> 0
A42: =CostumeDesign!A52 -> K-804 | B42: =CostumeDesign!U52 -> 0 | C42: =CostumeDesign!S52 -> 0 | D42: =IF((CostumeResults!$B42+CostumeResults!$C42)>0,1,0) -> 0
A43: =CostumeDesign!A54 -> L-801 | B43: =CostumeDesign!U54 -> 13 | C43: =CostumeDesign!S54 -> 70 | D43: =IF((CostumeResults!$B43+CostumeResults!$C43)>0,1,0) -> 1
A44: =CostumeDesign!A55 -> L-802 | B44: =CostumeDesign!U55 -> 5 | C44: =CostumeDesign!S55 -> 72 | D44: =IF((CostumeResults!$B44+CostumeResults!$C44)>0,1,0) -> 1
A45: =CostumeDesign!A56 -> L-803 | B45: =CostumeDesign!U56 -> 0 | C45: =CostumeDesign!S56 -> 0 | D45: =IF((CostumeResults!$B45+CostumeResults!$C45)>0,1,0) -> 0
A46: =CostumeDesign!A57 -> L-804 | B46: =CostumeDesign!U57 -> 0 | C46: =CostumeDesign!S57 -> 0 | D46: =IF((CostumeResults!$B46+CostumeResults!$C46)>0,1,0) -> 0
A47: =CostumeDesign!A59 -> M-801 | B47: =CostumeDesign!U59 -> 0 | C47: =CostumeDesign!S59 -> 0 | D47: =IF((CostumeResults!$B47+CostumeResults!$C47)>0,1,0) -> 0
A48: =CostumeDesign!A60 -> M-802 | B48: =CostumeDesign!U60 -> 0 | C48: =CostumeDesign!S60 -> 0 | D48: =IF((CostumeResults!$B48+CostumeResults!$C48)>0,1,0) -> 0
A49: =CostumeDesign!A61 -> M-803 | B49: =CostumeDesign!U61 -> 0 | C49: =CostumeDesign!S61 -> 0 | D49: =IF((CostumeResults!$B49+CostumeResults!$C49)>0,1,0) -> 0
A50: =CostumeDesign!A62 -> M-804 | B50: =CostumeDesign!U62 -> 0 | C50: =CostumeDesign!S62 -> 0 | D50: =IF((CostumeResults!$B50+CostumeResults!$C50)>0,1,0) -> 0
A51: =CostumeDesign!A64 -> N-801 | B51: =CostumeDesign!U64 -> 0 | C51: =CostumeDesign!S64 -> 0 | D51: =IF((CostumeResults!$B51+CostumeResults!$C51)>0,1,0) -> 0
A52: =CostumeDesign!A65 -> N-802 | B52: =CostumeDesign!U65 -> 0 | C52: =CostumeDesign!S65 -> 0 | D52: =IF((CostumeResults!$B52+CostumeResults!$C52)>0,1,0) -> 0
A53: =CostumeDesign!A66 -> N-803 | B53: =CostumeDesign!U66 -> 0 | C53: =CostumeDesign!S66 -> 0 | D53: =IF((CostumeResults!$B53+CostumeResults!$C53)>0,1,0) -> 0
A54: =CostumeDesign!A67 -> N-804 | B54: =CostumeDesign!U67 -> 0 | C54: =CostumeDesign!S67 -> 0 | D54: =IF((CostumeResults!$B54+CostumeResults!$C54)>0,1,0) -> 0
A55: =CostumeDesign!A69 -> P-801 | B55: =CostumeDesign!U69 -> 0 | C55: =CostumeDesign!S69 -> 0 | D55: =IF((CostumeResults!$B55+CostumeResults!$C55)>0,1,0) -> 0
A56: =CostumeDesign!A70 -> P-802 | B56: =CostumeDesign!U70 -> 0 | C56: =CostumeDesign!S70 -> 0 | D56: =IF((CostumeResults!$B56+CostumeResults!$C56)>0,1,0) -> 0
A57: =CostumeDesign!A71 -> P-803 | B57: =CostumeDesign!U71 -> 0 | C57: =CostumeDesign!S71 -> 0 | D57: =IF((CostumeResults!$B57+CostumeResults!$C57)>0,1,0) -> 0
A58: =CostumeDesign!A72 -> P-804 | B58: =CostumeDesign!U72 -> 0 | C58: =CostumeDesign!S72 -> 0 | D58: =IF((CostumeResults!$B58+CostumeResults!$C58)>0,1,0) -> 0
A59: =CostumeDesign!A74 -> Q-801 | B59: =CostumeDesign!U74 -> 0 | C59: =CostumeDesign!S74 -> 0 | D59: =IF((CostumeResults!$B59+CostumeResults!$C59)>0,1,0) -> 0
A60: =CostumeDesign!A75 -> Q-802 | B60: =CostumeDesign!U75 -> 0 | C60: =CostumeDesign!S75 -> 0 | D60: =IF((CostumeResults!$B60+CostumeResults!$C60)>0,1,0) -> 0
A61: =CostumeDesign!A76 -> Q-803 | B61: =CostumeDesign!U76 -> 0 | C61: =CostumeDesign!S76 -> 0 | D61: =IF((CostumeResults!$B61+CostumeResults!$C61)>0,1,0) -> 0
A62: =CostumeDesign!A77 -> Q-804 | B62: =CostumeDesign!U77 -> 0 | C62: =CostumeDesign!S77 -> 0 | D62: =IF((CostumeResults!$B62+CostumeResults!$C62)>0,1,0) -> 0
A63: =CostumeDesign!A79 -> R-801 | B63: =CostumeDesign!U79 -> 0 | C63: =CostumeDesign!S79 -> 0 | D63: =IF((CostumeResults!$B63+CostumeResults!$C63)>0,1,0) -> 0
A64: =CostumeDesign!A80 -> R-802 | B64: =CostumeDesign!U80 -> 0 | C64: =CostumeDesign!S80 -> 0 | D64: =IF((CostumeResults!$B64+CostumeResults!$C64)>0,1,0) -> 0
A65: =CostumeDesign!A81 -> R-803 | B65: =CostumeDesign!U81 -> 0 | C65: =CostumeDesign!S81 -> 0 | D65: =IF((CostumeResults!$B65+CostumeResults!$C65)>0,1,0) -> 0
A66: =CostumeDesign!A82 -> R-804 | B66: =CostumeDesign!U82 -> 0 | C66: =CostumeDesign!S82 -> 0 | D66: =IF((CostumeResults!$B66+CostumeResults!$C66)>0,1,0) -> 0
A67: =CostumeDesign!A84 -> S-801 | B67: =CostumeDesign!U84 -> 0 | C67: =CostumeDesign!S84 -> 0 | D67: =IF((CostumeResults!$B67+CostumeResults!$C67)>0,1,0) -> 0
A68: =CostumeDesign!A85 -> S-802 | B68: =CostumeDesign!U85 -> 0 | C68: =CostumeDesign!S85 -> 0 | D68: =IF((CostumeResults!$B68+CostumeResults!$C68)>0,1,0) -> 0
A69: =CostumeDesign!A86 -> S-803 | B69: =CostumeDesign!U86 -> 0 | C69: =CostumeDesign!S86 -> 0 | D69: =IF((CostumeResults!$B69+CostumeResults!$C69)>0,1,0) -> 0
A70: =CostumeDesign!A87 -> S-804 | B70: =CostumeDesign!U87 -> 0 | C70: =CostumeDesign!S87 -> 0 | D70: =IF((CostumeResults!$B70+CostumeResults!$C70)>0,1,0) -> 0
A71: =CostumeDesign!A89 -> T-801 | B71: =CostumeDesign!U89 -> 0 | C71: =CostumeDesign!S89 -> 0 | D71: =IF((CostumeResults!$B71+CostumeResults!$C71)>0,1,0) -> 0
A72: =CostumeDesign!A90 -> T-802 | B72: =CostumeDesign!U90 -> 0 | C72: =CostumeDesign!S90 -> 0 | D72: =IF((CostumeResults!$B72+CostumeResults!$C72)>0,1,0) -> 0
A73: =CostumeDesign!A91 -> T-803 | B73: =CostumeDesign!U91 -> 0 | C73: =CostumeDesign!S91 -> 0 | D73: =IF((CostumeResults!$B73+CostumeResults!$C73)>0,1,0) -> 0
A74: =CostumeDesign!A92 -> T-804 | B74: =CostumeDesign!U92 -> 0 | C74: =CostumeDesign!S92 -> 0 | D74: =IF((CostumeResults!$B74+CostumeResults!$C74)>0,1,0) -> 0
A75: =CostumeDesign!A94 -> U-801 | B75: =CostumeDesign!U94 -> 0 | C75: =CostumeDesign!S94 -> 0 | D75: =IF((CostumeResults!$B75+CostumeResults!$C75)>0,1,0) -> 0
A76: =CostumeDesign!A95 -> U-802 | B76: =CostumeDesign!U95 -> 0 | C76: =CostumeDesign!S95 -> 0 | D76: =IF((CostumeResults!$B76+CostumeResults!$C76)>0,1,0) -> 0
A77: =CostumeDesign!A96 -> U-803 | B77: =CostumeDesign!U96 -> 0 | C77: =CostumeDesign!S96 -> 0 | D77: =IF((CostumeResults!$B77+CostumeResults!$C77)>0,1,0) -> 0
A78: =CostumeDesign!A97 -> U-804 | B78: =CostumeDesign!U97 -> 0 | C78: =CostumeDesign!S97 -> 0 | D78: =IF((CostumeResults!$B78+CostumeResults!$C78)>0,1,0) -> 0
A79: =CostumeDesign!A99 -> V-801 | B79: =CostumeDesign!U99 -> 0 | C79: =CostumeDesign!S99 -> 0 | D79: =IF((CostumeResults!$B79+CostumeResults!$C79)>0,1,0) -> 0
A80: =CostumeDesign!A100 -> V-802 | B80: =CostumeDesign!U100 -> 0 | C80: =CostumeDesign!S100 -> 0 | D80: =IF((CostumeResults!$B80+CostumeResults!$C80)>0,1,0) -> 0
A81: =CostumeDesign!A101 -> V-803 | B81: =CostumeDesign!U101 -> 0 | C81: =CostumeDesign!S101 -> 0 | D81: =IF((CostumeResults!$B81+CostumeResults!$C81)>0,1,0) -> 0
A82: =CostumeDesign!A102 -> V-804 | B82: =CostumeDesign!U102 -> 0 | C82: =CostumeDesign!S102 -> 0 | D82: =IF((CostumeResults!$B82+CostumeResults!$C82)>0,1,0) -> 0
A83: =CostumeDesign!A104 -> W-801 | B83: =CostumeDesign!U104 -> 0 | C83: =CostumeDesign!S104 -> 0 | D83: =IF((CostumeResults!$B83+CostumeResults!$C83)>0,1,0) -> 0
A84: =CostumeDesign!A105 -> W-802 | B84: =CostumeDesign!U105 -> 0 | C84: =CostumeDesign!S105 -> 0 | D84: =IF((CostumeResults!$B84+CostumeResults!$C84)>0,1,0) -> 0
A85: =CostumeDesign!A106 -> W-803 | B85: =CostumeDesign!U106 -> 0 | C85: =CostumeDesign!S106 -> 0 | D85: =IF((CostumeResults!$B85+CostumeResults!$C85)>0,1,0) -> 0
A86: =CostumeDesign!A107 -> W-804 | B86: =CostumeDesign!U107 -> 0 | C86: =CostumeDesign!S107 -> 0 | D86: =IF((CostumeResults!$B86+CostumeResults!$C86)>0,1,0) -> 0
A87: =CostumeDesign!A109 -> X-801 | B87: =CostumeDesign!U109 -> 0 | C87: =CostumeDesign!S109 -> 0 | D87: =IF((CostumeResults!$B87+CostumeResults!$C87)>0,1,0) -> 0
A88: =CostumeDesign!A110 -> X-802 | B88: =CostumeDesign!U110 -> 0 | C88: =CostumeDesign!S110 -> 0 | D88: =IF((CostumeResults!$B88+CostumeResults!$C88)>0,1,0) -> 0
A89: =CostumeDesign!A111 -> X-803 | B89: =CostumeDesign!U111 -> 0 | C89: =CostumeDesign!S111 -> 0 | D89: =IF((CostumeResults!$B89+CostumeResults!$C89)>0,1,0) -> 0
A90: =CostumeDesign!A112 -> X-804 | B90: =CostumeDesign!U112 -> 0 | C90: =CostumeDesign!S112 -> 0 | D90: =IF((CostumeResults!$B90+CostumeResults!$C90)>0,1,0) -> 0
A91: =CostumeDesign!A114 -> Y-801 | B91: =CostumeDesign!U114 -> 0 | C91: =CostumeDesign!S114 -> 0 | D91: =IF((CostumeResults!$B91+CostumeResults!$C91)>0,1,0) -> 0
A92: =CostumeDesign!A115 -> Y-802 | B92: =CostumeDesign!U115 -> 0 | C92: =CostumeDesign!S115 -> 0 | D92: =IF((CostumeResults!$B92+CostumeResults!$C92)>0,1,0) -> 0
A93: =CostumeDesign!A116 -> Y-803 | B93: =CostumeDesign!U116 -> 0 | C93: =CostumeDesign!S116 -> 0 | D93: =IF((CostumeResults!$B93+CostumeResults!$C93)>0,1,0) -> 0
A94: =CostumeDesign!A117 -> Y-804 | B94: =CostumeDesign!U117 -> 0 | C94: =CostumeDesign!S117 -> 0 | D94: =IF((CostumeResults!$B94+CostumeResults!$C94)>0,1,0) -> 0
A95: =CostumeDesign!A119 -> Z-801 | B95: =CostumeDesign!U119 -> 0 | C95: =CostumeDesign!S119 -> 0 | D95: =IF((CostumeResults!$B95+CostumeResults!$C95)>0,1,0) -> 0
A96: =CostumeDesign!A120 -> Z-802 | B96: =CostumeDesign!U120 -> 0 | C96: =CostumeDesign!S120 -> 0 | D96: =IF((CostumeResults!$B96+CostumeResults!$C96)>0,1,0) -> 0
A97: =CostumeDesign!A121 -> Z-803 | B97: =CostumeDesign!U121 -> 0 | C97: =CostumeDesign!S121 -> 0 | D97: =IF((CostumeResults!$B97+CostumeResults!$C97)>0,1,0) -> 0
A98: =CostumeDesign!A122 -> Z-804 | B98: =CostumeDesign!U122 -> 0 | C98: =CostumeDesign!S122 -> 0 | D98: =IF((CostumeResults!$B98+CostumeResults!$C98)>0,1,0) -> 0
A99: =CostumeDesign!A124 -> AA-801 | B99: =CostumeDesign!U124 -> 0 | C99: =CostumeDesign!S124 -> 0 | D99: =IF((CostumeResults!$B99+CostumeResults!$C99)>0,1,0) -> 0
A100: =CostumeDesign!A125 -> AA-802 | B100: =CostumeDesign!U125 -> 0 | C100: =CostumeDesign!S125 -> 0 | D100: =IF((CostumeResults!$B100+CostumeResults!$C100)>0,1,0) -> 0
A101: =CostumeDesign!A126 -> AA-803 | B101: =CostumeDesign!U126 -> 0 | C101: =CostumeDesign!S126 -> 0 | D101: =IF((CostumeResults!$B101+CostumeResults!$C101)>0,1,0) -> 0
A102: =CostumeDesign!A127 -> AA-804 | B102: =CostumeDesign!U127 -> 0 | C102: =CostumeDesign!S127 -> 0 | D102: =IF((CostumeResults!$B102+CostumeResults!$C102)>0,1,0) -> 0
A103: =CostumeDesign!A129 -> BB-801 | B103: =CostumeDesign!U129 -> 0 | C103: =CostumeDesign!S129 -> 0 | D103: =IF((CostumeResults!$B103+CostumeResults!$C103)>0,1,0) -> 0
A104: =CostumeDesign!A130 -> BB-802 | B104: =CostumeDesign!U130 -> 0 | C104: =CostumeDesign!S130 -> 0 | D104: =IF((CostumeResults!$B104+CostumeResults!$C104)>0,1,0) -> 0
A105: =CostumeDesign!A131 -> BB-803 | B105: =CostumeDesign!U131 -> 0 | C105: =CostumeDesign!S131 -> 0 | D105: =IF((CostumeResults!$B105+CostumeResults!$C105)>0,1,0) -> 0
A106: =CostumeDesign!A132 -> BB-804 | B106: =CostumeDesign!U132 -> 0 | C106: =CostumeDesign!S132 -> 0 | D106: =IF((CostumeResults!$B106+CostumeResults!$C106)>0,1,0) -> 0
A107: =CostumeDesign!A134 -> CC-801 | B107: =CostumeDesign!U134 -> 0 | C107: =CostumeDesign!S134 -> 0 | D107: =IF((CostumeResults!$B107+CostumeResults!$C107)>0,1,0) -> 0
A108: =CostumeDesign!A135 -> CC-802 | B108: =CostumeDesign!U135 -> 0 | C108: =CostumeDesign!S135 -> 0 | D108: =IF((CostumeResults!$B108+CostumeResults!$C108)>0,1,0) -> 0
A109: =CostumeDesign!A136 -> CC-803 | B109: =CostumeDesign!U136 -> 0 | C109: =CostumeDesign!S136 -> 0 | D109: =IF((CostumeResults!$B109+CostumeResults!$C109)>0,1,0) -> 0
A110: =CostumeDesign!A137 -> CC-804 | B110: =CostumeDesign!U137 -> 0 | C110: =CostumeDesign!S137 -> 0 | D110: =IF((CostumeResults!$B110+CostumeResults!$C110)>0,1,0) -> 0
A111: =CostumeDesign!A139 -> DD-801 | B111: =CostumeDesign!U139 -> 0 | C111: =CostumeDesign!S139 -> 0 | D111: =IF((CostumeResults!$B111+CostumeResults!$C111)>0,1,0) -> 0
A112: =CostumeDesign!A140 -> DD-802 | B112: =CostumeDesign!U140 -> 0 | C112: =CostumeDesign!S140 -> 0 | D112: =IF((CostumeResults!$B112+CostumeResults!$C112)>0,1,0) -> 0
A113: =CostumeDesign!A141 -> DD-803 | B113: =CostumeDesign!U141 -> 0 | C113: =CostumeDesign!S141 -> 0 | D113: =IF((CostumeResults!$B113+CostumeResults!$C113)>0,1,0) -> 0
A114: =CostumeDesign!A142 -> DD-804 | B114: =CostumeDesign!U142 -> 0 | C114: =CostumeDesign!S142 -> 0 | D114: =IF((CostumeResults!$B114+CostumeResults!$C114)>0,1,0) -> 0
A115: =CostumeDesign!A144 -> EE-801 | B115: =CostumeDesign!U144 -> 0 | C115: =CostumeDesign!S144 -> 0 | D115: =IF((CostumeResults!$B115+CostumeResults!$C115)>0,1,0) -> 0
A116: =CostumeDesign!A145 -> EE-802 | B116: =CostumeDesign!U145 -> 0 | C116: =CostumeDesign!S145 -> 0 | D116: =IF((CostumeResults!$B116+CostumeResults!$C116)>0,1,0) -> 0
A117: =CostumeDesign!A146 -> EE-803 | B117: =CostumeDesign!U146 -> 0 | C117: =CostumeDesign!S146 -> 0 | D117: =IF((CostumeResults!$B117+CostumeResults!$C117)>0,1,0) -> 0
A118: =CostumeDesign!A147 -> EE-804 | B118: =CostumeDesign!U147 -> 0 | C118: =CostumeDesign!S147 -> 0 | D118: =IF((CostumeResults!$B118+CostumeResults!$C118)>0,1,0) -> 0
A119: =CostumeDesign!A149 -> FF-801 | B119: =CostumeDesign!U149 -> 0 | C119: =CostumeDesign!S149 -> 0 | D119: =IF((CostumeResults!$B119+CostumeResults!$C119)>0,1,0) -> 0
A120: =CostumeDesign!A150 -> FF-802 | B120: =CostumeDesign!U150 -> 0 | C120: =CostumeDesign!S150 -> 0 | D120: =IF((CostumeResults!$B120+CostumeResults!$C120)>0,1,0) -> 0
A121: =CostumeDesign!A151 -> FF-803 | B121: =CostumeDesign!U151 -> 0 | C121: =CostumeDesign!S151 -> 0 | D121: =IF((CostumeResults!$B121+CostumeResults!$C121)>0,1,0) -> 0
A122: =CostumeDesign!A152 -> FF-804 | B122: =CostumeDesign!U152 -> 0 | C122: =CostumeDesign!S152 -> 0 | D122: =IF((CostumeResults!$B122+CostumeResults!$C122)>0,1,0) -> 0
